Workbook

Sheet ACCUEILPRO
A1: Accueil
F7: =ACCUEIL!F7 -> 2021-05-16

Sheet ACCUEILPREM
A1: Accueil
F7: =ACCUEIL!F7 -> 2021-05-16

Sheet ACCUEILGP
A1: Accueil
F7: =ACCUEIL!F7 -> 2021-05-16

Sheet ACCUEIL
F7: 2021-05-16

Sheet Accueilagence
A1: Accueil
E7: =ACCUEIL!F7 -> 2021-05-16

Sheet Accueilsecteur
A1: Accueil
E7: =ACCUEIL!F7 -> 2021-05-16

Sheet AccueilDircom
A1: Accueil
E7: =ACCUEIL!F7 -> 2021-05-16

Sheet DC_FICHE
A1: Accueil
A2: BAROMETRE BDD
A4: UNITE: | B4: DIRECTION REGIONALE | E4: ETP perf : | F4: =VLOOKUP(A5,'RECAP DIRCOM'!$G$6:$I$12,3,FALSE) -> 257.54
A5: =VLOOKUP(B5,LISTES!$M$6:$N$12,2,FALSE) -> 262 | B5: BAS-RHIN
C6: Coefficient du critére | E6: Résultats | I6: Ecart au 1ier | M6: Evolution | O6: Rang
E7: du 1ier | G7: DIRECTION | I7: Du mois | K7: Au 31/12/2019
A9: RANG au CLASSEMENT GENERAL | K9: =VLOOKUP($A$5,#REF!,168,FALSE) ->  | M9: =+K9-O9 ->  | O9: =VLOOKUP($A$5,'RECAP DIRCOM'!$G$6:$DG$312,168,FALSE) -> 
A11: CRITERE CLIENTS | C11: 15% | O11: =VLOOKUP($A$5,'RECAP DIRCOM'!$G$6:$DG$312,23,FALSE) -> 16.46361933
B12: PNB Evolution nette Clients BP | C12: 4% | E12: ='RECAP DIRCOM'!#REF! ->  | G12: =VLOOKUP($A$5,'RECAP DIRCOM'!$G$6:$DG$312,6,FALSE) -> 0.5 | I12: =VLOOKUP($A$5,'RECAP DIRCOM'!$G$6:$DG$312,7,FALSE) -> 600% | K12: =VLOOKUP($A$5,#REF!,7,FALSE) ->  | M12: =+K12-I12 ->  | O12: =VLOOKUP($A$5,'RECAP DIRCOM'!$G$6:$DG$312,8,FALSE) -> 0.5000277748
B13: PNB Evolution nette Clients PREMIUM | C13: 5% | E13: ='RECAP DIRCOM'!#REF! ->  | G13: =VLOOKUP($A$5,'RECAP DIRCOM'!$G$6:$DG$312,10,FALSE) -> 6.0 | I13: =VLOOKUP($A$5,'RECAP DIRCOM'!$G$6:$DG$312,11,FALSE) -> 39% | K13: =VLOOKUP($A$5,#REF!,11,FALSE) ->  | M13: =+K13-I13 ->  | O13: =VLOOKUP($A$5,'RECAP DIRCOM'!$G$6:$DG$312,12,FALSE) -> 0.3900730825
B14: PNB Evolution nette Clients Jeunes Equipés | C14: 3% | E14: ='RECAP DIRCOM'!#REF! ->  | G14: =VLOOKUP($A$5,'RECAP DIRCOM'!$G$6:$DG$312,14,FALSE) -> 0.0 | I14: =VLOOKUP($A$5,'RECAP DIRCOM'!$G$6:$DG$312,15,FALSE) -> 0% | K14: =VLOOKUP($A$5,#REF!,15,FALSE) ->  | M14: =+K14-I14 ->  | O14: =VLOOKUP($A$5,'RECAP DIRCOM'!$G$6:$DG$312,16,FALSE) -> 0
B15: PNB Evolution nette Clients Pro Actifs Equipés | C15: 3% | E15: ='RECAP DIRCOM'!W4 -> 0.0 | G15: =VLOOKUP($A$5,'RECAP DIRCOM'!$G$6:$DG$312,18,FALSE) -> 9521.5 | I15: =VLOOKUP($A$5,'RECAP DIRCOM'!$G$6:$DG$312,19,FALSE) -> 3697% | K15: =VLOOKUP($A$5,#REF!,19,FALSE) ->  | M15: =+K15-I15 ->  | O15: =VLOOKUP($A$5,'RECAP DIRCOM'!$G$6:$DG$312,20,FALSE) -> 0
A17: CRITERE BANCARISATION | C17: 15% | O17: =VLOOKUP($A$5,'RECAP DIRCOM'!$G$6:$DG$312,48,FALSE) -> 2
B18: PNB Ventes nettes forfaits | C18: 4% | E18: ='RECAP DIRCOM'!X4 -> 37.0 | G18: =VLOOKUP($A$5,'RECAP DIRCOM'!$G$6:$DG$312,31,FALSE) -> -1.0 | I18: =VLOOKUP($A$5,'RECAP DIRCOM'!$G$6:$DG$312,32,FALSE) -> 26% | K18: =VLOOKUP($A$5,#REF!,32,FALSE) ->  | M18: =+K18-I18 ->  | O18: =VLOOKUP($A$5,'RECAP DIRCOM'!$G$6:$DG$312,33,FALSE) -> 7
B19: PNB Ventes nettes IZICARTES Débit Différé | C19: 4% | E19: ='RECAP DIRCOM'!AB4 -> 19.4 | G19: =VLOOKUP($A$5,'RECAP DIRCOM'!$G$6:$DG$312,35,FALSE) -> 0.1 | I19: =VLOOKUP($A$5,'RECAP DIRCOM'!$G$6:$DG$312,36,FALSE) -> 200% | K19: =VLOOKUP($A$5,#REF!,36,FALSE) ->  | M19: =+K19-I19 ->  | O19: =VLOOKUP($A$5,'RECAP DIRCOM'!$G$6:$DG$312,37,FALSE) -> 0
B20: PNB Ventes nettes cartes HDG Débit Différé | C20: 4% | E20: ='RECAP DIRCOM'!AF4 -> 5.8 | G20: =VLOOKUP($A$5,'RECAP DIRCOM'!$G$6:$DG$312,39,FALSE) -> 0.0 | I20: =VLOOKUP($A$5,'RECAP DIRCOM'!$G$6:$DG$312,40,FALSE) -> 0% | K20: =VLOOKUP($A$5,#REF!,40,FALSE) ->  | M20: =+K20-I20 ->  | O20: =VLOOKUP($A$5,'RECAP DIRCOM'!$G$6:$DG$312,41,FALSE) -> 78185.31617
B21: PNB Ventes nettes Forfaits Pro, Carte pro | C21: 3% | E21: ='RECAP DIRCOM'!AJ4 -> -0.8 | G21: =VLOOKUP($A$5,'RECAP DIRCOM'!$G$6:$DG$312,43,FALSE) -> 0.0 | I21: =VLOOKUP($A$5,'RECAP DIRCOM'!$G$6:$DG$312,44,FALSE) -> 100% | K21: =VLOOKUP($A$5,#REF!,44,FALSE) ->  | M21: =+K21-I21 ->  | O21: =VLOOKUP($A$5,'RECAP DIRCOM'!$G$6:$DG$312,45,FALSE) -> 2804
A23: CRITERE EPARGNE | C23: 10% | O23: =VLOOKUP($A$5,'RECAP DIRCOM'!$G$6:$DG$312,69,FALSE) -> 0.3341494217
B24: PNB Epargne Liquide | C24: 3% | E24: ='RECAP DIRCOM'!AU4 -> 303.6 | G24: =VLOOKUP($A$5,'RECAP DIRCOM'!$G$6:$DG$312,56,FALSE) -> 12242.2 | I24: =VLOOKUP($A$5,'RECAP DIRCOM'!$G$6:$DG$312,57,FALSE) -> 4754% | K24: =VLOOKUP($A$5,#REF!,57,FALSE) ->  | M24: =+K24-I24 ->  | O24: =VLOOKUP($A$5,'RECAP DIRCOM'!$G$6:$DG$312,58,FALSE) -> 0.4908130413
B25: PNB CA UC + arbitrage | C25: 4% | E25: ='RECAP DIRCOM'!AY4 -> 10.9 | G25: =VLOOKUP($A$5,'RECAP DIRCOM'!$G$6:$DG$312,60,FALSE) -> 5789.9 | I25: =VLOOKUP($A$5,'RECAP DIRCOM'!$G$6:$DG$312,61,FALSE) -> 2248% | K25: =VLOOKUP($A$5,#REF!,61,FALSE) ->  | M25: =+K25-I25 ->  | O25: =VLOOKUP($A$5,'RECAP DIRCOM'!$G$6:$DG$312,62,FALSE) -> 0.1133379721
B26: PNB Excédent assurance vie | C26: 3% | E26: ='RECAP DIRCOM'!#REF! ->  | G26: =VLOOKUP($A$5,'RECAP DIRCOM'!$G$6:$DG$312,64,FALSE) -> 1440.0 | I26: =VLOOKUP($A$5,'RECAP DIRCOM'!$G$6:$DG$312,65,FALSE) -> 559% | K26: =VLOOKUP($A$5,#REF!,65,FALSE) ->  | M26: =+K26-I26 ->  | O26: =VLOOKUP($A$5,'RECAP DIRCOM'!$G$6:$DG$312,66,FALSE) -> 0.3460760451
A28: CRITERE CREDITS | C28: 15% | O28: =VLOOKUP($A$5,'RECAP DIRCOM'!$G$6:$DG$312,102,FALSE) -> 0.1982008703
B29: PNB crédit conso | C29: 4% | E29: ='RECAP DIRCOM'!BJ4 -> 93.4 | G29: =VLOOKUP($A$5,'RECAP DIRCOM'!$G$6:$DG$312,77,FALSE) -> 0.2 | I29: =VLOOKUP($A$5,'RECAP DIRCOM'!$G$6:$DG$312,78,FALSE) -> 400% | K29: =VLOOKUP($A$5,#REF!,78,FALSE) ->  | M29: =+K29-I29 ->  | O29: =VLOOKUP($A$5,'RECAP DIRCOM'!$G$6:$DG$312,79,FALSE) -> 3652
B30: PNB ADE crédit conso | C30: 1% | E30: ='RECAP DIRCOM'!#REF! ->  | G30: =VLOOKUP($A$5,'RECAP DIRCOM'!$G$6:$DG$312,81,FALSE) -> 0.2 | I30: =VLOOKUP($A$5,'RECAP DIRCOM'!$G$6:$DG$312,82,FALSE) -> 500% | K30: =VLOOKUP($A$5,#REF!,82,FALSE) ->  | O30: =VLOOKUP($A$5,'RECAP DIRCOM'!$G$6:$DG$312,83,FALSE) -> 0.1973995386
B31: PNB crédit immo | C31: 4% | E31: ='RECAP DIRCOM'!BN4 -> 25.4 | G31: =VLOOKUP($A$5,'RECAP DIRCOM'!$G$6:$DG$312,85,FALSE) -> 5.0 | I31: =VLOOKUP($A$5,'RECAP DIRCOM'!$G$6:$DG$312,86,FALSE) -> 0% | K31: =VLOOKUP($A$5,#REF!,86,FALSE) ->  | O31: =VLOOKUP($A$5,'RECAP DIRCOM'!$G$6:$DG$312,87,FALSE) -> 0
B32: PNB ADE crédit immo | C32: 2% | E32: ='RECAP DIRCOM'!#REF! ->  | G32: =VLOOKUP($A$5,'RECAP DIRCOM'!$G$6:$DG$312,89,FALSE) -> 0.0 | I32: =VLOOKUP($A$5,'RECAP DIRCOM'!$G$6:$DG$312,90,FALSE) -> 0% | K32: =VLOOKUP($A$5,#REF!,90,FALSE) ->  | O32: =VLOOKUP($A$5,'RECAP DIRCOM'!$G$6:$DG$312,91,FALSE) -> 0
B33: PNB SACCEF | C33: 2% | E33: ='RECAP DIRCOM'!#REF! ->  | G33: =VLOOKUP($A$5,'RECAP DIRCOM'!$G$6:$DG$312,93,FALSE) -> 0.0 | I33: =VLOOKUP($A$5,'RECAP DIRCOM'!$G$6:$DG$312,94,FALSE) -> 0% | K33: =VLOOKUP($A$5,#REF!,94,FALSE) ->  | O33: =VLOOKUP($A$5,'RECAP DIRCOM'!$G$6:$DG$312,95,FALSE) -> 0
B34: PNB Crédit MLT + Crédit Bail | C34: 2% | E34: ='RECAP DIRCOM'!BR4 -> 8.6 | G34: =VLOOKUP($A$5,'RECAP DIRCOM'!$G$6:$DG$312,97,FALSE) -> 0.0 | I34: =VLOOKUP($A$5,'RECAP DIRCOM'!$G$6:$DG$312,98,FALSE) -> 0% | K34: =VLOOKUP($A$5,#REF!,98,FALSE) ->  | O34: =VLOOKUP($A$5,'RECAP DIRCOM'!$G$6:$DG$312,99,FALSE) -> 0
A36: CRITERE IARD PREVOYANCE | C36: 15% | O36: =VLOOKUP($A$5,'RECAP DIRCOM'!$G$6:$DG$312,119,FALSE) -> 
B37: PNB Ventes nettes IARD | C37: 9% | E37: ='RECAP DIRCOM'!CC4 -> 106.2 | G37: =VLOOKUP($A$5,'RECAP DIRCOM'!$G$6:$DG$312,110,FALSE) ->  | I37: =VLOOKUP($A$5,'RECAP DIRCOM'!$G$6:$DG$312,111,FALSE) ->  | K37: =VLOOKUP($A$5,#REF!,111,FALSE) ->  | M37: =+K37-I37 ->  | O37: =VLOOKUP($A$5,'RECAP DIRCOM'!$G$6:$DG$312,112,FALSE) -> 
B38: PNB Ventes nettes Prévoyance | C38: 6% | E38: ='RECAP DIRCOM'!CG4 -> 18.0 | G38: =VLOOKUP($A$5,'RECAP DIRCOM'!$G$6:$DG$312,114,FALSE) ->  | I38: =VLOOKUP($A$5,'RECAP DIRCOM'!$G$6:$DG$312,115,FALSE) ->  | K38: =VLOOKUP($A$5,#REF!,115,FALSE) ->  | M38: =+K38-I38 ->  | O38: =VLOOKUP($A$5,'RECAP DIRCOM'!$G$6:$DG$312,116,FALSE) -> 
A40: CRITERE ACCELERATEURS PNB | C40: 15% | O40: =VLOOKUP($A$5,'RECAP DIRCOM'!$G$6:$DG$312,144,FALSE) -> 
B41: PNB Ventes brutes SED Finalisées | C41: 6% | E41: ='RECAP DIRCOM'!#REF! ->  | G41: =VLOOKUP($A$5,'RECAP DIRCOM'!$G$6:$DG$312,127,FALSE) ->  | I41: =VLOOKUP($A$5,'RECAP DIRCOM'!$G$6:$DG$312,128,FALSE) ->  | K41: =VLOOKUP($A$5,#REF!,128,FALSE) ->  | M41: =+K41-I41 ->  | O41: =VLOOKUP($A$5,'RECAP DIRCOM'!$G$6:$DG$312,129,FALSE) -> 
B42: PNB clients équipés E documents | C42: 3% | E42: ='RECAP DIRCOM'!#REF! ->  | G42: =VLOOKUP($A$5,'RECAP DIRCOM'!$G$6:$DG$312,131,FALSE) ->  | I42: =VLOOKUP($A$5,'RECAP DIRCOM'!$G$6:$DG$312,132,FALSE) ->  | K42: =VLOOKUP($A$5,#REF!,132,FALSE) ->  | M42: =+K42-I42 ->  | O42: =VLOOKUP($A$5,'RECAP DIRCOM'!$G$6:$DG$312,133,FALSE) -> 
B43: Economie opt'in | C43: 3% | E43: ='RECAP DIRCOM'!#REF! ->  | G43: =VLOOKUP($A$5,'RECAP DIRCOM'!$G$6:$DG$312,135,FALSE) ->  | I43: =VLOOKUP($A$5,'RECAP DIRCOM'!$G$6:$DG$312,136,FALSE) ->  | K43: =VLOOKUP($A$5,#REF!,136,FALSE) ->  | M43: =+K43-I43 ->  | O43: =VLOOKUP($A$5,'RECAP DIRCOM'!$G$6:$DG$312,137,FALSE) -> 
B44: Remises commerciales | C44: 3% | E44: ='RECAP DIRCOM'!#REF! ->  | G44: =VLOOKUP($A$5,'RECAP DIRCOM'!$G$6:$DG$312,139,FALSE) ->  | I44: =VLOOKUP($A$5,'RECAP DIRCOM'!$G$6:$DG$312,140,FALSE) ->  | K44: =VLOOKUP($A$5,#REF!,140,FALSE) ->  | M44: =+K44-I44 ->  | O44: =VLOOKUP($A$5,'RECAP DIRCOM'!$G$6:$DG$312,141,FALSE) -> 
A46: CRITERE Qualité-Satisfaction Clients | C46: 15% | O46: =VLOOKUP($A$5,'RECAP DIRCOM'!$G$6:$DG$312,159,FALSE) -> 
B47: Objectifs NPS* | C47: 8% | E47: ='RECAP DIRCOM'!K4 -> 19 | G47: =VLOOKUP($A$5,'RECAP DIRCOM'!$G$6:$DG$312,151,FALSE) ->  | I47: =VLOOKUP($A$5,'RECAP DIRCOM'!$G$6:$DG$312,152,FALSE) ->  | K47: =VLOOKUP($A$5,#REF!,152,FALSE) ->  | M47: =+K47-I47 ->  | O47: =VLOOKUP($A$5,'RECAP DIRCOM'!$G$6:$DG$312,153,FALSE) -> 
B48: Enquête Qualité Haute Définition | C48: 7% | E48: ='RECAP DIRCOM'!N4 -> 67% | G48: =VLOOKUP($A$5,'RECAP DIRCOM'!$G$6:$DG$312,154,FALSE) ->  | I48: =VLOOKUP($A$5,'RECAP DIRCOM'!$G$6:$DG$312,155,FALSE) ->  | K48: =VLOOKUP($A$5,#REF!,155,FALSE) ->  | M48: =+K48-I48 ->  | O48: =VLOOKUP($A$5,'RECAP DIRCOM'!$G$6:$DG$312,156,FALSE) -> 

Sheet DC_TOTAL
B1: Accueil | D1: BAROMETRE BDD - DIRECTIONS REGIONALES
D2: TOTAL GENERAL
D3: =ACCUEIL!F7 -> 2021-05-16
D7: TOTAL GENERAL | G7: Total Satisfaction Clients | J7: Total Bancarisation | M7: Total Epargne | P7: Total IARD Prévoyance | S7: Total Crédits
E8: coef | F8: 100% | H8: coef | I8: =DC_SATISFACTION!L8 -> 20% | K8: coef | L8: =DC_BANCA!V8 -> 20% | N8: coef | O8: =DC_EPARGNE!N8 -> 20% | Q8: coef | R8: =DC_IARD!N8 -> 20% | T8: coef | U8: =DC_CREDIT!R8 -> 20%
A9: eds | B9: Direction | C9: ="ETP perf "&DATEMAJ!$C$28 -> ETP perf 31-mars | D9: Moyenne ecart au 1er | E9: % Ecart au 1er | F9: Rang CEGEE | G9: Moyenne ecart au 1er | H9: % Ecart au 1er | I9: Rang CEGEE | J9: Moyenne ecart au 1er | K9: % Ecart au 1er | L9: Rang CEGEE | M9: Moyenne ecart au 1er | N9: % Ecart au 1er | O9: Rang CEGEE | P9: Moyenne ecart au 1er | Q9: % Ecart au 1er | R9: Rang CEGEE | S9: Moyenne ecart au 1er | T9: % Ecart au 1er | U9: Rang CEGEE
A10: 50 | B10: Meurthe et Moselle Meuse | C10: 245 | D10: 8% | E10: 0% | F10: 1 | G10: 33% | H10: 33% | I10: 5 | J10: 4% | K10: 0% | L10: 1 | M10: 7% | N10: 7% | O10: 2 | P10: 5% | Q10: 2% | R10: 2 | S10: 0% | T10: 0% | U10: 1
A11: 262 | B11: Marne-Ardennes | C11: 228 | D11: 14% | E11: 6% | F11: 2 | G11: 13% | H11: 13% | I11: 2 | J11: 26% | K11: 23% | L11: 4 | M11: 22% | N11: 22% | O11: 5 | P11: 3% | Q11: 0% | R11: 1 | S11: 13% | T11: 13% | U11: 2
A12: 264 | B12: Moselle | C12: 269 | D12: 18% | E12: 10% | F12: 3 | G12: 25% | H12: 25% | I12: 4 | J12: 19% | K12: 15% | L12: 3 | M12: 11% | N12: 11% | O12: 3 | P12: 19% | Q12: 16% | R12: 4 | S12: 25% | T12: 25% | U12: 3
A13: 30 | B13: Vosges | C13: 133 | D13: 19% | E13: 11% | F13: 4 | G13: 0% | H13: 0% | I13: 1 | J13: 36% | K13: 32% | L13: 6 | M13: 16% | N13: 16% | O13: 4 | P13: 16% | Q13: 13% | R13: 3 | S13: 32% | T13: 32% | U13: 5
A14: 110 | B14: Bas-Rhin | C14: 258 | D14: 20% | E14: 12% | F14: 5 | G14: 39% | H14: 39% | I14: 6 | J14: 14% | K14: 10% | L14: 2 | M14: 0% | N14: 0% | O14: 1 | P14: 20% | Q14: 17% | R14: 5 | S14: 33% | T14: 33% | U14: 6
A15: 160 | B15: Aube Haute Marne | C15: 127 | D15: 30% | E15: 21% | F15: 6 | G15: 16% | H15: 16% | I15: 3 | J15: 33% | K15: 29% | L15: 5 | M15: 47% | N15: 47% | O15: 6 | P15: 30% | Q15: 27% | R15: 6 | S15: 29% | T15: 29% | U15: 4
A16: 80 | B16: Haut-Rhin | C16: 157 | D16: 47% | E16: 39% | F16: 7 | G16: 60% | H16: 60% | I16: 7 | J16: 51% | K16: 47% | L16: 7 | M16: 48% | N16: 48% | O16: 7 | P16: 36% | Q16: 33% | R16: 7 | S16: 46% | T16: 46% | U16: 7
B17: Total CEGEE Directions Régionales | C17: =SUM(C10:C16) -> 1416

Sheet DC_BANCA
B1: Accueil | D1: BAROMETRE BDD - DIRECTIONS REGIONALES
D2: BANCARISATION
D3: =ACCUEIL!F7 -> 2021-05-16
D7: Ventes Nettes produits pondérés | H7: Ventes sur client non détenteur de l’univers | L7: Mobilité Macron | P7: Remises commerciales | T7: Total Bancarisation
D8: =DATEMAJ!C8 -> au 16/05 | F8: coef | G8: ='RECAP DIRCOM'!AA4 -> 10% | H8: =DATEMAJ!C9 -> au 16/05 | J8: coef | K8: ='RECAP DIRCOM'!AE4 -> 4% | L8: =DATEMAJ!C10 -> au 16/05 | N8: coef | O8: ='RECAP DIRCOM'!AI4 -> 3% | P8: =DATEMAJ!C11 -> au 31/03 | R8: coef | S8: ='RECAP DIRCOM'!AM4 -> 3% | U8: coef | V8: ='RECAP DIRCOM'!AP4 -> 20%
B9: Direction | C9: ="ETP perf "&DATEMAJ!$C$28 -> ETP perf 31-mars | D9: VN | E9: VN / ETP | F9: % Ecart au 1er | G9: Rang | H9: VB | I9: VB / ETP | J9: % Ecart au 1er | K9: Rang | L9: Nb | M9: Nb / ETP | N9: % Ecart au 1er | O9: Rang | P9: Montant | Q9: Montant / ETP | R9: % Ecart au 1er | S9: Rang | T9: Moyenne ecart au 1er | U9: % Ecart au 1er | V9: Rang CEGEE
A10: 50 | B10: Aube Haute Marne | C10: =VLOOKUP($A10,'RECAP DIRCOM'!$G$6:$DC$12,3,FALSE) -> 127 | D10: =VLOOKUP($A10,'RECAP DIRCOM'!$G$6:$DC$12,18,FALSE) -> 2,618 | E10: =VLOOKUP($A10,'RECAP DIRCOM'!$G$6:$DC$12,19,FALSE) -> 20.66 | F10: =VLOOKUP($A10,'RECAP DIRCOM'!$G$6:$DC$12,20,FALSE) -> 44% | G10: =VLOOKUP($A10,'RECAP DIRCOM'!$G$6:$DC$12,21,FALSE) -> 6 | H10: =VLOOKUP($A10,'RECAP DIRCOM'!$G$6:$DC$12,22,FALSE) -> 1,979 | I10: =VLOOKUP($A10,'RECAP DIRCOM'!$G$6:$DC$12,23,FALSE) -> 15.62 | J10: =VLOOKUP($A10,'RECAP DIRCOM'!$G$6:$DC$12,24,FALSE) -> 20% | K10: =VLOOKUP($A10,'RECAP DIRCOM'!$G$6:$DC$12,25,FALSE) -> 5 | L10: =VLOOKUP($A10,'RECAP DIRCOM'!$G$6:$DC$12,26,FALSE) -> 379 | M10: =VLOOKUP($A10,'RECAP DIRCOM'!$G$6:$DC$12,27,FALSE) -> 2.99 | N10: =VLOOKUP($A10,'RECAP DIRCOM'!$G$6:$DC$12,28,FALSE) -> 48% | O10: =VLOOKUP($A10,'RECAP DIRCOM'!$G$6:$DC$12,29,FALSE) -> 4 | P10: =VLOOKUP($A10,'RECAP DIRCOM'!$G$6:$DC$12,30,FALSE) -> -104 | Q10: =VLOOKUP($A10,'RECAP DIRCOM'!$G$6:$DC$12,31,FALSE) -> -0.82 | R10: =VLOOKUP($A10,'RECAP DIRCOM'!$G$6:$DC$12,32,FALSE) -> 0% | S10: =VLOOKUP($A10,'RECAP DIRCOM'!$G$6:$DC$12,33,FALSE) -> 1 | T10: =VLOOKUP($A10,'RECAP DIRCOM'!$G$6:$DC$12,34,FALSE) -> 33% | U10: =VLOOKUP($A10,'RECAP DIRCOM'!$G$6:$DC$12,35,FALSE) -> 29% | V10: =VLOOKUP($A10,'RECAP DIRCOM'!$G$6:$DC$12,36,FALSE) -> 5
A11: 262 | B11: Bas-Rhin | C11: =VLOOKUP($A11,'RECAP DIRCOM'!$G$6:$DC$12,3,FALSE) -> 258 | D11: =VLOOKUP($A11,'RECAP DIRCOM'!$G$6:$DC$12,18,FALSE) -> 9,522 | E11: =VLOOKUP($A11,'RECAP DIRCOM'!$G$6:$DC$12,19,FALSE) -> 36.97 | F11: =VLOOKUP($A11,'RECAP DIRCOM'!$G$6:$DC$12,20,FALSE) -> 0% | G11: =VLOOKUP($A11,'RECAP DIRCOM'!$G$6:$DC$12,21,FALSE) -> 1 | H11: =VLOOKUP($A11,'RECAP DIRCOM'!$G$6:$DC$12,22,FALSE) -> 4,240 | I11: =VLOOKUP($A11,'RECAP DIRCOM'!$G$6:$DC$12,23,FALSE) -> 16.46 | J11: =VLOOKUP($A11,'RECAP DIRCOM'!$G$6:$DC$12,24,FALSE) -> 15% | K11: =VLOOKUP($A11,'RECAP DIRCOM'!$G$6:$DC$12,25,FALSE) -> 3 | L11: =VLOOKUP($A11,'RECAP DIRCOM'!$G$6:$DC$12,26,FALSE) -> 794 | M11: =VLOOKUP($A11,'RECAP DIRCOM'!$G$6:$DC$12,27,FALSE) -> 3.08 | N11: =VLOOKUP($A11,'RECAP DIRCOM'!$G$6:$DC$12,28,FALSE) -> 46% | O11: =VLOOKUP($A11,'RECAP DIRCOM'!$G$6:$DC$12,29,FALSE) -> 3 | P11: =VLOOKUP($A11,'RECAP DIRCOM'!$G$6:$DC$12,30,FALSE) -> -266 | Q11: =VLOOKUP($A11,'RECAP DIRCOM'!$G$6:$DC$12,31,FALSE) -> -1.03 | R11: =VLOOKUP($A11,'RECAP DIRCOM'!$G$6:$DC$12,32,FALSE) -> 26% | S11: =VLOOKUP($A11,'RECAP DIRCOM'!$G$6:$DC$12,33,FALSE) -> 7 | T11: =VLOOKUP($A11,'RECAP DIRCOM'!$G$6:$DC$12,34,FALSE) -> 14% | U11: =VLOOKUP($A11,'RECAP DIRCOM'!$G$6:$DC$12,35,FALSE) -> 10% | V11: =VLOOKUP($A11,'RECAP DIRCOM'!$G$6:$DC$12,36,FALSE) -> 2
A12: 264 | B12: Haut-Rhin | C12: =VLOOKUP($A12,'RECAP DIRCOM'!$G$6:$DC$12,3,FALSE) -> 157 | D12: =VLOOKUP($A12,'RECAP DIRCOM'!$G$6:$DC$12,18,FALSE) -> 2,114 | E12: =VLOOKUP($A12,'RECAP DIRCOM'!$G$6:$DC$12,19,FALSE) -> 13.43 | F12: =VLOOKUP($A12,'RECAP DIRCOM'!$G$6:$DC$12,20,FALSE) -> 64% | G12: =VLOOKUP($A12,'RECAP DIRCOM'!$G$6:$DC$12,21,FALSE) -> 7 | H12: =VLOOKUP($A12,'RECAP DIRCOM'!$G$6:$DC$12,22,FALSE) -> 2,110 | I12: =VLOOKUP($A12,'RECAP DIRCOM'!$G$6:$DC$12,23,FALSE) -> 13.41 | J12: =VLOOKUP($A12,'RECAP DIRCOM'!$G$6:$DC$12,24,FALSE) -> 31% | K12: =VLOOKUP($A12,'RECAP DIRCOM'!$G$6:$DC$12,25,FALSE) -> 7 | L12: =VLOOKUP($A12,'RECAP DIRCOM'!$G$6:$DC$12,26,FALSE) -> 230 | M12: =VLOOKUP($A12,'RECAP DIRCOM'!$G$6:$DC$12,27,FALSE) -> 1.46 | N12: =VLOOKUP($A12,'RECAP DIRCOM'!$G$6:$DC$12,28,FALSE) -> 75% | O12: =VLOOKUP($A12,'RECAP DIRCOM'!$G$6:$DC$12,29,FALSE) -> 7 | P12: =VLOOKUP($A12,'RECAP DIRCOM'!$G$6:$DC$12,30,FALSE) -> -144 | Q12: =VLOOKUP($A12,'RECAP DIRCOM'!$G$6:$DC$12,31,FALSE) -> -0.91 | R12: =VLOOKUP($A12,'RECAP DIRCOM'!$G$6:$DC$12,32,FALSE) -> 11% | S12: =VLOOKUP($A12,'RECAP DIRCOM'!$G$6:$DC$12,33,FALSE) -> 3 | T12: =VLOOKUP($A12,'RECAP DIRCOM'!$G$6:$DC$12,34,FALSE) -> 51% | U12: =VLOOKUP($A12,'RECAP DIRCOM'!$G$6:$DC$12,35,FALSE) -> 47% | V12: =VLOOKUP($A12,'RECAP DIRCOM'!$G$6:$DC$12,36,FALSE) -> 7
A13: 30 | B13: Marne-Ardennes | C13: =VLOOKUP($A13,'RECAP DIRCOM'!$G$6:$DC$12,3,FALSE) -> 228 | D13: =VLOOKUP($A13,'RECAP DIRCOM'!$G$6:$DC$12,18,FALSE) -> 4,727 | E13: =VLOOKUP($A13,'RECAP DIRCOM'!$G$6:$DC$12,19,FALSE) -> 20.77 | F13: =VLOOKUP($A13,'RECAP DIRCOM'!$G$6:$DC$12,20,FALSE) -> 44% | G13: =VLOOKUP($A13,'RECAP DIRCOM'!$G$6:$DC$12,21,FALSE) -> 5 | H13: =VLOOKUP($A13,'RECAP DIRCOM'!$G$6:$DC$12,22,FALSE) -> 4,008 | I13: =VLOOKUP($A13,'RECAP DIRCOM'!$G$6:$DC$12,23,FALSE) -> 17.61 | J13: =VLOOKUP($A13,'RECAP DIRCOM'!$G$6:$DC$12,24,FALSE) -> 9% | K13: =VLOOKUP($A13,'RECAP DIRCOM'!$G$6:$DC$12,25,FALSE) -> 2 | L13: =VLOOKUP($A13,'RECAP DIRCOM'!$G$6:$DC$12,26,FALSE) -> 1,251 | M13: =VLOOKUP($A13,'RECAP DIRCOM'!$G$6:$DC$12,27,FALSE) -> 5.50 | N13: =VLOOKUP($A13,'RECAP DIRCOM'!$G$6:$DC$12,28,FALSE) -> 4% | O13: =VLOOKUP($A13,'RECAP DIRCOM'!$G$6:$DC$12,29,FALSE) -> 2 | P13: =VLOOKUP($A13,'RECAP DIRCOM'!$G$6:$DC$12,30,FALSE) -> -211 | Q13: =VLOOKUP($A13,'RECAP DIRCOM'!$G$6:$DC$12,31,FALSE) -> -0.93 | R13: =VLOOKUP($A13,'RECAP DIRCOM'!$G$6:$DC$12,32,FALSE) -> 13% | S13: =VLOOKUP($A13,'RECAP DIRCOM'!$G$6:$DC$12,33,FALSE) -> 5 | T13: =VLOOKUP($A13,'RECAP DIRCOM'!$G$6:$DC$12,34,FALSE) -> 26% | U13: =VLOOKUP($A13,'RECAP DIRCOM'!$G$6:$DC$12,35,FALSE) -> 23% | V13: =VLOOKUP($A13,'RECAP DIRCOM'!$G$6:$DC$12,36,FALSE) -> 4
A14: 110 | B14: Meurthe et Moselle Meuse | C14: =VLOOKUP($A14,'RECAP DIRCOM'!$G$6:$DC$12,3,FALSE) -> 245 | D14: =VLOOKUP($A14,'RECAP DIRCOM'!$G$6:$DC$12,18,FALSE) -> 8,652 | E14: =VLOOKUP($A14,'RECAP DIRCOM'!$G$6:$DC$12,19,FALSE) -> 35.36 | F14: =VLOOKUP($A14,'RECAP DIRCOM'!$G$6:$DC$12,20,FALSE) -> 4% | G14: =VLOOKUP($A14,'RECAP DIRCOM'!$G$6:$DC$12,21,FALSE) -> 2 | H14: =VLOOKUP($A14,'RECAP DIRCOM'!$G$6:$DC$12,22,FALSE) -> 4,751 | I14: =VLOOKUP($A14,'RECAP DIRCOM'!$G$6:$DC$12,23,FALSE) -> 19.42 | J14: =VLOOKUP($A14,'RECAP DIRCOM'!$G$6:$DC$12,24,FALSE) -> 0% | K14: =VLOOKUP($A14,'RECAP DIRCOM'!$G$6:$DC$12,25,FALSE) -> 1 | L14: =VLOOKUP($A14,'RECAP DIRCOM'!$G$6:$DC$12,26,FALSE) -> 1,407 | M14: =VLOOKUP($A14,'RECAP DIRCOM'!$G$6:$DC$12,27,FALSE) -> 5.75 | N14: =VLOOKUP($A14,'RECAP DIRCOM'!$G$6:$DC$12,28,FALSE) -> 0% | O14: =VLOOKUP($A14,'RECAP DIRCOM'!$G$6:$DC$12,29,FALSE) -> 1 | P14: =VLOOKUP($A14,'RECAP DIRCOM'!$G$6:$DC$12,30,FALSE) -> -224 | Q14: =VLOOKUP($A14,'RECAP DIRCOM'!$G$6:$DC$12,31,FALSE) -> -0.91 | R14: =VLOOKUP($A14,'RECAP DIRCOM'!$G$6:$DC$12,32,FALSE) -> 12% | S14: =VLOOKUP($A14,'RECAP DIRCOM'!$G$6:$DC$12,33,FALSE) -> 4 | T14: =VLOOKUP($A14,'RECAP DIRCOM'!$G$6:$DC$12,34,FALSE) -> 4% | U14: =VLOOKUP($A14,'RECAP DIRCOM'!$G$6:$DC$12,35,FALSE) -> 0% | V14: =VLOOKUP($A14,'RECAP DIRCOM'!$G$6:$DC$12,36,FALSE) -> 1
A15: 160 | B15: Moselle | C15: =VLOOKUP($A15,'RECAP DIRCOM'!$G$6:$DC$12,3,FALSE) -> 269 | D15: =VLOOKUP($A15,'RECAP DIRCOM'!$G$6:$DC$12,18,FALSE) -> 8,725 | E15: =VLOOKUP($A15,'RECAP DIRCOM'!$G$6:$DC$12,19,FALSE) -> 32.49 | F15: =VLOOKUP($A15,'RECAP DIRCOM'!$G$6:$DC$12,20,FALSE) -> 12% | G15: =VLOOKUP($A15,'RECAP DIRCOM'!$G$6:$DC$12,21,FALSE) -> 3 | H15: =VLOOKUP($A15,'RECAP DIRCOM'!$G$6:$DC$12,22,FALSE) -> 4,350 | I15: =VLOOKUP($A15,'RECAP DIRCOM'!$G$6:$DC$12,23,FALSE) -> 16.20 | J15: =VLOOKUP($A15,'RECAP DIRCOM'!$G$6:$DC$12,24,FALSE) -> 17% | K15: =VLOOKUP($A15,'RECAP DIRCOM'!$G$6:$DC$12,25,FALSE) -> 4 | L15: =VLOOKUP($A15,'RECAP DIRCOM'!$G$6:$DC$12,26,FALSE) -> 675 | M15: =VLOOKUP($A15,'RECAP DIRCOM'!$G$6:$DC$12,27,FALSE) -> 2.51 | N15: =VLOOKUP($A15,'RECAP DIRCOM'!$G$6:$DC$12,28,FALSE) -> 56% | O15: =VLOOKUP($A15,'RECAP DIRCOM'!$G$6:$DC$12,29,FALSE) -> 6 | P15: =VLOOKUP($A15,'RECAP DIRCOM'!$G$6:$DC$12,30,FALSE) -> -231 | Q15: =VLOOKUP($A15,'RECAP DIRCOM'!$G$6:$DC$12,31,FALSE) -> -0.86 | R15: =VLOOKUP($A15,'RECAP DIRCOM'!$G$6:$DC$12,32,FALSE) -> 5% | S15: =VLOOKUP($A15,'RECAP DIRCOM'!$G$6:$DC$12,33,FALSE) -> 2 | T15: =VLOOKUP($A15,'RECAP DIRCOM'!$G$6:$DC$12,34,FALSE) -> 19% | U15: =VLOOKUP($A15,'RECAP DIRCOM'!$G$6:$DC$12,35,FALSE) -> 15% | V15: =VLOOKUP($A15,'RECAP DIRCOM'!$G$6:$DC$12,36,FALSE) -> 3
A16: 80 | B16: Vosges | C16: =VLOOKUP($A16,'RECAP DIRCOM'!$G$6:$DC$12,3,FALSE) -> 133 | D16: =VLOOKUP($A16,'RECAP DIRCOM'!$G$6:$DC$12,18,FALSE) -> 2,784 | E16: =VLOOKUP($A16,'RECAP DIRCOM'!$G$6:$DC$12,19,FALSE) -> 20.89 | F16: =VLOOKUP($A16,'RECAP DIRCOM'!$G$6:$DC$12,20,FALSE) -> 43% | G16: =VLOOKUP($A16,'RECAP DIRCOM'!$G$6:$DC$12,21,FALSE) -> 4 | H16: =VLOOKUP($A16,'RECAP DIRCOM'!$G$6:$DC$12,22,FALSE) -> 2,066 | I16: =VLOOKUP($A16,'RECAP DIRCOM'!$G$6:$DC$12,23,FALSE) -> 15.50 | J16: =VLOOKUP($A16,'RECAP DIRCOM'!$G$6:$DC$12,24,FALSE) -> 20% | K16: =VLOOKUP($A16,'RECAP DIRCOM'!$G$6:$DC$12,25,FALSE) -> 6 | L16: =VLOOKUP($A16,'RECAP DIRCOM'!$G$6:$DC$12,26,FALSE) -> 362 | M16: =VLOOKUP($A16,'RECAP DIRCOM'!$G$6:$DC$12,27,FALSE) -> 2.72 | N16: =VLOOKUP($A16,'RECAP DIRCOM'!$G$6:$DC$12,28,FALSE) -> 53% | O16: =VLOOKUP($A16,'RECAP DIRCOM'!$G$6:$DC$12,29,FALSE) -> 5 | P16: =VLOOKUP($A16,'RECAP DIRCOM'!$G$6:$DC$12,30,FALSE) -> -128 | Q16: =VLOOKUP($A16,'RECAP DIRCOM'!$G$6:$DC$12,31,FALSE) -> -0.96 | R16: =VLOOKUP($A16,'RECAP DIRCOM'!$G$6:$DC$12,32,FALSE) -> 18% | S16: =VLOOKUP($A16,'RECAP DIRCOM'!$G$6:$DC$12,33,FALSE) -> 6 | T16: =VLOOKUP($A16,'RECAP DIRCOM'!$G$6:$DC$12,34,FALSE) -> 36% | U16: =VLOOKUP($A16,'RECAP DIRCOM'!$G$6:$DC$12,35,FALSE) -> 32% | V16: =VLOOKUP($A16,'RECAP DIRCOM'!$G$6:$DC$12,36,FALSE) -> 6
B17: Total CEGEE Directions Régionales | C17: =SUM(C10:C16) -> 1416

Sheet DC_EPARGNE
B1: Accueil | D1: BAROMETRE BDD - DIRECTIONS REGIONALES
D2: EPARGNE
D3: =ACCUEIL!F7 -> 2021-05-16
D7: Excédent Epargne y/c DAV pondéré | H7: Ventes sur client non détenteur de l’univers | L7: Total Epargne
D8: =DATEMAJ!C14 -> au 16/05 | F8: coef | G8: ='RECAP DIRCOM'!AX4 -> 14% | H8: =DATEMAJ!C15 -> au 16/05 | J8: coef | K8: ='RECAP DIRCOM'!BB4 -> 6% | M8: coef | N8: ='RECAP DIRCOM'!BE4 -> 20%
B9: Direction | C9: ="ETP perf "&DATEMAJ!$C$28 -> ETP perf 31-mars | D9: Excédent | E9: Excédent / ETP | F9: % Ecart au 1er | G9: Rang | H9: VB | I9: VB / ETP | J9: % Ecart au 1er | K9: Rang | L9: Moyenne ecart au 1er | M9: % Ecart au 1er | N9: Rang CEGEE
A10: 50 | B10: Aube Haute Marne | C10: =VLOOKUP($A10,'RECAP DIRCOM'!$G$6:$DC$12,3,FALSE) -> 127 | D10: =VLOOKUP($A10,'RECAP DIRCOM'!$G$6:$DC$12,41,FALSE) -> 15,902 | E10: =VLOOKUP($A10,'RECAP DIRCOM'!$G$6:$DC$12,42,FALSE) -> 125.48 | F10: =VLOOKUP($A10,'RECAP DIRCOM'!$G$6:$DC$12,43,FALSE) -> 59% | G10: =VLOOKUP($A10,'RECAP DIRCOM'!$G$6:$DC$12,44,FALSE) -> 7 | H10: =VLOOKUP($A10,'RECAP DIRCOM'!$G$6:$DC$12,45,FALSE) -> 1,110 | I10: =VLOOKUP($A10,'RECAP DIRCOM'!$G$6:$DC$12,46,FALSE) -> 8.76 | J10: =VLOOKUP($A10,'RECAP DIRCOM'!$G$6:$DC$12,47,FALSE) -> 20% | K10: =VLOOKUP($A10,'RECAP DIRCOM'!$G$6:$DC$12,48,FALSE) -> 5 | L10: =VLOOKUP($A10,'RECAP DIRCOM'!$G$6:$DC$12,49,FALSE) -> 47% | M10: =VLOOKUP($A10,'RECAP DIRCOM'!$G$6:$DC$12,50,FALSE) -> 47% | N10: =VLOOKUP($A10,'RECAP DIRCOM'!$G$6:$DC$12,51,FALSE) -> 6
A11: 262 | B11: Bas-Rhin | C11: =VLOOKUP($A11,'RECAP DIRCOM'!$G$6:$DC$12,3,FALSE) -> 258 | D11: =VLOOKUP($A11,'RECAP DIRCOM'!$G$6:$DC$12,41,FALSE) -> 78,185 | E11: =VLOOKUP($A11,'RECAP DIRCOM'!$G$6:$DC$12,42,FALSE) -> 303.59 | F11: =VLOOKUP($A11,'RECAP DIRCOM'!$G$6:$DC$12,43,FALSE) -> 0% | G11: =VLOOKUP($A11,'RECAP DIRCOM'!$G$6:$DC$12,44,FALSE) -> 1 | H11: =VLOOKUP($A11,'RECAP DIRCOM'!$G$6:$DC$12,45,FALSE) -> 2,804 | I11: =VLOOKUP($A11,'RECAP DIRCOM'!$G$6:$DC$12,46,FALSE) -> 10.89 | J11: =VLOOKUP($A11,'RECAP DIRCOM'!$G$6:$DC$12,47,FALSE) -> 0% | K11: =VLOOKUP($A11,'RECAP DIRCOM'!$G$6:$DC$12,48,FALSE) -> 2 | L11: =VLOOKUP($A11,'RECAP DIRCOM'!$G$6:$DC$12,49,FALSE) -> 0% | M11: =VLOOKUP($A11,'RECAP DIRCOM'!$G$6:$DC$12,50,FALSE) -> 0% | N11: =VLOOKUP($A11,'RECAP DIRCOM'!$G$6:$DC$12,51,FALSE) -> 1
A12: 264 | B12: Haut-Rhin | C12: =VLOOKUP($A12,'RECAP DIRCOM'!$G$6:$DC$12,3,FALSE) -> 157 | D12: =VLOOKUP($A12,'RECAP DIRCOM'!$G$6:$DC$12,41,FALSE) -> 20,490 | E12: =VLOOKUP($A12,'RECAP DIRCOM'!$G$6:$DC$12,42,FALSE) -> 130.22 | F12: =VLOOKUP($A12,'RECAP DIRCOM'!$G$6:$DC$12,43,FALSE) -> 57% | G12: =VLOOKUP($A12,'RECAP DIRCOM'!$G$6:$DC$12,44,FALSE) -> 6 | H12: =VLOOKUP($A12,'RECAP DIRCOM'!$G$6:$DC$12,45,FALSE) -> 1,250 | I12: =VLOOKUP($A12,'RECAP DIRCOM'!$G$6:$DC$12,46,FALSE) -> 7.94 | J12: =VLOOKUP($A12,'RECAP DIRCOM'!$G$6:$DC$12,47,FALSE) -> 27% | K12: =VLOOKUP($A12,'RECAP DIRCOM'!$G$6:$DC$12,48,FALSE) -> 6 | L12: =VLOOKUP($A12,'RECAP DIRCOM'!$G$6:$DC$12,49,FALSE) -> 48% | M12: =VLOOKUP($A12,'RECAP DIRCOM'!$G$6:$DC$12,50,FALSE) -> 48% | N12: =VLOOKUP($A12,'RECAP DIRCOM'!$G$6:$DC$12,51,FALSE) -> 7
A13: 30 | B13: Marne-Ardennes | C13: =VLOOKUP($A13,'RECAP DIRCOM'!$G$6:$DC$12,3,FALSE) -> 228 | D13: =VLOOKUP($A13,'RECAP DIRCOM'!$G$6:$DC$12,41,FALSE) -> 47,685 | E13: =VLOOKUP($A13,'RECAP DIRCOM'!$G$6:$DC$12,42,FALSE) -> 209.47 | F13: =VLOOKUP($A13,'RECAP DIRCOM'!$G$6:$DC$12,43,FALSE) -> 31% | G13: =VLOOKUP($A13,'RECAP DIRCOM'!$G$6:$DC$12,44,FALSE) -> 5 | H13: =VLOOKUP($A13,'RECAP DIRCOM'!$G$6:$DC$12,45,FALSE) -> 2,463 | I13: =VLOOKUP($A13,'RECAP DIRCOM'!$G$6:$DC$12,46,FALSE) -> 10.82 | J13: =VLOOKUP($A13,'RECAP DIRCOM'!$G$6:$DC$12,47,FALSE) -> 1% | K13: =VLOOKUP($A13,'RECAP DIRCOM'!$G$6:$DC$12,48,FALSE) -> 3 | L13: =VLOOKUP($A13,'RECAP DIRCOM'!$G$6:$DC$12,49,FALSE) -> 22% | M13: =VLOOKUP($A13,'RECAP DIRCOM'!$G$6:$DC$12,50,FALSE) -> 22% | N13: =VLOOKUP($A13,'RECAP DIRCOM'!$G$6:$DC$12,51,FALSE) -> 5
A14: 110 | B14: Meurthe et Moselle Meuse | C14: =VLOOKUP($A14,'RECAP DIRCOM'!$G$6:$DC$12,3,FALSE) -> 245 | D14: =VLOOKUP($A14,'RECAP DIRCOM'!$G$6:$DC$12,41,FALSE) -> 69,308 | E14: =VLOOKUP($A14,'RECAP DIRCOM'!$G$6:$DC$12,42,FALSE) -> 283.28 | F14: =VLOOKUP($A14,'RECAP DIRCOM'!$G$6:$DC$12,43,FALSE) -> 7% | G14: =VLOOKUP($A14,'RECAP DIRCOM'!$G$6:$DC$12,44,FALSE) -> 2 | H14: =VLOOKUP($A14,'RECAP DIRCOM'!$G$6:$DC$12,45,FALSE) -> 2,493 | I14: =VLOOKUP($A14,'RECAP DIRCOM'!$G$6:$DC$12,46,FALSE) -> 10.19 | J14: =VLOOKUP($A14,'RECAP DIRCOM'!$G$6:$DC$12,47,FALSE) -> 7% | K14: =VLOOKUP($A14,'RECAP DIRCOM'!$G$6:$DC$12,48,FALSE) -> 4 | L14: =VLOOKUP($A14,'RECAP DIRCOM'!$G$6:$DC$12,49,FALSE) -> 7% | M14: =VLOOKUP($A14,'RECAP DIRCOM'!$G$6:$DC$12,50,FALSE) -> 7% | N14: =VLOOKUP($A14,'RECAP DIRCOM'!$G$6:$DC$12,51,FALSE) -> 2
A15: 160 | B15: Moselle | C15: =VLOOKUP($A15,'RECAP DIRCOM'!$G$6:$DC$12,3,FALSE) -> 269 | D15: =VLOOKUP($A15,'RECAP DIRCOM'!$G$6:$DC$12,41,FALSE) -> 68,664 | E15: =VLOOKUP($A15,'RECAP DIRCOM'!$G$6:$DC$12,42,FALSE) -> 255.71 | F15: =VLOOKUP($A15,'RECAP DIRCOM'!$G$6:$DC$12,43,FALSE) -> 16% | G15: =VLOOKUP($A15,'RECAP DIRCOM'!$G$6:$DC$12,44,FALSE) -> 4 | H15: =VLOOKUP($A15,'RECAP DIRCOM'!$G$6:$DC$12,45,FALSE) -> 2,937 | I15: =VLOOKUP($A15,'RECAP DIRCOM'!$G$6:$DC$12,46,FALSE) -> 10.94 | J15: =VLOOKUP($A15,'RECAP DIRCOM'!$G$6:$DC$12,47,FALSE) -> 0% | K15: =VLOOKUP($A15,'RECAP DIRCOM'!$G$6:$DC$12,48,FALSE) -> 1 | L15: =VLOOKUP($A15,'RECAP DIRCOM'!$G$6:$DC$12,49,FALSE) -> 11% | M15: =VLOOKUP($A15,'RECAP DIRCOM'!$G$6:$DC$12,50,FALSE) -> 11% | N15: =VLOOKUP($A15,'RECAP DIRCOM'!$G$6:$DC$12,51,FALSE) -> 3
A16: 80 | B16: Vosges | C16: =VLOOKUP($A16,'RECAP DIRCOM'!$G$6:$DC$12,3,FALSE) -> 133 | D16: =VLOOKUP($A16,'RECAP DIRCOM'!$G$6:$DC$12,41,FALSE) -> 37,516 | E16: =VLOOKUP($A16,'RECAP DIRCOM'!$G$6:$DC$12,42,FALSE) -> 281.52 | F16: =VLOOKUP($A16,'RECAP DIRCOM'!$G$6:$DC$12,43,FALSE) -> 7% | G16: =VLOOKUP($A16,'RECAP DIRCOM'!$G$6:$DC$12,44,FALSE) -> 3 | H16: =VLOOKUP($A16,'RECAP DIRCOM'!$G$6:$DC$12,45,FALSE) -> 909 | I16: =VLOOKUP($A16,'RECAP DIRCOM'!$G$6:$DC$12,46,FALSE) -> 6.82 | J16: =VLOOKUP($A16,'RECAP DIRCOM'!$G$6:$DC$12,47,FALSE) -> 38% | K16: =VLOOKUP($A16,'RECAP DIRCOM'!$G$6:$DC$12,48,FALSE) -> 7 | L16: =VLOOKUP($A16,'RECAP DIRCOM'!$G$6:$DC$12,49,FALSE) -> 16% | M16: =VLOOKUP($A16,'RECAP DIRCOM'!$G$6:$DC$12,50,FALSE) -> 16% | N16: =VLOOKUP($A16,'RECAP DIRCOM'!$G$6:$DC$12,51,FALSE) -> 4
B17: Total CEGEE Directions Régionales | C17: =SUM(C10:C16) -> 1416

Sheet DC_CREDIT
B1: Accueil | D1: BAROMETRE BDD - DIRECTIONS REGIONALES
D2: CREDITS
D3: =ACCUEIL!F7 -> 2021-05-16
D7: Engagements et ventes accessoires pondérés Immo | H7: Engagements et ventes accessoires pondérés Conso | L7: Ventes sur client non détenteur de l’univers | P7: Total Crédits
D8: =DATEMAJ!C18 -> au 16/05 | F8: coef | G8: ='RECAP DIRCOM'!BM4 -> 8% | H8: =DATEMAJ!C19 -> au 16/05 | J8: coef | K8: ='RECAP DIRCOM'!BQ4 -> 6% | L8: =DATEMAJ!C20 -> au 16/05 | N8: coef | O8: ='RECAP DIRCOM'!BU4 -> 6% | Q8: coef | R8: ='RECAP DIRCOM'!BX4 -> 20%
B9: Direction | C9: ="ETP perf "&DATEMAJ!$C$28 -> ETP perf 31-mars | D9: PNB | E9: PNB / ETP | F9: % Ecart au 1er | G9: Rang | H9: PNB | I9: PNB / ETP | J9: % Ecart au 1er | K9: Rang | L9: VB | M9: VB / ETP | N9: % Ecart au 1er | O9: Rang | P9: Moyenne ecart au 1er | Q9: % Ecart au 1er | R9: Rang CEGEE
A10: 50 | B10: Aube Haute Marne | C10: =VLOOKUP($A10,'RECAP DIRCOM'!$G$6:$DC$12,3,FALSE) -> 127 | D10: =VLOOKUP($A10,'RECAP DIRCOM'!$G$6:$DC$12,56,FALSE) -> 5,710 | E10: =VLOOKUP($A10,'RECAP DIRCOM'!$G$6:$DC$12,57,FALSE) -> 45.05 | F10: =VLOOKUP($A10,'RECAP DIRCOM'!$G$6:$DC$12,58,FALSE) -> 52% | G10: =VLOOKUP($A10,'RECAP DIRCOM'!$G$6:$DC$12,59,FALSE) -> 6 | H10: =VLOOKUP($A10,'RECAP DIRCOM'!$G$6:$DC$12,60,FALSE) -> 3,171 | I10: =VLOOKUP($A10,'RECAP DIRCOM'!$G$6:$DC$12,61,FALSE) -> 25.03 | J10: =VLOOKUP($A10,'RECAP DIRCOM'!$G$6:$DC$12,62,FALSE) -> 1% | K10: =VLOOKUP($A10,'RECAP DIRCOM'!$G$6:$DC$12,63,FALSE) -> 2 | L10: =VLOOKUP($A10,'RECAP DIRCOM'!$G$6:$DC$12,64,FALSE) -> 784 | M10: =VLOOKUP($A10,'RECAP DIRCOM'!$G$6:$DC$12,65,FALSE) -> 6.19 | N10: =VLOOKUP($A10,'RECAP DIRCOM'!$G$6:$DC$12,66,FALSE) -> 28% | O10: =VLOOKUP($A10,'RECAP DIRCOM'!$G$6:$DC$12,67,FALSE) -> 4 | P10: =VLOOKUP($A10,'RECAP DIRCOM'!$G$6:$DC$12,68,FALSE) -> 29% | Q10: =VLOOKUP($A10,'RECAP DIRCOM'!$G$6:$DC$12,69,FALSE) -> 29% | R10: =VLOOKUP($A10,'RECAP DIRCOM'!$G$6:$DC$12,70,FALSE) -> 4
A11: 262 | B11: Bas-Rhin | C11: =VLOOKUP($A11,'RECAP DIRCOM'!$G$6:$DC$12,3,FALSE) -> 258 | D11: =VLOOKUP($A11,'RECAP DIRCOM'!$G$6:$DC$12,56,FALSE) -> 12,242 | E11: =VLOOKUP($A11,'RECAP DIRCOM'!$G$6:$DC$12,57,FALSE) -> 47.54 | F11: =VLOOKUP($A11,'RECAP DIRCOM'!$G$6:$DC$12,58,FALSE) -> 49% | G11: =VLOOKUP($A11,'RECAP DIRCOM'!$G$6:$DC$12,59,FALSE) -> 4 | H11: =VLOOKUP($A11,'RECAP DIRCOM'!$G$6:$DC$12,60,FALSE) -> 5,790 | I11: =VLOOKUP($A11,'RECAP DIRCOM'!$G$6:$DC$12,61,FALSE) -> 22.48 | J11: =VLOOKUP($A11,'RECAP DIRCOM'!$G$6:$DC$12,62,FALSE) -> 11% | K11: =VLOOKUP($A11,'RECAP DIRCOM'!$G$6:$DC$12,63,FALSE) -> 4 | L11: =VLOOKUP($A11,'RECAP DIRCOM'!$G$6:$DC$12,64,FALSE) -> 1,440 | M11: =VLOOKUP($A11,'RECAP DIRCOM'!$G$6:$DC$12,65,FALSE) -> 5.59 | N11: =VLOOKUP($A11,'RECAP DIRCOM'!$G$6:$DC$12,66,FALSE) -> 35% | O11: =VLOOKUP($A11,'RECAP DIRCOM'!$G$6:$DC$12,67,FALSE) -> 6 | P11: =VLOOKUP($A11,'RECAP DIRCOM'!$G$6:$DC$12,68,FALSE) -> 33% | Q11: =VLOOKUP($A11,'RECAP DIRCOM'!$G$6:$DC$12,69,FALSE) -> 33% | R11: =VLOOKUP($A11,'RECAP DIRCOM'!$G$6:$DC$12,70,FALSE) -> 6
A12: 264 | B12: Haut-Rhin | C12: =VLOOKUP($A12,'RECAP DIRCOM'!$G$6:$DC$12,3,FALSE) -> 157 | D12: =VLOOKUP($A12,'RECAP DIRCOM'!$G$6:$DC$12,56,FALSE) -> 4,867 | E12: =VLOOKUP($A12,'RECAP DIRCOM'!$G$6:$DC$12,57,FALSE) -> 30.93 | F12: =VLOOKUP($A12,'RECAP DIRCOM'!$G$6:$DC$12,58,FALSE) -> 67% | G12: =VLOOKUP($A12,'RECAP DIRCOM'!$G$6:$DC$12,59,FALSE) -> 7 | H12: =VLOOKUP($A12,'RECAP DIRCOM'!$G$6:$DC$12,60,FALSE) -> 3,369 | I12: =VLOOKUP($A12,'RECAP DIRCOM'!$G$6:$DC$12,61,FALSE) -> 21.41 | J12: =VLOOKUP($A12,'RECAP DIRCOM'!$G$6:$DC$12,62,FALSE) -> 16% | K12: =VLOOKUP($A12,'RECAP DIRCOM'!$G$6:$DC$12,63,FALSE) -> 6 | L12: =VLOOKUP($A12,'RECAP DIRCOM'!$G$6:$DC$12,64,FALSE) -> 693 | M12: =VLOOKUP($A12,'RECAP DIRCOM'!$G$6:$DC$12,65,FALSE) -> 4.40 | N12: =VLOOKUP($A12,'RECAP DIRCOM'!$G$6:$DC$12,66,FALSE) -> 48% | O12: =VLOOKUP($A12,'RECAP DIRCOM'!$G$6:$DC$12,67,FALSE) -> 7 | P12: =VLOOKUP($A12,'RECAP DIRCOM'!$G$6:$DC$12,68,FALSE) -> 46% | Q12: =VLOOKUP($A12,'RECAP DIRCOM'!$G$6:$DC$12,69,FALSE) -> 46% | R12: =VLOOKUP($A12,'RECAP DIRCOM'!$G$6:$DC$12,70,FALSE) -> 7
A13: 30 | B13: Marne-Ardennes | C13: =VLOOKUP($A13,'RECAP DIRCOM'!$G$6:$DC$12,3,FALSE) -> 228 | D13: =VLOOKUP($A13,'RECAP DIRCOM'!$G$6:$DC$12,56,FALSE) -> 18,448 | E13: =VLOOKUP($A13,'RECAP DIRCOM'!$G$6:$DC$12,57,FALSE) -> 81.04 | F13: =VLOOKUP($A13,'RECAP DIRCOM'!$G$6:$DC$12,58,FALSE) -> 13% | G13: =VLOOKUP($A13,'RECAP DIRCOM'!$G$6:$DC$12,59,FALSE) -> 2 | H13: =VLOOKUP($A13,'RECAP DIRCOM'!$G$6:$DC$12,60,FALSE) -> 5,085 | I13: =VLOOKUP($A13,'RECAP DIRCOM'!$G$6:$DC$12,61,FALSE) -> 22.34 | J13: =VLOOKUP($A13,'RECAP DIRCOM'!$G$6:$DC$12,62,FALSE) -> 12% | K13: =VLOOKUP($A13,'RECAP DIRCOM'!$G$6:$DC$12,63,FALSE) -> 5 | L13: =VLOOKUP($A13,'RECAP DIRCOM'!$G$6:$DC$12,64,FALSE) -> 1,685 | M13: =VLOOKUP($A13,'RECAP DIRCOM'!$G$6:$DC$12,65,FALSE) -> 7.40 | N13: =VLOOKUP($A13,'RECAP DIRCOM'!$G$6:$DC$12,66,FALSE) -> 13% | O13: =VLOOKUP($A13,'RECAP DIRCOM'!$G$6:$DC$12,67,FALSE) -> 2 | P13: =VLOOKUP($A13,'RECAP DIRCOM'!$G$6:$DC$12,68,FALSE) -> 13% | Q13: =VLOOKUP($A13,'RECAP DIRCOM'!$G$6:$DC$12,69,FALSE) -> 13% | R13: =VLOOKUP($A13,'RECAP DIRCOM'!$G$6:$DC$12,70,FALSE) -> 2
A14: 110 | B14: Meurthe et Moselle Meuse | C14: =VLOOKUP($A14,'RECAP DIRCOM'!$G$6:$DC$12,3,FALSE) -> 245 | D14: =VLOOKUP($A14,'RECAP DIRCOM'!$G$6:$DC$12,56,FALSE) -> 22,841 | E14: =VLOOKUP($A14,'RECAP DIRCOM'!$G$6:$DC$12,57,FALSE) -> 93.36 | F14: =VLOOKUP($A14,'RECAP DIRCOM'!$G$6:$DC$12,58,FALSE) -> 0% | G14: =VLOOKUP($A14,'RECAP DIRCOM'!$G$6:$DC$12,59,FALSE) -> 1 | H14: =VLOOKUP($A14,'RECAP DIRCOM'!$G$6:$DC$12,60,FALSE) -> 6,204 | I14: =VLOOKUP($A14,'RECAP DIRCOM'!$G$6:$DC$12,61,FALSE) -> 25.36 | J14: =VLOOKUP($A14,'RECAP DIRCOM'!$G$6:$DC$12,62,FALSE) -> 0% | K14: =VLOOKUP($A14,'RECAP DIRCOM'!$G$6:$DC$12,63,FALSE) -> 1 | L14: =VLOOKUP($A14,'RECAP DIRCOM'!$G$6:$DC$12,64,FALSE) -> 2,092 | M14: =VLOOKUP($A14,'RECAP DIRCOM'!$G$6:$DC$12,65,FALSE) -> 8.55 | N14: =VLOOKUP($A14,'RECAP DIRCOM'!$G$6:$DC$12,66,FALSE) -> 0% | O14: =VLOOKUP($A14,'RECAP DIRCOM'!$G$6:$DC$12,67,FALSE) -> 1 | P14: =VLOOKUP($A14,'RECAP DIRCOM'!$G$6:$DC$12,68,FALSE) -> 0% | Q14: =VLOOKUP($A14,'RECAP DIRCOM'!$G$6:$DC$12,69,FALSE) -> 0% | R14: =VLOOKUP($A14,'RECAP DIRCOM'!$G$6:$DC$12,70,FALSE) -> 1
A15: 160 | B15: Moselle | C15: =VLOOKUP($A15,'RECAP DIRCOM'!$G$6:$DC$12,3,FALSE) -> 269 | D15: =VLOOKUP($A15,'RECAP DIRCOM'!$G$6:$DC$12,56,FALSE) -> 15,602 | E15: =VLOOKUP($A15,'RECAP DIRCOM'!$G$6:$DC$12,57,FALSE) -> 58.10 | F15: =VLOOKUP($A15,'RECAP DIRCOM'!$G$6:$DC$12,58,FALSE) -> 38% | G15: =VLOOKUP($A15,'RECAP DIRCOM'!$G$6:$DC$12,59,FALSE) -> 3 | H15: =VLOOKUP($A15,'RECAP DIRCOM'!$G$6:$DC$12,60,FALSE) -> 6,631 | I15: =VLOOKUP($A15,'RECAP DIRCOM'!$G$6:$DC$12,61,FALSE) -> 24.70 | J15: =VLOOKUP($A15,'RECAP DIRCOM'!$G$6:$DC$12,62,FALSE) -> 3% | K15: =VLOOKUP($A15,'RECAP DIRCOM'!$G$6:$DC$12,63,FALSE) -> 3 | L15: =VLOOKUP($A15,'RECAP DIRCOM'!$G$6:$DC$12,64,FALSE) -> 1,612 | M15: =VLOOKUP($A15,'RECAP DIRCOM'!$G$6:$DC$12,65,FALSE) -> 6.00 | N15: =VLOOKUP($A15,'RECAP DIRCOM'!$G$6:$DC$12,66,FALSE) -> 30% | O15: =VLOOKUP($A15,'RECAP DIRCOM'!$G$6:$DC$12,67,FALSE) -> 5 | P15: =VLOOKUP($A15,'RECAP DIRCOM'!$G$6:$DC$12,68,FALSE) -> 25% | Q15: =VLOOKUP($A15,'RECAP DIRCOM'!$G$6:$DC$12,69,FALSE) -> 25% | R15: =VLOOKUP($A15,'RECAP DIRCOM'!$G$6:$DC$12,70,FALSE) -> 3
A16: 80 | B16: Vosges | C16: =VLOOKUP($A16,'RECAP DIRCOM'!$G$6:$DC$12,3,FALSE) -> 133 | D16: =VLOOKUP($A16,'RECAP DIRCOM'!$G$6:$DC$12,56,FALSE) -> 6,309 | E16: =VLOOKUP($A16,'RECAP DIRCOM'!$G$6:$DC$12,57,FALSE) -> 47.34 | F16: =VLOOKUP($A16,'RECAP DIRCOM'!$G$6:$DC$12,58,FALSE) -> 49% | G16: =VLOOKUP($A16,'RECAP DIRCOM'!$G$6:$DC$12,59,FALSE) -> 5 | H16: =VLOOKUP($A16,'RECAP DIRCOM'!$G$6:$DC$12,60,FALSE) -> 2,841 | I16: =VLOOKUP($A16,'RECAP DIRCOM'!$G$6:$DC$12,61,FALSE) -> 21.32 | J16: =VLOOKUP($A16,'RECAP DIRCOM'!$G$6:$DC$12,62,FALSE) -> 16% | K16: =VLOOKUP($A16,'RECAP DIRCOM'!$G$6:$DC$12,63,FALSE) -> 7 | L16: =VLOOKUP($A16,'RECAP DIRCOM'!$G$6:$DC$12,64,FALSE) -> 858 | M16: =VLOOKUP($A16,'RECAP DIRCOM'!$G$6:$DC$12,65,FALSE) -> 6.44 | N16: =VLOOKUP($A16,'RECAP DIRCOM'!$G$6:$DC$12,66,FALSE) -> 25% | O16: =VLOOKUP($A16,'RECAP DIRCOM'!$G$6:$DC$12,67,FALSE) -> 3 | P16: =VLOOKUP($A16,'RECAP DIRCOM'!$G$6:$DC$12,68,FALSE) -> 32% | Q16: =VLOOKUP($A16,'RECAP DIRCOM'!$G$6:$DC$12,69,FALSE) -> 32% | R16: =VLOOKUP($A16,'RECAP DIRCOM'!$G$6:$DC$12,70,FALSE) -> 5
B17: Total CEGEE Directions Régionales | C17: =SUM(C10:C16) -> 1416

Sheet DC_IARD
B1: Accueil | D1: BAROMETRE BDD - DIRECTIONS REGIONALES
D2: IARD ET PREVOYANCE
D3: =ACCUEIL!F7 -> 2021-05-16
D7: Ventes Nettes produits pondérés | H7: Ventes sur client non détenteur de l’univers | L7: Total IARD Prévoyance
D8: =DATEMAJ!C23 -> au 16/05 | F8: coef | G8: ='RECAP DIRCOM'!CF4 -> 14% | H8: =DATEMAJ!C24 -> au 16/05 | J8: coef | K8: ='RECAP DIRCOM'!CJ4 -> 6% | M8: coef | N8: ='RECAP DIRCOM'!CM4 -> 20%
B9: Direction | C9: ="ETP perf "&DATEMAJ!$C$28 -> ETP perf 31-mars | D9: VN | E9: VN / ETP | F9: % Ecart au 1er | G9: Rang | H9: VB | I9: VB / ETP | J9: % Ecart au 1er | K9: Rang | L9: Moyenne ecart au 1er | M9: % Ecart au 1er | N9: Rang CEGEE
A10: 50 | B10: Aube Haute Marne | C10: =VLOOKUP($A10,'RECAP DIRCOM'!$G$6:$DC$12,3,FALSE) -> 127 | D10: =VLOOKUP($A10,'RECAP DIRCOM'!$G$6:$DC$12,75,FALSE) -> 8,675 | E10: =VLOOKUP($A10,'RECAP DIRCOM'!$G$6:$DC$12,76,FALSE) -> 68.45 | F10: =VLOOKUP($A10,'RECAP DIRCOM'!$G$6:$DC$12,77,FALSE) -> 36% | G10: =VLOOKUP($A10,'RECAP DIRCOM'!$G$6:$DC$12,78,FALSE) -> 6 | H10: =VLOOKUP($A10,'RECAP DIRCOM'!$G$6:$DC$12,79,FALSE) -> 1,902 | I10: =VLOOKUP($A10,'RECAP DIRCOM'!$G$6:$DC$12,80,FALSE) -> 15.01 | J10: =VLOOKUP($A10,'RECAP DIRCOM'!$G$6:$DC$12,81,FALSE) -> 17% | K10: =VLOOKUP($A10,'RECAP DIRCOM'!$G$6:$DC$12,82,FALSE) -> 4 | L10: =VLOOKUP($A10,'RECAP DIRCOM'!$G$6:$DC$12,83,FALSE) -> 30% | M10: =VLOOKUP($A10,'RECAP DIRCOM'!$G$6:$DC$12,84,FALSE) -> 27% | N10: =VLOOKUP($A10,'RECAP DIRCOM'!$G$6:$DC$12,85,FALSE) -> 6
A11: 262 | B11: Bas-Rhin | C11: =VLOOKUP($A11,'RECAP DIRCOM'!$G$6:$DC$12,3,FALSE) -> 258 | D11: =VLOOKUP($A11,'RECAP DIRCOM'!$G$6:$DC$12,75,FALSE) -> 22,125 | E11: =VLOOKUP($A11,'RECAP DIRCOM'!$G$6:$DC$12,76,FALSE) -> 85.91 | F11: =VLOOKUP($A11,'RECAP DIRCOM'!$G$6:$DC$12,77,FALSE) -> 19% | G11: =VLOOKUP($A11,'RECAP DIRCOM'!$G$6:$DC$12,78,FALSE) -> 4 | H11: =VLOOKUP($A11,'RECAP DIRCOM'!$G$6:$DC$12,79,FALSE) -> 3,652 | I11: =VLOOKUP($A11,'RECAP DIRCOM'!$G$6:$DC$12,80,FALSE) -> 14.18 | J11: =VLOOKUP($A11,'RECAP DIRCOM'!$G$6:$DC$12,81,FALSE) -> 21% | K11: =VLOOKUP($A11,'RECAP DIRCOM'!$G$6:$DC$12,82,FALSE) -> 5 | L11: =VLOOKUP($A11,'RECAP DIRCOM'!$G$6:$DC$12,83,FALSE) -> 20% | M11: =VLOOKUP($A11,'RECAP DIRCOM'!$G$6:$DC$12,84,FALSE) -> 17% | N11: =VLOOKUP($A11,'RECAP DIRCOM'!$G$6:$DC$12,85,FALSE) -> 5
A12: 264 | B12: Haut-Rhin | C12: =VLOOKUP($A12,'RECAP DIRCOM'!$G$6:$DC$12,3,FALSE) -> 157 | D12: =VLOOKUP($A12,'RECAP DIRCOM'!$G$6:$DC$12,75,FALSE) -> 10,321 | E12: =VLOOKUP($A12,'RECAP DIRCOM'!$G$6:$DC$12,76,FALSE) -> 65.59 | F12: =VLOOKUP($A12,'RECAP DIRCOM'!$G$6:$DC$12,77,FALSE) -> 38% | G12: =VLOOKUP($A12,'RECAP DIRCOM'!$G$6:$DC$12,78,FALSE) -> 7 | H12: =VLOOKUP($A12,'RECAP DIRCOM'!$G$6:$DC$12,79,FALSE) -> 1,916 | I12: =VLOOKUP($A12,'RECAP DIRCOM'!$G$6:$DC$12,80,FALSE) -> 12.18 | J12: =VLOOKUP($A12,'RECAP DIRCOM'!$G$6:$DC$12,81,FALSE) -> 32% | K12: =VLOOKUP($A12,'RECAP DIRCOM'!$G$6:$DC$12,82,FALSE) -> 7 | L12: =VLOOKUP($A12,'RECAP DIRCOM'!$G$6:$DC$12,83,FALSE) -> 36% | M12: =VLOOKUP($A12,'RECAP DIRCOM'!$G$6:$DC$12,84,FALSE) -> 33% | N12: =VLOOKUP($A12,'RECAP DIRCOM'!$G$6:$DC$12,85,FALSE) -> 7
A13: 30 | B13: Marne-Ardennes | C13: =VLOOKUP($A13,'RECAP DIRCOM'!$G$6:$DC$12,3,FALSE) -> 228 | D13: =VLOOKUP($A13,'RECAP DIRCOM'!$G$6:$DC$12,75,FALSE) -> 24,175 | E13: =VLOOKUP($A13,'RECAP DIRCOM'!$G$6:$DC$12,76,FALSE) -> 106.20 | F13: =VLOOKUP($A13,'RECAP DIRCOM'!$G$6:$DC$12,77,FALSE) -> 0% | G13: =VLOOKUP($A13,'RECAP DIRCOM'!$G$6:$DC$12,78,FALSE) -> 1 | H13: =VLOOKUP($A13,'RECAP DIRCOM'!$G$6:$DC$12,79,FALSE) -> 3,677 | I13: =VLOOKUP($A13,'RECAP DIRCOM'!$G$6:$DC$12,80,FALSE) -> 16.15 | J13: =VLOOKUP($A13,'RECAP DIRCOM'!$G$6:$DC$12,81,FALSE) -> 10% | K13: =VLOOKUP($A13,'RECAP DIRCOM'!$G$6:$DC$12,82,FALSE) -> 2 | L13: =VLOOKUP($A13,'RECAP DIRCOM'!$G$6:$DC$12,83,FALSE) -> 3% | M13: =VLOOKUP($A13,'RECAP DIRCOM'!$G$6:$DC$12,84,FALSE) -> 0% | N13: =VLOOKUP($A13,'RECAP DIRCOM'!$G$6:$DC$12,85,FALSE) -> 1
A14: 110 | B14: Meurthe et Moselle Meuse | C14: =VLOOKUP($A14,'RECAP DIRCOM'!$G$6:$DC$12,3,FALSE) -> 245 | D14: =VLOOKUP($A14,'RECAP DIRCOM'!$G$6:$DC$12,75,FALSE) -> 24,066 | E14: =VLOOKUP($A14,'RECAP DIRCOM'!$G$6:$DC$12,76,FALSE) -> 98.36 | F14: =VLOOKUP($A14,'RECAP DIRCOM'!$G$6:$DC$12,77,FALSE) -> 7% | G14: =VLOOKUP($A14,'RECAP DIRCOM'!$G$6:$DC$12,78,FALSE) -> 2 | H14: =VLOOKUP($A14,'RECAP DIRCOM'!$G$6:$DC$12,79,FALSE) -> 4,404 | I14: =VLOOKUP($A14,'RECAP DIRCOM'!$G$6:$DC$12,80,FALSE) -> 18.00 | J14: =VLOOKUP($A14,'RECAP DIRCOM'!$G$6:$DC$12,81,FALSE) -> 0% | K14: =VLOOKUP($A14,'RECAP DIRCOM'!$G$6:$DC$12,82,FALSE) -> 1 | L14: =VLOOKUP($A14,'RECAP DIRCOM'!$G$6:$DC$12,83,FALSE) -> 5% | M14: =VLOOKUP($A14,'RECAP DIRCOM'!$G$6:$DC$12,84,FALSE) -> 2% | N14: =VLOOKUP($A14,'RECAP DIRCOM'!$G$6:$DC$12,85,FALSE) -> 2
A15: 160 | B15: Moselle | C15: =VLOOKUP($A15,'RECAP DIRCOM'!$G$6:$DC$12,3,FALSE) -> 269 | D15: =VLOOKUP($A15,'RECAP DIRCOM'!$G$6:$DC$12,75,FALSE) -> 22,658 | E15: =VLOOKUP($A15,'RECAP DIRCOM'!$G$6:$DC$12,76,FALSE) -> 84.38 | F15: =VLOOKUP($A15,'RECAP DIRCOM'!$G$6:$DC$12,77,FALSE) -> 21% | G15: =VLOOKUP($A15,'RECAP DIRCOM'!$G$6:$DC$12,78,FALSE) -> 5 | H15: =VLOOKUP($A15,'RECAP DIRCOM'!$G$6:$DC$12,79,FALSE) -> 4,034 | I15: =VLOOKUP($A15,'RECAP DIRCOM'!$G$6:$DC$12,80,FALSE) -> 15.02 | J15: =VLOOKUP($A15,'RECAP DIRCOM'!$G$6:$DC$12,81,FALSE) -> 17% | K15: =VLOOKUP($A15,'RECAP DIRCOM'!$G$6:$DC$12,82,FALSE) -> 3 | L15: =VLOOKUP($A15,'RECAP DIRCOM'!$G$6:$DC$12,83,FALSE) -> 19% | M15: =VLOOKUP($A15,'RECAP DIRCOM'!$G$6:$DC$12,84,FALSE) -> 16% | N15: =VLOOKUP($A15,'RECAP DIRCOM'!$G$6:$DC$12,85,FALSE) -> 4
A16: 80 | B16: Vosges | C16: =VLOOKUP($A16,'RECAP DIRCOM'!$G$6:$DC$12,3,FALSE) -> 133 | D16: =VLOOKUP($A16,'RECAP DIRCOM'!$G$6:$DC$12,75,FALSE) -> 12,319 | E16: =VLOOKUP($A16,'RECAP DIRCOM'!$G$6:$DC$12,76,FALSE) -> 92.45 | F16: =VLOOKUP($A16,'RECAP DIRCOM'!$G$6:$DC$12,77,FALSE) -> 13% | G16: =VLOOKUP($A16,'RECAP DIRCOM'!$G$6:$DC$12,78,FALSE) -> 3 | H16: =VLOOKUP($A16,'RECAP DIRCOM'!$G$6:$DC$12,79,FALSE) -> 1,806 | I16: =VLOOKUP($A16,'RECAP DIRCOM'!$G$6:$DC$12,80,FALSE) -> 13.55 | J16: =VLOOKUP($A16,'RECAP DIRCOM'!$G$6:$DC$12,81,FALSE) -> 25% | K16: =VLOOKUP($A16,'RECAP DIRCOM'!$G$6:$DC$12,82,FALSE) -> 6 | L16: =VLOOKUP($A16,'RECAP DIRCOM'!$G$6:$DC$12,83,FALSE) -> 16% | M16: =VLOOKUP($A16,'RECAP DIRCOM'!$G$6:$DC$12,84,FALSE) -> 13% | N16: =VLOOKUP($A16,'RECAP DIRCOM'!$G$6:$DC$12,85,FALSE) -> 3
B17: Total CEGEE Directions Régionales | C17: =SUM(C10:C16) -> 1416

Sheet DC_SATISFACTION
B1: Accueil | D1: BAROMETRE BDD - DIRECTIONS REGIONALES
D2: SATISFACTION
D3: =ACCUEIL!F7 -> 2021-05-16
D7: NPS à froid (SAE) | G7: NPS à chaud (QHD) | J7: Total Satisfaction Clients
D8: =DATEMAJ!E4 -> au 31/03 | E8: coef | F8: ='RECAP DIRCOM'!M4 -> 10% | G8: =DATEMAJ!C5 -> au 31/03 | H8: coef | I8: ='RECAP DIRCOM'!P4 -> 10% | K8: coef | L8: ='RECAP DIRCOM'!S4 -> 20%
B9: Direction | C9: ="ETP perf "&DATEMAJ!$C$28 -> ETP perf 31-mars | E9: % Ecart au 1er | F9: Rang | H9: % Ecart au 1er | I9: Rang | J9: Moyenne ecart au 1er | K9: % Ecart au 1er | L9: Rang CEGEE
A10: 50 | B10: Aube Haute Marne | C10: =VLOOKUP($A10,'RECAP DIRCOM'!$G$6:$DC$12,3,FALSE) -> 127 | D10: =VLOOKUP($A10,'RECAP DIRCOM'!$G$6:$DC$12,5,FALSE) -> 16 | E10: =VLOOKUP($A10,'RECAP DIRCOM'!$G$6:$DC$12,6,FALSE) -> 16% | F10: =VLOOKUP($A10,'RECAP DIRCOM'!$G$6:$DC$12,7,FALSE) -> 2 | G10: =VLOOKUP($A10,'RECAP DIRCOM'!$G$6:$DC$12,8,FALSE) -> 56% | H10: =VLOOKUP($A10,'RECAP DIRCOM'!$G$6:$DC$12,9,FALSE) -> 17% | I10: =VLOOKUP($A10,'RECAP DIRCOM'!$G$6:$DC$12,10,FALSE) -> 3 | J10: =VLOOKUP($A10,'RECAP DIRCOM'!$G$6:$DC$12,11,FALSE) -> 16% | K10: =VLOOKUP($A10,'RECAP DIRCOM'!$G$6:$DC$12,12,FALSE) -> 16% | L10: =VLOOKUP($A10,'RECAP DIRCOM'!$G$6:$DC$12,13,FALSE) -> 3
A11: 262 | B11: Bas-Rhin | C11: =VLOOKUP($A11,'RECAP DIRCOM'!$G$6:$DC$12,3,FALSE) -> 258 | D11: =VLOOKUP($A11,'RECAP DIRCOM'!$G$6:$DC$12,5,FALSE) -> 9 | E11: =VLOOKUP($A11,'RECAP DIRCOM'!$G$6:$DC$12,6,FALSE) -> 53% | F11: =VLOOKUP($A11,'RECAP DIRCOM'!$G$6:$DC$12,7,FALSE) -> 6 | G11: =VLOOKUP($A11,'RECAP DIRCOM'!$G$6:$DC$12,8,FALSE) -> 50% | H11: =VLOOKUP($A11,'RECAP DIRCOM'!$G$6:$DC$12,9,FALSE) -> 25% | I11: =VLOOKUP($A11,'RECAP DIRCOM'!$G$6:$DC$12,10,FALSE) -> 6 | J11: =VLOOKUP($A11,'RECAP DIRCOM'!$G$6:$DC$12,11,FALSE) -> 39% | K11: =VLOOKUP($A11,'RECAP DIRCOM'!$G$6:$DC$12,12,FALSE) -> 39% | L11: =VLOOKUP($A11,'RECAP DIRCOM'!$G$6:$DC$12,13,FALSE) -> 6
A12: 264 | B12: Haut-Rhin | C12: =VLOOKUP($A12,'RECAP DIRCOM'!$G$6:$DC$12,3,FALSE) -> 157 | D12: =VLOOKUP($A12,'RECAP DIRCOM'!$G$6:$DC$12,5,FALSE) -> 5 | E12: =VLOOKUP($A12,'RECAP DIRCOM'!$G$6:$DC$12,6,FALSE) -> 74% | F12: =VLOOKUP($A12,'RECAP DIRCOM'!$G$6:$DC$12,7,FALSE) -> 7 | G12: =VLOOKUP($A12,'RECAP DIRCOM'!$G$6:$DC$12,8,FALSE) -> 36% | H12: =VLOOKUP($A12,'RECAP DIRCOM'!$G$6:$DC$12,9,FALSE) -> 46% | I12: =VLOOKUP($A12,'RECAP DIRCOM'!$G$6:$DC$12,10,FALSE) -> 7 | J12: =VLOOKUP($A12,'RECAP DIRCOM'!$G$6:$DC$12,11,FALSE) -> 60% | K12: =VLOOKUP($A12,'RECAP DIRCOM'!$G$6:$DC$12,12,FALSE) -> 60% | L12: =VLOOKUP($A12,'RECAP DIRCOM'!$G$6:$DC$12,13,FALSE) -> 7
A13: 30 | B13: Marne-Ardennes | C13: =VLOOKUP($A13,'RECAP DIRCOM'!$G$6:$DC$12,3,FALSE) -> 228 | D13: =VLOOKUP($A13,'RECAP DIRCOM'!$G$6:$DC$12,5,FALSE) -> 15 | E13: =VLOOKUP($A13,'RECAP DIRCOM'!$G$6:$DC$12,6,FALSE) -> 21% | F13: =VLOOKUP($A13,'RECAP DIRCOM'!$G$6:$DC$12,7,FALSE) -> 3 | G13: =VLOOKUP($A13,'RECAP DIRCOM'!$G$6:$DC$12,8,FALSE) -> 63% | H13: =VLOOKUP($A13,'RECAP DIRCOM'!$G$6:$DC$12,9,FALSE) -> 5% | I13: =VLOOKUP($A13,'RECAP DIRCOM'!$G$6:$DC$12,10,FALSE) -> 2 | J13: =VLOOKUP($A13,'RECAP DIRCOM'!$G$6:$DC$12,11,FALSE) -> 13% | K13: =VLOOKUP($A13,'RECAP DIRCOM'!$G$6:$DC$12,12,FALSE) -> 13% | L13: =VLOOKUP($A13,'RECAP DIRCOM'!$G$6:$DC$12,13,FALSE) -> 2
A14: 110 | B14: Meurthe et Moselle Meuse | C14: =VLOOKUP($A14,'RECAP DIRCOM'!$G$6:$DC$12,3,FALSE) -> 245 | D14: =VLOOKUP($A14,'RECAP DIRCOM'!$G$6:$DC$12,5,FALSE) -> 10 | E14: =VLOOKUP($A14,'RECAP DIRCOM'!$G$6:$DC$12,6,FALSE) -> 47% | F14: =VLOOKUP($A14,'RECAP DIRCOM'!$G$6:$DC$12,7,FALSE) -> 5 | G14: =VLOOKUP($A14,'RECAP DIRCOM'!$G$6:$DC$12,8,FALSE) -> 55% | H14: =VLOOKUP($A14,'RECAP DIRCOM'!$G$6:$DC$12,9,FALSE) -> 18% | I14: =VLOOKUP($A14,'RECAP DIRCOM'!$G$6:$DC$12,10,FALSE) -> 5 | J14: =VLOOKUP($A14,'RECAP DIRCOM'!$G$6:$DC$12,11,FALSE) -> 33% | K14: =VLOOKUP($A14,'RECAP DIRCOM'!$G$6:$DC$12,12,FALSE) -> 33% | L14: =VLOOKUP($A14,'RECAP DIRCOM'!$G$6:$DC$12,13,FALSE) -> 5
A15: 160 | B15: Moselle | C15: =VLOOKUP($A15,'RECAP DIRCOM'!$G$6:$DC$12,3,FALSE) -> 269 | D15: =VLOOKUP($A15,'RECAP DIRCOM'!$G$6:$DC$12,5,FALSE) -> 13 | E15: =VLOOKUP($A15,'RECAP DIRCOM'!$G$6:$DC$12,6,FALSE) -> 32% | F15: =VLOOKUP($A15,'RECAP DIRCOM'!$G$6:$DC$12,7,FALSE) -> 4 | G15: =VLOOKUP($A15,'RECAP DIRCOM'!$G$6:$DC$12,8,FALSE) -> 55% | H15: =VLOOKUP($A15,'RECAP DIRCOM'!$G$6:$DC$12,9,FALSE) -> 18% | I15: =VLOOKUP($A15,'RECAP DIRCOM'!$G$6:$DC$12,10,FALSE) -> 4 | J15: =VLOOKUP($A15,'RECAP DIRCOM'!$G$6:$DC$12,11,FALSE) -> 25% | K15: =VLOOKUP($A15,'RECAP DIRCOM'!$G$6:$DC$12,12,FALSE) -> 25% | L15: =VLOOKUP($A15,'RECAP DIRCOM'!$G$6:$DC$12,13,FALSE) -> 4
A16: 80 | B16: Vosges | C16: =VLOOKUP($A16,'RECAP DIRCOM'!$G$6:$DC$12,3,FALSE) -> 133 | D16: =VLOOKUP($A16,'RECAP DIRCOM'!$G$6:$DC$12,5,FALSE) -> 19 | E16: =VLOOKUP($A16,'RECAP DIRCOM'!$G$6:$DC$12,6,FALSE) -> 0% | F16: =VLOOKUP($A16,'RECAP DIRCOM'!$G$6:$DC$12,7,FALSE) -> 1 | G16: =VLOOKUP($A16,'RECAP DIRCOM'!$G$6:$DC$12,8,FALSE) -> 67% | H16: =VLOOKUP($A16,'RECAP DIRCOM'!$G$6:$DC$12,9,FALSE) -> 0% | I16: =VLOOKUP($A16,'RECAP DIRCOM'!$G$6:$DC$12,10,FALSE) -> 1 | J16: =VLOOKUP($A16,'RECAP DIRCOM'!$G$6:$DC$12,11,FALSE) -> 0% | K16: =VLOOKUP($A16,'RECAP DIRCOM'!$G$6:$DC$12,12,FALSE) -> 0% | L16: =VLOOKUP($A16,'RECAP DIRCOM'!$G$6:$DC$12,13,FALSE) -> 1
B17: Total CEGEE Directions Régionales | C17: =SUM(C10:C16) -> 1416

Sheet SE_FICHE
A1: Accueil
A2: BAROMETRE BDD
A4: UNITE: | B4: TERRITOIRE | E4: ETP perf : | F4: =VLOOKUP(A5,'RECAP SECT'!$G$6:$I$23,3,FALSE) -> 61.84
A5: =VLOOKUP(B5,LISTES!$H$6:$I$23,2,FALSE) -> 5130 | B5: COLMAR
C6: Coefficient du critére | E6: Résultats | I6: Ecart au 1ier | M6: Evolution | O6: Rang
E7: du 1ier | G7: du territoire | I7: Du mois | K7: Au 31/12/2019
A9: RANG au CLASSEMENT GENERAL | K9: =VLOOKUP($A$5,#REF!,168,FALSE) ->  | M9: =+K9-O9 ->  | O9: =VLOOKUP($A$5,'RECAP SECT'!$G$6:$DG$312,168,FALSE) ->  | S9: =VLOOKUP($A$5,#REF!,154,FALSE) ->  | U9: =+S9-O9 -> 
A11: CRITERE CONQUETE | C11: 15% | O11: =VLOOKUP($A$5,'RECAP SECT'!$G$6:$DG$312,23,FALSE) -> 17.64222814
B12: PNB Evolution nette Clients BP | C12: 4% | E12: ='RECAP SECT'!#REF! ->  | G12: =VLOOKUP($A$5,'RECAP SECT'!$G$6:$DG$312,6,FALSE) -> 0.6 | I12: =VLOOKUP($A$5,'RECAP SECT'!$G$6:$DG$312,7,FALSE) -> 1300% | K12: =VLOOKUP($A$5,#REF!,7,FALSE) ->  | M12: =+K12-I12 ->  | O12: =VLOOKUP($A$5,'RECAP SECT'!$G$6:$DG$312,8,FALSE) -> 0.458774672 | S12: =VLOOKUP($A$5,#REF!,6,FALSE) ->  | U12: =+S12-I12 -> 
B13: PNB Evolution nette Clients PREMIUM | C13: 5% | E13: ='RECAP SECT'!#REF! ->  | G13: =VLOOKUP($A$5,'RECAP SECT'!$G$6:$DG$312,10,FALSE) -> 17.0 | I13: =VLOOKUP($A$5,'RECAP SECT'!$G$6:$DG$312,11,FALSE) -> 47% | K13: =VLOOKUP($A$5,#REF!,11,FALSE) ->  | M13: =+K13-I13 ->  | O13: =VLOOKUP($A$5,'RECAP SECT'!$G$6:$DG$312,12,FALSE) -> 0.422770165 | S13: =VLOOKUP($A$5,#REF!,9,FALSE) ->  | U13: =+S13-I13 -> 
B14: PNB Evolution nette Clients Jeunes Equipés | C14: 3% | E14: ='RECAP SECT'!#REF! ->  | G14: =VLOOKUP($A$5,'RECAP SECT'!$G$6:$DG$312,14,FALSE) -> 0.0 | I14: =VLOOKUP($A$5,'RECAP SECT'!$G$6:$DG$312,15,FALSE) -> 0% | K14: =VLOOKUP($A$5,#REF!,15,FALSE) ->  | M14: =+K14-I14 ->  | O14: =VLOOKUP($A$5,'RECAP SECT'!$G$6:$DG$312,16,FALSE) -> 0 | S14: =VLOOKUP($A$5,#REF!,12,FALSE) ->  | U14: =+S14-I14 -> 
B15: PNB Evolution nette Clients Pro Actifs Equipés | C15: 3% | E15: ='RECAP SECT'!W4 -> 0.0 | G15: =VLOOKUP($A$5,'RECAP SECT'!$G$6:$DG$312,18,FALSE) -> 1598.5 | I15: =VLOOKUP($A$5,'RECAP SECT'!$G$6:$DG$312,19,FALSE) -> 2585% | K15: =VLOOKUP($A$5,#REF!,19,FALSE) ->  | M15: =+K15-I15 ->  | O15: =VLOOKUP($A$5,'RECAP SECT'!$G$6:$DG$312,20,FALSE) -> 0.4651601576 | S15: =VLOOKUP($A$5,#REF!,15,FALSE) ->  | U15: =+S15-I15 -> 
A17: CRITERE BANCARISATION | C17: 15% | O17: =VLOOKUP($A$5,'RECAP SECT'!$G$6:$DG$312,48,FALSE) -> 17
B18: PNB Ventes nettes forfaits | C18: 4% | E18: ='RECAP SECT'!X4 -> 48.3 | G18: =VLOOKUP($A$5,'RECAP SECT'!$G$6:$DG$312,31,FALSE) -> -1.1 | I18: =VLOOKUP($A$5,'RECAP SECT'!$G$6:$DG$312,32,FALSE) -> 20% | K18: =VLOOKUP($A$5,#REF!,32,FALSE) ->  | M18: =+K18-I18 ->  | O18: =VLOOKUP($A$5,'RECAP SECT'!$G$6:$DG$312,33,FALSE) -> 7 | S18: =VLOOKUP($A$5,#REF!,27,FALSE) ->  | U18: =+S18-I18 -> 
B19: PNB Ventes nettes IZICARTES Débit Différé | C19: 4% | E19: ='RECAP SECT'!AB4 -> 26.0 | G19: =VLOOKUP($A$5,'RECAP SECT'!$G$6:$DG$312,35,FALSE) -> 0.3 | I19: =VLOOKUP($A$5,'RECAP SECT'!$G$6:$DG$312,36,FALSE) -> 1700% | K19: =VLOOKUP($A$5,#REF!,36,FALSE) ->  | M19: =+K19-I19 ->  | O19: =VLOOKUP($A$5,'RECAP SECT'!$G$6:$DG$312,37,FALSE) -> 0 | S19: =VLOOKUP($A$5,#REF!,30,FALSE) ->  | U19: =+S19-I19 -> 
B20: PNB Ventes nettes cartes HDG Débit Différé | C20: 4% | E20: ='RECAP SECT'!AF4 -> 9.4 | G20: =VLOOKUP($A$5,'RECAP SECT'!$G$6:$DG$312,39,FALSE) -> 0.0 | I20: =VLOOKUP($A$5,'RECAP SECT'!$G$6:$DG$312,40,FALSE) -> 0% | K20: =VLOOKUP($A$5,#REF!,40,FALSE) ->  | M20: =+K20-I20 ->  | O20: =VLOOKUP($A$5,'RECAP SECT'!$G$6:$DG$312,41,FALSE) -> 12514.97619 | S20: =VLOOKUP($A$5,#REF!,33,FALSE) ->  | U20: =+S20-I20 -> 
B21: PNB Ventes nettes Forfaits Pro, Carte pro | C21: 3% | E21: ='RECAP SECT'!AJ4 -> -0.9 | G21: =VLOOKUP($A$5,'RECAP SECT'!$G$6:$DG$312,43,FALSE) -> 0.5 | I21: =VLOOKUP($A$5,'RECAP SECT'!$G$6:$DG$312,44,FALSE) -> 1500% | K21: =VLOOKUP($A$5,#REF!,44,FALSE) ->  | M21: =+K21-I21 ->  | O21: =VLOOKUP($A$5,'RECAP SECT'!$G$6:$DG$312,45,FALSE) -> 572 | S21: =VLOOKUP($A$5,#REF!,39,FALSE) ->  | U21: =+S21-I21 -> 
A23: CRITERE EPARGNE | C23: 10% | O23: =VLOOKUP($A$5,'RECAP SECT'!$G$6:$DG$312,69,FALSE) -> 0.4674876032
B24: PNB Epargne Liquide | C24: 3% | E24: ='RECAP SECT'!AU4 -> 396.9 | G24: =VLOOKUP($A$5,'RECAP SECT'!$G$6:$DG$312,56,FALSE) -> 2149.2 | I24: =VLOOKUP($A$5,'RECAP SECT'!$G$6:$DG$312,57,FALSE) -> 3475% | K24: =VLOOKUP($A$5,#REF!,57,FALSE) ->  | M24: =+K24-I24 ->  | O24: =VLOOKUP($A$5,'RECAP SECT'!$G$6:$DG$312,58,FALSE) -> 0.7264850077 | S24: =VLOOKUP($A$5,#REF!,51,FALSE) ->  | U24: =+S24-I24 -> 
B25: PNB CA UC + arbitrage | C25: 4% | E25: ='RECAP SECT'!AY4 -> 15.8 | G25: =VLOOKUP($A$5,'RECAP SECT'!$G$6:$DG$312,60,FALSE) -> 1670.9 | I25: =VLOOKUP($A$5,'RECAP SECT'!$G$6:$DG$312,61,FALSE) -> 2702% | K25: =VLOOKUP($A$5,#REF!,61,FALSE) ->  | M25: =+K25-I25 ->  | O25: =VLOOKUP($A$5,'RECAP SECT'!$G$6:$DG$312,62,FALSE) -> 0.2779242834 | S25: =VLOOKUP($A$5,#REF!,57,FALSE) ->  | U25: =+S25-I25 -> 
B26: PNB Excédent assurance vie | C26: 3% | E26: ='RECAP SECT'!#REF! ->  | G26: =VLOOKUP($A$5,'RECAP SECT'!$G$6:$DG$312,64,FALSE) -> 331.0 | I26: =VLOOKUP($A$5,'RECAP SECT'!$G$6:$DG$312,65,FALSE) -> 535% | K26: =VLOOKUP($A$5,#REF!,65,FALSE) ->  | M26: =+K26-I26 ->  | O26: =VLOOKUP($A$5,'RECAP SECT'!$G$6:$DG$312,66,FALSE) -> 0.5400644798 | S26: =VLOOKUP($A$5,#REF!,60,FALSE) ->  | U26: =+S26-I26 -> 
A28: CRITERE CREDITS | C28: 15% | O28: =VLOOKUP($A$5,'RECAP SECT'!$G$6:$DG$312,102,FALSE) -> 0.3894802062
B29: PNB crédit conso | C29: 4% | E29: ='RECAP SECT'!BJ4 -> 127.1 | G29: =VLOOKUP($A$5,'RECAP SECT'!$G$6:$DG$312,77,FALSE) -> 0.3 | I29: =VLOOKUP($A$5,'RECAP SECT'!$G$6:$DG$312,78,FALSE) -> 1000% | K29: =VLOOKUP($A$5,#REF!,78,FALSE) ->  | M29: =+K29-I29 ->  | O29: =VLOOKUP($A$5,'RECAP SECT'!$G$6:$DG$312,79,FALSE) -> 918 | S29: =VLOOKUP($A$5,#REF!,75,FALSE) ->  | U29: =+S29-I29 -> 
B30: PNB ADE crédit conso | C30: 1% | E30: ='RECAP SECT'!#REF! ->  | G30: =VLOOKUP($A$5,'RECAP SECT'!$G$6:$DG$312,81,FALSE) -> 0.4 | I30: =VLOOKUP($A$5,'RECAP SECT'!$G$6:$DG$312,82,FALSE) -> 1800% | K30: =VLOOKUP($A$5,#REF!,82,FALSE) ->  | O30: =VLOOKUP($A$5,'RECAP SECT'!$G$6:$DG$312,83,FALSE) -> 0.2996134429 | S30: =VLOOKUP($A$5,#REF!,78,FALSE) -> 
B31: PNB crédit immo | C31: 4% | E31: ='RECAP SECT'!BN4 -> 37.4 | G31: =VLOOKUP($A$5,'RECAP SECT'!$G$6:$DG$312,85,FALSE) -> 12.0 | I31: =VLOOKUP($A$5,'RECAP SECT'!$G$6:$DG$312,86,FALSE) -> 0% | K31: =VLOOKUP($A$5,#REF!,86,FALSE) ->  | O31: =VLOOKUP($A$5,'RECAP SECT'!$G$6:$DG$312,87,FALSE) -> 0 | S31: =VLOOKUP($A$5,#REF!,81,FALSE) -> 
B32: PNB ADE crédit immo | C32: 2% | E32: ='RECAP SECT'!#REF! ->  | G32: =VLOOKUP($A$5,'RECAP SECT'!$G$6:$DG$312,89,FALSE) -> 0.0 | I32: =VLOOKUP($A$5,'RECAP SECT'!$G$6:$DG$312,90,FALSE) -> 0% | K32: =VLOOKUP($A$5,#REF!,90,FALSE) ->  | O32: =VLOOKUP($A$5,'RECAP SECT'!$G$6:$DG$312,91,FALSE) -> 0 | S32: =VLOOKUP($A$5,#REF!,84,FALSE) -> 
B33: PNB SACCEF | C33: 2% | E33: ='RECAP SECT'!#REF! ->  | G33: =VLOOKUP($A$5,'RECAP SECT'!$G$6:$DG$312,93,FALSE) -> 0.0 | I33: =VLOOKUP($A$5,'RECAP SECT'!$G$6:$DG$312,94,FALSE) -> 0% | K33: =VLOOKUP($A$5,#REF!,94,FALSE) ->  | O33: =VLOOKUP($A$5,'RECAP SECT'!$G$6:$DG$312,95,FALSE) -> 0 | S33: =VLOOKUP($A$5,#REF!,87,FALSE) -> 
B34: PNB Crédit MLT + Crédit Bail | C34: 2% | E34: ='RECAP SECT'!BR4 -> 11.6 | G34: =VLOOKUP($A$5,'RECAP SECT'!$G$6:$DG$312,97,FALSE) -> 0.0 | I34: =VLOOKUP($A$5,'RECAP SECT'!$G$6:$DG$312,98,FALSE) -> 0% | K34: =VLOOKUP($A$5,#REF!,98,FALSE) ->  | O34: =VLOOKUP($A$5,'RECAP SECT'!$G$6:$DG$312,99,FALSE) -> 0 | S34: =VLOOKUP($A$5,#REF!,90,FALSE) -> 
A36: CRITERE IARD PREVOYANCE | C36: 15% | O36: =VLOOKUP($A$5,'RECAP SECT'!$G$6:$DG$312,119,FALSE) -> 
B37: PNB Ventes nettes IARD | C37: 9% | E37: ='RECAP SECT'!CC4 -> 146.3 | G37: =VLOOKUP($A$5,'RECAP SECT'!$G$6:$DG$312,110,FALSE) ->  | I37: =VLOOKUP($A$5,'RECAP SECT'!$G$6:$DG$312,111,FALSE) ->  | K37: =VLOOKUP($A$5,#REF!,111,FALSE) ->  | M37: =+K37-I37 ->  | O37: =VLOOKUP($A$5,'RECAP SECT'!$G$6:$DG$312,112,FALSE) ->  | S37: =VLOOKUP($A$5,#REF!,102,FALSE) ->  | U37: =+S37-I37 -> 
B38: PNB Ventes nettes Prévoyance | C38: 6% | E38: ='RECAP SECT'!CG4 -> 24.3 | G38: =VLOOKUP($A$5,'RECAP SECT'!$G$6:$DG$312,114,FALSE) ->  | I38: =VLOOKUP($A$5,'RECAP SECT'!$G$6:$DG$312,115,FALSE) ->  | K38: =VLOOKUP($A$5,#REF!,115,FALSE) ->  | M38: =+K38-I38 ->  | O38: =VLOOKUP($A$5,'RECAP SECT'!$G$6:$DG$312,116,FALSE) ->  | S38: =VLOOKUP($A$5,#REF!,105,FALSE) ->  | U38: =+S38-I38 -> 
A40: CRITERE ACCELERATEURS PNB | C40: 15% | O40: =VLOOKUP($A$5,'RECAP SECT'!$G$6:$DG$312,144,FALSE) -> 
B41: PNB Ventes brutes SED Finalisées | C41: 6% | E41: ='RECAP SECT'!#REF! ->  | G41: =VLOOKUP($A$5,'RECAP SECT'!$G$6:$DG$312,127,FALSE) ->  | I41: =VLOOKUP($A$5,'RECAP SECT'!$G$6:$DG$312,128,FALSE) ->  | K41: =VLOOKUP($A$5,#REF!,128,FALSE) ->  | M41: =+K41-I41 ->  | O41: =VLOOKUP($A$5,'RECAP SECT'!$G$6:$DG$312,129,FALSE) ->  | S41: =VLOOKUP($A$5,#REF!,120,FALSE) ->  | U41: =+S41-I41 -> 
B42: PNB clients équipés E documents | C42: 3% | E42: ='RECAP SECT'!#REF! ->  | G42: =VLOOKUP($A$5,'RECAP SECT'!$G$6:$DG$312,131,FALSE) ->  | I42: =VLOOKUP($A$5,'RECAP SECT'!$G$6:$DG$312,132,FALSE) ->  | K42: =VLOOKUP($A$5,#REF!,132,FALSE) ->  | M42: =+K42-I42 ->  | O42: =VLOOKUP($A$5,'RECAP SECT'!$G$6:$DG$312,133,FALSE) ->  | S42: =VLOOKUP($A$5,#REF!,123,FALSE) ->  | U42: =+S42-I42 -> 
B43: Economie opt'in | C43: 3% | E43: ='RECAP SECT'!#REF! ->  | G43: =VLOOKUP($A$5,'RECAP SECT'!$G$6:$DG$312,135,FALSE) ->  | I43: =VLOOKUP($A$5,'RECAP SECT'!$G$6:$DG$312,136,FALSE) ->  | K43: =VLOOKUP($A$5,#REF!,136,FALSE) ->  | M43: =+K43-I43 ->  | O43: =VLOOKUP($A$5,'RECAP SECT'!$G$6:$DG$312,137,FALSE) -> 
B44: Remises commerciales | C44: 3% | E44: ='RECAP SECT'!#REF! ->  | G44: =VLOOKUP($A$5,'RECAP SECT'!$G$6:$DG$312,139,FALSE) ->  | I44: =VLOOKUP($A$5,'RECAP SECT'!$G$6:$DG$312,140,FALSE) ->  | K44: =VLOOKUP($A$5,#REF!,140,FALSE) ->  | M44: =+K44-I44 ->  | O44: =VLOOKUP($A$5,'RECAP SECT'!$G$6:$DG$312,141,FALSE) ->  | S44: =VLOOKUP($A$5,#REF!,126,FALSE) ->  | U44: =+S44-I44 -> 
A46: CRITERE Satisfaction Clients | C46: 15% | O46: =VLOOKUP($A$5,'RECAP SECT'!$G$6:$DG$312,159,FALSE) -> 
B47: Objectifs NPS* | C47: 8% | E47: ='RECAP SECT'!K4 -> 22 | G47: =VLOOKUP($A$5,'RECAP SECT'!$G$6:$DG$312,151,FALSE) ->  | I47: =VLOOKUP($A$5,'RECAP SECT'!$G$6:$DG$312,152,FALSE) ->  | K47: =VLOOKUP($A$5,#REF!,152,FALSE) ->  | M47: =+K47-I47 ->  | O47: =VLOOKUP($A$5,'RECAP SECT'!$G$6:$DG$312,153,FALSE) ->  | S47: =VLOOKUP($A$5,#REF!,138,FALSE) ->  | U47: =+S47-I47 -> 
B48: Enquête Qualité Haute Définition | C48: 7% | E48: ='RECAP SECT'!N4 -> 70% | G48: =VLOOKUP($A$5,'RECAP SECT'!$G$6:$DG$312,154,FALSE) ->  | I48: =VLOOKUP($A$5,'RECAP SECT'!$G$6:$DG$312,155,FALSE) ->  | K48: =VLOOKUP($A$5,#REF!,155,FALSE) ->  | M48: =+K48-I48 ->  | O48: =VLOOKUP($A$5,'RECAP SECT'!$G$6:$DG$312,156,FALSE) ->  | S48: =VLOOKUP($A$5,#REF!,141,FALSE) ->  | U48: =+S48-I48 -> 

Sheet SE_TOTAL
B1: Accueil | F1: BAROMETRE BDD - TERRITOIRES
F2: TOTAL GENERAL
F3: =ACCUEIL!F7 -> 2021-05-16
F7: TOTAL GENERAL | I7: Total Satisfaction Clients | L7: Total Bancarisation | O7: Total Epargne | R7: Total IARD Prévoyance | U7: Total Crédits
G8: coef | H8: 100% | J8: coef | K8: =SE_SATISFACTION!N8 -> 20% | M8: coef | N8: =SE_BANCA!X8 -> 20% | P8: coef | Q8: =SE_EPARGNE!P8 -> 20% | S8: coef | T8: =SE_IARD!P8 -> 20% | V8: coef | W8: =SE_CREDIT!T8 -> 20%
B9: Direction | C9: eds | D9: Territoire | E9: ="ETP perf "&DATEMAJ!$C$28 -> ETP perf 31-mars | F9: Moyenne ecart au 1er | G9: % Ecart au 1er | H9: Rang CEGEE | I9: Moyenne ecart au 1er | J9: % Ecart au 1er | K9: Rang CEGEE | L9: Moyenne ecart au 1er | M9: % Ecart au 1er | N9: Rang CEGEE | O9: Moyenne ecart au 1er | P9: % Ecart au 1er | Q9: Rang CEGEE | R9: Moyenne ecart au 1er | S9: % Ecart au 1er | T9: Rang CEGEE | U9: Moyenne ecart au 1er | V9: % Ecart au 1er | W9: Rang CEGEE
A10: 50 | B10: MEURTHE ET MOSELLE MEUSE | C10: 26 | D10: NANCY | E10: 67.2 | F10: 6% | G10: 0% | H10: 1 | I10: 35% | J10: 31% | K10: 9 | L10: 11% | M10: 0% | N10: 1 | O10: 4% | P10: 1% | Q10: 2 | R10: 2% | S10: 0% | T10: 1 | U10: 7% | V10: 0% | W10: 1
A11: 50 | B11: MARNE-ARDENNES | C11: 2 | D11: CHARLEVILLE MEZIERES | E11: 55.8 | F11: 12% | G11: 5% | H11: 2 | I11: 5% | J11: 0% | K11: 1 | L11: 35% | M11: 24% | N11: 12 | O11: 20% | P11: 17% | Q11: 7 | R11: 7% | S11: 5% | T11: 2 | U11: 20% | V11: 13% | W11: 4
A12: 262 | B12: MEURTHE ET MOSELLE MEUSE | C12: 27 | D12: PONT A MOUSSON | E12: 76.6 | F12: 14% | G12: 8% | H12: 3 | I12: 50% | J12: 45% | K12: 16 | L12: 13% | M12: 2% | N12: 2 | O12: 11% | P12: 8% | Q12: 4 | R12: 18% | S12: 16% | T12: 5 | U12: 8% | V12: 1% | W12: 2
A13: 262 | B13: BAS-RHIN | C13: 5006 | D13: STRASBOURG | E13: 77.2 | F13: 19% | G13: 12% | H13: 4 | I13: 48% | J13: 43% | K13: 15 | L13: 18% | M13: 7% | N13: 3 | O13: 3% | P13: 0% | Q13: 1 | R13: 15% | S13: 14% | T13: 4 | U13: 36% | V13: 30% | W13: 9
A14: 262 | B14: MEURTHE ET MOSELLE MEUSE | C14: 31 | D14: VERDUN | E14: 55.6 | F14: 20% | G14: 14% | H14: 5 | I14: 24% | J14: 20% | K14: 7 | L14: 20% | M14: 8% | N14: 4 | O14: 34% | P14: 31% | Q14: 13 | R14: 27% | S14: 25% | T14: 10 | U14: 23% | V14: 16% | W14: 5
A15: 264 | B15: MARNE-ARDENNES | C15: 11 | D15: REIMS | E15: 81.4 | F15: 21% | G15: 14% | H15: 6 | I15: 40% | J15: 35% | K15: 12 | L15: 34% | M15: 23% | N15: 10 | O15: 27% | P15: 25% | Q15: 11 | R15: 10% | S15: 9% | T15: 3 | U15: 18% | V15: 11% | W15: 3
A16: 264 | B16: MARNE-ARDENNES | C16: 6 | D16: CHALONS EN CHAMPAGNE | E16: 44.4 | F16: 21% | G16: 15% | H16: 7 | I16: 9% | J16: 4% | K16: 3 | L16: 34% | M16: 23% | N16: 11 | O16: 39% | P16: 36% | Q16: 14 | R16: 19% | S16: 17% | T16: 7 | U16: 31% | V16: 24% | W16: 7
A17: 30 | B17: MOSELLE | C17: 42 | D17: MOSELLE EST | E17: 70.1 | F17: 22% | G17: 15% | H17: 8 | I17: 16% | J17: 12% | K17: 5 | L17: 26% | M17: 15% | N17: 7 | O17: 21% | P17: 18% | Q17: 8 | R17: 33% | S17: 31% | T17: 14 | U17: 40% | V17: 33% | W17: 13
A18: 30 | B18: VOSGES | C18: 57 | D18: EPINAL | E18: 61.3 | F18: 22% | G18: 16% | H18: 9 | I18: 8% | J18: 3% | K18: 2 | L18: 44% | M18: 33% | N18: 16 | O18: 29% | P18: 26% | Q18: 12 | R18: 18% | S18: 16% | T18: 6 | U18: 40% | V18: 33% | W18: 12
A19: 30 | B19: VOSGES | C19: 55 | D19: SAINT DIE | E19: 47.3 | F19: 23% | G19: 17% | H19: 10 | I19: 11% | J19: 6% | K19: 4 | L19: 42% | M19: 31% | N19: 15 | O19: 16% | P19: 13% | Q19: 5 | R19: 34% | S19: 32% | T19: 15 | U19: 41% | V19: 34% | W19: 14
A20: 110 | B20: MOSELLE | C20: 44 | D20: MOSELLE NORD | E20: 67.1 | F20: 24% | G20: 17% | H20: 11 | I20: 41% | J20: 36% | K20: 13 | L20: 24% | M20: 13% | N20: 6 | O20: 23% | P20: 20% | Q20: 9 | R20: 27% | S20: 25% | T20: 11 | U20: 30% | V20: 23% | W20: 6
A21: 110 | B21: BAS-RHIN | C21: 5101 | D21: SELESTAT | E21: 61.1 | F21: 24% | G21: 18% | H21: 12 | I21: 51% | J21: 46% | K21: 17 | L21: 21% | M21: 10% | N21: 5 | O21: 6% | P21: 3% | Q21: 3 | R21: 25% | S21: 23% | T21: 9 | U21: 46% | V21: 39% | W21: 16
A22: 110 | B22: MOSELLE | C22: 45 | D22: METZ | E22: 90.5 | F22: 27% | G22: 21% | H22: 13 | I22: 37% | J22: 33% | K22: 11 | L22: 31% | M22: 20% | N22: 9 | O22: 23% | P22: 20% | Q22: 10 | R22: 31% | S22: 30% | T22: 13 | U22: 39% | V22: 33% | W22: 11
A23: 160 | B23: AUBE HAUTE MARNE | C23: 21 | D23: CHAUMONT | E23: 33.9 | F23: 27% | G23: 21% | H23: 14 | I23: 25% | J23: 20% | K23: 8 | L23: 41% | M23: 30% | N23: 14 | O23: 43% | P23: 40% | Q23: 15 | R23: 21% | S23: 19% | T23: 8 | U23: 34% | V23: 27% | W23: 8
A24: 160 | B24: BAS-RHIN | C24: 5060 | D24: HAGUENAU | E24: 71.2 | F24: 29% | G24: 22% | H24: 15 | I24: 36% | J24: 31% | K24: 10 | L24: 28% | M24: 17% | N24: 8 | O24: 18% | P24: 15% | Q24: 6 | R24: 44% | S24: 43% | T24: 17 | U24: 44% | V24: 37% | W24: 15
A25: 160 | B25: AUBE HAUTE MARNE | C25: 14 | D25: TROYES | E25: 65.3 | F25: 33% | G25: 27% | H25: 16 | I25: 22% | J25: 18% | K25: 6 | L25: 37% | M25: 26% | N25: 13 | O25: 55% | P25: 52% | Q25: 17 | R25: 41% | S25: 40% | T25: 16 | U25: 37% | V25: 30% | W25: 10
A26: 80 | B26: HAUT-RHIN | C26: 5130 | D26: COLMAR | E26: 61.8 | F26: 39% | G26: 33% | H26: 17 | I26: 47% | J26: 42% | K26: 14 | L26: 45% | M26: 34% | N26: 17 | O26: 47% | P26: 44% | Q26: 16 | R26: 30% | S26: 28% | T26: 12 | U26: 54% | V26: 47% | W26: 18
A27: 80 | B27: HAUT-RHIN | C27: 5169 | D27: MULHOUSE | E27: 60.8 | F27: 55% | G27: 48% | H27: 18 | I27: 79% | J27: 74% | K27: 18 | L27: 66% | M27: 55% | N27: 18 | O27: 56% | P27: 53% | Q27: 18 | R27: 51% | S27: 49% | T27: 18 | U27: 48% | V27: 41% | W27: 17
A28: Total CEGEE Directions Régionales | E28: =SUM(E10:E27) -> 1149

Sheet SE_BANCA
B1: Accueil | F1: BAROMETRE BDD - TERRITOIRES
F2: BANCARISATION
F3: =ACCUEIL!F7 -> 2021-05-16
F7: Ventes Nettes produits pondérés | J7: Ventes sur client non détenteur de l’univers | N7: Mobilité Macron | R7: Remises commerciales | V7: Total Bancarisation
F8: =DATEMAJ!C8 -> au 16/05 | H8: coef | I8: ='RECAP DIRCOM'!AA4 -> 10% | J8: =DATEMAJ!C9 -> au 16/05 | L8: coef | M8: ='RECAP DIRCOM'!AE4 -> 4% | N8: =DATEMAJ!C10 -> au 16/05 | P8: coef | Q8: ='RECAP DIRCOM'!AI4 -> 3% | R8: =DATEMAJ!C11 -> au 31/03 | T8: coef | U8: ='RECAP DIRCOM'!AM4 -> 3% | W8: coef | X8: ='RECAP DIRCOM'!AP4 -> 20%
B9: Direction | C9: eds | D9: Territoire | E9: ="ETP perf "&DATEMAJ!$C$28 -> ETP perf 31-mars | F9: VN | G9: VN / ETP | H9: % Ecart au 1er | I9: Rang | J9: VB | K9: VB / ETP | L9: % Ecart au 1er | M9: Rang | N9: Nb | O9: Nb / ETP | P9: % Ecart au 1er | Q9: Rang | R9: Montant | S9: Montant / ETP | T9: % Ecart au 1er | U9: Rang | V9: Moyenne ecart au 1er | W9: % Ecart au 1er | X9: Rang CEGEE
A10: 50 | B10: AUBE HAUTE MARNE | C10: 21 | D10: CHAUMONT | E10: =VLOOKUP($C10,'RECAP SECT'!$G$6:$DC$253,3,FALSE) -> 33.9 | F10: =VLOOKUP($C10,'RECAP SECT'!$G$6:$DC$253,18,FALSE) -> 832 | G10: =VLOOKUP($C10,'RECAP SECT'!$G$6:$DC$253,19,FALSE) -> 24.51 | H10: =VLOOKUP($C10,'RECAP SECT'!$G$6:$DC$253,20,FALSE) -> 49% | I10: =VLOOKUP($C10,'RECAP SECT'!$G$6:$DC$253,21,FALSE) -> 16 | J10: =VLOOKUP($C10,'RECAP SECT'!$G$6:$DC$253,22,FALSE) -> 692 | K10: =VLOOKUP($C10,'RECAP SECT'!$G$6:$DC$253,23,FALSE) -> 20.39 | L10: =VLOOKUP($C10,'RECAP SECT'!$G$6:$DC$253,24,FALSE) -> 22% | M10: =VLOOKUP($C10,'RECAP SECT'!$G$6:$DC$253,25,FALSE) -> 7 | N10: =VLOOKUP($C10,'RECAP SECT'!$G$6:$DC$253,26,FALSE) -> 127 | O10: =VLOOKUP($C10,'RECAP SECT'!$G$6:$DC$253,27,FALSE) -> 3.74 | P10: =VLOOKUP($C10,'RECAP SECT'!$G$6:$DC$253,28,FALSE) -> 60% | Q10: =VLOOKUP($C10,'RECAP SECT'!$G$6:$DC$253,29,FALSE) -> 10 | R10: =VLOOKUP($C10,'RECAP SECT'!$G$6:$DC$253,30,FALSE) -> -37.8 | S10: =VLOOKUP($C10,'RECAP SECT'!$G$6:$DC$253,31,FALSE) -> -1.11 | T10: =VLOOKUP($C10,'RECAP SECT'!$G$6:$DC$253,32,FALSE) -> 23% | U10: =VLOOKUP($C10,'RECAP SECT'!$G$6:$DC$253,33,FALSE) -> 9 | V10: =VLOOKUP($C10,'RECAP SECT'!$G$6:$DC$253,34,FALSE) -> 41% | W10: =VLOOKUP($C10,'RECAP SECT'!$G$6:$DC$253,35,FALSE) -> 30% | X10: =VLOOKUP($C10,'RECAP SECT'!$G$6:$DC$253,36,FALSE) -> 14
A11: 50 | B11: AUBE HAUTE MARNE | C11: 14 | D11: TROYES | E11: =VLOOKUP($C11,'RECAP SECT'!$G$6:$DC$253,3,FALSE) -> 65.3 | F11: =VLOOKUP($C11,'RECAP SECT'!$G$6:$DC$253,18,FALSE) -> 1,787 | G11: =VLOOKUP($C11,'RECAP SECT'!$G$6:$DC$253,19,FALSE) -> 27.36 | H11: =VLOOKUP($C11,'RECAP SECT'!$G$6:$DC$253,20,FALSE) -> 43% | I11: =VLOOKUP($C11,'RECAP SECT'!$G$6:$DC$253,21,FALSE) -> 12 | J11: =VLOOKUP($C11,'RECAP SECT'!$G$6:$DC$253,22,FALSE) -> 1,287 | K11: =VLOOKUP($C11,'RECAP SECT'!$G$6:$DC$253,23,FALSE) -> 19.71 | L11: =VLOOKUP($C11,'RECAP SECT'!$G$6:$DC$253,24,FALSE) -> 24% | M11: =VLOOKUP($C11,'RECAP SECT'!$G$6:$DC$253,25,FALSE) -> 10 | N11: =VLOOKUP($C11,'RECAP SECT'!$G$6:$DC$253,26,FALSE) -> 252 | O11: =VLOOKUP($C11,'RECAP SECT'!$G$6:$DC$253,27,FALSE) -> 3.86 | P11: =VLOOKUP($C11,'RECAP SECT'!$G$6:$DC$253,28,FALSE) -> 59% | Q11: =VLOOKUP($C11,'RECAP SECT'!$G$6:$DC$253,29,FALSE) -> 9 | R11: =VLOOKUP($C11,'RECAP SECT'!$G$6:$DC$253,30,FALSE) -> -65.9 | S11: =VLOOKUP($C11,'RECAP SECT'!$G$6:$DC$253,31,FALSE) -> -1.01 | T11: =VLOOKUP($C11,'RECAP SECT'!$G$6:$DC$253,32,FALSE) -> 12% | U11: =VLOOKUP($C11,'RECAP SECT'!$G$6:$DC$253,33,FALSE) -> 5 | V11: =VLOOKUP($C11,'RECAP SECT'!$G$6:$DC$253,34,FALSE) -> 37% | W11: =VLOOKUP($C11,'RECAP SECT'!$G$6:$DC$253,35,FALSE) -> 26% | X11: =VLOOKUP($C11,'RECAP SECT'!$G$6:$DC$253,36,FALSE) -> 13
A12: 262 | B12: BAS-RHIN | C12: 5060 | D12: HAGUENAU | E12: =VLOOKUP($C12,'RECAP SECT'!$G$6:$DC$253,3,FALSE) -> 71.2 | F12: =VLOOKUP($C12,'RECAP SECT'!$G$6:$DC$253,18,FALSE) -> 2,980 | G12: =VLOOKUP($C12,'RECAP SECT'!$G$6:$DC$253,19,FALSE) -> 41.87 | H12: =VLOOKUP($C12,'RECAP SECT'!$G$6:$DC$253,20,FALSE) -> 13% | I12: =VLOOKUP($C12,'RECAP SECT'!$G$6:$DC$253,21,FALSE) -> 5 | J12: =VLOOKUP($C12,'RECAP SECT'!$G$6:$DC$253,22,FALSE) -> 1,238 | K12: =VLOOKUP($C12,'RECAP SECT'!$G$6:$DC$253,23,FALSE) -> 17.40 | L12: =VLOOKUP($C12,'RECAP SECT'!$G$6:$DC$253,24,FALSE) -> 33% | M12: =VLOOKUP($C12,'RECAP SECT'!$G$6:$DC$253,25,FALSE) -> 17 | N12: =VLOOKUP($C12,'RECAP SECT'!$G$6:$DC$253,26,FALSE) -> 191 | O12: =VLOOKUP($C12,'RECAP SECT'!$G$6:$DC$253,27,FALSE) -> 2.68 | P12: =VLOOKUP($C12,'RECAP SECT'!$G$6:$DC$253,28,FALSE) -> 71% | Q12: =VLOOKUP($C12,'RECAP SECT'!$G$6:$DC$253,29,FALSE) -> 14 | R12: =VLOOKUP($C12,'RECAP SECT'!$G$6:$DC$253,30,FALSE) -> -82.5 | S12: =VLOOKUP($C12,'RECAP SECT'!$G$6:$DC$253,31,FALSE) -> -1.16 | T12: =VLOOKUP($C12,'RECAP SECT'!$G$6:$DC$253,32,FALSE) -> 28% | U12: =VLOOKUP($C12,'RECAP SECT'!$G$6:$DC$253,33,FALSE) -> 12 | V12: =VLOOKUP($C12,'RECAP SECT'!$G$6:$DC$253,34,FALSE) -> 28% | W12: =VLOOKUP($C12,'RECAP SECT'!$G$6:$DC$253,35,FALSE) -> 17% | X12: =VLOOKUP($C12,'RECAP SECT'!$G$6:$DC$253,36,FALSE) -> 8
A13: 262 | B13: BAS-RHIN | C13: 5101 | D13: SELESTAT | E13: =VLOOKUP($C13,'RECAP SECT'!$G$6:$DC$253,3,FALSE) -> 61.1 | F13: =VLOOKUP($C13,'RECAP SECT'!$G$6:$DC$253,18,FALSE) -> 2,952 | G13: =VLOOKUP($C13,'RECAP SECT'!$G$6:$DC$253,19,FALSE) -> 48.33 | H13: =VLOOKUP($C13,'RECAP SECT'!$G$6:$DC$253,20,FALSE) -> 0% | I13: =VLOOKUP($C13,'RECAP SECT'!$G$6:$DC$253,21,FALSE) -> 1 | J13: =VLOOKUP($C13,'RECAP SECT'!$G$6:$DC$253,22,FALSE) -> 1,114 | K13: =VLOOKUP($C13,'RECAP SECT'!$G$6:$DC$253,23,FALSE) -> 18.24 | L13: =VLOOKUP($C13,'RECAP SECT'!$G$6:$DC$253,24,FALSE) -> 30% | M13: =VLOOKUP($C13,'RECAP SECT'!$G$6:$DC$253,25,FALSE) -> 14 | N13: =VLOOKUP($C13,'RECAP SECT'!$G$6:$DC$253,26,FALSE) -> 194 | O13: =VLOOKUP($C13,'RECAP SECT'!$G$6:$DC$253,27,FALSE) -> 3.18 | P13: =VLOOKUP($C13,'RECAP SECT'!$G$6:$DC$253,28,FALSE) -> 66% | Q13: =VLOOKUP($C13,'RECAP SECT'!$G$6:$DC$253,29,FALSE) -> 12 | R13: =VLOOKUP($C13,'RECAP SECT'!$G$6:$DC$253,30,FALSE) -> -75.5 | S13: =VLOOKUP($C13,'RECAP SECT'!$G$6:$DC$253,31,FALSE) -> -1.24 | T13: =VLOOKUP($C13,'RECAP SECT'!$G$6:$DC$253,32,FALSE) -> 37% | U13: =VLOOKUP($C13,'RECAP SECT'!$G$6:$DC$253,33,FALSE) -> 14 | V13: =VLOOKUP($C13,'RECAP SECT'!$G$6:$DC$253,34,FALSE) -> 21% | W13: =VLOOKUP($C13,'RECAP SECT'!$G$6:$DC$253,35,FALSE) -> 10% | X13: =VLOOKUP($C13,'RECAP SECT'!$G$6:$DC$253,36,FALSE) -> 5
A14: 262 | B14: BAS-RHIN | C14: 5006 | D14: STRASBOURG | E14: =VLOOKUP($C14,'RECAP SECT'!$G$6:$DC$253,3,FALSE) -> 77.2 | F14: =VLOOKUP($C14,'RECAP SECT'!$G$6:$DC$253,18,FALSE) -> 3,590 | G14: =VLOOKUP($C14,'RECAP SECT'!$G$6:$DC$253,19,FALSE) -> 46.50 | H14: =VLOOKUP($C14,'RECAP SECT'!$G$6:$DC$253,20,FALSE) -> 4% | I14: =VLOOKUP($C14,'RECAP SECT'!$G$6:$DC$253,21,FALSE) -> 2 | J14: =VLOOKUP($C14,'RECAP SECT'!$G$6:$DC$253,22,FALSE) -> 1,888 | K14: =VLOOKUP($C14,'RECAP SECT'!$G$6:$DC$253,23,FALSE) -> 24.46 | L14: =VLOOKUP($C14,'RECAP SECT'!$G$6:$DC$253,24,FALSE) -> 6% | M14: =VLOOKUP($C14,'RECAP SECT'!$G$6:$DC$253,25,FALSE) -> 2 | N14: =VLOOKUP($C14,'RECAP SECT'!$G$6:$DC$253,26,FALSE) -> 409 | O14: =VLOOKUP($C14,'RECAP SECT'!$G$6:$DC$253,27,FALSE) -> 5.30 | P14: =VLOOKUP($C14,'RECAP SECT'!$G$6:$DC$253,28,FALSE) -> 43% | Q14: =VLOOKUP($C14,'RECAP SECT'!$G$6:$DC$253,29,FALSE) -> 6 | R14: =VLOOKUP($C14,'RECAP SECT'!$G$6:$DC$253,30,FALSE) -> -108.3 | S14: =VLOOKUP($C14,'RECAP SECT'!$G$6:$DC$253,31,FALSE) -> -1.40 | T14: =VLOOKUP($C14,'RECAP SECT'!$G$6:$DC$253,32,FALSE) -> 55% | U14: =VLOOKUP($C14,'RECAP SECT'!$G$6:$DC$253,33,FALSE) -> 18 | V14: =VLOOKUP($C14,'RECAP SECT'!$G$6:$DC$253,34,FALSE) -> 18% | W14: =VLOOKUP($C14,'RECAP SECT'!$G$6:$DC$253,35,FALSE) -> 7% | X14: =VLOOKUP($C14,'RECAP SECT'!$G$6:$DC$253,36,FALSE) -> 3
A15: 264 | B15: HAUT-RHIN | C15: 5130 | D15: COLMAR | E15: =VLOOKUP($C15,'RECAP SECT'!$G$6:$DC$253,3,FALSE) -> 61.8 | F15: =VLOOKUP($C15,'RECAP SECT'!$G$6:$DC$253,18,FALSE) -> 1,599 | G15: =VLOOKUP($C15,'RECAP SECT'!$G$6:$DC$253,19,FALSE) -> 25.85 | H15: =VLOOKUP($C15,'RECAP SECT'!$G$6:$DC$253,20,FALSE) -> 47% | I15: =VLOOKUP($C15,'RECAP SECT'!$G$6:$DC$253,21,FALSE) -> 14 | J15: =VLOOKUP($C15,'RECAP SECT'!$G$6:$DC$253,22,FALSE) -> 1,091 | K15: =VLOOKUP($C15,'RECAP SECT'!$G$6:$DC$253,23,FALSE) -> 17.64 | L15: =VLOOKUP($C15,'RECAP SECT'!$G$6:$DC$253,24,FALSE) -> 32% | M15: =VLOOKUP($C15,'RECAP SECT'!$G$6:$DC$253,25,FALSE) -> 16 | N15: =VLOOKUP($C15,'RECAP SECT'!$G$6:$DC$253,26,FALSE) -> 117 | O15: =VLOOKUP($C15,'RECAP SECT'!$G$6:$DC$253,27,FALSE) -> 1.89 | P15: =VLOOKUP($C15,'RECAP SECT'!$G$6:$DC$253,28,FALSE) -> 80% | Q15: =VLOOKUP($C15,'RECAP SECT'!$G$6:$DC$253,29,FALSE) -> 17 | R15: =VLOOKUP($C15,'RECAP SECT'!$G$6:$DC$253,30,FALSE) -> -67.1 | S15: =VLOOKUP($C15,'RECAP SECT'!$G$6:$DC$253,31,FALSE) -> -1.09 | T15: =VLOOKUP($C15,'RECAP SECT'!$G$6:$DC$253,32,FALSE) -> 20% | U15: =VLOOKUP($C15,'RECAP SECT'!$G$6:$DC$253,33,FALSE) -> 7 | V15: =VLOOKUP($C15,'RECAP SECT'!$G$6:$DC$253,34,FALSE) -> 45% | W15: =VLOOKUP($C15,'RECAP SECT'!$G$6:$DC$253,35,FALSE) -> 34% | X15: =VLOOKUP($C15,'RECAP SECT'!$G$6:$DC$253,36,FALSE) -> 17
A16: 264 | B16: HAUT-RHIN | C16: 5169 | D16: MULHOUSE | E16: =VLOOKUP($C16,'RECAP SECT'!$G$6:$DC$253,3,FALSE) -> 60.8 | F16: =VLOOKUP($C16,'RECAP SECT'!$G$6:$DC$253,18,FALSE) -> 515 | G16: =VLOOKUP($C16,'RECAP SECT'!$G$6:$DC$253,19,FALSE) -> 8.47 | H16: =VLOOKUP($C16,'RECAP SECT'!$G$6:$DC$253,20,FALSE) -> 82% | I16: =VLOOKUP($C16,'RECAP SECT'!$G$6:$DC$253,21,FALSE) -> 18 | J16: =VLOOKUP($C16,'RECAP SECT'!$G$6:$DC$253,22,FALSE) -> 1,019 | K16: =VLOOKUP($C16,'RECAP SECT'!$G$6:$DC$253,23,FALSE) -> 16.76 | L16: =VLOOKUP($C16,'RECAP SECT'!$G$6:$DC$253,24,FALSE) -> 36% | M16: =VLOOKUP($C16,'RECAP SECT'!$G$6:$DC$253,25,FALSE) -> 18 | N16: =VLOOKUP($C16,'RECAP SECT'!$G$6:$DC$253,26,FALSE) -> 113 | O16: =VLOOKUP($C16,'RECAP SECT'!$G$6:$DC$253,27,FALSE) -> 1.86 | P16: =VLOOKUP($C16,'RECAP SECT'!$G$6:$DC$253,28,FALSE) -> 80% | Q16: =VLOOKUP($C16,'RECAP SECT'!$G$6:$DC$253,29,FALSE) -> 18 | R16: =VLOOKUP($C16,'RECAP SECT'!$G$6:$DC$253,30,FALSE) -> -76.4 | S16: =VLOOKUP($C16,'RECAP SECT'!$G$6:$DC$253,31,FALSE) -> -1.26 | T16: =VLOOKUP($C16,'RECAP SECT'!$G$6:$DC$253,32,FALSE) -> 39% | U16: =VLOOKUP($C16,'RECAP SECT'!$G$6:$DC$253,33,FALSE) -> 15 | V16: =VLOOKUP($C16,'RECAP SECT'!$G$6:$DC$253,34,FALSE) -> 66% | W16: =VLOOKUP($C16,'RECAP SECT'!$G$6:$DC$253,35,FALSE) -> 55% | X16: =VLOOKUP($C16,'RECAP SECT'!$G$6:$DC$253,36,FALSE) -> 18
A17: 30 | B17: MARNE-ARDENNES | C17: 6 | D17: CHALONS EN CHAMPAGNE | E17: =VLOOKUP($C17,'RECAP SECT'!$G$6:$DC$253,3,FALSE) -> 44.4 | F17: =VLOOKUP($C17,'RECAP SECT'!$G$6:$DC$253,18,FALSE) -> 1,219 | G17: =VLOOKUP($C17,'RECAP SECT'!$G$6:$DC$253,19,FALSE) -> 27.45 | H17: =VLOOKUP($C17,'RECAP SECT'!$G$6:$DC$253,20,FALSE) -> 43% | I17: =VLOOKUP($C17,'RECAP SECT'!$G$6:$DC$253,21,FALSE) -> 11 | J17: =VLOOKUP($C17,'RECAP SECT'!$G$6:$DC$253,22,FALSE) -> 900 | K17: =VLOOKUP($C17,'RECAP SECT'!$G$6:$DC$253,23,FALSE) -> 20.26 | L17: =VLOOKUP($C17,'RECAP SECT'!$G$6:$DC$253,24,FALSE) -> 22% | M17: =VLOOKUP($C17,'RECAP SECT'!$G$6:$DC$253,25,FALSE) -> 8 | N17: =VLOOKUP($C17,'RECAP SECT'!$G$6:$DC$253,26,FALSE) -> 303 | O17: =VLOOKUP($C17,'RECAP SECT'!$G$6:$DC$253,27,FALSE) -> 6.82 | P17: =VLOOKUP($C17,'RECAP SECT'!$G$6:$DC$253,28,FALSE) -> 27% | Q17: =VLOOKUP($C17,'RECAP SECT'!$G$6:$DC$253,29,FALSE) -> 3 | R17: =VLOOKUP($C17,'RECAP SECT'!$G$6:$DC$253,30,FALSE) -> -50.8 | S17: =VLOOKUP($C17,'RECAP SECT'!$G$6:$DC$253,31,FALSE) -> -1.14 | T17: =VLOOKUP($C17,'RECAP SECT'!$G$6:$DC$253,32,FALSE) -> 26% | U17: =VLOOKUP($C17,'RECAP SECT'!$G$6:$DC$253,33,FALSE) -> 10 | V17: =VLOOKUP($C17,'RECAP SECT'!$G$6:$DC$253,34,FALSE) -> 34% | W17: =VLOOKUP($C17,'RECAP SECT'!$G$6:$DC$253,35,FALSE) -> 23% | X17: =VLOOKUP($C17,'RECAP SECT'!$G$6:$DC$253,36,FALSE) -> 11
A18: 30 | B18: MARNE-ARDENNES | C18: 2 | D18: CHARLEVILLE MEZIERES | E18: =VLOOKUP($C18,'RECAP SECT'!$G$6:$DC$253,3,FALSE) -> 55.8 | F18: =VLOOKUP($C18,'RECAP SECT'!$G$6:$DC$253,18,FALSE) -> 1,212 | G18: =VLOOKUP($C18,'RECAP SECT'!$G$6:$DC$253,19,FALSE) -> 21.71 | H18: =VLOOKUP($C18,'RECAP SECT'!$G$6:$DC$253,20,FALSE) -> 55% | I18: =VLOOKUP($C18,'RECAP SECT'!$G$6:$DC$253,21,FALSE) -> 17 | J18: =VLOOKUP($C18,'RECAP SECT'!$G$6:$DC$253,22,FALSE) -> 1,277 | K18: =VLOOKUP($C18,'RECAP SECT'!$G$6:$DC$253,23,FALSE) -> 22.89 | L18: =VLOOKUP($C18,'RECAP SECT'!$G$6:$DC$253,24,FALSE) -> 12% | M18: =VLOOKUP($C18,'RECAP SECT'!$G$6:$DC$253,25,FALSE) -> 4 | N18: =VLOOKUP($C18,'RECAP SECT'!$G$6:$DC$253,26,FALSE) -> 353 | O18: =VLOOKUP($C18,'RECAP SECT'!$G$6:$DC$253,27,FALSE) -> 6.33 | P18: =VLOOKUP($C18,'RECAP SECT'!$G$6:$DC$253,28,FALSE) -> 33% | Q18: =VLOOKUP($C18,'RECAP SECT'!$G$6:$DC$253,29,FALSE) -> 5 | R18: =VLOOKUP($C18,'RECAP SECT'!$G$6:$DC$253,30,FALSE) -> -52.2 | S18: =VLOOKUP($C18,'RECAP SECT'!$G$6:$DC$253,31,FALSE) -> -0.94 | T18: =VLOOKUP($C18,'RECAP SECT'!$G$6:$DC$253,32,FALSE) -> 3% | U18: =VLOOKUP($C18,'RECAP SECT'!$G$6:$DC$253,33,FALSE) -> 2 | V18: =VLOOKUP($C18,'RECAP SECT'!$G$6:$DC$253,34,FALSE) -> 35% | W18: =VLOOKUP($C18,'RECAP SECT'!$G$6:$DC$253,35,FALSE) -> 24% | X18: =VLOOKUP($C18,'RECAP SECT'!$G$6:$DC$253,36,FALSE) -> 12
A19: 30 | B19: MARNE-ARDENNES | C19: 11 | D19: REIMS | E19: =VLOOKUP($C19,'RECAP SECT'!$G$6:$DC$253,3,FALSE) -> 81.4 | F19: =VLOOKUP($C19,'RECAP SECT'!$G$6:$DC$253,18,FALSE) -> 2,297 | G19: =VLOOKUP($C19,'RECAP SECT'!$G$6:$DC$253,19,FALSE) -> 28.22 | H19: =VLOOKUP($C19,'RECAP SECT'!$G$6:$DC$253,20,FALSE) -> 42% | I19: =VLOOKUP($C19,'RECAP SECT'!$G$6:$DC$253,21,FALSE) -> 10 | J19: =VLOOKUP($C19,'RECAP SECT'!$G$6:$DC$253,22,FALSE) -> 1,831 | K19: =VLOOKUP($C19,'RECAP SECT'!$G$6:$DC$253,23,FALSE) -> 22.50 | L19: =VLOOKUP($C19,'RECAP SECT'!$G$6:$DC$253,24,FALSE) -> 13% | M19: =VLOOKUP($C19,'RECAP SECT'!$G$6:$DC$253,25,FALSE) -> 5 | N19: =VLOOKUP($C19,'RECAP SECT'!$G$6:$DC$253,26,FALSE) -> 595 | O19: =VLOOKUP($C19,'RECAP SECT'!$G$6:$DC$253,27,FALSE) -> 7.31 | P19: =VLOOKUP($C19,'RECAP SECT'!$G$6:$DC$253,28,FALSE) -> 22% | Q19: =VLOOKUP($C19,'RECAP SECT'!$G$6:$DC$253,29,FALSE) -> 2 | R19: =VLOOKUP($C19,'RECAP SECT'!$G$6:$DC$253,30,FALSE) -> -108.2 | S19: =VLOOKUP($C19,'RECAP SECT'!$G$6:$DC$253,31,FALSE) -> -1.33 | T19: =VLOOKUP($C19,'RECAP SECT'!$G$6:$DC$253,32,FALSE) -> 47% | U19: =VLOOKUP($C19,'RECAP SECT'!$G$6:$DC$253,33,FALSE) -> 17 | V19: =VLOOKUP($C19,'RECAP SECT'!$G$6:$DC$253,34,FALSE) -> 34% | W19: =VLOOKUP($C19,'RECAP SECT'!$G$6:$DC$253,35,FALSE) -> 23% | X19: =VLOOKUP($C19,'RECAP SECT'!$G$6:$DC$253,36,FALSE) -> 10
A20: 110 | B20: MEURTHE ET MOSELLE MEUSE | C20: 26 | D20: NANCY | E20: =VLOOKUP($C20,'RECAP SECT'!$G$6:$DC$253,3,FALSE) -> 67.2 | F20: =VLOOKUP($C20,'RECAP SECT'!$G$6:$DC$253,18,FALSE) -> 2,864 | G20: =VLOOKUP($C20,'RECAP SECT'!$G$6:$DC$253,19,FALSE) -> 42.62 | H20: =VLOOKUP($C20,'RECAP SECT'!$G$6:$DC$253,20,FALSE) -> 12% | I20: =VLOOKUP($C20,'RECAP SECT'!$G$6:$DC$253,21,FALSE) -> 4 | J20: =VLOOKUP($C20,'RECAP SECT'!$G$6:$DC$253,22,FALSE) -> 1,747 | K20: =VLOOKUP($C20,'RECAP SECT'!$G$6:$DC$253,23,FALSE) -> 26.00 | L20: =VLOOKUP($C20,'RECAP SECT'!$G$6:$DC$253,24,FALSE) -> 0% | M20: =VLOOKUP($C20,'RECAP SECT'!$G$6:$DC$253,25,FALSE) -> 1 | N20: =VLOOKUP($C20,'RECAP SECT'!$G$6:$DC$253,26,FALSE) -> 630 | O20: =VLOOKUP($C20,'RECAP SECT'!$G$6:$DC$253,27,FALSE) -> 9.38 | P20: =VLOOKUP($C20,'RECAP SECT'!$G$6:$DC$253,28,FALSE) -> 0% | Q20: =VLOOKUP($C20,'RECAP SECT'!$G$6:$DC$253,29,FALSE) -> 1 | R20: =VLOOKUP($C20,'RECAP SECT'!$G$6:$DC$253,30,FALSE) -> -81.9 | S20: =VLOOKUP($C20,'RECAP SECT'!$G$6:$DC$253,31,FALSE) -> -1.22 | T20: =VLOOKUP($C20,'RECAP SECT'!$G$6:$DC$253,32,FALSE) -> 35% | U20: =VLOOKUP($C20,'RECAP SECT'!$G$6:$DC$253,33,FALSE) -> 13 | V20: =VLOOKUP($C20,'RECAP SECT'!$G$6:$DC$253,34,FALSE) -> 11% | W20: =VLOOKUP($C20,'RECAP SECT'!$G$6:$DC$253,35,FALSE) -> 0% | X20: =VLOOKUP($C20,'RECAP SECT'!$G$6:$DC$253,36,FALSE) -> 1
A21: 110 | B21: MEURTHE ET MOSELLE MEUSE | C21: 27 | D21: PONT A MOUSSON | E21: =VLOOKUP($C21,'RECAP SECT'!$G$6:$DC$253,3,FALSE) -> 76.6 | F21: =VLOOKUP($C21,'RECAP SECT'!$G$6:$DC$253,18,FALSE) -> 3,480 | G21: =VLOOKUP($C21,'RECAP SECT'!$G$6:$DC$253,19,FALSE) -> 45.41 | H21: =VLOOKUP($C21,'RECAP SECT'!$G$6:$DC$253,20,FALSE) -> 6% | I21: =VLOOKUP($C21,'RECAP SECT'!$G$6:$DC$253,21,FALSE) -> 3 | J21: =VLOOKUP($C21,'RECAP SECT'!$G$6:$DC$253,22,FALSE) -> 1,843 | K21: =VLOOKUP($C21,'RECAP SECT'!$G$6:$DC$253,23,FALSE) -> 24.05 | L21: =VLOOKUP($C21,'RECAP SECT'!$G$6:$DC$253,24,FALSE) -> 7% | M21: =VLOOKUP($C21,'RECAP SECT'!$G$6:$DC$253,25,FALSE) -> 3 | N21: =VLOOKUP($C21,'RECAP SECT'!$G$6:$DC$253,26,FALSE) -> 522 | O21: =VLOOKUP($C21,'RECAP SECT'!$G$6:$DC$253,27,FALSE) -> 6.81 | P21: =VLOOKUP($C21,'RECAP SECT'!$G$6:$DC$253,28,FALSE) -> 27% | Q21: =VLOOKUP($C21,'RECAP SECT'!$G$6:$DC$253,29,FALSE) -> 4 | R21: =VLOOKUP($C21,'RECAP SECT'!$G$6:$DC$253,30,FALSE) -> -88.4 | S21: =VLOOKUP($C21,'RECAP SECT'!$G$6:$DC$253,31,FALSE) -> -1.15 | T21: =VLOOKUP($C21,'RECAP SECT'!$G$6:$DC$253,32,FALSE) -> 27% | U21: =VLOOKUP($C21,'RECAP SECT'!$G$6:$DC$253,33,FALSE) -> 11 | V21: =VLOOKUP($C21,'RECAP SECT'!$G$6:$DC$253,34,FALSE) -> 13% | W21: =VLOOKUP($C21,'RECAP SECT'!$G$6:$DC$253,35,FALSE) -> 2% | X21: =VLOOKUP($C21,'RECAP SECT'!$G$6:$DC$253,36,FALSE) -> 2
A22: 110 | B22: MEURTHE ET MOSELLE MEUSE | C22: 31 | D22: VERDUN | E22: =VLOOKUP($C22,'RECAP SECT'!$G$6:$DC$253,3,FALSE) -> 55.6 | F22: =VLOOKUP($C22,'RECAP SECT'!$G$6:$DC$253,18,FALSE) -> 2,308 | G22: =VLOOKUP($C22,'RECAP SECT'!$G$6:$DC$253,19,FALSE) -> 41.55 | H22: =VLOOKUP($C22,'RECAP SECT'!$G$6:$DC$253,20,FALSE) -> 14% | I22: =VLOOKUP($C22,'RECAP SECT'!$G$6:$DC$253,21,FALSE) -> 6 | J22: =VLOOKUP($C22,'RECAP SECT'!$G$6:$DC$253,22,FALSE) -> 1,161 | K22: =VLOOKUP($C22,'RECAP SECT'!$G$6:$DC$253,23,FALSE) -> 20.90 | L22: =VLOOKUP($C22,'RECAP SECT'!$G$6:$DC$253,24,FALSE) -> 20% | M22: =VLOOKUP($C22,'RECAP SECT'!$G$6:$DC$253,25,FALSE) -> 6 | N22: =VLOOKUP($C22,'RECAP SECT'!$G$6:$DC$253,26,FALSE) -> 255 | O22: =VLOOKUP($C22,'RECAP SECT'!$G$6:$DC$253,27,FALSE) -> 4.59 | P22: =VLOOKUP($C22,'RECAP SECT'!$G$6:$DC$253,28,FALSE) -> 51% | Q22: =VLOOKUP($C22,'RECAP SECT'!$G$6:$DC$253,29,FALSE) -> 7 | R22: =VLOOKUP($C22,'RECAP SECT'!$G$6:$DC$253,30,FALSE) -> -53.4 | S22: =VLOOKUP($C22,'RECAP SECT'!$G$6:$DC$253,31,FALSE) -> -0.96 | T22: =VLOOKUP($C22,'RECAP SECT'!$G$6:$DC$253,32,FALSE) -> 6% | U22: =VLOOKUP($C22,'RECAP SECT'!$G$6:$DC$253,33,FALSE) -> 3 | V22: =VLOOKUP($C22,'RECAP SECT'!$G$6:$DC$253,34,FALSE) -> 20% | W22: =VLOOKUP($C22,'RECAP SECT'!$G$6:$DC$253,35,FALSE) -> 8% | X22: =VLOOKUP($C22,'RECAP SECT'!$G$6:$DC$253,36,FALSE) -> 4
A23: 160 | B23: MOSELLE | C23: 45 | D23: METZ | E23: =VLOOKUP($C23,'RECAP SECT'!$G$6:$DC$253,3,FALSE) -> 90.5 | F23: =VLOOKUP($C23,'RECAP SECT'!$G$6:$DC$253,18,FALSE) -> 3,263 | G23: =VLOOKUP($C23,'RECAP SECT'!$G$6:$DC$253,19,FALSE) -> 36.04 | H23: =VLOOKUP($C23,'RECAP SECT'!$G$6:$DC$253,20,FALSE) -> 25% | I23: =VLOOKUP($C23,'RECAP SECT'!$G$6:$DC$253,21,FALSE) -> 9 | J23: =VLOOKUP($C23,'RECAP SECT'!$G$6:$DC$253,22,FALSE) -> 1,712 | K23: =VLOOKUP($C23,'RECAP SECT'!$G$6:$DC$253,23,FALSE) -> 18.91 | L23: =VLOOKUP($C23,'RECAP SECT'!$G$6:$DC$253,24,FALSE) -> 27% | M23: =VLOOKUP($C23,'RECAP SECT'!$G$6:$DC$253,25,FALSE) -> 13 | N23: =VLOOKUP($C23,'RECAP SECT'!$G$6:$DC$253,26,FALSE) -> 290 | O23: =VLOOKUP($C23,'RECAP SECT'!$G$6:$DC$253,27,FALSE) -> 3.20 | P23: =VLOOKUP($C23,'RECAP SECT'!$G$6:$DC$253,28,FALSE) -> 66% | Q23: =VLOOKUP($C23,'RECAP SECT'!$G$6:$DC$253,29,FALSE) -> 11 | R23: =VLOOKUP($C23,'RECAP SECT'!$G$6:$DC$253,30,FALSE) -> -100.4 | S23: =VLOOKUP($C23,'RECAP SECT'!$G$6:$DC$253,31,FALSE) -> -1.11 | T23: =VLOOKUP($C23,'RECAP SECT'!$G$6:$DC$253,32,FALSE) -> 23% | U23: =VLOOKUP($C23,'RECAP SECT'!$G$6:$DC$253,33,FALSE) -> 8 | V23: =VLOOKUP($C23,'RECAP SECT'!$G$6:$DC$253,34,FALSE) -> 31% | W23: =VLOOKUP($C23,'RECAP SECT'!$G$6:$DC$253,35,FALSE) -> 20% | X23: =VLOOKUP($C23,'RECAP SECT'!$G$6:$DC$253,36,FALSE) -> 9
A24: 160 | B24: MOSELLE | C24: 42 | D24: MOSELLE EST | E24: =VLOOKUP($C24,'RECAP SECT'!$G$6:$DC$253,3,FALSE) -> 70.1 | F24: =VLOOKUP($C24,'RECAP SECT'!$G$6:$DC$253,18,FALSE) -> 2,729 | G24: =VLOOKUP($C24,'RECAP SECT'!$G$6:$DC$253,19,FALSE) -> 38.92 | H24: =VLOOKUP($C24,'RECAP SECT'!$G$6:$DC$253,20,FALSE) -> 19% | I24: =VLOOKUP($C24,'RECAP SECT'!$G$6:$DC$253,21,FALSE) -> 8 | J24: =VLOOKUP($C24,'RECAP SECT'!$G$6:$DC$253,22,FALSE) -> 1,346 | K24: =VLOOKUP($C24,'RECAP SECT'!$G$6:$DC$253,23,FALSE) -> 19.20 | L24: =VLOOKUP($C24,'RECAP SECT'!$G$6:$DC$253,24,FALSE) -> 26% | M24: =VLOOKUP($C24,'RECAP SECT'!$G$6:$DC$253,25,FALSE) -> 12 | N24: =VLOOKUP($C24,'RECAP SECT'!$G$6:$DC$253,26,FALSE) -> 222 | O24: =VLOOKUP($C24,'RECAP SECT'!$G$6:$DC$253,27,FALSE) -> 3.17 | P24: =VLOOKUP($C24,'RECAP SECT'!$G$6:$DC$253,28,FALSE) -> 66% | Q24: =VLOOKUP($C24,'RECAP SECT'!$G$6:$DC$253,29,FALSE) -> 13 | R24: =VLOOKUP($C24,'RECAP SECT'!$G$6:$DC$253,30,FALSE) -> -70.2 | S24: =VLOOKUP($C24,'RECAP SECT'!$G$6:$DC$253,31,FALSE) -> -1.00 | T24: =VLOOKUP($C24,'RECAP SECT'!$G$6:$DC$253,32,FALSE) -> 11% | U24: =VLOOKUP($C24,'RECAP SECT'!$G$6:$DC$253,33,FALSE) -> 4 | V24: =VLOOKUP($C24,'RECAP SECT'!$G$6:$DC$253,34,FALSE) -> 26% | W24: =VLOOKUP($C24,'RECAP SECT'!$G$6:$DC$253,35,FALSE) -> 15% | X24: =VLOOKUP($C24,'RECAP SECT'!$G$6:$DC$253,36,FALSE) -> 7
A25: 160 | B25: MOSELLE | C25: 44 | D25: MOSELLE NORD | E25: =VLOOKUP($C25,'RECAP SECT'!$G$6:$DC$253,3,FALSE) -> 67.1 | F25: =VLOOKUP($C25,'RECAP SECT'!$G$6:$DC$253,18,FALSE) -> 2,733 | G25: =VLOOKUP($C25,'RECAP SECT'!$G$6:$DC$253,19,FALSE) -> 40.71 | H25: =VLOOKUP($C25,'RECAP SECT'!$G$6:$DC$253,20,FALSE) -> 16% | I25: =VLOOKUP($C25,'RECAP SECT'!$G$6:$DC$253,21,FALSE) -> 7 | J25: =VLOOKUP($C25,'RECAP SECT'!$G$6:$DC$253,22,FALSE) -> 1,292 | K25: =VLOOKUP($C25,'RECAP SECT'!$G$6:$DC$253,23,FALSE) -> 19.25 | L25: =VLOOKUP($C25,'RECAP SECT'!$G$6:$DC$253,24,FALSE) -> 26% | M25: =VLOOKUP($C25,'RECAP SECT'!$G$6:$DC$253,25,FALSE) -> 11 | N25: =VLOOKUP($C25,'RECAP SECT'!$G$6:$DC$253,26,FALSE) -> 163 | O25: =VLOOKUP($C25,'RECAP SECT'!$G$6:$DC$253,27,FALSE) -> 2.43 | P25: =VLOOKUP($C25,'RECAP SECT'!$G$6:$DC$253,28,FALSE) -> 74% | Q25: =VLOOKUP($C25,'RECAP SECT'!$G$6:$DC$253,29,FALSE) -> 16 | R25: =VLOOKUP($C25,'RECAP SECT'!$G$6:$DC$253,30,FALSE) -> -60.7 | S25: =VLOOKUP($C25,'RECAP SECT'!$G$6:$DC$253,31,FALSE) -> -0.90 | T25: =VLOOKUP($C25,'RECAP SECT'!$G$6:$DC$253,32,FALSE) -> 0% | U25: =VLOOKUP($C25,'RECAP SECT'!$G$6:$DC$253,33,FALSE) -> 1 | V25: =VLOOKUP($C25,'RECAP SECT'!$G$6:$DC$253,34,FALSE) -> 24% | W25: =VLOOKUP($C25,'RECAP SECT'!$G$6:$DC$253,35,FALSE) -> 13% | X25: =VLOOKUP($C25,'RECAP SECT'!$G$6:$DC$253,36,FALSE) -> 6
A26: 80 | B26: VOSGES | C26: 57 | D26: EPINAL | E26: =VLOOKUP($C26,'RECAP SECT'!$G$6:$DC$253,3,FALSE) -> 61.3 | F26: =VLOOKUP($C26,'RECAP SECT'!$G$6:$DC$253,18,FALSE) -> 1,522 | G26: =VLOOKUP($C26,'RECAP SECT'!$G$6:$DC$253,19,FALSE) -> 24.84 | H26: =VLOOKUP($C26,'RECAP SECT'!$G$6:$DC$253,20,FALSE) -> 49% | I26: =VLOOKUP($C26,'RECAP SECT'!$G$6:$DC$253,21,FALSE) -> 15 | J26: =VLOOKUP($C26,'RECAP SECT'!$G$6:$DC$253,22,FALSE) -> 1,213 | K26: =VLOOKUP($C26,'RECAP SECT'!$G$6:$DC$253,23,FALSE) -> 19.80 | L26: =VLOOKUP($C26,'RECAP SECT'!$G$6:$DC$253,24,FALSE) -> 24% | M26: =VLOOKUP($C26,'RECAP SECT'!$G$6:$DC$253,25,FALSE) -> 9 | N26: =VLOOKUP($C26,'RECAP SECT'!$G$6:$DC$253,26,FALSE) -> 239 | O26: =VLOOKUP($C26,'RECAP SECT'!$G$6:$DC$253,27,FALSE) -> 3.90 | P26: =VLOOKUP($C26,'RECAP SECT'!$G$6:$DC$253,28,FALSE) -> 58% | Q26: =VLOOKUP($C26,'RECAP SECT'!$G$6:$DC$253,29,FALSE) -> 8 | R26: =VLOOKUP($C26,'RECAP SECT'!$G$6:$DC$253,30,FALSE) -> -77.2 | S26: =VLOOKUP($C26,'RECAP SECT'!$G$6:$DC$253,31,FALSE) -> -1.26 | T26: =VLOOKUP($C26,'RECAP SECT'!$G$6:$DC$253,32,FALSE) -> 39% | U26: =VLOOKUP($C26,'RECAP SECT'!$G$6:$DC$253,33,FALSE) -> 16 | V26: =VLOOKUP($C26,'RECAP SECT'!$G$6:$DC$253,34,FALSE) -> 44% | W26: =VLOOKUP($C26,'RECAP SECT'!$G$6:$DC$253,35,FALSE) -> 33% | X26: =VLOOKUP($C26,'RECAP SECT'!$G$6:$DC$253,36,FALSE) -> 16
A27: 80 | B27: VOSGES | C27: 55 | D27: SAINT DIE | E27: =VLOOKUP($C27,'RECAP SECT'!$G$6:$DC$253,3,FALSE) -> 47.3 | F27: =VLOOKUP($C27,'RECAP SECT'!$G$6:$DC$253,18,FALSE) -> 1,262 | G27: =VLOOKUP($C27,'RECAP SECT'!$G$6:$DC$253,19,FALSE) -> 26.71 | H27: =VLOOKUP($C27,'RECAP SECT'!$G$6:$DC$253,20,FALSE) -> 45% | I27: =VLOOKUP($C27,'RECAP SECT'!$G$6:$DC$253,21,FALSE) -> 13 | J27: =VLOOKUP($C27,'RECAP SECT'!$G$6:$DC$253,22,FALSE) -> 853 | K27: =VLOOKUP($C27,'RECAP SECT'!$G$6:$DC$253,23,FALSE) -> 18.05 | L27: =VLOOKUP($C27,'RECAP SECT'!$G$6:$DC$253,24,FALSE) -> 31% | M27: =VLOOKUP($C27,'RECAP SECT'!$G$6:$DC$253,25,FALSE) -> 15 | N27: =VLOOKUP($C27,'RECAP SECT'!$G$6:$DC$253,26,FALSE) -> 123 | O27: =VLOOKUP($C27,'RECAP SECT'!$G$6:$DC$253,27,FALSE) -> 2.60 | P27: =VLOOKUP($C27,'RECAP SECT'!$G$6:$DC$253,28,FALSE) -> 72% | Q27: =VLOOKUP($C27,'RECAP SECT'!$G$6:$DC$253,29,FALSE) -> 15 | R27: =VLOOKUP($C27,'RECAP SECT'!$G$6:$DC$253,30,FALSE) -> -51.2 | S27: =VLOOKUP($C27,'RECAP SECT'!$G$6:$DC$253,31,FALSE) -> -1.08 | T27: =VLOOKUP($C27,'RECAP SECT'!$G$6:$DC$253,32,FALSE) -> 20% | U27: =VLOOKUP($C27,'RECAP SECT'!$G$6:$DC$253,33,FALSE) -> 6 | V27: =VLOOKUP($C27,'RECAP SECT'!$G$6:$DC$253,34,FALSE) -> 42% | W27: =VLOOKUP($C27,'RECAP SECT'!$G$6:$DC$253,35,FALSE) -> 31% | X27: =VLOOKUP($C27,'RECAP SECT'!$G$6:$DC$253,36,FALSE) -> 15
A28: Total CEGEE Directions Régionales | E28: =SUM(E10:E27) -> 1149

Sheet SE_EPARGNE
B1: Accueil | F1: BAROMETRE BDD - TERRITOIRES
F2: EPARGNE
F3: =ACCUEIL!F7 -> 2021-05-16
F7: Excédent Epargne y/c DAV pondéré | J7: Ventes sur client non détenteur de l’univers | N7: Total Epargne
F8: =DATEMAJ!C14 -> au 16/05 | H8: coef | I8: ='RECAP DIRCOM'!AX4 -> 14% | J8: =DATEMAJ!C15 -> au 16/05 | L8: coef | M8: ='RECAP DIRCOM'!BB4 -> 6% | O8: coef | P8: ='RECAP DIRCOM'!BE4 -> 20%
A9: eds | B9: Direction | C9: eds | D9: Territoire | E9: ="ETP perf "&DATEMAJ!$C$28 -> ETP perf 31-mars | F9: Excédent | G9: Excédent / ETP | H9: % Ecart au 1er | I9: Rang | J9: VB | K9: VB / ETP | L9: % Ecart au 1er | M9: Rang | N9: Moyenne ecart au 1er | O9: % Ecart au 1er | P9: Rang CEGEE
A10: 50 | B10: AUBE HAUTE MARNE | C10: 21 | D10: CHAUMONT | E10: =VLOOKUP($C10,'RECAP SECT'!$G$6:$DC$253,3,FALSE) -> 33.9 | F10: =VLOOKUP($C10,'RECAP SECT'!$G$6:$DC$253,41,FALSE) -> 7,042 | G10: =VLOOKUP($C10,'RECAP SECT'!$G$6:$DC$253,42,FALSE) -> 207.51 | H10: =VLOOKUP($C10,'RECAP SECT'!$G$6:$DC$253,43,FALSE) -> 48% | I10: =VLOOKUP($C10,'RECAP SECT'!$G$6:$DC$253,44,FALSE) -> 14 | J10: =VLOOKUP($C10,'RECAP SECT'!$G$6:$DC$253,45,FALSE) -> 372 | K10: =VLOOKUP($C10,'RECAP SECT'!$G$6:$DC$253,46,FALSE) -> 10.96 | L10: =VLOOKUP($C10,'RECAP SECT'!$G$6:$DC$253,47,FALSE) -> 31% | M10: =VLOOKUP($C10,'RECAP SECT'!$G$6:$DC$253,48,FALSE) -> 15 | N10: =VLOOKUP($C10,'RECAP SECT'!$G$6:$DC$253,49,FALSE) -> 43% | O10: =VLOOKUP($C10,'RECAP SECT'!$G$6:$DC$253,50,FALSE) -> 40% | P10: =VLOOKUP($C10,'RECAP SECT'!$G$6:$DC$253,51,FALSE) -> 15
A11: 50 | B11: AUBE HAUTE MARNE | C11: 14 | D11: TROYES | E11: =VLOOKUP($C11,'RECAP SECT'!$G$6:$DC$253,3,FALSE) -> 65.3 | F11: =VLOOKUP($C11,'RECAP SECT'!$G$6:$DC$253,41,FALSE) -> 8,861 | G11: =VLOOKUP($C11,'RECAP SECT'!$G$6:$DC$253,42,FALSE) -> 135.69 | H11: =VLOOKUP($C11,'RECAP SECT'!$G$6:$DC$253,43,FALSE) -> 66% | I11: =VLOOKUP($C11,'RECAP SECT'!$G$6:$DC$253,44,FALSE) -> 17 | J11: =VLOOKUP($C11,'RECAP SECT'!$G$6:$DC$253,45,FALSE) -> 738 | K11: =VLOOKUP($C11,'RECAP SECT'!$G$6:$DC$253,46,FALSE) -> 11.30 | L11: =VLOOKUP($C11,'RECAP SECT'!$G$6:$DC$253,47,FALSE) -> 28% | M11: =VLOOKUP($C11,'RECAP SECT'!$G$6:$DC$253,48,FALSE) -> 12 | N11: =VLOOKUP($C11,'RECAP SECT'!$G$6:$DC$253,49,FALSE) -> 55% | O11: =VLOOKUP($C11,'RECAP SECT'!$G$6:$DC$253,50,FALSE) -> 52% | P11: =VLOOKUP($C11,'RECAP SECT'!$G$6:$DC$253,51,FALSE) -> 17
A12: 262 | B12: BAS-RHIN | C12: 5060 | D12: HAGUENAU | E12: =VLOOKUP($C12,'RECAP SECT'!$G$6:$DC$253,3,FALSE) -> 71.2 | F12: =VLOOKUP($C12,'RECAP SECT'!$G$6:$DC$253,41,FALSE) -> 24,379 | G12: =VLOOKUP($C12,'RECAP SECT'!$G$6:$DC$253,42,FALSE) -> 342.55 | H12: =VLOOKUP($C12,'RECAP SECT'!$G$6:$DC$253,43,FALSE) -> 14% | I12: =VLOOKUP($C12,'RECAP SECT'!$G$6:$DC$253,44,FALSE) -> 6 | J12: =VLOOKUP($C12,'RECAP SECT'!$G$6:$DC$253,45,FALSE) -> 814 | K12: =VLOOKUP($C12,'RECAP SECT'!$G$6:$DC$253,46,FALSE) -> 11.44 | L12: =VLOOKUP($C12,'RECAP SECT'!$G$6:$DC$253,47,FALSE) -> 28% | M12: =VLOOKUP($C12,'RECAP SECT'!$G$6:$DC$253,48,FALSE) -> 10 | N12: =VLOOKUP($C12,'RECAP SECT'!$G$6:$DC$253,49,FALSE) -> 18% | O12: =VLOOKUP($C12,'RECAP SECT'!$G$6:$DC$253,50,FALSE) -> 15% | P12: =VLOOKUP($C12,'RECAP SECT'!$G$6:$DC$253,51,FALSE) -> 6
A13: 262 | B13: BAS-RHIN | C13: 5101 | D13: SELESTAT | E13: =VLOOKUP($C13,'RECAP SECT'!$G$6:$DC$253,3,FALSE) -> 61.1 | F13: =VLOOKUP($C13,'RECAP SECT'!$G$6:$DC$253,41,FALSE) -> 23,166 | G13: =VLOOKUP($C13,'RECAP SECT'!$G$6:$DC$253,42,FALSE) -> 379.31 | H13: =VLOOKUP($C13,'RECAP SECT'!$G$6:$DC$253,43,FALSE) -> 4% | I13: =VLOOKUP($C13,'RECAP SECT'!$G$6:$DC$253,44,FALSE) -> 4 | J13: =VLOOKUP($C13,'RECAP SECT'!$G$6:$DC$253,45,FALSE) -> 887 | K13: =VLOOKUP($C13,'RECAP SECT'!$G$6:$DC$253,46,FALSE) -> 14.52 | L13: =VLOOKUP($C13,'RECAP SECT'!$G$6:$DC$253,47,FALSE) -> 8% | M13: =VLOOKUP($C13,'RECAP SECT'!$G$6:$DC$253,48,FALSE) -> 3 | N13: =VLOOKUP($C13,'RECAP SECT'!$G$6:$DC$253,49,FALSE) -> 6% | O13: =VLOOKUP($C13,'RECAP SECT'!$G$6:$DC$253,50,FALSE) -> 3% | P13: =VLOOKUP($C13,'RECAP SECT'!$G$6:$DC$253,51,FALSE) -> 3
A14: 262 | B14: BAS-RHIN | C14: 5006 | D14: STRASBOURG | E14: =VLOOKUP($C14,'RECAP SECT'!$G$6:$DC$253,3,FALSE) -> 77.2 | F14: =VLOOKUP($C14,'RECAP SECT'!$G$6:$DC$253,41,FALSE) -> 30,640 | G14: =VLOOKUP($C14,'RECAP SECT'!$G$6:$DC$253,42,FALSE) -> 396.90 | H14: =VLOOKUP($C14,'RECAP SECT'!$G$6:$DC$253,43,FALSE) -> 0% | I14: =VLOOKUP($C14,'RECAP SECT'!$G$6:$DC$253,44,FALSE) -> 1 | J14: =VLOOKUP($C14,'RECAP SECT'!$G$6:$DC$253,45,FALSE) -> 1,103 | K14: =VLOOKUP($C14,'RECAP SECT'!$G$6:$DC$253,46,FALSE) -> 14.29 | L14: =VLOOKUP($C14,'RECAP SECT'!$G$6:$DC$253,47,FALSE) -> 10% | M14: =VLOOKUP($C14,'RECAP SECT'!$G$6:$DC$253,48,FALSE) -> 5 | N14: =VLOOKUP($C14,'RECAP SECT'!$G$6:$DC$253,49,FALSE) -> 3% | O14: =VLOOKUP($C14,'RECAP SECT'!$G$6:$DC$253,50,FALSE) -> 0% | P14: =VLOOKUP($C14,'RECAP SECT'!$G$6:$DC$253,51,FALSE) -> 1
A15: 264 | B15: HAUT-RHIN | C15: 5130 | D15: COLMAR | E15: =VLOOKUP($C15,'RECAP SECT'!$G$6:$DC$253,3,FALSE) -> 61.8 | F15: =VLOOKUP($C15,'RECAP SECT'!$G$6:$DC$253,41,FALSE) -> 12,515 | G15: =VLOOKUP($C15,'RECAP SECT'!$G$6:$DC$253,42,FALSE) -> 202.38 | H15: =VLOOKUP($C15,'RECAP SECT'!$G$6:$DC$253,43,FALSE) -> 49% | I15: =VLOOKUP($C15,'RECAP SECT'!$G$6:$DC$253,44,FALSE) -> 15 | J15: =VLOOKUP($C15,'RECAP SECT'!$G$6:$DC$253,45,FALSE) -> 572 | K15: =VLOOKUP($C15,'RECAP SECT'!$G$6:$DC$253,46,FALSE) -> 9.25 | L15: =VLOOKUP($C15,'RECAP SECT'!$G$6:$DC$253,47,FALSE) -> 41% | M15: =VLOOKUP($C15,'RECAP SECT'!$G$6:$DC$253,48,FALSE) -> 17 | N15: =VLOOKUP($C15,'RECAP SECT'!$G$6:$DC$253,49,FALSE) -> 47% | O15: =VLOOKUP($C15,'RECAP SECT'!$G$6:$DC$253,50,FALSE) -> 44% | P15: =VLOOKUP($C15,'RECAP SECT'!$G$6:$DC$253,51,FALSE) -> 16
A16: 264 | B16: HAUT-RHIN | C16: 5169 | D16: MULHOUSE | E16: =VLOOKUP($C16,'RECAP SECT'!$G$6:$DC$253,3,FALSE) -> 60.8 | F16: =VLOOKUP($C16,'RECAP SECT'!$G$6:$DC$253,41,FALSE) -> 7,975 | G16: =VLOOKUP($C16,'RECAP SECT'!$G$6:$DC$253,42,FALSE) -> 131.17 | H16: =VLOOKUP($C16,'RECAP SECT'!$G$6:$DC$253,43,FALSE) -> 67% | I16: =VLOOKUP($C16,'RECAP SECT'!$G$6:$DC$253,44,FALSE) -> 18 | J16: =VLOOKUP($C16,'RECAP SECT'!$G$6:$DC$253,45,FALSE) -> 678 | K16: =VLOOKUP($C16,'RECAP SECT'!$G$6:$DC$253,46,FALSE) -> 11.15 | L16: =VLOOKUP($C16,'RECAP SECT'!$G$6:$DC$253,47,FALSE) -> 29% | M16: =VLOOKUP($C16,'RECAP SECT'!$G$6:$DC$253,48,FALSE) -> 14 | N16: =VLOOKUP($C16,'RECAP SECT'!$G$6:$DC$253,49,FALSE) -> 56% | O16: =VLOOKUP($C16,'RECAP SECT'!$G$6:$DC$253,50,FALSE) -> 53% | P16: =VLOOKUP($C16,'RECAP SECT'!$G$6:$DC$253,51,FALSE) -> 18
A17: 30 | B17: MARNE-ARDENNES | C17: 6 | D17: CHALONS EN CHAMPAGNE | E17: =VLOOKUP($C17,'RECAP SECT'!$G$6:$DC$253,3,FALSE) -> 44.4 | F17: =VLOOKUP($C17,'RECAP SECT'!$G$6:$DC$253,41,FALSE) -> 7,755 | G17: =VLOOKUP($C17,'RECAP SECT'!$G$6:$DC$253,42,FALSE) -> 174.61 | H17: =VLOOKUP($C17,'RECAP SECT'!$G$6:$DC$253,43,FALSE) -> 56% | I17: =VLOOKUP($C17,'RECAP SECT'!$G$6:$DC$253,44,FALSE) -> 16 | J17: =VLOOKUP($C17,'RECAP SECT'!$G$6:$DC$253,45,FALSE) -> 702 | K17: =VLOOKUP($C17,'RECAP SECT'!$G$6:$DC$253,46,FALSE) -> 15.81 | L17: =VLOOKUP($C17,'RECAP SECT'!$G$6:$DC$253,47,FALSE) -> 0% | M17: =VLOOKUP($C17,'RECAP SECT'!$G$6:$DC$253,48,FALSE) -> 1 | N17: =VLOOKUP($C17,'RECAP SECT'!$G$6:$DC$253,49,FALSE) -> 39% | O17: =VLOOKUP($C17,'RECAP SECT'!$G$6:$DC$253,50,FALSE) -> 36% | P17: =VLOOKUP($C17,'RECAP SECT'!$G$6:$DC$253,51,FALSE) -> 14
A18: 30 | B18: MARNE-ARDENNES | C18: 2 | D18: CHARLEVILLE MEZIERES | E18: =VLOOKUP($C18,'RECAP SECT'!$G$6:$DC$253,3,FALSE) -> 55.8 | F18: =VLOOKUP($C18,'RECAP SECT'!$G$6:$DC$253,41,FALSE) -> 16,378 | G18: =VLOOKUP($C18,'RECAP SECT'!$G$6:$DC$253,42,FALSE) -> 293.56 | H18: =VLOOKUP($C18,'RECAP SECT'!$G$6:$DC$253,43,FALSE) -> 26% | I18: =VLOOKUP($C18,'RECAP SECT'!$G$6:$DC$253,44,FALSE) -> 11 | J18: =VLOOKUP($C18,'RECAP SECT'!$G$6:$DC$253,45,FALSE) -> 837 | K18: =VLOOKUP($C18,'RECAP SECT'!$G$6:$DC$253,46,FALSE) -> 15.00 | L18: =VLOOKUP($C18,'RECAP SECT'!$G$6:$DC$253,47,FALSE) -> 5% | M18: =VLOOKUP($C18,'RECAP SECT'!$G$6:$DC$253,48,FALSE) -> 2 | N18: =VLOOKUP($C18,'RECAP SECT'!$G$6:$DC$253,49,FALSE) -> 20% | O18: =VLOOKUP($C18,'RECAP SECT'!$G$6:$DC$253,50,FALSE) -> 17% | P18: =VLOOKUP($C18,'RECAP SECT'!$G$6:$DC$253,51,FALSE) -> 7
A19: 30 | B19: MARNE-ARDENNES | C19: 11 | D19: REIMS | E19: =VLOOKUP($C19,'RECAP SECT'!$G$6:$DC$253,3,FALSE) -> 81.4 | F19: =VLOOKUP($C19,'RECAP SECT'!$G$6:$DC$253,41,FALSE) -> 23,553 | G19: =VLOOKUP($C19,'RECAP SECT'!$G$6:$DC$253,42,FALSE) -> 289.38 | H19: =VLOOKUP($C19,'RECAP SECT'!$G$6:$DC$253,43,FALSE) -> 27% | I19: =VLOOKUP($C19,'RECAP SECT'!$G$6:$DC$253,44,FALSE) -> 12 | J19: =VLOOKUP($C19,'RECAP SECT'!$G$6:$DC$253,45,FALSE) -> 924 | K19: =VLOOKUP($C19,'RECAP SECT'!$G$6:$DC$253,46,FALSE) -> 11.35 | L19: =VLOOKUP($C19,'RECAP SECT'!$G$6:$DC$253,47,FALSE) -> 28% | M19: =VLOOKUP($C19,'RECAP SECT'!$G$6:$DC$253,48,FALSE) -> 11 | N19: =VLOOKUP($C19,'RECAP SECT'!$G$6:$DC$253,49,FALSE) -> 27% | O19: =VLOOKUP($C19,'RECAP SECT'!$G$6:$DC$253,50,FALSE) -> 25% | P19: =VLOOKUP($C19,'RECAP SECT'!$G$6:$DC$253,51,FALSE) -> 11
A20: 110 | B20: MEURTHE ET MOSELLE MEUSE | C20: 26 | D20: NANCY | E20: =VLOOKUP($C20,'RECAP SECT'!$G$6:$DC$253,3,FALSE) -> 67.2 | F20: =VLOOKUP($C20,'RECAP SECT'!$G$6:$DC$253,41,FALSE) -> 26,064 | G20: =VLOOKUP($C20,'RECAP SECT'!$G$6:$DC$253,42,FALSE) -> 387.88 | H20: =VLOOKUP($C20,'RECAP SECT'!$G$6:$DC$253,43,FALSE) -> 2% | I20: =VLOOKUP($C20,'RECAP SECT'!$G$6:$DC$253,44,FALSE) -> 2 | J20: =VLOOKUP($C20,'RECAP SECT'!$G$6:$DC$253,45,FALSE) -> 965 | K20: =VLOOKUP($C20,'RECAP SECT'!$G$6:$DC$253,46,FALSE) -> 14.36 | L20: =VLOOKUP($C20,'RECAP SECT'!$G$6:$DC$253,47,FALSE) -> 9% | M20: =VLOOKUP($C20,'RECAP SECT'!$G$6:$DC$253,48,FALSE) -> 4 | N20: =VLOOKUP($C20,'RECAP SECT'!$G$6:$DC$253,49,FALSE) -> 4% | O20: =VLOOKUP($C20,'RECAP SECT'!$G$6:$DC$253,50,FALSE) -> 1% | P20: =VLOOKUP($C20,'RECAP SECT'!$G$6:$DC$253,51,FALSE) -> 2
A21: 110 | B21: MEURTHE ET MOSELLE MEUSE | C21: 27 | D21: PONT A MOUSSON | E21: =VLOOKUP($C21,'RECAP SECT'!$G$6:$DC$253,3,FALSE) -> 76.6 | F21: =VLOOKUP($C21,'RECAP SECT'!$G$6:$DC$253,41,FALSE) -> 29,106 | G21: =VLOOKUP($C21,'RECAP SECT'!$G$6:$DC$253,42,FALSE) -> 379.83 | H21: =VLOOKUP($C21,'RECAP SECT'!$G$6:$DC$253,43,FALSE) -> 4% | I21: =VLOOKUP($C21,'RECAP SECT'!$G$6:$DC$253,44,FALSE) -> 3 | J21: =VLOOKUP($C21,'RECAP SECT'!$G$6:$DC$253,45,FALSE) -> 901 | K21: =VLOOKUP($C21,'RECAP SECT'!$G$6:$DC$253,46,FALSE) -> 11.76 | L21: =VLOOKUP($C21,'RECAP SECT'!$G$6:$DC$253,47,FALSE) -> 26% | M21: =VLOOKUP($C21,'RECAP SECT'!$G$6:$DC$253,48,FALSE) -> 9 | N21: =VLOOKUP($C21,'RECAP SECT'!$G$6:$DC$253,49,FALSE) -> 11% | O21: =VLOOKUP($C21,'RECAP SECT'!$G$6:$DC$253,50,FALSE) -> 8% | P21: =VLOOKUP($C21,'RECAP SECT'!$G$6:$DC$253,51,FALSE) -> 4
A22: 110 | B22: MEURTHE ET MOSELLE MEUSE | C22: 31 | D22: VERDUN | E22: =VLOOKUP($C22,'RECAP SECT'!$G$6:$DC$253,3,FALSE) -> 55.6 | F22: =VLOOKUP($C22,'RECAP SECT'!$G$6:$DC$253,41,FALSE) -> 14,137 | G22: =VLOOKUP($C22,'RECAP SECT'!$G$6:$DC$253,42,FALSE) -> 254.48 | H22: =VLOOKUP($C22,'RECAP SECT'!$G$6:$DC$253,43,FALSE) -> 36% | I22: =VLOOKUP($C22,'RECAP SECT'!$G$6:$DC$253,44,FALSE) -> 13 | J22: =VLOOKUP($C22,'RECAP SECT'!$G$6:$DC$253,45,FALSE) -> 627 | K22: =VLOOKUP($C22,'RECAP SECT'!$G$6:$DC$253,46,FALSE) -> 11.29 | L22: =VLOOKUP($C22,'RECAP SECT'!$G$6:$DC$253,47,FALSE) -> 29% | M22: =VLOOKUP($C22,'RECAP SECT'!$G$6:$DC$253,48,FALSE) -> 13 | N22: =VLOOKUP($C22,'RECAP SECT'!$G$6:$DC$253,49,FALSE) -> 34% | O22: =VLOOKUP($C22,'RECAP SECT'!$G$6:$DC$253,50,FALSE) -> 31% | P22: =VLOOKUP($C22,'RECAP SECT'!$G$6:$DC$253,51,FALSE) -> 13
A23: 160 | B23: MOSELLE | C23: 45 | D23: METZ | E23: =VLOOKUP($C23,'RECAP SECT'!$G$6:$DC$253,3,FALSE) -> 90.5 | F23: =VLOOKUP($C23,'RECAP SECT'!$G$6:$DC$253,41,FALSE) -> 27,589 | G23: =VLOOKUP($C23,'RECAP SECT'!$G$6:$DC$253,42,FALSE) -> 304.73 | H23: =VLOOKUP($C23,'RECAP SECT'!$G$6:$DC$253,43,FALSE) -> 23% | I23: =VLOOKUP($C23,'RECAP SECT'!$G$6:$DC$253,44,FALSE) -> 8 | J23: =VLOOKUP($C23,'RECAP SECT'!$G$6:$DC$253,45,FALSE) -> 1,103 | K23: =VLOOKUP($C23,'RECAP SECT'!$G$6:$DC$253,46,FALSE) -> 12.18 | L23: =VLOOKUP($C23,'RECAP SECT'!$G$6:$DC$253,47,FALSE) -> 23% | M23: =VLOOKUP($C23,'RECAP SECT'!$G$6:$DC$253,48,FALSE) -> 8 | N23: =VLOOKUP($C23,'RECAP SECT'!$G$6:$DC$253,49,FALSE) -> 23% | O23: =VLOOKUP($C23,'RECAP SECT'!$G$6:$DC$253,50,FALSE) -> 20% | P23: =VLOOKUP($C23,'RECAP SECT'!$G$6:$DC$253,51,FALSE) -> 10
A24: 160 | B24: MOSELLE | C24: 42 | D24: MOSELLE EST | E24: =VLOOKUP($C24,'RECAP SECT'!$G$6:$DC$253,3,FALSE) -> 70.1 | F24: =VLOOKUP($C24,'RECAP SECT'!$G$6:$DC$253,41,FALSE) -> 20,902 | G24: =VLOOKUP($C24,'RECAP SECT'!$G$6:$DC$253,42,FALSE) -> 298.10 | H24: =VLOOKUP($C24,'RECAP SECT'!$G$6:$DC$253,43,FALSE) -> 25% | I24: =VLOOKUP($C24,'RECAP SECT'!$G$6:$DC$253,44,FALSE) -> 10 | J24: =VLOOKUP($C24,'RECAP SECT'!$G$6:$DC$253,45,FALSE) -> 970 | K24: =VLOOKUP($C24,'RECAP SECT'!$G$6:$DC$253,46,FALSE) -> 13.83 | L24: =VLOOKUP($C24,'RECAP SECT'!$G$6:$DC$253,47,FALSE) -> 12% | M24: =VLOOKUP($C24,'RECAP SECT'!$G$6:$DC$253,48,FALSE) -> 6 | N24: =VLOOKUP($C24,'RECAP SECT'!$G$6:$DC$253,49,FALSE) -> 21% | O24: =VLOOKUP($C24,'RECAP SECT'!$G$6:$DC$253,50,FALSE) -> 18% | P24: =VLOOKUP($C24,'RECAP SECT'!$G$6:$DC$253,51,FALSE) -> 8
A25: 160 | B25: MOSELLE | C25: 44 | D25: MOSELLE NORD | E25: =VLOOKUP($C25,'RECAP SECT'!$G$6:$DC$253,3,FALSE) -> 67.1 | F25: =VLOOKUP($C25,'RECAP SECT'!$G$6:$DC$253,41,FALSE) -> 20,173 | G25: =VLOOKUP($C25,'RECAP SECT'!$G$6:$DC$253,42,FALSE) -> 300.50 | H25: =VLOOKUP($C25,'RECAP SECT'!$G$6:$DC$253,43,FALSE) -> 24% | I25: =VLOOKUP($C25,'RECAP SECT'!$G$6:$DC$253,44,FALSE) -> 9 | J25: =VLOOKUP($C25,'RECAP SECT'!$G$6:$DC$253,45,FALSE) -> 864 | K25: =VLOOKUP($C25,'RECAP SECT'!$G$6:$DC$253,46,FALSE) -> 12.87 | L25: =VLOOKUP($C25,'RECAP SECT'!$G$6:$DC$253,47,FALSE) -> 19% | M25: =VLOOKUP($C25,'RECAP SECT'!$G$6:$DC$253,48,FALSE) -> 7 | N25: =VLOOKUP($C25,'RECAP SECT'!$G$6:$DC$253,49,FALSE) -> 23% | O25: =VLOOKUP($C25,'RECAP SECT'!$G$6:$DC$253,50,FALSE) -> 20% | P25: =VLOOKUP($C25,'RECAP SECT'!$G$6:$DC$253,51,FALSE) -> 9
A26: 80 | B26: VOSGES | C26: 57 | D26: EPINAL | E26: =VLOOKUP($C26,'RECAP SECT'!$G$6:$DC$253,3,FALSE) -> 61.3 | F26: =VLOOKUP($C26,'RECAP SECT'!$G$6:$DC$253,41,FALSE) -> 19,850 | G26: =VLOOKUP($C26,'RECAP SECT'!$G$6:$DC$253,42,FALSE) -> 324.02 | H26: =VLOOKUP($C26,'RECAP SECT'!$G$6:$DC$253,43,FALSE) -> 18% | I26: =VLOOKUP($C26,'RECAP SECT'!$G$6:$DC$253,44,FALSE) -> 7 | J26: =VLOOKUP($C26,'RECAP SECT'!$G$6:$DC$253,45,FALSE) -> 463 | K26: =VLOOKUP($C26,'RECAP SECT'!$G$6:$DC$253,46,FALSE) -> 7.56 | L26: =VLOOKUP($C26,'RECAP SECT'!$G$6:$DC$253,47,FALSE) -> 52% | M26: =VLOOKUP($C26,'RECAP SECT'!$G$6:$DC$253,48,FALSE) -> 18 | N26: =VLOOKUP($C26,'RECAP SECT'!$G$6:$DC$253,49,FALSE) -> 29% | O26: =VLOOKUP($C26,'RECAP SECT'!$G$6:$DC$253,50,FALSE) -> 26% | P26: =VLOOKUP($C26,'RECAP SECT'!$G$6:$DC$253,51,FALSE) -> 12
A27: 80 | B27: VOSGES | C27: 55 | D27: SAINT DIE | E27: =VLOOKUP($C27,'RECAP SECT'!$G$6:$DC$253,3,FALSE) -> 47.3 | F27: =VLOOKUP($C27,'RECAP SECT'!$G$6:$DC$253,41,FALSE) -> 17,665 | G27: =VLOOKUP($C27,'RECAP SECT'!$G$6:$DC$253,42,FALSE) -> 373.83 | H27: =VLOOKUP($C27,'RECAP SECT'!$G$6:$DC$253,43,FALSE) -> 6% | I27: =VLOOKUP($C27,'RECAP SECT'!$G$6:$DC$253,44,FALSE) -> 5 | J27: =VLOOKUP($C27,'RECAP SECT'!$G$6:$DC$253,45,FALSE) -> 446 | K27: =VLOOKUP($C27,'RECAP SECT'!$G$6:$DC$253,46,FALSE) -> 9.44 | L27: =VLOOKUP($C27,'RECAP SECT'!$G$6:$DC$253,47,FALSE) -> 40% | M27: =VLOOKUP($C27,'RECAP SECT'!$G$6:$DC$253,48,FALSE) -> 16 | N27: =VLOOKUP($C27,'RECAP SECT'!$G$6:$DC$253,49,FALSE) -> 16% | O27: =VLOOKUP($C27,'RECAP SECT'!$G$6:$DC$253,50,FALSE) -> 13% | P27: =VLOOKUP($C27,'RECAP SECT'!$G$6:$DC$253,51,FALSE) -> 5
A28: Total CEGEE Directions Régionales | E28: =SUM(E10:E27) -> 1149

Sheet SE_CREDIT
B1: Accueil | F1: BAROMETRE BDD - TERRITOIRES
F2: CREDITS
F3: =ACCUEIL!F7 -> 2021-05-16
F7: Engagements et ventes accessoires pondérés Immo | J7: Engagements et ventes accessoires pondérés Conso | N7: Ventes sur client non détenteur de l’univers | R7: Total Crédits
F8: =DATEMAJ!C18 -> au 16/05 | H8: coef | I8: ='RECAP DIRCOM'!BM4 -> 8% | J8: =DATEMAJ!C19 -> au 16/05 | L8: coef | M8: ='RECAP DIRCOM'!BQ4 -> 6% | N8: =DATEMAJ!C20 -> au 16/05 | P8: coef | Q8: ='RECAP DIRCOM'!BU4 -> 6% | S8: coef | T8: ='RECAP DIRCOM'!BX4 -> 20%
B9: Direction | C9: eds | D9: Territoire | E9: ="ETP perf "&DATEMAJ!$C$28 -> ETP perf 31-mars | F9: PNB | G9: PNB / ETP | H9: % Ecart au 1er | I9: Rang | J9: PNB | K9: PNB / ETP | L9: % Ecart au 1er | M9: Rang | N9: VB | O9: VB / ETP | P9: % Ecart au 1er | Q9: Rang | R9: Moyenne ecart au 1er | S9: % Ecart au 1er | T9: Rang CEGEE
A10: 50 | B10: AUBE HAUTE MARNE | C10: 21 | D10: CHAUMONT | E10: =VLOOKUP($C10,'RECAP SECT'!$G$6:$DC$253,3,FALSE) -> 33.9 | F10: =VLOOKUP($C10,'RECAP SECT'!$G$6:$DC$253,56,FALSE) -> 1,636 | G10: =VLOOKUP($C10,'RECAP SECT'!$G$6:$DC$253,57,FALSE) -> 48.20 | H10: =VLOOKUP($C10,'RECAP SECT'!$G$6:$DC$253,58,FALSE) -> 62% | I10: =VLOOKUP($C10,'RECAP SECT'!$G$6:$DC$253,59,FALSE) -> 15 | J10: =VLOOKUP($C10,'RECAP SECT'!$G$6:$DC$253,60,FALSE) -> 1,270 | K10: =VLOOKUP($C10,'RECAP SECT'!$G$6:$DC$253,61,FALSE) -> 37.42 | L10: =VLOOKUP($C10,'RECAP SECT'!$G$6:$DC$253,62,FALSE) -> 0% | M10: =VLOOKUP($C10,'RECAP SECT'!$G$6:$DC$253,63,FALSE) -> 1 | N10: =VLOOKUP($C10,'RECAP SECT'!$G$6:$DC$253,64,FALSE) -> 276 | O10: =VLOOKUP($C10,'RECAP SECT'!$G$6:$DC$253,65,FALSE) -> 8.13 | P10: =VLOOKUP($C10,'RECAP SECT'!$G$6:$DC$253,66,FALSE) -> 30% | Q10: =VLOOKUP($C10,'RECAP SECT'!$G$6:$DC$253,67,FALSE) -> 8 | R10: =VLOOKUP($C10,'RECAP SECT'!$G$6:$DC$253,68,FALSE) -> 34% | S10: =VLOOKUP($C10,'RECAP SECT'!$G$6:$DC$253,69,FALSE) -> 27% | T10: =VLOOKUP($C10,'RECAP SECT'!$G$6:$DC$253,70,FALSE) -> 8
A11: 50 | B11: AUBE HAUTE MARNE | C11: 14 | D11: TROYES | E11: =VLOOKUP($C11,'RECAP SECT'!$G$6:$DC$253,3,FALSE) -> 65.3 | F11: =VLOOKUP($C11,'RECAP SECT'!$G$6:$DC$253,56,FALSE) -> 4,074 | G11: =VLOOKUP($C11,'RECAP SECT'!$G$6:$DC$253,57,FALSE) -> 62.39 | H11: =VLOOKUP($C11,'RECAP SECT'!$G$6:$DC$253,58,FALSE) -> 51% | I11: =VLOOKUP($C11,'RECAP SECT'!$G$6:$DC$253,59,FALSE) -> 10 | J11: =VLOOKUP($C11,'RECAP SECT'!$G$6:$DC$253,60,FALSE) -> 1,902 | K11: =VLOOKUP($C11,'RECAP SECT'!$G$6:$DC$253,61,FALSE) -> 29.12 | L11: =VLOOKUP($C11,'RECAP SECT'!$G$6:$DC$253,62,FALSE) -> 22% | M11: =VLOOKUP($C11,'RECAP SECT'!$G$6:$DC$253,63,FALSE) -> 9 | N11: =VLOOKUP($C11,'RECAP SECT'!$G$6:$DC$253,64,FALSE) -> 508 | O11: =VLOOKUP($C11,'RECAP SECT'!$G$6:$DC$253,65,FALSE) -> 7.78 | P11: =VLOOKUP($C11,'RECAP SECT'!$G$6:$DC$253,66,FALSE) -> 33% | Q11: =VLOOKUP($C11,'RECAP SECT'!$G$6:$DC$253,67,FALSE) -> 9 | R11: =VLOOKUP($C11,'RECAP SECT'!$G$6:$DC$253,68,FALSE) -> 37% | S11: =VLOOKUP($C11,'RECAP SECT'!$G$6:$DC$253,69,FALSE) -> 30% | T11: =VLOOKUP($C11,'RECAP SECT'!$G$6:$DC$253,70,FALSE) -> 10
A12: 262 | B12: BAS-RHIN | C12: 5060 | D12: HAGUENAU | E12: =VLOOKUP($C12,'RECAP SECT'!$G$6:$DC$253,3,FALSE) -> 71.2 | F12: =VLOOKUP($C12,'RECAP SECT'!$G$6:$DC$253,56,FALSE) -> 3,730 | G12: =VLOOKUP($C12,'RECAP SECT'!$G$6:$DC$253,57,FALSE) -> 52.41 | H12: =VLOOKUP($C12,'RECAP SECT'!$G$6:$DC$253,58,FALSE) -> 59% | I12: =VLOOKUP($C12,'RECAP SECT'!$G$6:$DC$253,59,FALSE) -> 14 | J12: =VLOOKUP($C12,'RECAP SECT'!$G$6:$DC$253,60,FALSE) -> 2,141 | K12: =VLOOKUP($C12,'RECAP SECT'!$G$6:$DC$253,61,FALSE) -> 30.08 | L12: =VLOOKUP($C12,'RECAP SECT'!$G$6:$DC$253,62,FALSE) -> 20% | M12: =VLOOKUP($C12,'RECAP SECT'!$G$6:$DC$253,63,FALSE) -> 5 | N12: =VLOOKUP($C12,'RECAP SECT'!$G$6:$DC$253,64,FALSE) -> 426 | O12: =VLOOKUP($C12,'RECAP SECT'!$G$6:$DC$253,65,FALSE) -> 5.99 | P12: =VLOOKUP($C12,'RECAP SECT'!$G$6:$DC$253,66,FALSE) -> 49% | Q12: =VLOOKUP($C12,'RECAP SECT'!$G$6:$DC$253,67,FALSE) -> 16 | R12: =VLOOKUP($C12,'RECAP SECT'!$G$6:$DC$253,68,FALSE) -> 44% | S12: =VLOOKUP($C12,'RECAP SECT'!$G$6:$DC$253,69,FALSE) -> 37% | T12: =VLOOKUP($C12,'RECAP SECT'!$G$6:$DC$253,70,FALSE) -> 15
A13: 262 | B13: BAS-RHIN | C13: 5101 | D13: SELESTAT | E13: =VLOOKUP($C13,'RECAP SECT'!$G$6:$DC$253,3,FALSE) -> 61.1 | F13: =VLOOKUP($C13,'RECAP SECT'!$G$6:$DC$253,56,FALSE) -> 2,508 | G13: =VLOOKUP($C13,'RECAP SECT'!$G$6:$DC$253,57,FALSE) -> 41.06 | H13: =VLOOKUP($C13,'RECAP SECT'!$G$6:$DC$253,58,FALSE) -> 68% | I13: =VLOOKUP($C13,'RECAP SECT'!$G$6:$DC$253,59,FALSE) -> 17 | J13: =VLOOKUP($C13,'RECAP SECT'!$G$6:$DC$253,60,FALSE) -> 1,791 | K13: =VLOOKUP($C13,'RECAP SECT'!$G$6:$DC$253,61,FALSE) -> 29.32 | L13: =VLOOKUP($C13,'RECAP SECT'!$G$6:$DC$253,62,FALSE) -> 22% | M13: =VLOOKUP($C13,'RECAP SECT'!$G$6:$DC$253,63,FALSE) -> 7 | N13: =VLOOKUP($C13,'RECAP SECT'!$G$6:$DC$253,64,FALSE) -> 422 | O13: =VLOOKUP($C13,'RECAP SECT'!$G$6:$DC$253,65,FALSE) -> 6.91 | P13: =VLOOKUP($C13,'RECAP SECT'!$G$6:$DC$253,66,FALSE) -> 41% | Q13: =VLOOKUP($C13,'RECAP SECT'!$G$6:$DC$253,67,FALSE) -> 14 | R13: =VLOOKUP($C13,'RECAP SECT'!$G$6:$DC$253,68,FALSE) -> 46% | S13: =VLOOKUP($C13,'RECAP SECT'!$G$6:$DC$253,69,FALSE) -> 39% | T13: =VLOOKUP($C13,'RECAP SECT'!$G$6:$DC$253,70,FALSE) -> 16
A14: 262 | B14: BAS-RHIN | C14: 5006 | D14: STRASBOURG | E14: =VLOOKUP($C14,'RECAP SECT'!$G$6:$DC$253,3,FALSE) -> 77.2 | F14: =VLOOKUP($C14,'RECAP SECT'!$G$6:$DC$253,56,FALSE) -> 6,004 | G14: =VLOOKUP($C14,'RECAP SECT'!$G$6:$DC$253,57,FALSE) -> 77.78 | H14: =VLOOKUP($C14,'RECAP SECT'!$G$6:$DC$253,58,FALSE) -> 39% | I14: =VLOOKUP($C14,'RECAP SECT'!$G$6:$DC$253,59,FALSE) -> 7 | J14: =VLOOKUP($C14,'RECAP SECT'!$G$6:$DC$253,60,FALSE) -> 1,858 | K14: =VLOOKUP($C14,'RECAP SECT'!$G$6:$DC$253,61,FALSE) -> 24.07 | L14: =VLOOKUP($C14,'RECAP SECT'!$G$6:$DC$253,62,FALSE) -> 36% | M14: =VLOOKUP($C14,'RECAP SECT'!$G$6:$DC$253,63,FALSE) -> 18 | N14: =VLOOKUP($C14,'RECAP SECT'!$G$6:$DC$253,64,FALSE) -> 592 | O14: =VLOOKUP($C14,'RECAP SECT'!$G$6:$DC$253,65,FALSE) -> 7.67 | P14: =VLOOKUP($C14,'RECAP SECT'!$G$6:$DC$253,66,FALSE) -> 34% | Q14: =VLOOKUP($C14,'RECAP SECT'!$G$6:$DC$253,67,FALSE) -> 10 | R14: =VLOOKUP($C14,'RECAP SECT'!$G$6:$DC$253,68,FALSE) -> 36% | S14: =VLOOKUP($C14,'RECAP SECT'!$G$6:$DC$253,69,FALSE) -> 30% | T14: =VLOOKUP($C14,'RECAP SECT'!$G$6:$DC$253,70,FALSE) -> 9
A15: 264 | B15: HAUT-RHIN | C15: 5130 | D15: COLMAR | E15: =VLOOKUP($C15,'RECAP SECT'!$G$6:$DC$253,3,FALSE) -> 61.8 | F15: =VLOOKUP($C15,'RECAP SECT'!$G$6:$DC$253,56,FALSE) -> 2,149 | G15: =VLOOKUP($C15,'RECAP SECT'!$G$6:$DC$253,57,FALSE) -> 34.75 | H15: =VLOOKUP($C15,'RECAP SECT'!$G$6:$DC$253,58,FALSE) -> 73% | I15: =VLOOKUP($C15,'RECAP SECT'!$G$6:$DC$253,59,FALSE) -> 18 | J15: =VLOOKUP($C15,'RECAP SECT'!$G$6:$DC$253,60,FALSE) -> 1,671 | K15: =VLOOKUP($C15,'RECAP SECT'!$G$6:$DC$253,61,FALSE) -> 27.02 | L15: =VLOOKUP($C15,'RECAP SECT'!$G$6:$DC$253,62,FALSE) -> 28% | M15: =VLOOKUP($C15,'RECAP SECT'!$G$6:$DC$253,63,FALSE) -> 15 | N15: =VLOOKUP($C15,'RECAP SECT'!$G$6:$DC$253,64,FALSE) -> 331 | O15: =VLOOKUP($C15,'RECAP SECT'!$G$6:$DC$253,65,FALSE) -> 5.35 | P15: =VLOOKUP($C15,'RECAP SECT'!$G$6:$DC$253,66,FALSE) -> 54% | Q15: =VLOOKUP($C15,'RECAP SECT'!$G$6:$DC$253,67,FALSE) -> 18 | R15: =VLOOKUP($C15,'RECAP SECT'!$G$6:$DC$253,68,FALSE) -> 54% | S15: =VLOOKUP($C15,'RECAP SECT'!$G$6:$DC$253,69,FALSE) -> 47% | T15: =VLOOKUP($C15,'RECAP SECT'!$G$6:$DC$253,70,FALSE) -> 18
A16: 264 | B16: HAUT-RHIN | C16: 5169 | D16: MULHOUSE | E16: =VLOOKUP($C16,'RECAP SECT'!$G$6:$DC$253,3,FALSE) -> 60.8 | F16: =VLOOKUP($C16,'RECAP SECT'!$G$6:$DC$253,56,FALSE) -> 2,718 | G16: =VLOOKUP($C16,'RECAP SECT'!$G$6:$DC$253,57,FALSE) -> 44.70 | H16: =VLOOKUP($C16,'RECAP SECT'!$G$6:$DC$253,58,FALSE) -> 65% | I16: =VLOOKUP($C16,'RECAP SECT'!$G$6:$DC$253,59,FALSE) -> 16 | J16: =VLOOKUP($C16,'RECAP SECT'!$G$6:$DC$253,60,FALSE) -> 1,698 | K16: =VLOOKUP($C16,'RECAP SECT'!$G$6:$DC$253,61,FALSE) -> 27.93 | L16: =VLOOKUP($C16,'RECAP SECT'!$G$6:$DC$253,62,FALSE) -> 25% | M16: =VLOOKUP($C16,'RECAP SECT'!$G$6:$DC$253,63,FALSE) -> 12 | N16: =VLOOKUP($C16,'RECAP SECT'!$G$6:$DC$253,64,FALSE) -> 362 | O16: =VLOOKUP($C16,'RECAP SECT'!$G$6:$DC$253,65,FALSE) -> 5.95 | P16: =VLOOKUP($C16,'RECAP SECT'!$G$6:$DC$253,66,FALSE) -> 49% | Q16: =VLOOKUP($C16,'RECAP SECT'!$G$6:$DC$253,67,FALSE) -> 17 | R16: =VLOOKUP($C16,'RECAP SECT'!$G$6:$DC$253,68,FALSE) -> 48% | S16: =VLOOKUP($C16,'RECAP SECT'!$G$6:$DC$253,69,FALSE) -> 41% | T16: =VLOOKUP($C16,'RECAP SECT'!$G$6:$DC$253,70,FALSE) -> 17
A17: 30 | B17: MARNE-ARDENNES | C17: 6 | D17: CHALONS EN CHAMPAGNE | E17: =VLOOKUP($C17,'RECAP SECT'!$G$6:$DC$253,3,FALSE) -> 44.4 | F17: =VLOOKUP($C17,'RECAP SECT'!$G$6:$DC$253,56,FALSE) -> 3,427 | G17: =VLOOKUP($C17,'RECAP SECT'!$G$6:$DC$253,57,FALSE) -> 77.17 | H17: =VLOOKUP($C17,'RECAP SECT'!$G$6:$DC$253,58,FALSE) -> 39% | I17: =VLOOKUP($C17,'RECAP SECT'!$G$6:$DC$253,59,FALSE) -> 8 | J17: =VLOOKUP($C17,'RECAP SECT'!$G$6:$DC$253,60,FALSE) -> 1,236 | K17: =VLOOKUP($C17,'RECAP SECT'!$G$6:$DC$253,61,FALSE) -> 27.84 | L17: =VLOOKUP($C17,'RECAP SECT'!$G$6:$DC$253,62,FALSE) -> 26% | M17: =VLOOKUP($C17,'RECAP SECT'!$G$6:$DC$253,63,FALSE) -> 13 | N17: =VLOOKUP($C17,'RECAP SECT'!$G$6:$DC$253,64,FALSE) -> 392 | O17: =VLOOKUP($C17,'RECAP SECT'!$G$6:$DC$253,65,FALSE) -> 8.83 | P17: =VLOOKUP($C17,'RECAP SECT'!$G$6:$DC$253,66,FALSE) -> 24% | Q17: =VLOOKUP($C17,'RECAP SECT'!$G$6:$DC$253,67,FALSE) -> 5 | R17: =VLOOKUP($C17,'RECAP SECT'!$G$6:$DC$253,68,FALSE) -> 31% | S17: =VLOOKUP($C17,'RECAP SECT'!$G$6:$DC$253,69,FALSE) -> 24% | T17: =VLOOKUP($C17,'RECAP SECT'!$G$6:$DC$253,70,FALSE) -> 7
A18: 30 | B18: MARNE-ARDENNES | C18: 2 | D18: CHARLEVILLE MEZIERES | E18: =VLOOKUP($C18,'RECAP SECT'!$G$6:$DC$253,3,FALSE) -> 55.8 | F18: =VLOOKUP($C18,'RECAP SECT'!$G$6:$DC$253,56,FALSE) -> 5,802 | G18: =VLOOKUP($C18,'RECAP SECT'!$G$6:$DC$253,57,FALSE) -> 103.99 | H18: =VLOOKUP($C18,'RECAP SECT'!$G$6:$DC$253,58,FALSE) -> 18% | I18: =VLOOKUP($C18,'RECAP SECT'!$G$6:$DC$253,59,FALSE) -> 4 | J18: =VLOOKUP($C18,'RECAP SECT'!$G$6:$DC$253,60,FALSE) -> 1,600 | K18: =VLOOKUP($C18,'RECAP SECT'!$G$6:$DC$253,61,FALSE) -> 28.68 | L18: =VLOOKUP($C18,'RECAP SECT'!$G$6:$DC$253,62,FALSE) -> 23% | M18: =VLOOKUP($C18,'RECAP SECT'!$G$6:$DC$253,63,FALSE) -> 10 | N18: =VLOOKUP($C18,'RECAP SECT'!$G$6:$DC$253,64,FALSE) -> 533 | O18: =VLOOKUP($C18,'RECAP SECT'!$G$6:$DC$253,65,FALSE) -> 9.55 | P18: =VLOOKUP($C18,'RECAP SECT'!$G$6:$DC$253,66,FALSE) -> 18% | Q18: =VLOOKUP($C18,'RECAP SECT'!$G$6:$DC$253,67,FALSE) -> 3 | R18: =VLOOKUP($C18,'RECAP SECT'!$G$6:$DC$253,68,FALSE) -> 20% | S18: =VLOOKUP($C18,'RECAP SECT'!$G$6:$DC$253,69,FALSE) -> 13% | T18: =VLOOKUP($C18,'RECAP SECT'!$G$6:$DC$253,70,FALSE) -> 4
A19: 30 | B19: MARNE-ARDENNES | C19: 11 | D19: REIMS | E19: =VLOOKUP($C19,'RECAP SECT'!$G$6:$DC$253,3,FALSE) -> 81.4 | F19: =VLOOKUP($C19,'RECAP SECT'!$G$6:$DC$253,56,FALSE) -> 9,219 | G19: =VLOOKUP($C19,'RECAP SECT'!$G$6:$DC$253,57,FALSE) -> 113.27 | H19: =VLOOKUP($C19,'RECAP SECT'!$G$6:$DC$253,58,FALSE) -> 11% | I19: =VLOOKUP($C19,'RECAP SECT'!$G$6:$DC$253,59,FALSE) -> 3 | J19: =VLOOKUP($C19,'RECAP SECT'!$G$6:$DC$253,60,FALSE) -> 2,249 | K19: =VLOOKUP($C19,'RECAP SECT'!$G$6:$DC$253,61,FALSE) -> 27.63 | L19: =VLOOKUP($C19,'RECAP SECT'!$G$6:$DC$253,62,FALSE) -> 26% | M19: =VLOOKUP($C19,'RECAP SECT'!$G$6:$DC$253,63,FALSE) -> 14 | N19: =VLOOKUP($C19,'RECAP SECT'!$G$6:$DC$253,64,FALSE) -> 760 | O19: =VLOOKUP($C19,'RECAP SECT'!$G$6:$DC$253,65,FALSE) -> 9.34 | P19: =VLOOKUP($C19,'RECAP SECT'!$G$6:$DC$253,66,FALSE) -> 20% | Q19: =VLOOKUP($C19,'RECAP SECT'!$G$6:$DC$253,67,FALSE) -> 4 | R19: =VLOOKUP($C19,'RECAP SECT'!$G$6:$DC$253,68,FALSE) -> 18% | S19: =VLOOKUP($C19,'RECAP SECT'!$G$6:$DC$253,69,FALSE) -> 11% | T19: =VLOOKUP($C19,'RECAP SECT'!$G$6:$DC$253,70,FALSE) -> 3
A20: 110 | B20: MEURTHE ET MOSELLE MEUSE | C20: 26 | D20: NANCY | E20: =VLOOKUP($C20,'RECAP SECT'!$G$6:$DC$253,3,FALSE) -> 67.2 | F20: =VLOOKUP($C20,'RECAP SECT'!$G$6:$DC$253,56,FALSE) -> 8,475 | G20: =VLOOKUP($C20,'RECAP SECT'!$G$6:$DC$253,57,FALSE) -> 126.13 | H20: =VLOOKUP($C20,'RECAP SECT'!$G$6:$DC$253,58,FALSE) -> 1% | I20: =VLOOKUP($C20,'RECAP SECT'!$G$6:$DC$253,59,FALSE) -> 2 | J20: =VLOOKUP($C20,'RECAP SECT'!$G$6:$DC$253,60,FALSE) -> 1,965 | K20: =VLOOKUP($C20,'RECAP SECT'!$G$6:$DC$253,61,FALSE) -> 29.24 | L20: =VLOOKUP($C20,'RECAP SECT'!$G$6:$DC$253,62,FALSE) -> 22% | M20: =VLOOKUP($C20,'RECAP SECT'!$G$6:$DC$253,63,FALSE) -> 8 | N20: =VLOOKUP($C20,'RECAP SECT'!$G$6:$DC$253,64,FALSE) -> 782 | O20: =VLOOKUP($C20,'RECAP SECT'!$G$6:$DC$253,65,FALSE) -> 11.64 | P20: =VLOOKUP($C20,'RECAP SECT'!$G$6:$DC$253,66,FALSE) -> 0% | Q20: =VLOOKUP($C20,'RECAP SECT'!$G$6:$DC$253,67,FALSE) -> 1 | R20: =VLOOKUP($C20,'RECAP SECT'!$G$6:$DC$253,68,FALSE) -> 7% | S20: =VLOOKUP($C20,'RECAP SECT'!$G$6:$DC$253,69,FALSE) -> 0% | T20: =VLOOKUP($C20,'RECAP SECT'!$G$6:$DC$253,70,FALSE) -> 1
A21: 110 | B21: MEURTHE ET MOSELLE MEUSE | C21: 27 | D21: PONT A MOUSSON | E21: =VLOOKUP($C21,'RECAP SECT'!$G$6:$DC$253,3,FALSE) -> 76.6 | F21: =VLOOKUP($C21,'RECAP SECT'!$G$6:$DC$253,56,FALSE) -> 9,737 | G21: =VLOOKUP($C21,'RECAP SECT'!$G$6:$DC$253,57,FALSE) -> 127.06 | H21: =VLOOKUP($C21,'RECAP SECT'!$G$6:$DC$253,58,FALSE) -> 0% | I21: =VLOOKUP($C21,'RECAP SECT'!$G$6:$DC$253,59,FALSE) -> 1 | J21: =VLOOKUP($C21,'RECAP SECT'!$G$6:$DC$253,60,FALSE) -> 2,311 | K21: =VLOOKUP($C21,'RECAP SECT'!$G$6:$DC$253,61,FALSE) -> 30.16 | L21: =VLOOKUP($C21,'RECAP SECT'!$G$6:$DC$253,62,FALSE) -> 19% | M21: =VLOOKUP($C21,'RECAP SECT'!$G$6:$DC$253,63,FALSE) -> 4 | N21: =VLOOKUP($C21,'RECAP SECT'!$G$6:$DC$253,64,FALSE) -> 821 | O21: =VLOOKUP($C21,'RECAP SECT'!$G$6:$DC$253,65,FALSE) -> 10.71 | P21: =VLOOKUP($C21,'RECAP SECT'!$G$6:$DC$253,66,FALSE) -> 8% | Q21: =VLOOKUP($C21,'RECAP SECT'!$G$6:$DC$253,67,FALSE) -> 2 | R21: =VLOOKUP($C21,'RECAP SECT'!$G$6:$DC$253,68,FALSE) -> 8% | S21: =VLOOKUP($C21,'RECAP SECT'!$G$6:$DC$253,69,FALSE) -> 1% | T21: =VLOOKUP($C21,'RECAP SECT'!$G$6:$DC$253,70,FALSE) -> 2
A22: 110 | B22: MEURTHE ET MOSELLE MEUSE | C22: 31 | D22: VERDUN | E22: =VLOOKUP($C22,'RECAP SECT'!$G$6:$DC$253,3,FALSE) -> 55.6 | F22: =VLOOKUP($C22,'RECAP SECT'!$G$6:$DC$253,56,FALSE) -> 4,629 | G22: =VLOOKUP($C22,'RECAP SECT'!$G$6:$DC$253,57,FALSE) -> 83.32 | H22: =VLOOKUP($C22,'RECAP SECT'!$G$6:$DC$253,58,FALSE) -> 34% | I22: =VLOOKUP($C22,'RECAP SECT'!$G$6:$DC$253,59,FALSE) -> 6 | J22: =VLOOKUP($C22,'RECAP SECT'!$G$6:$DC$253,60,FALSE) -> 1,928 | K22: =VLOOKUP($C22,'RECAP SECT'!$G$6:$DC$253,61,FALSE) -> 34.70 | L22: =VLOOKUP($C22,'RECAP SECT'!$G$6:$DC$253,62,FALSE) -> 7% | M22: =VLOOKUP($C22,'RECAP SECT'!$G$6:$DC$253,63,FALSE) -> 2 | N22: =VLOOKUP($C22,'RECAP SECT'!$G$6:$DC$253,64,FALSE) -> 489 | O22: =VLOOKUP($C22,'RECAP SECT'!$G$6:$DC$253,65,FALSE) -> 8.80 | P22: =VLOOKUP($C22,'RECAP SECT'!$G$6:$DC$253,66,FALSE) -> 24% | Q22: =VLOOKUP($C22,'RECAP SECT'!$G$6:$DC$253,67,FALSE) -> 6 | R22: =VLOOKUP($C22,'RECAP SECT'!$G$6:$DC$253,68,FALSE) -> 23% | S22: =VLOOKUP($C22,'RECAP SECT'!$G$6:$DC$253,69,FALSE) -> 16% | T22: =VLOOKUP($C22,'RECAP SECT'!$G$6:$DC$253,70,FALSE) -> 5
A23: 160 | B23: MOSELLE | C23: 45 | D23: METZ | E23: =VLOOKUP($C23,'RECAP SECT'!$G$6:$DC$253,3,FALSE) -> 90.5 | F23: =VLOOKUP($C23,'RECAP SECT'!$G$6:$DC$253,56,FALSE) -> 6,071 | G23: =VLOOKUP($C23,'RECAP SECT'!$G$6:$DC$253,57,FALSE) -> 67.06 | H23: =VLOOKUP($C23,'RECAP SECT'!$G$6:$DC$253,58,FALSE) -> 47% | I23: =VLOOKUP($C23,'RECAP SECT'!$G$6:$DC$253,59,FALSE) -> 9 | J23: =VLOOKUP($C23,'RECAP SECT'!$G$6:$DC$253,60,FALSE) -> 2,438 | K23: =VLOOKUP($C23,'RECAP SECT'!$G$6:$DC$253,61,FALSE) -> 26.92 | L23: =VLOOKUP($C23,'RECAP SECT'!$G$6:$DC$253,62,FALSE) -> 28% | M23: =VLOOKUP($C23,'RECAP SECT'!$G$6:$DC$253,63,FALSE) -> 16 | N23: =VLOOKUP($C23,'RECAP SECT'!$G$6:$DC$253,64,FALSE) -> 626 | O23: =VLOOKUP($C23,'RECAP SECT'!$G$6:$DC$253,65,FALSE) -> 6.91 | P23: =VLOOKUP($C23,'RECAP SECT'!$G$6:$DC$253,66,FALSE) -> 41% | Q23: =VLOOKUP($C23,'RECAP SECT'!$G$6:$DC$253,67,FALSE) -> 13 | R23: =VLOOKUP($C23,'RECAP SECT'!$G$6:$DC$253,68,FALSE) -> 39% | S23: =VLOOKUP($C23,'RECAP SECT'!$G$6:$DC$253,69,FALSE) -> 33% | T23: =VLOOKUP($C23,'RECAP SECT'!$G$6:$DC$253,70,FALSE) -> 11
A24: 160 | B24: MOSELLE | C24: 42 | D24: MOSELLE EST | E24: =VLOOKUP($C24,'RECAP SECT'!$G$6:$DC$253,3,FALSE) -> 70.1 | F24: =VLOOKUP($C24,'RECAP SECT'!$G$6:$DC$253,56,FALSE) -> 3,879 | G24: =VLOOKUP($C24,'RECAP SECT'!$G$6:$DC$253,57,FALSE) -> 55.32 | H24: =VLOOKUP($C24,'RECAP SECT'!$G$6:$DC$253,58,FALSE) -> 56% | I24: =VLOOKUP($C24,'RECAP SECT'!$G$6:$DC$253,59,FALSE) -> 13 | J24: =VLOOKUP($C24,'RECAP SECT'!$G$6:$DC$253,60,FALSE) -> 2,212 | K24: =VLOOKUP($C24,'RECAP SECT'!$G$6:$DC$253,61,FALSE) -> 31.54 | L24: =VLOOKUP($C24,'RECAP SECT'!$G$6:$DC$253,62,FALSE) -> 16% | M24: =VLOOKUP($C24,'RECAP SECT'!$G$6:$DC$253,63,FALSE) -> 3 | N24: =VLOOKUP($C24,'RECAP SECT'!$G$6:$DC$253,64,FALSE) -> 475 | O24: =VLOOKUP($C24,'RECAP SECT'!$G$6:$DC$253,65,FALSE) -> 6.77 | P24: =VLOOKUP($C24,'RECAP SECT'!$G$6:$DC$253,66,FALSE) -> 42% | Q24: =VLOOKUP($C24,'RECAP SECT'!$G$6:$DC$253,67,FALSE) -> 15 | R24: =VLOOKUP($C24,'RECAP SECT'!$G$6:$DC$253,68,FALSE) -> 40% | S24: =VLOOKUP($C24,'RECAP SECT'!$G$6:$DC$253,69,FALSE) -> 33% | T24: =VLOOKUP($C24,'RECAP SECT'!$G$6:$DC$253,70,FALSE) -> 13
A25: 160 | B25: MOSELLE | C25: 44 | D25: MOSELLE NORD | E25: =VLOOKUP($C25,'RECAP SECT'!$G$6:$DC$253,3,FALSE) -> 67.1 | F25: =VLOOKUP($C25,'RECAP SECT'!$G$6:$DC$253,56,FALSE) -> 5,652 | G25: =VLOOKUP($C25,'RECAP SECT'!$G$6:$DC$253,57,FALSE) -> 84.19 | H25: =VLOOKUP($C25,'RECAP SECT'!$G$6:$DC$253,58,FALSE) -> 34% | I25: =VLOOKUP($C25,'RECAP SECT'!$G$6:$DC$253,59,FALSE) -> 5 | J25: =VLOOKUP($C25,'RECAP SECT'!$G$6:$DC$253,60,FALSE) -> 1,982 | K25: =VLOOKUP($C25,'RECAP SECT'!$G$6:$DC$253,61,FALSE) -> 29.52 | L25: =VLOOKUP($C25,'RECAP SECT'!$G$6:$DC$253,62,FALSE) -> 21% | M25: =VLOOKUP($C25,'RECAP SECT'!$G$6:$DC$253,63,FALSE) -> 6 | N25: =VLOOKUP($C25,'RECAP SECT'!$G$6:$DC$253,64,FALSE) -> 511 | O25: =VLOOKUP($C25,'RECAP SECT'!$G$6:$DC$253,65,FALSE) -> 7.61 | P25: =VLOOKUP($C25,'RECAP SECT'!$G$6:$DC$253,66,FALSE) -> 35% | Q25: =VLOOKUP($C25,'RECAP SECT'!$G$6:$DC$253,67,FALSE) -> 11 | R25: =VLOOKUP($C25,'RECAP SECT'!$G$6:$DC$253,68,FALSE) -> 30% | S25: =VLOOKUP($C25,'RECAP SECT'!$G$6:$DC$253,69,FALSE) -> 23% | T25: =VLOOKUP($C25,'RECAP SECT'!$G$6:$DC$253,70,FALSE) -> 6
A26: 80 | B26: VOSGES | C26: 57 | D26: EPINAL | E26: =VLOOKUP($C26,'RECAP SECT'!$G$6:$DC$253,3,FALSE) -> 61.3 | F26: =VLOOKUP($C26,'RECAP SECT'!$G$6:$DC$253,56,FALSE) -> 3,655 | G26: =VLOOKUP($C26,'RECAP SECT'!$G$6:$DC$253,57,FALSE) -> 59.66 | H26: =VLOOKUP($C26,'RECAP SECT'!$G$6:$DC$253,58,FALSE) -> 53% | I26: =VLOOKUP($C26,'RECAP SECT'!$G$6:$DC$253,59,FALSE) -> 11 | J26: =VLOOKUP($C26,'RECAP SECT'!$G$6:$DC$253,60,FALSE) -> 1,512 | K26: =VLOOKUP($C26,'RECAP SECT'!$G$6:$DC$253,61,FALSE) -> 24.68 | L26: =VLOOKUP($C26,'RECAP SECT'!$G$6:$DC$253,62,FALSE) -> 34% | M26: =VLOOKUP($C26,'RECAP SECT'!$G$6:$DC$253,63,FALSE) -> 17 | N26: =VLOOKUP($C26,'RECAP SECT'!$G$6:$DC$253,64,FALSE) -> 514 | O26: =VLOOKUP($C26,'RECAP SECT'!$G$6:$DC$253,65,FALSE) -> 8.39 | P26: =VLOOKUP($C26,'RECAP SECT'!$G$6:$DC$253,66,FALSE) -> 28% | Q26: =VLOOKUP($C26,'RECAP SECT'!$G$6:$DC$253,67,FALSE) -> 7 | R26: =VLOOKUP($C26,'RECAP SECT'!$G$6:$DC$253,68,FALSE) -> 40% | S26: =VLOOKUP($C26,'RECAP SECT'!$G$6:$DC$253,69,FALSE) -> 33% | T26: =VLOOKUP($C26,'RECAP SECT'!$G$6:$DC$253,70,FALSE) -> 12
A27: 80 | B27: VOSGES | C27: 55 | D27: SAINT DIE | E27: =VLOOKUP($C27,'RECAP SECT'!$G$6:$DC$253,3,FALSE) -> 47.3 | F27: =VLOOKUP($C27,'RECAP SECT'!$G$6:$DC$253,56,FALSE) -> 2,653 | G27: =VLOOKUP($C27,'RECAP SECT'!$G$6:$DC$253,57,FALSE) -> 56.15 | H27: =VLOOKUP($C27,'RECAP SECT'!$G$6:$DC$253,58,FALSE) -> 56% | I27: =VLOOKUP($C27,'RECAP SECT'!$G$6:$DC$253,59,FALSE) -> 12 | J27: =VLOOKUP($C27,'RECAP SECT'!$G$6:$DC$253,60,FALSE) -> 1,329 | K27: =VLOOKUP($C27,'RECAP SECT'!$G$6:$DC$253,61,FALSE) -> 28.13 | L27: =VLOOKUP($C27,'RECAP SECT'!$G$6:$DC$253,62,FALSE) -> 25% | M27: =VLOOKUP($C27,'RECAP SECT'!$G$6:$DC$253,63,FALSE) -> 11 | N27: =VLOOKUP($C27,'RECAP SECT'!$G$6:$DC$253,64,FALSE) -> 344 | O27: =VLOOKUP($C27,'RECAP SECT'!$G$6:$DC$253,65,FALSE) -> 7.28 | P27: =VLOOKUP($C27,'RECAP SECT'!$G$6:$DC$253,66,FALSE) -> 37% | Q27: =VLOOKUP($C27,'RECAP SECT'!$G$6:$DC$253,67,FALSE) -> 12 | R27: =VLOOKUP($C27,'RECAP SECT'!$G$6:$DC$253,68,FALSE) -> 41% | S27: =VLOOKUP($C27,'RECAP SECT'!$G$6:$DC$253,69,FALSE) -> 34% | T27: =VLOOKUP($C27,'RECAP SECT'!$G$6:$DC$253,70,FALSE) -> 14
A28: Total CEGEE Directions Régionales | E28: =SUM(E10:E27) -> 1149

Sheet SE_IARD
B1: Accueil | F1: BAROMETRE BDD - TERRITOIRES
F2: IARD ET PREVOYANCE
F3: =ACCUEIL!F7 -> 2021-05-16
F7: Ventes Nettes produits pondérés | J7: Ventes sur client non détenteur de l’univers | N7: Total IARD Prévoyance
F8: =DATEMAJ!C23 -> au 16/05 | H8: coef | I8: ='RECAP DIRCOM'!CF4 -> 14% | J8: =DATEMAJ!C24 -> au 16/05 | L8: coef | M8: ='RECAP DIRCOM'!CJ4 -> 6% | O8: coef | P8: ='RECAP DIRCOM'!CM4 -> 20%
B9: Direction | C9: eds | D9: Territoire | E9: ="ETP perf "&DATEMAJ!$C$28 -> ETP perf 31-mars | F9: VN | G9: VN / ETP | H9: % Ecart au 1er | I9: Rang | J9: VB | K9: VB / ETP | L9: % Ecart au 1er | M9: Rang | N9: Moyenne ecart au 1er | O9: % Ecart au 1er | P9: Rang CEGEE
A10: 50 | B10: AUBE HAUTE MARNE | C10: 21 | D10: CHAUMONT | E10: =VLOOKUP($C10,'RECAP SECT'!$G$6:$DC$253,3,FALSE) -> 33.9 | F10: =VLOOKUP($C10,'RECAP SECT'!$G$6:$DC$253,75,FALSE) -> 3,755 | G10: =VLOOKUP($C10,'RECAP SECT'!$G$6:$DC$253,76,FALSE) -> 110.67 | H10: =VLOOKUP($C10,'RECAP SECT'!$G$6:$DC$253,77,FALSE) -> 24% | I10: =VLOOKUP($C10,'RECAP SECT'!$G$6:$DC$253,78,FALSE) -> 9 | J10: =VLOOKUP($C10,'RECAP SECT'!$G$6:$DC$253,79,FALSE) -> 712 | K10: =VLOOKUP($C10,'RECAP SECT'!$G$6:$DC$253,80,FALSE) -> 20.98 | L10: =VLOOKUP($C10,'RECAP SECT'!$G$6:$DC$253,81,FALSE) -> 14% | M10: =VLOOKUP($C10,'RECAP SECT'!$G$6:$DC$253,82,FALSE) -> 4 | N10: =VLOOKUP($C10,'RECAP SECT'!$G$6:$DC$253,83,FALSE) -> 21% | O10: =VLOOKUP($C10,'RECAP SECT'!$G$6:$DC$253,84,FALSE) -> 19% | P10: =VLOOKUP($C10,'RECAP SECT'!$G$6:$DC$253,85,FALSE) -> 8
A11: 50 | B11: AUBE HAUTE MARNE | C11: 14 | D11: TROYES | E11: =VLOOKUP($C11,'RECAP SECT'!$G$6:$DC$253,3,FALSE) -> 65.3 | F11: =VLOOKUP($C11,'RECAP SECT'!$G$6:$DC$253,75,FALSE) -> 4,919 | G11: =VLOOKUP($C11,'RECAP SECT'!$G$6:$DC$253,76,FALSE) -> 75.34 | H11: =VLOOKUP($C11,'RECAP SECT'!$G$6:$DC$253,77,FALSE) -> 49% | I11: =VLOOKUP($C11,'RECAP SECT'!$G$6:$DC$253,78,FALSE) -> 17 | J11: =VLOOKUP($C11,'RECAP SECT'!$G$6:$DC$253,79,FALSE) -> 1,190 | K11: =VLOOKUP($C11,'RECAP SECT'!$G$6:$DC$253,80,FALSE) -> 18.22 | L11: =VLOOKUP($C11,'RECAP SECT'!$G$6:$DC$253,81,FALSE) -> 25% | M11: =VLOOKUP($C11,'RECAP SECT'!$G$6:$DC$253,82,FALSE) -> 9 | N11: =VLOOKUP($C11,'RECAP SECT'!$G$6:$DC$253,83,FALSE) -> 41% | O11: =VLOOKUP($C11,'RECAP SECT'!$G$6:$DC$253,84,FALSE) -> 40% | P11: =VLOOKUP($C11,'RECAP SECT'!$G$6:$DC$253,85,FALSE) -> 16
A12: 262 | B12: BAS-RHIN | C12: 5060 | D12: HAGUENAU | E12: =VLOOKUP($C12,'RECAP SECT'!$G$6:$DC$253,3,FALSE) -> 71.2 | F12: =VLOOKUP($C12,'RECAP SECT'!$G$6:$DC$253,75,FALSE) -> 5,492 | G12: =VLOOKUP($C12,'RECAP SECT'!$G$6:$DC$253,76,FALSE) -> 77.17 | H12: =VLOOKUP($C12,'RECAP SECT'!$G$6:$DC$253,77,FALSE) -> 47% | I12: =VLOOKUP($C12,'RECAP SECT'!$G$6:$DC$253,78,FALSE) -> 16 | J12: =VLOOKUP($C12,'RECAP SECT'!$G$6:$DC$253,79,FALSE) -> 1,086 | K12: =VLOOKUP($C12,'RECAP SECT'!$G$6:$DC$253,80,FALSE) -> 15.26 | L12: =VLOOKUP($C12,'RECAP SECT'!$G$6:$DC$253,81,FALSE) -> 37% | M12: =VLOOKUP($C12,'RECAP SECT'!$G$6:$DC$253,82,FALSE) -> 16 | N12: =VLOOKUP($C12,'RECAP SECT'!$G$6:$DC$253,83,FALSE) -> 44% | O12: =VLOOKUP($C12,'RECAP SECT'!$G$6:$DC$253,84,FALSE) -> 43% | P12: =VLOOKUP($C12,'RECAP SECT'!$G$6:$DC$253,85,FALSE) -> 17
A13: 262 | B13: BAS-RHIN | C13: 5101 | D13: SELESTAT | E13: =VLOOKUP($C13,'RECAP SECT'!$G$6:$DC$253,3,FALSE) -> 61.1 | F13: =VLOOKUP($C13,'RECAP SECT'!$G$6:$DC$253,75,FALSE) -> 6,882 | G13: =VLOOKUP($C13,'RECAP SECT'!$G$6:$DC$253,76,FALSE) -> 112.68 | H13: =VLOOKUP($C13,'RECAP SECT'!$G$6:$DC$253,77,FALSE) -> 23% | I13: =VLOOKUP($C13,'RECAP SECT'!$G$6:$DC$253,78,FALSE) -> 8 | J13: =VLOOKUP($C13,'RECAP SECT'!$G$6:$DC$253,79,FALSE) -> 1,055 | K13: =VLOOKUP($C13,'RECAP SECT'!$G$6:$DC$253,80,FALSE) -> 17.27 | L13: =VLOOKUP($C13,'RECAP SECT'!$G$6:$DC$253,81,FALSE) -> 29% | M13: =VLOOKUP($C13,'RECAP SECT'!$G$6:$DC$253,82,FALSE) -> 13 | N13: =VLOOKUP($C13,'RECAP SECT'!$G$6:$DC$253,83,FALSE) -> 25% | O13: =VLOOKUP($C13,'RECAP SECT'!$G$6:$DC$253,84,FALSE) -> 23% | P13: =VLOOKUP($C13,'RECAP SECT'!$G$6:$DC$253,85,FALSE) -> 9
A14: 262 | B14: BAS-RHIN | C14: 5006 | D14: STRASBOURG | E14: =VLOOKUP($C14,'RECAP SECT'!$G$6:$DC$253,3,FALSE) -> 77.2 | F14: =VLOOKUP($C14,'RECAP SECT'!$G$6:$DC$253,75,FALSE) -> 9,751 | G14: =VLOOKUP($C14,'RECAP SECT'!$G$6:$DC$253,76,FALSE) -> 126.31 | H14: =VLOOKUP($C14,'RECAP SECT'!$G$6:$DC$253,77,FALSE) -> 14% | I14: =VLOOKUP($C14,'RECAP SECT'!$G$6:$DC$253,78,FALSE) -> 4 | J14: =VLOOKUP($C14,'RECAP SECT'!$G$6:$DC$253,79,FALSE) -> 1,511 | K14: =VLOOKUP($C14,'RECAP SECT'!$G$6:$DC$253,80,FALSE) -> 19.57 | L14: =VLOOKUP($C14,'RECAP SECT'!$G$6:$DC$253,81,FALSE) -> 19% | M14: =VLOOKUP($C14,'RECAP SECT'!$G$6:$DC$253,82,FALSE) -> 6 | N14: =VLOOKUP($C14,'RECAP SECT'!$G$6:$DC$253,83,FALSE) -> 15% | O14: =VLOOKUP($C14,'RECAP SECT'!$G$6:$DC$253,84,FALSE) -> 14% | P14: =VLOOKUP($C14,'RECAP SECT'!$G$6:$DC$253,85,FALSE) -> 4
A15: 264 | B15: HAUT-RHIN | C15: 5130 | D15: COLMAR | E15: =VLOOKUP($C15,'RECAP SECT'!$G$6:$DC$253,3,FALSE) -> 61.8 | F15: =VLOOKUP($C15,'RECAP SECT'!$G$6:$DC$253,75,FALSE) -> 6,679 | G15: =VLOOKUP($C15,'RECAP SECT'!$G$6:$DC$253,76,FALSE) -> 108.01 | H15: =VLOOKUP($C15,'RECAP SECT'!$G$6:$DC$253,77,FALSE) -> 26% | I15: =VLOOKUP($C15,'RECAP SECT'!$G$6:$DC$253,78,FALSE) -> 10 | J15: =VLOOKUP($C15,'RECAP SECT'!$G$6:$DC$253,79,FALSE) -> 918 | K15: =VLOOKUP($C15,'RECAP SECT'!$G$6:$DC$253,80,FALSE) -> 14.84 | L15: =VLOOKUP($C15,'RECAP SECT'!$G$6:$DC$253,81,FALSE) -> 39% | M15: =VLOOKUP($C15,'RECAP SECT'!$G$6:$DC$253,82,FALSE) -> 18 | N15: =VLOOKUP($C15,'RECAP SECT'!$G$6:$DC$253,83,FALSE) -> 30% | O15: =VLOOKUP($C15,'RECAP SECT'!$G$6:$DC$253,84,FALSE) -> 28% | P15: =VLOOKUP($C15,'RECAP SECT'!$G$6:$DC$253,85,FALSE) -> 12
A16: 264 | B16: HAUT-RHIN | C16: 5169 | D16: MULHOUSE | E16: =VLOOKUP($C16,'RECAP SECT'!$G$6:$DC$253,3,FALSE) -> 60.8 | F16: =VLOOKUP($C16,'RECAP SECT'!$G$6:$DC$253,75,FALSE) -> 3,642 | G16: =VLOOKUP($C16,'RECAP SECT'!$G$6:$DC$253,76,FALSE) -> 59.90 | H16: =VLOOKUP($C16,'RECAP SECT'!$G$6:$DC$253,77,FALSE) -> 59% | I16: =VLOOKUP($C16,'RECAP SECT'!$G$6:$DC$253,78,FALSE) -> 18 | J16: =VLOOKUP($C16,'RECAP SECT'!$G$6:$DC$253,79,FALSE) -> 998 | K16: =VLOOKUP($C16,'RECAP SECT'!$G$6:$DC$253,80,FALSE) -> 16.41 | L16: =VLOOKUP($C16,'RECAP SECT'!$G$6:$DC$253,81,FALSE) -> 32% | M16: =VLOOKUP($C16,'RECAP SECT'!$G$6:$DC$253,82,FALSE) -> 15 | N16: =VLOOKUP($C16,'RECAP SECT'!$G$6:$DC$253,83,FALSE) -> 51% | O16: =VLOOKUP($C16,'RECAP SECT'!$G$6:$DC$253,84,FALSE) -> 49% | P16: =VLOOKUP($C16,'RECAP SECT'!$G$6:$DC$253,85,FALSE) -> 18
A17: 30 | B17: MARNE-ARDENNES | C17: 6 | D17: CHALONS EN CHAMPAGNE | E17: =VLOOKUP($C17,'RECAP SECT'!$G$6:$DC$253,3,FALSE) -> 44.4 | F17: =VLOOKUP($C17,'RECAP SECT'!$G$6:$DC$253,75,FALSE) -> 5,180 | G17: =VLOOKUP($C17,'RECAP SECT'!$G$6:$DC$253,76,FALSE) -> 116.64 | H17: =VLOOKUP($C17,'RECAP SECT'!$G$6:$DC$253,77,FALSE) -> 20% | I17: =VLOOKUP($C17,'RECAP SECT'!$G$6:$DC$253,78,FALSE) -> 6 | J17: =VLOOKUP($C17,'RECAP SECT'!$G$6:$DC$253,79,FALSE) -> 906 | K17: =VLOOKUP($C17,'RECAP SECT'!$G$6:$DC$253,80,FALSE) -> 20.40 | L17: =VLOOKUP($C17,'RECAP SECT'!$G$6:$DC$253,81,FALSE) -> 16% | M17: =VLOOKUP($C17,'RECAP SECT'!$G$6:$DC$253,82,FALSE) -> 5 | N17: =VLOOKUP($C17,'RECAP SECT'!$G$6:$DC$253,83,FALSE) -> 19% | O17: =VLOOKUP($C17,'RECAP SECT'!$G$6:$DC$253,84,FALSE) -> 17% | P17: =VLOOKUP($C17,'RECAP SECT'!$G$6:$DC$253,85,FALSE) -> 7
A18: 30 | B18: MARNE-ARDENNES | C18: 2 | D18: CHARLEVILLE MEZIERES | E18: =VLOOKUP($C18,'RECAP SECT'!$G$6:$DC$253,3,FALSE) -> 55.8 | F18: =VLOOKUP($C18,'RECAP SECT'!$G$6:$DC$253,75,FALSE) -> 8,162 | G18: =VLOOKUP($C18,'RECAP SECT'!$G$6:$DC$253,76,FALSE) -> 146.30 | H18: =VLOOKUP($C18,'RECAP SECT'!$G$6:$DC$253,77,FALSE) -> 0% | I18: =VLOOKUP($C18,'RECAP SECT'!$G$6:$DC$253,78,FALSE) -> 1 | J18: =VLOOKUP($C18,'RECAP SECT'!$G$6:$DC$253,79,FALSE) -> 1,058 | K18: =VLOOKUP($C18,'RECAP SECT'!$G$6:$DC$253,80,FALSE) -> 18.96 | L18: =VLOOKUP($C18,'RECAP SECT'!$G$6:$DC$253,81,FALSE) -> 22% | M18: =VLOOKUP($C18,'RECAP SECT'!$G$6:$DC$253,82,FALSE) -> 8 | N18: =VLOOKUP($C18,'RECAP SECT'!$G$6:$DC$253,83,FALSE) -> 7% | O18: =VLOOKUP($C18,'RECAP SECT'!$G$6:$DC$253,84,FALSE) -> 5% | P18: =VLOOKUP($C18,'RECAP SECT'!$G$6:$DC$253,85,FALSE) -> 2
A19: 30 | B19: MARNE-ARDENNES | C19: 11 | D19: REIMS | E19: =VLOOKUP($C19,'RECAP SECT'!$G$6:$DC$253,3,FALSE) -> 81.4 | F19: =VLOOKUP($C19,'RECAP SECT'!$G$6:$DC$253,75,FALSE) -> 10,833 | G19: =VLOOKUP($C19,'RECAP SECT'!$G$6:$DC$253,76,FALSE) -> 133.10 | H19: =VLOOKUP($C19,'RECAP SECT'!$G$6:$DC$253,77,FALSE) -> 9% | I19: =VLOOKUP($C19,'RECAP SECT'!$G$6:$DC$253,78,FALSE) -> 3 | J19: =VLOOKUP($C19,'RECAP SECT'!$G$6:$DC$253,79,FALSE) -> 1,713 | K19: =VLOOKUP($C19,'RECAP SECT'!$G$6:$DC$253,80,FALSE) -> 21.05 | L19: =VLOOKUP($C19,'RECAP SECT'!$G$6:$DC$253,81,FALSE) -> 13% | M19: =VLOOKUP($C19,'RECAP SECT'!$G$6:$DC$253,82,FALSE) -> 3 | N19: =VLOOKUP($C19,'RECAP SECT'!$G$6:$DC$253,83,FALSE) -> 10% | O19: =VLOOKUP($C19,'RECAP SECT'!$G$6:$DC$253,84,FALSE) -> 9% | P19: =VLOOKUP($C19,'RECAP SECT'!$G$6:$DC$253,85,FALSE) -> 3
A20: 110 | B20: MEURTHE ET MOSELLE MEUSE | C20: 26 | D20: NANCY | E20: =VLOOKUP($C20,'RECAP SECT'!$G$6:$DC$253,3,FALSE) -> 67.2 | F20: =VLOOKUP($C20,'RECAP SECT'!$G$6:$DC$253,75,FALSE) -> 9,597 | G20: =VLOOKUP($C20,'RECAP SECT'!$G$6:$DC$253,76,FALSE) -> 142.83 | H20: =VLOOKUP($C20,'RECAP SECT'!$G$6:$DC$253,77,FALSE) -> 2% | I20: =VLOOKUP($C20,'RECAP SECT'!$G$6:$DC$253,78,FALSE) -> 2 | J20: =VLOOKUP($C20,'RECAP SECT'!$G$6:$DC$253,79,FALSE) -> 1,630 | K20: =VLOOKUP($C20,'RECAP SECT'!$G$6:$DC$253,80,FALSE) -> 24.26 | L20: =VLOOKUP($C20,'RECAP SECT'!$G$6:$DC$253,81,FALSE) -> 0% | M20: =VLOOKUP($C20,'RECAP SECT'!$G$6:$DC$253,82,FALSE) -> 1 | N20: =VLOOKUP($C20,'RECAP SECT'!$G$6:$DC$253,83,FALSE) -> 2% | O20: =VLOOKUP($C20,'RECAP SECT'!$G$6:$DC$253,84,FALSE) -> 0% | P20: =VLOOKUP($C20,'RECAP SECT'!$G$6:$DC$253,85,FALSE) -> 1
A21: 110 | B21: MEURTHE ET MOSELLE MEUSE | C21: 27 | D21: PONT A MOUSSON | E21: =VLOOKUP($C21,'RECAP SECT'!$G$6:$DC$253,3,FALSE) -> 76.6 | F21: =VLOOKUP($C21,'RECAP SECT'!$G$6:$DC$253,75,FALSE) -> 8,696 | G21: =VLOOKUP($C21,'RECAP SECT'!$G$6:$DC$253,76,FALSE) -> 113.48 | H21: =VLOOKUP($C21,'RECAP SECT'!$G$6:$DC$253,77,FALSE) -> 22% | I21: =VLOOKUP($C21,'RECAP SECT'!$G$6:$DC$253,78,FALSE) -> 7 | J21: =VLOOKUP($C21,'RECAP SECT'!$G$6:$DC$253,79,FALSE) -> 1,716 | K21: =VLOOKUP($C21,'RECAP SECT'!$G$6:$DC$253,80,FALSE) -> 22.39 | L21: =VLOOKUP($C21,'RECAP SECT'!$G$6:$DC$253,81,FALSE) -> 8% | M21: =VLOOKUP($C21,'RECAP SECT'!$G$6:$DC$253,82,FALSE) -> 2 | N21: =VLOOKUP($C21,'RECAP SECT'!$G$6:$DC$253,83,FALSE) -> 18% | O21: =VLOOKUP($C21,'RECAP SECT'!$G$6:$DC$253,84,FALSE) -> 16% | P21: =VLOOKUP($C21,'RECAP SECT'!$G$6:$DC$253,85,FALSE) -> 5
A22: 110 | B22: MEURTHE ET MOSELLE MEUSE | C22: 31 | D22: VERDUN | E22: =VLOOKUP($C22,'RECAP SECT'!$G$6:$DC$253,3,FALSE) -> 55.6 | F22: =VLOOKUP($C22,'RECAP SECT'!$G$6:$DC$253,75,FALSE) -> 5,772 | G22: =VLOOKUP($C22,'RECAP SECT'!$G$6:$DC$253,76,FALSE) -> 103.91 | H22: =VLOOKUP($C22,'RECAP SECT'!$G$6:$DC$253,77,FALSE) -> 29% | I22: =VLOOKUP($C22,'RECAP SECT'!$G$6:$DC$253,78,FALSE) -> 12 | J22: =VLOOKUP($C22,'RECAP SECT'!$G$6:$DC$253,79,FALSE) -> 1,058 | K22: =VLOOKUP($C22,'RECAP SECT'!$G$6:$DC$253,80,FALSE) -> 19.04 | L22: =VLOOKUP($C22,'RECAP SECT'!$G$6:$DC$253,81,FALSE) -> 21% | M22: =VLOOKUP($C22,'RECAP SECT'!$G$6:$DC$253,82,FALSE) -> 7 | N22: =VLOOKUP($C22,'RECAP SECT'!$G$6:$DC$253,83,FALSE) -> 27% | O22: =VLOOKUP($C22,'RECAP SECT'!$G$6:$DC$253,84,FALSE) -> 25% | P22: =VLOOKUP($C22,'RECAP SECT'!$G$6:$DC$253,85,FALSE) -> 10
A23: 160 | B23: MOSELLE | C23: 45 | D23: METZ | E23: =VLOOKUP($C23,'RECAP SECT'!$G$6:$DC$253,3,FALSE) -> 90.5 | F23: =VLOOKUP($C23,'RECAP SECT'!$G$6:$DC$253,75,FALSE) -> 8,729 | G23: =VLOOKUP($C23,'RECAP SECT'!$G$6:$DC$253,76,FALSE) -> 96.41 | H23: =VLOOKUP($C23,'RECAP SECT'!$G$6:$DC$253,77,FALSE) -> 34% | I23: =VLOOKUP($C23,'RECAP SECT'!$G$6:$DC$253,78,FALSE) -> 15 | J23: =VLOOKUP($C23,'RECAP SECT'!$G$6:$DC$253,79,FALSE) -> 1,641 | K23: =VLOOKUP($C23,'RECAP SECT'!$G$6:$DC$253,80,FALSE) -> 18.12 | L23: =VLOOKUP($C23,'RECAP SECT'!$G$6:$DC$253,81,FALSE) -> 25% | M23: =VLOOKUP($C23,'RECAP SECT'!$G$6:$DC$253,82,FALSE) -> 11 | N23: =VLOOKUP($C23,'RECAP SECT'!$G$6:$DC$253,83,FALSE) -> 31% | O23: =VLOOKUP($C23,'RECAP SECT'!$G$6:$DC$253,84,FALSE) -> 30% | P23: =VLOOKUP($C23,'RECAP SECT'!$G$6:$DC$253,85,FALSE) -> 13
A24: 160 | B24: MOSELLE | C24: 42 | D24: MOSELLE EST | E24: =VLOOKUP($C24,'RECAP SECT'!$G$6:$DC$253,3,FALSE) -> 70.1 | F24: =VLOOKUP($C24,'RECAP SECT'!$G$6:$DC$253,75,FALSE) -> 6,821 | G24: =VLOOKUP($C24,'RECAP SECT'!$G$6:$DC$253,76,FALSE) -> 97.29 | H24: =VLOOKUP($C24,'RECAP SECT'!$G$6:$DC$253,77,FALSE) -> 34% | I24: =VLOOKUP($C24,'RECAP SECT'!$G$6:$DC$253,78,FALSE) -> 14 | J24: =VLOOKUP($C24,'RECAP SECT'!$G$6:$DC$253,79,FALSE) -> 1,170 | K24: =VLOOKUP($C24,'RECAP SECT'!$G$6:$DC$253,80,FALSE) -> 16.69 | L24: =VLOOKUP($C24,'RECAP SECT'!$G$6:$DC$253,81,FALSE) -> 31% | M24: =VLOOKUP($C24,'RECAP SECT'!$G$6:$DC$253,82,FALSE) -> 14 | N24: =VLOOKUP($C24,'RECAP SECT'!$G$6:$DC$253,83,FALSE) -> 33% | O24: =VLOOKUP($C24,'RECAP SECT'!$G$6:$DC$253,84,FALSE) -> 31% | P24: =VLOOKUP($C24,'RECAP SECT'!$G$6:$DC$253,85,FALSE) -> 14
A25: 160 | B25: MOSELLE | C25: 44 | D25: MOSELLE NORD | E25: =VLOOKUP($C25,'RECAP SECT'!$G$6:$DC$253,3,FALSE) -> 67.1 | F25: =VLOOKUP($C25,'RECAP SECT'!$G$6:$DC$253,75,FALSE) -> 7,107 | G25: =VLOOKUP($C25,'RECAP SECT'!$G$6:$DC$253,76,FALSE) -> 105.87 | H25: =VLOOKUP($C25,'RECAP SECT'!$G$6:$DC$253,77,FALSE) -> 28% | I25: =VLOOKUP($C25,'RECAP SECT'!$G$6:$DC$253,78,FALSE) -> 11 | J25: =VLOOKUP($C25,'RECAP SECT'!$G$6:$DC$253,79,FALSE) -> 1,223 | K25: =VLOOKUP($C25,'RECAP SECT'!$G$6:$DC$253,80,FALSE) -> 18.22 | L25: =VLOOKUP($C25,'RECAP SECT'!$G$6:$DC$253,81,FALSE) -> 25% | M25: =VLOOKUP($C25,'RECAP SECT'!$G$6:$DC$253,82,FALSE) -> 10 | N25: =VLOOKUP($C25,'RECAP SECT'!$G$6:$DC$253,83,FALSE) -> 27% | O25: =VLOOKUP($C25,'RECAP SECT'!$G$6:$DC$253,84,FALSE) -> 25% | P25: =VLOOKUP($C25,'RECAP SECT'!$G$6:$DC$253,85,FALSE) -> 11
A26: 80 | B26: VOSGES | C26: 57 | D26: EPINAL | E26: =VLOOKUP($C26,'RECAP SECT'!$G$6:$DC$253,3,FALSE) -> 61.3 | F26: =VLOOKUP($C26,'RECAP SECT'!$G$6:$DC$253,75,FALSE) -> 7,677 | G26: =VLOOKUP($C26,'RECAP SECT'!$G$6:$DC$253,76,FALSE) -> 125.32 | H26: =VLOOKUP($C26,'RECAP SECT'!$G$6:$DC$253,77,FALSE) -> 14% | I26: =VLOOKUP($C26,'RECAP SECT'!$G$6:$DC$253,78,FALSE) -> 5 | J26: =VLOOKUP($C26,'RECAP SECT'!$G$6:$DC$253,79,FALSE) -> 1,086 | K26: =VLOOKUP($C26,'RECAP SECT'!$G$6:$DC$253,80,FALSE) -> 17.73 | L26: =VLOOKUP($C26,'RECAP SECT'!$G$6:$DC$253,81,FALSE) -> 27% | M26: =VLOOKUP($C26,'RECAP SECT'!$G$6:$DC$253,82,FALSE) -> 12 | N26: =VLOOKUP($C26,'RECAP SECT'!$G$6:$DC$253,83,FALSE) -> 18% | O26: =VLOOKUP($C26,'RECAP SECT'!$G$6:$DC$253,84,FALSE) -> 16% | P26: =VLOOKUP($C26,'RECAP SECT'!$G$6:$DC$253,85,FALSE) -> 6
A27: 80 | B27: VOSGES | C27: 55 | D27: SAINT DIE | E27: =VLOOKUP($C27,'RECAP SECT'!$G$6:$DC$253,3,FALSE) -> 47.3 | F27: =VLOOKUP($C27,'RECAP SECT'!$G$6:$DC$253,75,FALSE) -> 4,642 | G27: =VLOOKUP($C27,'RECAP SECT'!$G$6:$DC$253,76,FALSE) -> 98.24 | H27: =VLOOKUP($C27,'RECAP SECT'!$G$6:$DC$253,77,FALSE) -> 33% | I27: =VLOOKUP($C27,'RECAP SECT'!$G$6:$DC$253,78,FALSE) -> 13 | J27: =VLOOKUP($C27,'RECAP SECT'!$G$6:$DC$253,79,FALSE) -> 720 | K27: =VLOOKUP($C27,'RECAP SECT'!$G$6:$DC$253,80,FALSE) -> 15.24 | L27: =VLOOKUP($C27,'RECAP SECT'!$G$6:$DC$253,81,FALSE) -> 37% | M27: =VLOOKUP($C27,'RECAP SECT'!$G$6:$DC$253,82,FALSE) -> 17 | N27: =VLOOKUP($C27,'RECAP SECT'!$G$6:$DC$253,83,FALSE) -> 34% | O27: =VLOOKUP($C27,'RECAP SECT'!$G$6:$DC$253,84,FALSE) -> 32% | P27: =VLOOKUP($C27,'RECAP SECT'!$G$6:$DC$253,85,FALSE) -> 15
A28: Total CEGEE Directions Régionales | E28: =SUM(E10:E27) -> 1149

Sheet SE_SATISFACTION
B1: Accueil | F1: BAROMETRE BDD - TERRITOIRES
F2: SATISFACTION
F3: =ACCUEIL!F7 -> 2021-05-16
F7: NPS à froid (SAE) | I7: NPS à chaud (QHD) | L7: Total Satisfaction Clients
F8: =DATEMAJ!E4 -> au 31/03 | G8: coef | H8: ='RECAP DIRCOM'!M4 -> 10% | I8: =DATEMAJ!C5 -> au 31/03 | J8: coef | K8: ='RECAP DIRCOM'!P4 -> 10% | M8: coef | N8: ='RECAP DIRCOM'!S4 -> 20%
B9: Direction | C9: eds | D9: Territoire | E9: ="ETP perf "&DATEMAJ!$C$28 -> ETP perf 31-mars | G9: % Ecart au 1er | H9: Rang | J9: % Ecart au 1er | K9: Rang | L9: Moyenne ecart au 1er | M9: % Ecart au 1er | N9: Rang CEGEE
A10: 50 | B10: AUBE HAUTE MARNE | C10: 21 | D10: CHAUMONT | E10: =VLOOKUP($C10,'RECAP SECT'!$G$6:$DC$253,3,FALSE) -> 33.9 | F10: =VLOOKUP($C10,'RECAP SECT'!$G$6:$DC$253,5,FALSE) -> 13 | G10: =VLOOKUP($C10,'RECAP SECT'!$G$6:$DC$253,6,FALSE) -> 41% | H10: =VLOOKUP($C10,'RECAP SECT'!$G$6:$DC$253,7,FALSE) -> 8 | I10: =VLOOKUP($C10,'RECAP SECT'!$G$6:$DC$253,8,FALSE) -> 64% | J10: =VLOOKUP($C10,'RECAP SECT'!$G$6:$DC$253,9,FALSE) -> 9% | K10: =VLOOKUP($C10,'RECAP SECT'!$G$6:$DC$253,10,FALSE) -> 4 | L10: =VLOOKUP($C10,'RECAP SECT'!$G$6:$DC$253,11,FALSE) -> 25% | M10: =VLOOKUP($C10,'RECAP SECT'!$G$6:$DC$253,12,FALSE) -> 20% | N10: =VLOOKUP($C10,'RECAP SECT'!$G$6:$DC$253,13,FALSE) -> 8
A11: 50 | B11: AUBE HAUTE MARNE | C11: 14 | D11: TROYES | E11: =VLOOKUP($C11,'RECAP SECT'!$G$6:$DC$253,3,FALSE) -> 65.3 | F11: =VLOOKUP($C11,'RECAP SECT'!$G$6:$DC$253,5,FALSE) -> 18 | G11: =VLOOKUP($C11,'RECAP SECT'!$G$6:$DC$253,6,FALSE) -> 18% | H11: =VLOOKUP($C11,'RECAP SECT'!$G$6:$DC$253,7,FALSE) -> 3 | I11: =VLOOKUP($C11,'RECAP SECT'!$G$6:$DC$253,8,FALSE) -> 52% | J11: =VLOOKUP($C11,'RECAP SECT'!$G$6:$DC$253,9,FALSE) -> 27% | K11: =VLOOKUP($C11,'RECAP SECT'!$G$6:$DC$253,10,FALSE) -> 12 | L11: =VLOOKUP($C11,'RECAP SECT'!$G$6:$DC$253,11,FALSE) -> 22% | M11: =VLOOKUP($C11,'RECAP SECT'!$G$6:$DC$253,12,FALSE) -> 18% | N11: =VLOOKUP($C11,'RECAP SECT'!$G$6:$DC$253,13,FALSE) -> 6
A12: 262 | B12: BAS-RHIN | C12: 5060 | D12: HAGUENAU | E12: =VLOOKUP($C12,'RECAP SECT'!$G$6:$DC$253,3,FALSE) -> 71.2 | F12: =VLOOKUP($C12,'RECAP SECT'!$G$6:$DC$253,5,FALSE) -> 11 | G12: =VLOOKUP($C12,'RECAP SECT'!$G$6:$DC$253,6,FALSE) -> 50% | H12: =VLOOKUP($C12,'RECAP SECT'!$G$6:$DC$253,7,FALSE) -> 9 | I12: =VLOOKUP($C12,'RECAP SECT'!$G$6:$DC$253,8,FALSE) -> 55% | J12: =VLOOKUP($C12,'RECAP SECT'!$G$6:$DC$253,9,FALSE) -> 22% | K12: =VLOOKUP($C12,'RECAP SECT'!$G$6:$DC$253,10,FALSE) -> 11 | L12: =VLOOKUP($C12,'RECAP SECT'!$G$6:$DC$253,11,FALSE) -> 36% | M12: =VLOOKUP($C12,'RECAP SECT'!$G$6:$DC$253,12,FALSE) -> 31% | N12: =VLOOKUP($C12,'RECAP SECT'!$G$6:$DC$253,13,FALSE) -> 10
A13: 262 | B13: BAS-RHIN | C13: 5101 | D13: SELESTAT | E13: =VLOOKUP($C13,'RECAP SECT'!$G$6:$DC$253,3,FALSE) -> 61.1 | F13: =VLOOKUP($C13,'RECAP SECT'!$G$6:$DC$253,5,FALSE) -> 6 | G13: =VLOOKUP($C13,'RECAP SECT'!$G$6:$DC$253,6,FALSE) -> 73% | H13: =VLOOKUP($C13,'RECAP SECT'!$G$6:$DC$253,7,FALSE) -> 17 | I13: =VLOOKUP($C13,'RECAP SECT'!$G$6:$DC$253,8,FALSE) -> 50% | J13: =VLOOKUP($C13,'RECAP SECT'!$G$6:$DC$253,9,FALSE) -> 29% | K13: =VLOOKUP($C13,'RECAP SECT'!$G$6:$DC$253,10,FALSE) -> 13 | L13: =VLOOKUP($C13,'RECAP SECT'!$G$6:$DC$253,11,FALSE) -> 51% | M13: =VLOOKUP($C13,'RECAP SECT'!$G$6:$DC$253,12,FALSE) -> 46% | N13: =VLOOKUP($C13,'RECAP SECT'!$G$6:$DC$253,13,FALSE) -> 17
A14: 262 | B14: BAS-RHIN | C14: 5006 | D14: STRASBOURG | E14: =VLOOKUP($C14,'RECAP SECT'!$G$6:$DC$253,3,FALSE) -> 77.2 | F14: =VLOOKUP($C14,'RECAP SECT'!$G$6:$DC$253,5,FALSE) -> 8 | G14: =VLOOKUP($C14,'RECAP SECT'!$G$6:$DC$253,6,FALSE) -> 64% | H14: =VLOOKUP($C14,'RECAP SECT'!$G$6:$DC$253,7,FALSE) -> 14 | I14: =VLOOKUP($C14,'RECAP SECT'!$G$6:$DC$253,8,FALSE) -> 48% | J14: =VLOOKUP($C14,'RECAP SECT'!$G$6:$DC$253,9,FALSE) -> 32% | K14: =VLOOKUP($C14,'RECAP SECT'!$G$6:$DC$253,10,FALSE) -> 15 | L14: =VLOOKUP($C14,'RECAP SECT'!$G$6:$DC$253,11,FALSE) -> 48% | M14: =VLOOKUP($C14,'RECAP SECT'!$G$6:$DC$253,12,FALSE) -> 43% | N14: =VLOOKUP($C14,'RECAP SECT'!$G$6:$DC$253,13,FALSE) -> 15
A15: 264 | B15: HAUT-RHIN | C15: 5130 | D15: COLMAR | E15: =VLOOKUP($C15,'RECAP SECT'!$G$6:$DC$253,3,FALSE) -> 61.8 | F15: =VLOOKUP($C15,'RECAP SECT'!$G$6:$DC$253,5,FALSE) -> 9 | G15: =VLOOKUP($C15,'RECAP SECT'!$G$6:$DC$253,6,FALSE) -> 59% | H15: =VLOOKUP($C15,'RECAP SECT'!$G$6:$DC$253,7,FALSE) -> 13 | I15: =VLOOKUP($C15,'RECAP SECT'!$G$6:$DC$253,8,FALSE) -> 46% | J15: =VLOOKUP($C15,'RECAP SECT'!$G$6:$DC$253,9,FALSE) -> 35% | K15: =VLOOKUP($C15,'RECAP SECT'!$G$6:$DC$253,10,FALSE) -> 17 | L15: =VLOOKUP($C15,'RECAP SECT'!$G$6:$DC$253,11,FALSE) -> 47% | M15: =VLOOKUP($C15,'RECAP SECT'!$G$6:$DC$253,12,FALSE) -> 42% | N15: =VLOOKUP($C15,'RECAP SECT'!$G$6:$DC$253,13,FALSE) -> 14
A16: 264 | B16: HAUT-RHIN | C16: 5169 | D16: MULHOUSE | E16: =VLOOKUP($C16,'RECAP SECT'!$G$6:$DC$253,3,FALSE) -> 60.8 | F16: =VLOOKUP($C16,'RECAP SECT'!$G$6:$DC$253,5,FALSE) -> 1 | G16: =VLOOKUP($C16,'RECAP SECT'!$G$6:$DC$253,6,FALSE) -> 95% | H16: =VLOOKUP($C16,'RECAP SECT'!$G$6:$DC$253,7,FALSE) -> 18 | I16: =VLOOKUP($C16,'RECAP SECT'!$G$6:$DC$253,8,FALSE) -> 26% | J16: =VLOOKUP($C16,'RECAP SECT'!$G$6:$DC$253,9,FALSE) -> 63% | K16: =VLOOKUP($C16,'RECAP SECT'!$G$6:$DC$253,10,FALSE) -> 18 | L16: =VLOOKUP($C16,'RECAP SECT'!$G$6:$DC$253,11,FALSE) -> 79% | M16: =VLOOKUP($C16,'RECAP SECT'!$G$6:$DC$253,12,FALSE) -> 74% | N16: =VLOOKUP($C16,'RECAP SECT'!$G$6:$DC$253,13,FALSE) -> 18
A17: 30 | B17: MARNE-ARDENNES | C17: 6 | D17: CHALONS EN CHAMPAGNE | E17: =VLOOKUP($C17,'RECAP SECT'!$G$6:$DC$253,3,FALSE) -> 44.4 | F17: =VLOOKUP($C17,'RECAP SECT'!$G$6:$DC$253,5,FALSE) -> 18 | G17: =VLOOKUP($C17,'RECAP SECT'!$G$6:$DC$253,6,FALSE) -> 18% | H17: =VLOOKUP($C17,'RECAP SECT'!$G$6:$DC$253,7,FALSE) -> 3 | I17: =VLOOKUP($C17,'RECAP SECT'!$G$6:$DC$253,8,FALSE) -> 70% | J17: =VLOOKUP($C17,'RECAP SECT'!$G$6:$DC$253,9,FALSE) -> 0% | K17: =VLOOKUP($C17,'RECAP SECT'!$G$6:$DC$253,10,FALSE) -> 1 | L17: =VLOOKUP($C17,'RECAP SECT'!$G$6:$DC$253,11,FALSE) -> 9% | M17: =VLOOKUP($C17,'RECAP SECT'!$G$6:$DC$253,12,FALSE) -> 4% | N17: =VLOOKUP($C17,'RECAP SECT'!$G$6:$DC$253,13,FALSE) -> 3
A18: 30 | B18: MARNE-ARDENNES | C18: 2 | D18: CHARLEVILLE MEZIERES | E18: =VLOOKUP($C18,'RECAP SECT'!$G$6:$DC$253,3,FALSE) -> 55.8 | F18: =VLOOKUP($C18,'RECAP SECT'!$G$6:$DC$253,5,FALSE) -> 22 | G18: =VLOOKUP($C18,'RECAP SECT'!$G$6:$DC$253,6,FALSE) -> 0% | H18: =VLOOKUP($C18,'RECAP SECT'!$G$6:$DC$253,7,FALSE) -> 1 | I18: =VLOOKUP($C18,'RECAP SECT'!$G$6:$DC$253,8,FALSE) -> 64% | J18: =VLOOKUP($C18,'RECAP SECT'!$G$6:$DC$253,9,FALSE) -> 9% | K18: =VLOOKUP($C18,'RECAP SECT'!$G$6:$DC$253,10,FALSE) -> 5 | L18: =VLOOKUP($C18,'RECAP SECT'!$G$6:$DC$253,11,FALSE) -> 5% | M18: =VLOOKUP($C18,'RECAP SECT'!$G$6:$DC$253,12,FALSE) -> 0% | N18: =VLOOKUP($C18,'RECAP SECT'!$G$6:$DC$253,13,FALSE) -> 1
A19: 30 | B19: MARNE-ARDENNES | C19: 11 | D19: REIMS | E19: =VLOOKUP($C19,'RECAP SECT'!$G$6:$DC$253,3,FALSE) -> 81.4 | F19: =VLOOKUP($C19,'RECAP SECT'!$G$6:$DC$253,5,FALSE) -> 8 | G19: =VLOOKUP($C19,'RECAP SECT'!$G$6:$DC$253,6,FALSE) -> 64% | H19: =VLOOKUP($C19,'RECAP SECT'!$G$6:$DC$253,7,FALSE) -> 14 | I19: =VLOOKUP($C19,'RECAP SECT'!$G$6:$DC$253,8,FALSE) -> 59% | J19: =VLOOKUP($C19,'RECAP SECT'!$G$6:$DC$253,9,FALSE) -> 17% | K19: =VLOOKUP($C19,'RECAP SECT'!$G$6:$DC$253,10,FALSE) -> 8 | L19: =VLOOKUP($C19,'RECAP SECT'!$G$6:$DC$253,11,FALSE) -> 40% | M19: =VLOOKUP($C19,'RECAP SECT'!$G$6:$DC$253,12,FALSE) -> 35% | N19: =VLOOKUP($C19,'RECAP SECT'!$G$6:$DC$253,13,FALSE) -> 12
A20: 110 | B20: MEURTHE ET MOSELLE MEUSE | C20: 26 | D20: NANCY | E20: =VLOOKUP($C20,'RECAP SECT'!$G$6:$DC$253,3,FALSE) -> 67.2 | F20: =VLOOKUP($C20,'RECAP SECT'!$G$6:$DC$253,5,FALSE) -> 11 | G20: =VLOOKUP($C20,'RECAP SECT'!$G$6:$DC$253,6,FALSE) -> 50% | H20: =VLOOKUP($C20,'RECAP SECT'!$G$6:$DC$253,7,FALSE) -> 9 | I20: =VLOOKUP($C20,'RECAP SECT'!$G$6:$DC$253,8,FALSE) -> 56% | J20: =VLOOKUP($C20,'RECAP SECT'!$G$6:$DC$253,9,FALSE) -> 21% | K20: =VLOOKUP($C20,'RECAP SECT'!$G$6:$DC$253,10,FALSE) -> 10 | L20: =VLOOKUP($C20,'RECAP SECT'!$G$6:$DC$253,11,FALSE) -> 35% | M20: =VLOOKUP($C20,'RECAP SECT'!$G$6:$DC$253,12,FALSE) -> 31% | N20: =VLOOKUP($C20,'RECAP SECT'!$G$6:$DC$253,13,FALSE) -> 9
A21: 110 | B21: MEURTHE ET MOSELLE MEUSE | C21: 27 | D21: PONT A MOUSSON | E21: =VLOOKUP($C21,'RECAP SECT'!$G$6:$DC$253,3,FALSE) -> 76.6 | F21: =VLOOKUP($C21,'RECAP SECT'!$G$6:$DC$253,5,FALSE) -> 7 | G21: =VLOOKUP($C21,'RECAP SECT'!$G$6:$DC$253,6,FALSE) -> 68% | H21: =VLOOKUP($C21,'RECAP SECT'!$G$6:$DC$253,7,FALSE) -> 16 | I21: =VLOOKUP($C21,'RECAP SECT'!$G$6:$DC$253,8,FALSE) -> 49% | J21: =VLOOKUP($C21,'RECAP SECT'!$G$6:$DC$253,9,FALSE) -> 31% | K21: =VLOOKUP($C21,'RECAP SECT'!$G$6:$DC$253,10,FALSE) -> 14 | L21: =VLOOKUP($C21,'RECAP SECT'!$G$6:$DC$253,11,FALSE) -> 50% | M21: =VLOOKUP($C21,'RECAP SECT'!$G$6:$DC$253,12,FALSE) -> 45% | N21: =VLOOKUP($C21,'RECAP SECT'!$G$6:$DC$253,13,FALSE) -> 16
A22: 110 | B22: MEURTHE ET MOSELLE MEUSE | C22: 31 | D22: VERDUN | E22: =VLOOKUP($C22,'RECAP SECT'!$G$6:$DC$253,3,FALSE) -> 55.6 | F22: =VLOOKUP($C22,'RECAP SECT'!$G$6:$DC$253,5,FALSE) -> 14 | G22: =VLOOKUP($C22,'RECAP SECT'!$G$6:$DC$253,6,FALSE) -> 36% | H22: =VLOOKUP($C22,'RECAP SECT'!$G$6:$DC$253,7,FALSE) -> 7 | I22: =VLOOKUP($C22,'RECAP SECT'!$G$6:$DC$253,8,FALSE) -> 62% | J22: =VLOOKUP($C22,'RECAP SECT'!$G$6:$DC$253,9,FALSE) -> 12% | K22: =VLOOKUP($C22,'RECAP SECT'!$G$6:$DC$253,10,FALSE) -> 6 | L22: =VLOOKUP($C22,'RECAP SECT'!$G$6:$DC$253,11,FALSE) -> 24% | M22: =VLOOKUP($C22,'RECAP SECT'!$G$6:$DC$253,12,FALSE) -> 20% | N22: =VLOOKUP($C22,'RECAP SECT'!$G$6:$DC$253,13,FALSE) -> 7
A23: 160 | B23: MOSELLE | C23: 45 | D23: METZ | E23: =VLOOKUP($C23,'RECAP SECT'!$G$6:$DC$253,3,FALSE) -> 90.5 | F23: =VLOOKUP($C23,'RECAP SECT'!$G$6:$DC$253,5,FALSE) -> 10 | G23: =VLOOKUP($C23,'RECAP SECT'!$G$6:$DC$253,6,FALSE) -> 55% | H23: =VLOOKUP($C23,'RECAP SECT'!$G$6:$DC$253,7,FALSE) -> 12 | I23: =VLOOKUP($C23,'RECAP SECT'!$G$6:$DC$253,8,FALSE) -> 56% | J23: =VLOOKUP($C23,'RECAP SECT'!$G$6:$DC$253,9,FALSE) -> 20% | K23: =VLOOKUP($C23,'RECAP SECT'!$G$6:$DC$253,10,FALSE) -> 9 | L23: =VLOOKUP($C23,'RECAP SECT'!$G$6:$DC$253,11,FALSE) -> 37% | M23: =VLOOKUP($C23,'RECAP SECT'!$G$6:$DC$253,12,FALSE) -> 33% | N23: =VLOOKUP($C23,'RECAP SECT'!$G$6:$DC$253,13,FALSE) -> 11
A24: 160 | B24: MOSELLE | C24: 42 | D24: MOSELLE EST | E24: =VLOOKUP($C24,'RECAP SECT'!$G$6:$DC$253,3,FALSE) -> 70.1 | F24: =VLOOKUP($C24,'RECAP SECT'!$G$6:$DC$253,5,FALSE) -> 18 | G24: =VLOOKUP($C24,'RECAP SECT'!$G$6:$DC$253,6,FALSE) -> 18% | H24: =VLOOKUP($C24,'RECAP SECT'!$G$6:$DC$253,7,FALSE) -> 3 | I24: =VLOOKUP($C24,'RECAP SECT'!$G$6:$DC$253,8,FALSE) -> 60% | J24: =VLOOKUP($C24,'RECAP SECT'!$G$6:$DC$253,9,FALSE) -> 14% | K24: =VLOOKUP($C24,'RECAP SECT'!$G$6:$DC$253,10,FALSE) -> 7 | L24: =VLOOKUP($C24,'RECAP SECT'!$G$6:$DC$253,11,FALSE) -> 16% | M24: =VLOOKUP($C24,'RECAP SECT'!$G$6:$DC$253,12,FALSE) -> 12% | N24: =VLOOKUP($C24,'RECAP SECT'!$G$6:$DC$253,13,FALSE) -> 5
A25: 160 | B25: MOSELLE | C25: 44 | D25: MOSELLE NORD | E25: =VLOOKUP($C25,'RECAP SECT'!$G$6:$DC$253,3,FALSE) -> 67.1 | F25: =VLOOKUP($C25,'RECAP SECT'!$G$6:$DC$253,5,FALSE) -> 11 | G25: =VLOOKUP($C25,'RECAP SECT'!$G$6:$DC$253,6,FALSE) -> 50% | H25: =VLOOKUP($C25,'RECAP SECT'!$G$6:$DC$253,7,FALSE) -> 9 | I25: =VLOOKUP($C25,'RECAP SECT'!$G$6:$DC$253,8,FALSE) -> 48% | J25: =VLOOKUP($C25,'RECAP SECT'!$G$6:$DC$253,9,FALSE) -> 32% | K25: =VLOOKUP($C25,'RECAP SECT'!$G$6:$DC$253,10,FALSE) -> 16 | L25: =VLOOKUP($C25,'RECAP SECT'!$G$6:$DC$253,11,FALSE) -> 41% | M25: =VLOOKUP($C25,'RECAP SECT'!$G$6:$DC$253,12,FALSE) -> 36% | N25: =VLOOKUP($C25,'RECAP SECT'!$G$6:$DC$253,13,FALSE) -> 13
A26: 80 | B26: VOSGES | C26: 57 | D26: EPINAL | E26: =VLOOKUP($C26,'RECAP SECT'!$G$6:$DC$253,3,FALSE) -> 61.3 | F26: =VLOOKUP($C26,'RECAP SECT'!$G$6:$DC$253,5,FALSE) -> 20 | G26: =VLOOKUP($C26,'RECAP SECT'!$G$6:$DC$253,6,FALSE) -> 9% | H26: =VLOOKUP($C26,'RECAP SECT'!$G$6:$DC$253,7,FALSE) -> 2 | I26: =VLOOKUP($C26,'RECAP SECT'!$G$6:$DC$253,8,FALSE) -> 66% | J26: =VLOOKUP($C26,'RECAP SECT'!$G$6:$DC$253,9,FALSE) -> 6% | K26: =VLOOKUP($C26,'RECAP SECT'!$G$6:$DC$253,10,FALSE) -> 3 | L26: =VLOOKUP($C26,'RECAP SECT'!$G$6:$DC$253,11,FALSE) -> 8% | M26: =VLOOKUP($C26,'RECAP SECT'!$G$6:$DC$253,12,FALSE) -> 3% | N26: =VLOOKUP($C26,'RECAP SECT'!$G$6:$DC$253,13,FALSE) -> 2
A27: 80 | B27: VOSGES | C27: 55 | D27: SAINT DIE | E27: =VLOOKUP($C27,'RECAP SECT'!$G$6:$DC$253,3,FALSE) -> 47.3 | F27: =VLOOKUP($C27,'RECAP SECT'!$G$6:$DC$253,5,FALSE) -> 18 | G27: =VLOOKUP($C27,'RECAP SECT'!$G$6:$DC$253,6,FALSE) -> 18% | H27: =VLOOKUP($C27,'RECAP SECT'!$G$6:$DC$253,7,FALSE) -> 3 | I27: =VLOOKUP($C27,'RECAP SECT'!$G$6:$DC$253,8,FALSE) -> 68% | J27: =VLOOKUP($C27,'RECAP SECT'!$G$6:$DC$253,9,FALSE) -> 3% | K27: =VLOOKUP($C27,'RECAP SECT'!$G$6:$DC$253,10,FALSE) -> 2 | L27: =VLOOKUP($C27,'RECAP SECT'!$G$6:$DC$253,11,FALSE) -> 11% | M27: =VLOOKUP($C27,'RECAP SECT'!$G$6:$DC$253,12,FALSE) -> 6% | N27: =VLOOKUP($C27,'RECAP SECT'!$G$6:$DC$253,13,FALSE) -> 4
A28: Total CEGEE Directions Régionales | E28: =SUM(E10:E27) -> 1149

Sheet AG_CLASS
B1: Accueil | H1: BAROMETRE BDD - AGENCES
H2: CLASSEMENTS
H3: =ACCUEIL!F7 -> 2021-05-16
H8: CLASSEMENT GENERAL | I8: CRITERE Satisfaction Clients | J8: NPS à froid (SAE) | K8: NPS à chaud (QHD) | L8: CRITERE BANCARISATION | M8: Ventes Nettes produits pondérés | N8: Ventes sur client non détenteur de l’univers | O8: Mobilité Macron | P8: Remises commerciales | Q8: CRITERE EPARGNE | R8: Excédent Epargne y/c DAV pondéré | S8: Ventes sur client non détenteur de l’univers | T8: CRITERE IARD PREVOYANCE | U8: Ventes Nettes produits pondérés | V8: Ventes sur client non détenteur de l’univers | W8: CRITERE CREDITS | X8: Engagements et ventes accessoires pondérés Immo | Y8: Engagements et ventes accessoires pondérés Conso | Z8: Ventes sur client non détenteur de l’univers
B9: Direction | C9: eds | D9: Territoire | E9: eds | F9: Agence | G9: ="ETP perf "&DATEMAJ!$C$28 -> ETP perf 31-mars | H9: Rang | I9: Rang | J9: Rang | K9: Rang | L9: Rang | M9: Rang | N9: Rang | O9: Rang | P9: Rang | Q9: Rang | R9: Rang | S9: Rang | T9: Rang | U9: Rang | V9: Rang | W9: Rang | X9: Rang | Y9: Rang | Z9: Rang
A10: 50 | B10: MEURTHE ET MOSELLE MEUSE | C10: 26 | D10: NANCY | E10: 454481 | F10: NANCY PLACE DOMBASLE | G10: 12.2 | H10: 1 | I10: 70 | J10: 63 | K10: 106 | L10: 2 | M10: 4 | N10: 1 | O10: 1 | P10: 204 | Q10: 9 | R10: 32 | S10: 3 | T10: 3 | U10: 3 | V10: 3 | W10: 2 | X10: 2 | Y10: 77 | Z10: 2
A11: 50 | B11: MEURTHE ET MOSELLE MEUSE | C11: 27 | D11: PONT A MOUSSON | E11: 554531 | F11: POMPEY | G11: 2.9 | H11: 2 | I11: 97 | J11: 118 | K11: 80 | L11: 1 | M11: 1 | N11: 6 | O11: 5 | P11: 28 | Q11: 6 | R11: 21 | S11: 4 | T11: 15 | U11: 19 | V11: 18 | W11: 7 | X11: 7 | Y11: 8 | Z11: 8
A12: 50 | B12: MEURTHE ET MOSELLE MEUSE | C12: 26 | D12: NANCY | E12: 554356 | F12: JARVILLE LA MALGRANGE | G12: 3.9 | H12: 3 | I12: 58 | J12: 48 | K12: 108 | L12: 5 | M12: 16 | N12: 5 | O12: 2 | P12: 153 | Q12: 65 | R12: 55 | S12: 117 | T12: 8 | U12: 12 | V12: 16 | W12: 5 | X12: 3 | Y12: 168 | Z12: 3
A13: 50 | B13: MARNE-ARDENNES | C13: 2 | D13: CHARLEVILLE MEZIERES | E13: 508820 | F13: VOUZIERS | G13: 2.9 | H13: 4 | I13: 59 | J13: 35 | K13: 127 | L13: 167 | M13: 204 | N13: 10 | O13: 23 | P13: 221 | Q13: 52 | R13: 45 | S13: 112 | T13: 1 | U13: 1 | V13: 4 | W13: 11 | X13: 28 | Y13: 30 | Z13: 7
A14: 50 | B14: MEURTHE ET MOSELLE MEUSE | C14: 27 | D14: PONT A MOUSSON | E14: 454651 | F14: TOUL | G14: 9.7 | H14: 5 | I14: 219 | J14: 77 | K14: 261 | L14: 8 | M14: 10 | N14: 3 | O14: 3 | P14: 248 | Q14: 70 | R14: 78 | S14: 75 | T14: 21 | U14: 36 | V14: 6 | W14: 1 | X14: 1 | Y14: 5 | Z14: 1
A15: 50 | B15: MARNE-ARDENNES | C15: 6 | D15: CHALONS EN CHAMPAGNE | E15: 451115 | F15: MOURMELON LE GRAND | G15: 2.8 | H15: 6 | I15: 31 | J15: 73 | K15: 13 | L15: 53 | M15: 55 | N15: 31 | O15: 4 | P15: 261 | Q15: 15 | R15: 119 | S15: 1 | T15: 16 | U15: 21 | V15: 19 | W15: 17 | X15: 68 | Y15: 10 | Z15: 20
A16: 50 | B16: MARNE-ARDENNES | C16: 11 | D16: REIMS | E16: 451336 | F16: TINQUEUX | G16: 5.6 | H16: 7 | I16: 98 | J16: 115 | K16: 96 | L16: 116 | M16: 136 | N16: 35 | O16: 16 | P16: 223 | Q16: 1 | R16: 1 | S16: 188 | T16: 29 | U16: 23 | V16: 55 | W16: 52 | X16: 27 | Y16: 192 | Z16: 48
A17: 50 | B17: BAS-RHIN | C17: 5060 | D17: HAGUENAU | E17: 4092 | F17: HOCHFELDEN | G17: 2.0 | H17: 8 | I17: 105 | J17: 118 | K17: 101 | L17: 3 | M17: 3 | N17: 15 | O17: 37 | P17: 128 | Q17: 136 | R17: 232 | S17: 11 | T17: 26 | U17: 54 | V17: 10 | W17: 6 | X17: 6 | Y17: 4 | Z17: 18
A18: 50 | B18: MARNE-ARDENNES | C18: 2 | D18: CHARLEVILLE MEZIERES | E18: 408822 | F18: CHARLEVILLE MEZIERES | G18: 4.1 | H18: 9 | I18: 119 | J18: 132 | K18: 95 | L18: 70 | M18: 166 | N18: 12 | O18: 8 | P18: 156 | Q18: 3 | R18: 15 | S18: 2 | T18: 6 | U18: 10 | V18: 13 | W18: 26 | X18: 12 | Y18: 210 | Z18: 22
A19: 50 | B19: BAS-RHIN | C19: 5101 | D19: SELESTAT | E19: 4113 | F19: BARR | G19: 3.0 | H19: 10 | I19: 74 | J19: 137 | K19: 10 | L19: 15 | M19: 20 | N19: 127 | O19: 20 | P19: 46 | Q19: 2 | R19: 6 | S19: 10 | T19: 24 | U19: 13 | V19: 94 | W19: 203 | X19: 161 | Y19: 222 | Z19: 153
A20: 50 | B20: VOSGES | C20: 57 | D20: EPINAL | E20: 488288 | F20: EPINAL LEOPOLD BOURG | G20: 1.9 | H20: 11 | I20: 101 | J20: 144 | K20: 46 | L20: 13 | M20: 18 | N20: 24 | O20: 10 | P20: 176 | Q20: 21 | R20: 9 | S20: 216 | T20: 100 | U20: 86 | V20: 134 | W20: 8 | X20: 10 | Y20: 11 | Z20: 12
A21: 50 | B21: MEURTHE ET MOSELLE MEUSE | C21: 31 | D21: VERDUN | E21: 554413 | F21: LONGWY BAS | G21: 3.2 | H21: 12 | I21: 8 | J21: 12 | K21: 42 | L21: 26 | M21: 21 | N21: 124 | O21: 164 | P21: 72 | Q21: 19 | R21: 38 | S21: 12 | T21: 165 | U21: 148 | V21: 186 | W21: 20 | X21: 15 | Y21: 21 | Z21: 149
A22: 50 | B22: MARNE-ARDENNES | C22: 11 | D22: REIMS | E22: 551349 | F22: REIMS SAINT REMI | G22: 3.0 | H22: 13 | I22: 106 | J22: 86 | K22: 157 | L22: 30 | M22: 37 | N22: 25 | O22: 11 | P22: 207 | Q22: 14 | R22: 33 | S22: 8 | T22: 27 | U22: 39 | V22: 20 | W22: 27 | X22: 16 | Y22: 141 | Z22: 30
A23: 50 | B23: MARNE-ARDENNES | C23: 2 | D23: CHARLEVILLE MEZIERES | E23: 408862 | F23: REVIN | G23: 4.1 | H23: 14 | I23: 2 | J23: 1 | K23: 53 | L23: 52 | M23: 128 | N23: 38 | O23: 70 | P23: 22 | Q23: 28 | R23: 34 | S23: 37 | T23: 85 | U23: 71 | V23: 127 | W23: 117 | X23: 110 | Y23: 167 | Z23: 75
A24: 50 | B24: MOSELLE | C24: 42 | D24: MOSELLE EST | E24: 457163 | F24: BEHREN LES FORBACH | G24: 2.7 | H24: 15 | I24: 62 | J24: 118 | K24: 17 | L24: 29 | M24: 65 | N24: 11 | O24: 45 | P24: 77 | Q24: 79 | R24: 112 | S24: 43 | T24: 71 | U24: 92 | V24: 52 | W24: 12 | X24: 60 | Y24: 3 | Z24: 13
A25: 50 | B25: MOSELLE | C25: 45 | D25: METZ | E25: 557444 | F25: SAINT JULIEN LES METZ | G25: 4.9 | H25: 16 | I25: 109 | J25: 128 | K25: 81 | L25: 121 | M25: 107 | N25: 140 | O25: 118 | P25: 142 | Q25: 17 | R25: 14 | S25: 55 | T25: 11 | U25: 16 | V25: 12 | W25: 39 | X25: 97 | Y25: 19 | Z25: 80
A26: 50 | B26: MOSELLE | C26: 44 | D26: MOSELLE NORD | E26: 557508 | F26: NILVANGE | G26: 2.5 | H26: 17 | I26: 158 | J26: 183 | K26: 120 | L26: 34 | M26: 38 | N26: 43 | O26: 51 | P26: 151 | Q26: 83 | R26: 192 | S26: 7 | T26: 5 | U26: 5 | V26: 11 | W26: 38 | X26: 35 | Y26: 92 | Z26: 44
A27: 50 | B27: MARNE-ARDENNES | C27: 11 | D27: REIMS | E27: 551340 | F27: BETHENY | G27: 2.9 | H27: 18 | I27: 28 | J27: 27 | K27: 61 | L27: 162 | M27: 153 | N27: 23 | O27: 6 | P27: 258 | Q27: 20 | R27: 30 | S27: 18 | T27: 113 | U27: 123 | V27: 87 | W27: 10 | X27: 11 | Y27: 56 | Z27: 9
A28: 50 | B28: VOSGES | C28: 55 | D28: SAINT DIE | E28: 488246 | F28: CORNIMONT LA BRESSE | G28: 2.6 | H28: 19 | I28: 3 | J28: 8 | K28: 4 | L28: 101 | M28: 104 | N28: 55 | O28: 208 | P28: 144 | Q28: 158 | R28: 144 | S28: 160 | T28: 58 | U28: 49 | V28: 109 | W28: 29 | X28: 49 | Y28: 24 | Z28: 58
A29: 50 | B29: MOSELLE | C29: 42 | D29: MOSELLE EST | E29: 457308 | F29: FORBACH CENTRALE | G29: 11.2 | H29: 20 | I29: 25 | J29: 12 | K29: 92 | L29: 31 | M29: 30 | N29: 90 | O29: 136 | P29: 107 | Q29: 56 | R29: 65 | S29: 61 | T29: 96 | U29: 67 | V29: 170 | W29: 108 | X29: 156 | Y29: 48 | Z29: 158
A30: 50 | B30: MARNE-ARDENNES | C30: 11 | D30: REIMS | E30: 551305 | F30: REIMS HIPPODROME | G30: 3.9 | H30: 21 | I30: 16 | J30: 55 | K30: 7 | L30: 170 | M30: 208 | N30: 40 | O30: 7 | P30: 214 | Q30: 197 | R30: 225 | S30: 86 | T30: 18 | U30: 14 | V30: 36 | W30: 35 | X30: 26 | Y30: 200 | Z30: 26
A31: 262 | B31: MOSELLE | C31: 42 | D31: MOSELLE EST | E31: 557250 | F31: CREUTZWALD | G31: 2.6 | H31: 22 | I31: 116 | J31: 144 | K31: 64 | L31: 142 | M31: 183 | N31: 75 | O31: 169 | P31: 55 | Q31: 8 | R31: 22 | S31: 6 | T31: 42 | U31: 51 | V31: 35 | W31: 56 | X31: 57 | Y31: 54 | Z31: 119
A32: 262 | B32: MEURTHE ET MOSELLE MEUSE | C32: 31 | D32: VERDUN | E32: 554412 | F32: LONGUYON | G32: 2.7 | H32: 23 | I32: 73 | J32: 108 | K32: 49 | L32: 139 | M32: 165 | N32: 81 | O32: 49 | P32: 132 | Q32: 118 | R32: 89 | S32: 200 | T32: 34 | U32: 34 | V32: 38 | W32: 14 | X32: 30 | Y32: 26 | Z32: 28
A33: 262 | B33: MARNE-ARDENNES | C33: 2 | D33: CHARLEVILLE MEZIERES | E33: 508833 | F33: VILLERS SEMEUSE CORA | G33: 3.4 | H33: 24 | I33: 104 | J33: 94 | K33: 144 | L33: 73 | M33: 164 | N33: 8 | O33: 36 | P33: 101 | Q33: 50 | R33: 105 | S33: 14 | T33: 56 | U33: 66 | V33: 67 | W33: 23 | X33: 36 | Y33: 33 | Z33: 31
A34: 262 | B34: BAS-RHIN | C34: 5101 | D34: SELESTAT | E34: 4126 | F34: MUTZIG | G34: 2.0 | H34: 25 | I34: 209 | J34: 228 | K34: 105 | L34: 22 | M34: 51 | N34: 9 | O34: 9 | P34: 167 | Q34: 112 | R34: 220 | S34: 9 | T34: 94 | U34: 156 | V34: 22 | W34: 3 | X34: 9 | Y34: 1 | Z34: 5
A35: 262 | B35: MARNE-ARDENNES | C35: 2 | D35: CHARLEVILLE MEZIERES | E35: 408801 | F35: CHARLEVILLE JEAN JAURES | G35: 9.4 | H35: 26 | I35: 36 | J35: 25 | K35: 86 | L35: 109 | M35: 163 | N35: 59 | O35: 13 | P35: 149 | Q35: 59 | R35: 120 | S35: 13 | T35: 157 | U35: 163 | V35: 145 | W35: 15 | X35: 13 | Y35: 139 | Z35: 10
A36: 262 | B36: BAS-RHIN | C36: 5006 | D36: STRASBOURG | E36: 4037 | F36: MUNDOLSHEIM | G36: 4.1 | H36: 27 | I36: 141 | J36: 144 | K36: 141 | L36: 10 | M36: 5 | N36: 65 | O36: 63 | P36: 200 | Q36: 24 | R36: 19 | S36: 56 | T36: 55 | U36: 47 | V36: 91 | W36: 165 | X36: 205 | Y36: 140 | Z36: 97
A37: 262 | B37: MARNE-ARDENNES | C37: 2 | D37: CHARLEVILLE MEZIERES | E37: 508839 | F37: GIVET | G37: 3.6 | H37: 28 | I37: 127 | J37: 128 | K37: 131 | L37: 147 | M37: 206 | N37: 105 | O37: 198 | P37: 11 | Q37: 164 | R37: 193 | S37: 78 | T37: 2 | U37: 2 | V37: 48 | W37: 168 | X37: 163 | Y37: 114 | Z37: 187
A38: 262 | B38: MEURTHE ET MOSELLE MEUSE | C38: 26 | D38: NANCY | E38: 554476 | F38: NANCY ARTEM | G38: 2.7 | H38: 29 | I38: 67 | J38: 118 | K38: 21 | L38: 89 | M38: 64 | N38: 58 | O38: 54 | P38: 242 | Q38: 40 | R38: 26 | S38: 143 | T38: 49 | U38: 58 | V38: 49 | W38: 90 | X38: 128 | Y38: 157 | Z38: 29
A39: 262 | B39: BAS-RHIN | C39: 5006 | D39: STRASBOURG | E39: 4047 | F39: STRASBOURG CRONENBOURG | G39: 5.5 | H39: 30 | I39: 50 | J39: 86 | K39: 34 | L39: 90 | M39: 120 | N39: 68 | O39: 18 | P39: 172 | Q39: 69 | R39: 125 | S39: 19 | T39: 64 | U39: 42 | V39: 158 | W39: 60 | X39: 20 | Y39: 234 | Z39: 73
A40: 262 | B40: BAS-RHIN | C40: 5006 | D40: STRASBOURG | E40: 4019 | F40: STRASBOURG ANVERS | G40: 4.1 | H40: 31 | I40: 83 | J40: 19 | K40: 208 | L40: 65 | M40: 25 | N40: 30 | O40: 35 | P40: 263 | Q40: 13 | R40: 11 | S40: 49 | T40: 134 | U40: 144 | V40: 104 | W40: 81 | X40: 32 | Y40: 170 | Z40: 155
A41: 262 | B41: MARNE-ARDENNES | C41: 6 | D41: CHALONS EN CHAMPAGNE | E41: 551330 | F41: MONTMIRAIL | G41: 3.0 | H41: 32 | I41: 20 | J41: 42 | K41: 19 | L41: 213 | M41: 239 | N41: 219 | O41: 77 | P41: 59 | Q41: 37 | R41: 64 | S41: 30 | T41: 53 | U41: 57 | V41: 58 | W41: 85 | X41: 61 | Y41: 117 | Z41: 100
A42: 262 | B42: MOSELLE | C42: 45 | D42: METZ | E42: 557447 | F42: METZ SAINT MAXIMIN | G42: 3.1 | H42: 33 | I42: 140 | J42: 183 | K42: 71 | L42: 28 | M42: 147 | N42: 2 | O42: 19 | P42: 35 | Q42: 81 | R42: 63 | S42: 144 | T42: 93 | U42: 121 | V42: 50 | W42: 21 | X42: 18 | Y42: 135 | Z42: 11
A43: 262 | B43: MEURTHE ET MOSELLE MEUSE | C43: 26 | D43: NANCY | E43: 554636 | F43: TOMBLAINE | G43: 2.1 | H43: 34 | I43: 17 | J43: 63 | K43: 5 | L43: 248 | M43: 255 | N43: 27 | O43: 121 | P43: 233 | Q43: 54 | R43: 59 | S43: 70 | T43: 22 | U43: 61 | V43: 1 | W43: 109 | X43: 186 | Y43: 179 | Z43: 24
A44: 262 | B44: MARNE-ARDENNES | C44: 2 | D44: CHARLEVILLE MEZIERES | E44: 508815 | F44: CARIGNAN | G44: 2.9 | H44: 35 | I44: 78 | J44: 42 | K44: 165 | L44: 122 | M44: 196 | N44: 36 | O44: 94 | P44: 48 | Q44: 26 | R44: 40 | S44: 25 | T44: 78 | U44: 63 | V44: 118 | W44: 66 | X44: 50 | Y44: 94 | Z44: 99
A45: 262 | B45: MOSELLE | C45: 44 | D45: MOSELLE NORD | E45: 557113 | F45: AUDUN LE TICHE | G45: 2.0 | H45: 36 | I45: 248 | J45: 260 | K45: 185 | L45: 16 | M45: 17 | N45: 4 | O45: 247 | P45: 181 | Q45: 33 | R45: 37 | S45: 66 | T45: 70 | U45: 91 | V45: 45 | W45: 4 | X45: 4 | Y45: 32 | Z45: 4
A46: 262 | B46: MEURTHE ET MOSELLE MEUSE | C46: 31 | D46: VERDUN | E46: 455298 | F46: ETAIN | G46: 1.7 | H46: 37 | I46: 195 | J46: 178 | K46: 199 | L46: 91 | M46: 54 | N46: 227 | O46: 254 | P46: 137 | Q46: 116 | R46: 113 | S46: 128 | T46: 4 | U46: 6 | V46: 8 | W46: 47 | X46: 47 | Y46: 17 | Z46: 222
A47: 262 | B47: BAS-RHIN | C47: 5060 | D47: HAGUENAU | E47: 4079 | F47: SOULTZ SOUS FORETS | G47: 2.1 | H47: 38 | I47: 118 | J47: 132 | K47: 90 | L47: 17 | M47: 7 | N47: 211 | O47: 101 | P47: 88 | Q47: 159 | R47: 216 | S47: 40 | T47: 45 | U47: 43 | V47: 68 | W47: 69 | X47: 89 | Y47: 61 | Z47: 87
A48: 262 | B48: MEURTHE ET MOSELLE MEUSE | C48: 31 | D48: VERDUN | E48: 555624 | F48: STENAY | G48: 2.9 | H48: 39 | I48: 190 | J48: 228 | K48: 44 | L48: 4 | M48: 6 | N48: 20 | O48: 134 | P48: 23 | Q48: 92 | R48: 138 | S48: 31 | T48: 81 | U48: 84 | V48: 84 | W48: 62 | X48: 82 | Y48: 47 | Z48: 95
A49: 262 | B49: MEURTHE ET MOSELLE MEUSE | C49: 31 | D49: VERDUN | E49: 555679 | F49: VERDUN MAZEL | G49: 4.0 | H49: 40 | I49: 38 | J49: 48 | K49: 55 | L49: 40 | M49: 53 | N49: 93 | O49: 85 | P49: 53 | Q49: 76 | R49: 98 | S49: 54 | T49: 155 | U49: 168 | V49: 121 | W49: 82 | X49: 79 | Y49: 87 | Z49: 84
A50: 262 | B50: MEURTHE ET MOSELLE MEUSE | C50: 26 | D50: NANCY | E50: 454426 | F50: LUNEVILLE CARNOT | G50: 10.0 | H50: 41 | I50: 123 | J50: 124 | K50: 128 | L50: 49 | M50: 52 | N50: 104 | O50: 88 | P50: 136 | Q50: 119 | R50: 102 | S50: 170 | T50: 37 | U50: 30 | V50: 75 | W50: 43 | X50: 34 | Y50: 78 | Z50: 76
A51: 262 | B51: MARNE-ARDENNES | C51: 6 | D51: CHALONS EN CHAMPAGNE | E51: 451101 | F51: CHALONS VIVIERS | G51: 8.8 | H51: 42 | I51: 11 | J51: 14 | K51: 40 | L51: 99 | M51: 100 | N51: 96 | O51: 48 | P51: 175 | Q51: 143 | R51: 215 | S51: 23 | T51: 101 | U51: 117 | V51: 69 | W51: 72 | X51: 75 | Y51: 85 | Z51: 74
A52: 262 | B52: AUBE HAUTE MARNE | C52: 21 | D52: CHAUMONT | E52: 510590 | F52: CHAUMONT REPUBLIQUE | G52: 4.3 | H52: 43 | I52: 89 | J52: 86 | K52: 122 | L52: 181 | M52: 222 | N52: 46 | O52: 99 | P52: 104 | Q52: 64 | R52: 60 | S52: 96 | T52: 38 | U52: 35 | V52: 56 | W52: 42 | X52: 157 | Y52: 12 | Z52: 56
A53: 262 | B53: MEURTHE ET MOSELLE MEUSE | C53: 27 | D53: PONT A MOUSSON | E53: 454535 | F53: PONT A MOUSSON CENTRALE | G53: 8.0 | H53: 44 | I53: 150 | J53: 132 | K53: 183 | L53: 12 | M53: 15 | N53: 32 | O53: 30 | P53: 112 | Q53: 106 | R53: 99 | S53: 131 | T53: 61 | U53: 85 | V53: 43 | W53: 73 | X53: 25 | Y53: 245 | Z53: 57
A54: 262 | B54: MARNE-ARDENNES | C54: 6 | D54: CHALONS EN CHAMPAGNE | E54: 451120 | F54: SARRY | G54: 2.5 | H54: 45 | I54: 9 | J54: 35 | K54: 8 | L54: 148 | M54: 212 | N54: 182 | O54: 58 | P54: 16 | Q54: 25 | R54: 28 | S54: 42 | T54: 142 | U54: 133 | V54: 155 | W54: 184 | X54: 175 | Y54: 180 | Z54: 145
A55: 262 | B55: MEURTHE ET MOSELLE MEUSE | C55: 27 | D55: PONT A MOUSSON | E55: 554506 | F55: CHALIGNY NEUVES MAISONS | G55: 3.9 | H55: 46 | I55: 149 | J55: 94 | K55: 220 | L55: 7 | M55: 8 | N55: 19 | O55: 12 | P55: 99 | Q55: 213 | R55: 175 | S55: 227 | T55: 136 | U55: 174 | V55: 74 | W55: 16 | X55: 8 | Y55: 224 | Z55: 6
A56: 262 | B56: BAS-RHIN | C56: 5101 | D56: SELESTAT | E56: 4121 | F56: SCHIRMECK | G56: 3.3 | H56: 47 | I56: 126 | J56: 174 | K56: 47 | L56: 61 | M56: 86 | N56: 151 | O56: 62 | P56: 64 | Q56: 42 | R56: 82 | S56: 26 | T56: 88 | U56: 76 | V56: 129 | W56: 44 | X56: 92 | Y56: 73 | Z56: 21
A57: 262 | B57: MARNE-ARDENNES | C57: 6 | D57: CHALONS EN CHAMPAGNE | E57: 551110 | F57: CHALONS ROOSEVELT | G57: 4.9 | H57: 48 | I57: 27 | J57: 48 | K57: 27 | L57: 174 | M57: 191 | N57: 122 | O57: 55 | P57: 114 | Q57: 55 | R57: 94 | S57: 28 | T57: 77 | U57: 56 | V57: 132 | W57: 142 | X57: 93 | Y57: 203 | Z57: 124
A58: 262 | B58: VOSGES | C58: 57 | D58: EPINAL | E58: 488706 | F58: VITTEL | G58: 3.7 | H58: 49 | I58: 7 | J58: 25 | K58: 15 | L58: 224 | M58: 223 | N58: 169 | O58: 53 | P58: 195 | Q58: 149 | R58: 124 | S58: 192 | T58: 39 | U58: 20 | V58: 171 | W58: 89 | X58: 196 | Y58: 102 | Z58: 25
A59: 262 | B59: VOSGES | C59: 55 | D59: SAINT DIE | E59: 488586 | F59: SAINT DIE | G59: 10.9 | H59: 50 | I59: 4 | J59: 4 | K59: 31 | L59: 194 | M59: 155 | N59: 145 | O59: 154 | P59: 171 | Q59: 48 | R59: 48 | S59: 89 | T59: 153 | U59: 119 | V59: 203 | W59: 158 | X59: 100 | Y59: 219 | Z59: 129
A60: 262 | B60: VOSGES | C60: 57 | D60: EPINAL | E60: 588716 | F60: XERTIGNY | G60: 2.9 | H60: 51 | I60: 86 | J60: 77 | K60: 119 | L60: 110 | M60: 118 | N60: 195 | O60: 219 | P60: 38 | Q60: 78 | R60: 66 | S60: 134 | T60: 9 | U60: 4 | V60: 110 | W60: 249 | X60: 235 | Y60: 241 | Z60: 219
A61: 262 | B61: BAS-RHIN | C61: 5101 | D61: SELESTAT | E61: 4119 | F61: OBERNAI | G61: 3.3 | H61: 52 | I61: 229 | J61: 178 | K61: 244 | L61: 6 | M61: 2 | N61: 48 | O61: 126 | P61: 219 | Q61: 57 | R61: 176 | S61: 5 | T61: 36 | U61: 25 | V61: 79 | W61: 121 | X61: 221 | Y61: 37 | Z61: 139
A62: 262 | B62: MOSELLE | C62: 44 | D62: MOSELLE NORD | E62: 457306 | F62: FLORANGE | G62: 3.9 | H62: 53 | I62: 63 | J62: 14 | K62: 190 | L62: 54 | M62: 71 | N62: 116 | O62: 150 | P62: 75 | Q62: 29 | R62: 17 | S62: 90 | T62: 138 | U62: 124 | V62: 157 | W62: 153 | X62: 67 | Y62: 193 | Z62: 211
A63: 262 | B63: MEURTHE ET MOSELLE MEUSE | C63: 27 | D63: PONT A MOUSSON | E63: 554357 | F63: JOEUF | G63: 3.8 | H63: 54 | I63: 166 | J63: 196 | K63: 104 | L63: 58 | M63: 135 | N63: 18 | O63: 15 | P63: 146 | Q63: 234 | R63: 228 | S63: 186 | T63: 23 | U63: 26 | V63: 17 | W63: 13 | X63: 31 | Y63: 25 | Z63: 15
A64: 262 | B64: MEURTHE ET MOSELLE MEUSE | C64: 31 | D64: VERDUN | E64: 455456 | F64: MONTMEDY | G64: 1.8 | H64: 55 | I64: 147 | J64: 204 | K64: 52 | L64: 32 | M64: 47 | N64: 39 | O64: 142 | P64: 31 | Q64: 107 | R64: 81 | S64: 190 | T64: 86 | U64: 73 | V64: 122 | W64: 36 | X64: 84 | Y64: 15 | Z64: 77
A65: 262 | B65: VOSGES | C65: 55 | D65: SAINT DIE | E65: 488326 | F65: GERARDMER | G65: 5.3 | H65: 56 | I65: 34 | J65: 63 | K65: 20 | L65: 200 | M65: 146 | N65: 240 | O65: 148 | P65: 173 | Q65: 7 | R65: 2 | S65: 230 | T65: 206 | U65: 160 | V65: 239 | W65: 164 | X65: 131 | Y65: 178 | Z65: 146
A66: 262 | B66: MARNE-ARDENNES | C66: 11 | D66: REIMS | E66: 551310 | F66: REIMS CHATILLONS | G66: 3.9 | H66: 57 | I66: 136 | J66: 159 | K66: 107 | L66: 106 | M66: 138 | N66: 119 | O66: 52 | P66: 98 | Q66: 74 | R66: 76 | S66: 92 | T66: 65 | U66: 48 | V66: 126 | W66: 31 | X66: 23 | Y66: 84 | Z66: 62
A67: 262 | B67: VOSGES | C67: 57 | D67: EPINAL | E67: 588396 | F67: LE VAL D AJOL | G67: 3.0 | H67: 58 | I67: 1 | J67: 2 | K67: 3 | L67: 211 | M67: 201 | N67: 257 | O67: 204 | P67: 69 | Q67: 121 | R67: 54 | S67: 259 | T67: 98 | U67: 45 | V67: 232 | W67: 248 | X67: 214 | Y67: 250 | Z67: 232
A68: 262 | B68: MEURTHE ET MOSELLE MEUSE | C68: 31 | D68: VERDUN | E68: 454414 | F68: LONGWY HAUT | G68: 3.9 | H68: 59 | I68: 198 | J68: 219 | K68: 123 | L68: 108 | M68: 137 | N68: 71 | O68: 100 | P68: 111 | Q68: 10 | R68: 8 | S68: 51 | T68: 43 | U68: 62 | V68: 30 | W68: 113 | X68: 111 | Y68: 202 | Z68: 42
A69: 262 | B69: MOSELLE | C69: 44 | D69: MOSELLE NORD | E69: 457348 | F69: HAGONDANGE | G69: 9.3 | H69: 60 | I69: 142 | J69: 137 | K69: 154 | L69: 33 | M69: 29 | N69: 171 | O69: 125 | P69: 87 | Q69: 100 | R69: 93 | S69: 137 | T69: 84 | U69: 64 | V69: 162 | W69: 65 | X69: 42 | Y69: 138 | Z69: 61
A70: 262 | B70: VOSGES | C70: 57 | D70: EPINAL | E70: 588631 | F70: THAON LES VOSGES | G70: 5.5 | H70: 61 | I70: 61 | J70: 112 | K70: 24 | L70: 81 | M70: 85 | N70: 84 | O70: 102 | P70: 143 | Q70: 202 | R70: 161 | S70: 238 | T70: 31 | U70: 31 | V70: 37 | W70: 132 | X70: 154 | Y70: 103 | Z70: 133
A71: 262 | B71: MEURTHE ET MOSELLE MEUSE | C71: 27 | D71: PONT A MOUSSON | E71: 554533 | F71: PONT A MOUSSON BREUIL | G71: 2.8 | H71: 62 | I71: 215 | J71: 211 | K71: 198 | L71: 42 | M71: 58 | N71: 17 | O71: 40 | P71: 183 | Q71: 12 | R71: 5 | S71: 205 | T71: 112 | U71: 113 | V71: 97 | W71: 37 | X71: 14 | Y71: 214 | Z71: 46
A72: 262 | B72: BAS-RHIN | C72: 5006 | D72: STRASBOURG | E72: 4038 | F72: OBERHAUSBERGEN | G72: 4.9 | H72: 63 | I72: 107 | J72: 144 | K72: 51 | L72: 128 | M72: 61 | N72: 100 | O72: 59 | P72: 256 | Q72: 38 | R72: 72 | S72: 24 | T72: 90 | U72: 69 | V72: 156 | W72: 77 | X72: 38 | Y72: 146 | Z72: 111
A73: 262 | B73: MOSELLE | C73: 42 | D73: MOSELLE EST | E73: 557305 | F73: FAULQUEMONT | G73: 2.1 | H73: 64 | I73: 197 | J73: 207 | K73: 160 | L73: 24 | M73: 41 | N73: 14 | O73: 26 | P73: 147 | Q73: 84 | R73: 140 | S73: 22 | T73: 69 | U73: 104 | V73: 28 | W73: 51 | X73: 52 | Y73: 55 | Z73: 90
A74: 262 | B74: VOSGES | C74: 57 | D74: EPINAL | E74: 488451 | F74: MIRECOURT | G74: 4.9 | H74: 65 | I74: 56 | J74: 94 | K74: 43 | L74: 151 | M74: 184 | N74: 52 | O74: 72 | P74: 139 | Q74: 103 | R74: 86 | S74: 148 | T74: 51 | U74: 44 | V74: 82 | W74: 135 | X74: 165 | Y74: 161 | Z74: 63
A75: 262 | B75: MEURTHE ET MOSELLE MEUSE | C75: 26 | D75: NANCY | E75: 554601 | F75: SAINT MAX | G75: 4.9 | H75: 66 | I75: 23 | J75: 4 | K75: 155 | L75: 145 | M75: 162 | N75: 221 | O75: 60 | P75: 84 | Q75: 109 | R75: 172 | S75: 29 | T75: 76 | U75: 70 | V75: 98 | W75: 191 | X75: 177 | Y75: 197 | Z75: 135
A76: 262 | B76: MOSELLE | C76: 42 | D76: MOSELLE EST | E76: 457165 | F76: BITCHE | G76: 1.9 | H76: 67 | I76: 194 | J76: 214 | K76: 129 | L76: 27 | M76: 24 | N76: 86 | O76: 228 | P76: 78 | Q76: 187 | R76: 248 | S76: 15 | T76: 14 | U76: 27 | V76: 5 | W76: 102 | X76: 134 | Y76: 71 | Z76: 98
A77: 262 | B77: AUBE HAUTE MARNE | C77: 14 | D77: TROYES | E77: 510523 | F77: LA CHAPELLE ST LUC | G77: 5.4 | H77: 68 | I77: 189 | J77: 168 | K77: 197 | L77: 37 | M77: 56 | N77: 28 | O77: 132 | P77: 66 | Q77: 153 | R77: 190 | S77: 50 | T77: 13 | U77: 32 | V77: 2 | W77: 151 | X77: 138 | Y77: 137 | Z77: 152
A78: 262 | B78: BAS-RHIN | C78: 5006 | D78: STRASBOURG | E78: 4043 | F78: STRASBOURG HALLES | G78: 8.5 | H78: 69 | I78: 102 | J78: 57 | K78: 188 | L78: 43 | M78: 67 | N78: 7 | O78: 22 | P78: 216 | Q78: 85 | R78: 84 | S78: 102 | T78: 135 | U78: 134 | V78: 119 | W78: 98 | X78: 40 | Y78: 238 | Z78: 47
A79: 264 | B79: VOSGES | C79: 57 | D79: EPINAL | E79: 588206 | F79: CHARMES | G79: 2.8 | H79: 70 | I79: 68 | J79: 86 | K79: 58 | L79: 193 | M79: 148 | N79: 95 | O79: 185 | P79: 202 | Q79: 207 | R79: 166 | S79: 236 | T79: 17 | U79: 11 | V79: 66 | W79: 131 | X79: 178 | Y79: 72 | Z79: 144
A80: 264 | B80: MOSELLE | C80: 45 | D80: METZ | E80: 457453 | F80: MONTIGNY LES METZ | G80: 8.2 | H80: 71 | I80: 32 | J80: 68 | K80: 16 | L80: 46 | M80: 19 | N80: 197 | O80: 105 | P80: 228 | Q80: 108 | R80: 164 | S80: 33 | T80: 234 | U80: 205 | V80: 253 | W80: 94 | X80: 74 | Y80: 124 | Z80: 92
A81: 264 | B81: MOSELLE | C81: 44 | D81: MOSELLE NORD | E81: 557347 | F81: GUENANGE | G81: 5.0 | H81: 72 | I81: 144 | J81: 86 | K81: 222 | L81: 66 | M81: 106 | N81: 102 | O81: 174 | P81: 19 | Q81: 39 | R81: 23 | S81: 163 | T81: 131 | U81: 162 | V81: 83 | W81: 53 | X81: 37 | Y81: 152 | Z81: 32
A82: 264 | B82: HAUT-RHIN | C82: 5130 | D82: COLMAR | E82: 4144 | F82: RIBEAUVILLE | G82: 2.9 | H82: 73 | I82: 223 | J82: 246 | K82: 78 | L82: 21 | M82: 33 | N82: 64 | O82: 98 | P82: 62 | Q82: 44 | R82: 68 | S82: 38 | T82: 25 | U82: 9 | V82: 176 | W82: 207 | X82: 183 | Y82: 143 | Z82: 237
A83: 264 | B83: MARNE-ARDENNES | C83: 2 | D83: CHARLEVILLE MEZIERES | E83: 508802 | F83: CHARLEVILLE NEVERS | G83: 3.0 | H83: 74 | I83: 22 | J83: 22 | K83: 62 | L83: 207 | M83: 235 | N83: 175 | O83: 29 | P83: 89 | Q83: 186 | R83: 239 | S83: 32 | T83: 44 | U83: 33 | V83: 89 | W83: 124 | X83: 164 | Y83: 41 | Z83: 209
A84: 264 | B84: BAS-RHIN | C84: 5060 | D84: HAGUENAU | E84: 4066 | F84: NIEDERBRONN LES BAINS | G84: 6.3 | H84: 75 | I84: 6 | J84: 27 | K84: 6 | L84: 146 | M84: 157 | N84: 198 | O84: 155 | P84: 65 | Q84: 137 | R84: 77 | S84: 253 | T84: 140 | U84: 106 | V84: 214 | W84: 187 | X84: 170 | Y84: 127 | Z84: 202
A85: 264 | B85: BAS-RHIN | C85: 5006 | D85: STRASBOURG | E85: 4006 | F85: STRASBOURG NEUDORF | G85: 8.4 | H85: 76 | I85: 52 | J85: 33 | K85: 121 | L85: 44 | M85: 43 | N85: 45 | O85: 90 | P85: 194 | Q85: 133 | R85: 134 | S85: 113 | T85: 95 | U85: 105 | V85: 76 | W85: 231 | X85: 171 | Y85: 252 | Z85: 165
A86: 264 | B86: MARNE-ARDENNES | C86: 11 | D86: REIMS | E86: 451350 | F86: REIMS CENTRE VILLE | G86: 7.6 | H86: 77 | I86: 151 | J86: 155 | K86: 150 | L86: 189 | M86: 187 | N86: 37 | O86: 21 | P86: 232 | Q86: 87 | R86: 83 | S86: 107 | T86: 74 | U86: 80 | V86: 78 | W86: 18 | X86: 17 | Y86: 59 | Z86: 35
A87: 264 | B87: AUBE HAUTE MARNE | C87: 14 | D87: TROYES | E87: 510511 | F87: TROYES BROSSOLETTE | G87: 2.6 | H87: 78 | I87: 41 | J87: 77 | K87: 23 | L87: 95 | M87: 126 | N87: 69 | O87: 139 | P87: 74 | Q87: 49 | R87: 49 | S87: 88 | T87: 224 | U87: 233 | V87: 183 | W87: 134 | X87: 45 | Y87: 223 | Z87: 171
A88: 264 | B88: BAS-RHIN | C88: 5006 | D88: STRASBOURG | E88: 4010 | F88: STRASBOURG MEINAU | G88: 3.4 | H88: 79 | I88: 239 | J88: 238 | K88: 187 | L88: 19 | M88: 34 | N88: 13 | O88: 39 | P88: 154 | Q88: 134 | R88: 212 | S88: 16 | T88: 12 | U88: 22 | V88: 14 | W88: 119 | X88: 216 | Y88: 46 | Z88: 120
A89: 264 | B89: BAS-RHIN | C89: 5060 | D89: HAGUENAU | E89: 4087 | F89: SAVERNE | G89: 8.4 | H89: 80 | I89: 103 | J89: 22 | K89: 231 | L89: 51 | M89: 26 | N89: 91 | O89: 95 | P89: 253 | Q89: 94 | R89: 79 | S89: 142 | T89: 146 | U89: 140 | V89: 143 | W89: 97 | X89: 88 | Y89: 93 | Z89: 123
A90: 264 | B90: MEURTHE ET MOSELLE MEUSE | C90: 27 | D90: PONT A MOUSSON | E90: 554321 | F90: FROUARD | G90: 3.0 | H90: 81 | I90: 231 | J90: 236 | K90: 171 | L90: 57 | M90: 108 | N90: 170 | O90: 69 | P90: 10 | Q90: 11 | R90: 7 | S90: 183 | T90: 92 | U90: 120 | V90: 47 | W90: 50 | X90: 21 | Y90: 206 | Z90: 53
A91: 264 | B91: MARNE-ARDENNES | C91: 11 | D91: REIMS | E91: 551367 | F91: AY CHAMPAGNE | G91: 2.8 | H91: 82 | I91: 185 | J91: 187 | K91: 174 | L91: 68 | M91: 152 | N91: 22 | O91: 14 | P91: 109 | Q91: 229 | R91: 218 | S91: 191 | T91: 68 | U91: 74 | V91: 72 | W91: 9 | X91: 5 | Y91: 115 | Z91: 17
A92: 264 | B92: BAS-RHIN | C92: 5101 | D92: SELESTAT | E92: 4120 | F92: WASSELONNE | G92: 4.6 | H92: 83 | I92: 201 | J92: 228 | K92: 76 | L92: 169 | M92: 139 | N92: 162 | O92: 243 | P92: 133 | Q92: 23 | R92: 31 | S92: 34 | T92: 35 | U92: 28 | V92: 71 | W92: 76 | X92: 210 | Y92: 23 | Z92: 85
A93: 264 | B93: MOSELLE | C93: 45 | D93: METZ | E93: 557105 | F93: ARS SUR MOSELLE | G93: 4.0 | H93: 84 | I93: 57 | J93: 35 | K93: 126 | L93: 188 | M93: 97 | N93: 173 | O93: 138 | P93: 240 | Q93: 122 | R93: 108 | S93: 156 | T93: 170 | U93: 139 | V93: 204 | W93: 32 | X93: 22 | Y93: 95 | Z93: 60
A94: 264 | B94: VOSGES | C94: 57 | D94: EPINAL | E94: 588336 | F94: GOLBEY | G94: 3.1 | H94: 85 | I94: 75 | J94: 73 | K94: 94 | L94: 222 | M94: 200 | N94: 83 | O94: 84 | P94: 237 | Q94: 82 | R94: 46 | S94: 220 | T94: 114 | U94: 102 | V94: 133 | W94: 45 | X94: 43 | Y94: 181 | Z94: 16
A95: 264 | B95: BAS-RHIN | C95: 5101 | D95: SELESTAT | E95: 4107 | F95: VILLE | G95: 3.0 | H95: 86 | I95: 238 | J95: 244 | K95: 175 | L95: 14 | M95: 12 | N95: 193 | O95: 167 | P95: 12 | Q95: 60 | R95: 74 | S95: 53 | T95: 30 | U95: 8 | V95: 229 | W95: 188 | X95: 248 | Y95: 83 | Z95: 136
A96: 264 | B96: MARNE-ARDENNES | C96: 6 | D96: CHALONS EN CHAMPAGNE | E96: 551354 | F96: VERTUS | G96: 2.5 | H96: 87 | I96: 15 | J96: 63 | K96: 2 | L96: 247 | M96: 218 | N96: 244 | O96: 114 | P96: 235 | Q96: 180 | R96: 201 | S96: 98 | T96: 52 | U96: 75 | V96: 33 | W96: 112 | X96: 118 | Y96: 76 | Z96: 159
A97: 264 | B97: MOSELLE | C97: 45 | D97: METZ | E97: 457443 | F97: METZ REPUBLIQUE | G97: 4.2 | H97: 88 | I97: 5 | J97: 9 | K97: 32 | L97: 144 | M97: 159 | N97: 208 | O97: 209 | P97: 34 | Q97: 154 | R97: 132 | S97: 197 | T97: 225 | U97: 243 | V97: 148 | W97: 110 | X97: 104 | Y97: 173 | Z97: 68
A98: 264 | B98: BAS-RHIN | C98: 5060 | D98: HAGUENAU | E98: 4082 | F98: BOUXWILLER | G98: 2.3 | H98: 89 | I98: 133 | J98: 174 | K98: 65 | L98: 150 | M98: 63 | N98: 149 | O98: 216 | P98: 247 | Q98: 18 | R98: 24 | S98: 20 | T98: 158 | U98: 229 | V98: 42 | W98: 93 | X98: 77 | Y98: 51 | Z98: 207
A99: 264 | B99: BAS-RHIN | C99: 5101 | D99: SELESTAT | E99: 4007 | F99: ILLKIRCH CENTRE | G99: 7.5 | H99: 90 | I99: 121 | J99: 108 | K99: 151 | L99: 35 | M99: 11 | N99: 144 | O99: 151 | P99: 213 | Q99: 124 | R99: 155 | S99: 67 | T99: 89 | U99: 72 | V99: 136 | W99: 212 | X99: 207 | Y99: 158 | Z99: 220
A100: 264 | B100: MOSELLE | C100: 45 | D100: METZ | E100: 457574 | F100: ROMBAS | G100: 3.3 | H100: 91 | I100: 171 | J100: 194 | K100: 132 | L100: 11 | M100: 28 | N100: 94 | O100: 117 | P100: 1 | Q100: 61 | R100: 71 | S100: 60 | T100: 124 | U100: 110 | V100: 149 | W100: 229 | X100: 180 | Y100: 229 | Z100: 206
A101: 264 | B101: MARNE-ARDENNES | C101: 11 | D101: REIMS | E101: 551314 | F101: FISMES | G101: 3.0 | H101: 92 | I101: 76 | J101: 115 | K101: 48 | L101: 143 | M101: 176 | N101: 63 | O101: 17 | P101: 184 | Q101: 135 | R101: 187 | S101: 35 | T101: 127 | U101: 129 | V101: 107 | W101: 78 | X101: 69 | Y101: 122 | Z101: 59
A102: 264 | B102: AUBE HAUTE MARNE | C102: 21 | D102: CHAUMONT | E102: 451156 | F102: SAINT DIZIER CENTRE | G102: 9.7 | H102: 93 | I102: 64 | J102: 57 | K102: 98 | L102: 195 | M102: 188 | N102: 99 | O102: 128 | P102: 140 | Q102: 97 | R102: 73 | S102: 169 | T102: 102 | U102: 111 | V102: 77 | W102: 149 | X102: 215 | Y102: 101 | Z102: 103
A103: 30 | B103: MARNE-ARDENNES | C103: 11 | D103: REIMS | E103: 451361 | F103: PIERRY LECLERC | G103: 2.0 | H103: 94 | I103: 26 | J103: 35 | K103: 37 | L103: 118 | M103: 217 | N103: 88 | O103: 44 | P103: 6 | Q103: 243 | R103: 231 | S103: 232 | T103: 97 | U103: 89 | V103: 117 | W103: 130 | X103: 116 | Y103: 118 | Z103: 148
A104: 30 | B104: VOSGES | C104: 57 | D104: EPINAL | E104: 488286 | F104: EPINAL ARISTIDE BRIAND | G104: 9.1 | H104: 95 | I104: 13 | J104: 6 | K104: 83 | L104: 168 | M104: 111 | N104: 41 | O104: 97 | P104: 250 | Q104: 210 | R104: 169 | S104: 235 | T104: 87 | U104: 79 | V104: 112 | W104: 219 | X104: 141 | Y104: 260 | Z104: 126
A105: 30 | B105: MARNE-ARDENNES | C105: 11 | D105: REIMS | E105: 451370 | F105: EPERNAY | G105: 11.6 | H105: 96 | I105: 49 | J105: 77 | K105: 38 | L105: 105 | M105: 110 | N105: 126 | O105: 65 | P105: 138 | Q105: 178 | R105: 159 | S105: 207 | T105: 107 | U105: 81 | V105: 174 | W105: 155 | X105: 125 | Y105: 186 | Z105: 132
A106: 30 | B106: VOSGES | C106: 55 | D106: SAINT DIE | E106: 588386 | F106: LE THILLOT | G106: 2.4 | H106: 97 | I106: 110 | J106: 124 | K106: 99 | L106: 183 | M106: 221 | N106: 202 | O106: 145 | P106: 14 | Q106: 72 | R106: 96 | S106: 47 | T106: 57 | U106: 37 | V106: 164 | W106: 174 | X106: 251 | Y106: 44 | Z106: 185
A107: 30 | B107: MEURTHE ET MOSELLE MEUSE | C107: 27 | D107: PONT A MOUSSON | E107: 554184 | F107: BRIEY | G107: 4.8 | H107: 98 | I107: 120 | J107: 144 | K107: 67 | L107: 166 | M107: 199 | N107: 187 | O107: 143 | P107: 24 | Q107: 32 | R107: 16 | S107: 161 | T107: 199 | U107: 186 | V107: 198 | W107: 68 | X107: 107 | Y107: 43 | Z107: 109
A108: 30 | B108: MEURTHE ET MOSELLE MEUSE | C108: 27 | D108: PONT A MOUSSON | E108: 554376 | F108: LAXOU BOUFFLERS | G108: 2.9 | H108: 99 | I108: 168 | J108: 207 | K108: 74 | L108: 77 | M108: 48 | N108: 79 | O108: 31 | P108: 249 | Q108: 58 | R108: 50 | S108: 126 | T108: 110 | U108: 112 | V108: 92 | W108: 88 | X108: 105 | Y108: 74 | Z108: 113
A109: 30 | B109: MARNE-ARDENNES | C109: 11 | D109: REIMS | E109: 551309 | F109: REIMS EUROPE | G109: 2.8 | H109: 100 | I109: 84 | J109: 102 | K109: 79 | L109: 141 | M109: 160 | N109: 103 | O109: 80 | P109: 108 | Q109: 114 | R109: 131 | S109: 80 | T109: 99 | U109: 150 | V109: 29 | W109: 150 | X109: 114 | Y109: 176 | Z109: 151
A110: 30 | B110: MEURTHE ET MOSELLE MEUSE | C110: 26 | D110: NANCY | E110: 554266 | F110: DOMBASLE SUR MEURTHE | G110: 3.7 | H110: 101 | I110: 192 | J110: 168 | K110: 203 | L110: 212 | M110: 170 | N110: 135 | O110: 38 | P110: 244 | Q110: 27 | R110: 18 | S110: 79 | T110: 83 | U110: 116 | V110: 31 | W110: 34 | X110: 46 | Y110: 38 | Z110: 55
A111: 30 | B111: MOSELLE | C111: 42 | D111: MOSELLE EST | E111: 557503 | F111: NEUNKIRCH | G111: 3.6 | H111: 102 | I111: 51 | J111: 108 | K111: 18 | L111: 176 | M111: 125 | N111: 154 | O111: 250 | P111: 168 | Q111: 30 | R111: 10 | S111: 231 | T111: 226 | U111: 224 | V111: 213 | W111: 171 | X111: 218 | Y111: 65 | Z111: 200
A112: 30 | B112: MARNE-ARDENNES | C112: 11 | D112: REIMS | E112: 551365 | F112: DORMANS | G112: 2.7 | H112: 103 | I112: 30 | J112: 19 | K112: 91 | L112: 234 | M112: 240 | N112: 236 | O112: 34 | P112: 178 | Q112: 120 | R112: 148 | S112: 58 | T112: 137 | U112: 147 | V112: 102 | W112: 92 | X112: 55 | Y112: 177 | Z112: 81
A113: 30 | B113: MEURTHE ET MOSELLE MEUSE | C113: 31 | D113: VERDUN | E113: 455151 | F113: BAR LE DUC | G113: 9.1 | H113: 104 | I113: 93 | J113: 94 | K113: 124 | L113: 97 | M113: 99 | N113: 189 | O113: 96 | P113: 86 | Q113: 163 | R113: 121 | S113: 242 | T113: 121 | U113: 118 | V113: 111 | W113: 96 | X113: 173 | Y113: 63 | Z113: 54
A114: 30 | B114: VOSGES | C114: 57 | D114: EPINAL | E114: 588501 | F114: NEUFCHATEAU | G114: 5.0 | H114: 105 | I114: 45 | J114: 48 | K114: 66 | L114: 201 | M114: 219 | N114: 156 | O114: 50 | P114: 116 | Q114: 146 | R114: 116 | S114: 209 | T114: 193 | U114: 204 | V114: 165 | W114: 54 | X114: 85 | Y114: 91 | Z114: 27
A115: 30 | B115: MARNE-ARDENNES | C115: 6 | D115: CHALONS EN CHAMPAGNE | E115: 551103 | F115: FAGNIERES LECLERC | G115: 3.0 | H115: 106 | I115: 60 | J115: 63 | K115: 75 | L115: 47 | M115: 96 | N115: 26 | O115: 25 | P115: 102 | Q115: 247 | R115: 242 | S115: 204 | T115: 139 | U115: 227 | V115: 27 | W115: 95 | X115: 86 | Y115: 134 | Z115: 69
A116: 30 | B116: BAS-RHIN | C116: 5060 | D116: HAGUENAU | E116: 4057 | F116: BISCHWILLER | G116: 6.9 | H116: 107 | I116: 43 | J116: 9 | K116: 181 | L116: 69 | M116: 70 | N116: 176 | O116: 245 | P116: 52 | Q116: 214 | R116: 207 | S116: 162 | T116: 119 | U116: 109 | V116: 130 | W116: 211 | X116: 220 | Y116: 98 | Z116: 246
A117: 30 | B117: MOSELLE | C117: 42 | D117: MOSELLE EST | E117: 457617 | F117: SARREGUEMINES | G117: 8.3 | H117: 108 | I117: 72 | J117: 57 | K117: 118 | L117: 112 | M117: 94 | N117: 215 | O117: 149 | P117: 103 | Q117: 95 | R117: 111 | S117: 63 | T117: 147 | U117: 126 | V117: 189 | W117: 205 | X117: 142 | Y117: 209 | Z117: 193
A118: 30 | B118: BAS-RHIN | C118: 5101 | D118: SELESTAT | E118: 4116 | F118: MOLSHEIM | G118: 5.1 | H118: 109 | I118: 176 | J118: 137 | K118: 206 | L118: 140 | M118: 83 | N118: 196 | O118: 206 | P118: 185 | Q118: 5 | R118: 3 | S118: 93 | T118: 183 | U118: 171 | V118: 202 | W118: 169 | X118: 179 | Y118: 160 | Z118: 128
A119: 30 | B119: MOSELLE | C119: 45 | D119: METZ | E119: 557712 | F119: WOIPPY | G119: 5.6 | H119: 110 | I119: 80 | J119: 42 | K119: 167 | L119: 87 | M119: 113 | N119: 53 | O119: 122 | P119: 106 | Q119: 192 | R119: 183 | S119: 179 | T119: 75 | U119: 107 | V119: 32 | W119: 197 | X119: 120 | Y119: 227 | Z119: 175
A120: 30 | B120: MEURTHE ET MOSELLE MEUSE | C120: 27 | D120: PONT A MOUSSON | E120: 554381 | F120: LAXOU ARISTIDE BRIAND | G120: 4.3 | H120: 111 | I120: 92 | J120: 68 | K120: 152 | L120: 100 | M120: 31 | N120: 136 | O120: 123 | P120: 262 | Q120: 152 | R120: 154 | S120: 129 | T120: 91 | U120: 77 | V120: 135 | W120: 190 | X120: 109 | Y120: 247 | Z120: 131
A121: 30 | B121: MOSELLE | C121: 42 | D121: MOSELLE EST | E121: 457583 | F121: SAINT AVOLD | G121: 7.6 | H121: 112 | I121: 108 | J121: 102 | K121: 137 | L121: 164 | M121: 145 | N121: 168 | O121: 111 | P121: 148 | Q121: 91 | R121: 90 | S121: 99 | T121: 128 | U121: 130 | V121: 108 | W121: 122 | X121: 112 | Y121: 104 | Z121: 157
A122: 30 | B122: MOSELLE | C122: 45 | D122: METZ | E122: 557439 | F122: METZ POMPIDOU | G122: 3.9 | H122: 113 | I122: 128 | J122: 112 | K122: 172 | L122: 159 | M122: 91 | N122: 203 | O122: 160 | P122: 206 | Q122: 77 | R122: 130 | S122: 27 | T122: 109 | U122: 136 | V122: 60 | W122: 120 | X122: 90 | Y122: 163 | Z122: 105
A123: 30 | B123: MEURTHE ET MOSELLE MEUSE | C123: 27 | D123: PONT A MOUSSON | E123: 554416 | F123: LUDRES | G123: 3.8 | H123: 114 | I123: 21 | J123: 35 | K123: 29 | L123: 192 | M123: 192 | N123: 67 | O123: 46 | P123: 191 | Q123: 138 | R123: 141 | S123: 103 | T123: 244 | U123: 246 | V123: 221 | W123: 75 | X123: 65 | Y123: 154 | Z123: 39
A124: 30 | B124: MOSELLE | C124: 45 | D124: METZ | E124: 557434 | F124: MARLY | G124: 3.8 | H124: 115 | I124: 95 | J124: 118 | K124: 69 | L124: 55 | M124: 79 | N124: 166 | O124: 140 | P124: 27 | Q124: 46 | R124: 62 | S124: 48 | T124: 243 | U124: 241 | V124: 234 | W124: 162 | X124: 63 | Y124: 199 | Z124: 234
A125: 30 | B125: AUBE HAUTE MARNE | C125: 14 | D125: TROYES | E125: 410571 | F125: ROMILLY SUR SEINE | G125: 6.2 | H125: 116 | I125: 54 | J125: 35 | K125: 116 | L125: 126 | M125: 129 | N125: 152 | O125: 79 | P125: 110 | Q125: 173 | R125: 188 | S125: 121 | T125: 176 | U125: 178 | V125: 166 | W125: 103 | X125: 126 | Y125: 108 | Z125: 71
A126: 30 | B126: MOSELLE | C126: 42 | D126: MOSELLE EST | E126: 457614 | F126: SARREBOURG | G126: 8.9 | H126: 117 | I126: 69 | J126: 29 | K126: 168 | L126: 63 | M126: 75 | N126: 179 | O126: 161 | P126: 43 | Q126: 125 | R126: 128 | S126: 124 | T126: 222 | U126: 173 | V126: 251 | W126: 160 | X126: 169 | Y126: 109 | Z126: 179
A127: 30 | B127: AUBE HAUTE MARNE | C127: 21 | D127: CHAUMONT | E127: 451151 | F127: WASSY | G127: 2.0 | H127: 118 | I127: 203 | J127: 238 | K127: 50 | L127: 62 | M127: 77 | N127: 164 | O127: 129 | P127: 39 | Q127: 215 | R127: 247 | S127: 36 | T127: 67 | U127: 90 | V127: 44 | W127: 25 | X127: 151 | Y127: 2 | Z127: 110
A128: 30 | B128: AUBE HAUTE MARNE | C128: 14 | D128: TROYES | E128: 410550 | F128: BAR SUR AUBE | G128: 5.9 | H128: 119 | I128: 46 | J128: 29 | K128: 110 | L128: 180 | M128: 205 | N128: 147 | O128: 221 | P128: 25 | Q128: 235 | R128: 227 | S128: 206 | T128: 62 | U128: 88 | V128: 41 | W128: 178 | X128: 247 | Y128: 53 | Z128: 177
A129: 30 | B129: MEURTHE ET MOSELLE MEUSE | C129: 26 | D129: NANCY | E129: 554116 | F129: BACCARAT | G129: 2.2 | H129: 120 | I129: 96 | J129: 144 | K129: 39 | L129: 172 | M129: 143 | N129: 247 | O129: 168 | P129: 90 | Q129: 111 | R129: 110 | S129: 115 | T129: 172 | U129: 172 | V129: 161 | W129: 74 | X129: 145 | Y129: 35 | Z129: 91
A130: 30 | B130: VOSGES | C130: 55 | D130: SAINT DIE | E130: 588186 | F130: BRUYERES | G130: 3.8 | H130: 121 | I130: 111 | J130: 137 | K130: 63 | L130: 75 | M130: 95 | N130: 112 | O130: 224 | P130: 44 | Q130: 245 | R130: 244 | S130: 189 | T130: 104 | U130: 103 | V130: 96 | W130: 57 | X130: 152 | Y130: 36 | Z130: 37
A131: 30 | B131: MEURTHE ET MOSELLE MEUSE | C131: 27 | D131: PONT A MOUSSON | E131: 554516 | F131: PAGNY SUR MOSELLE | G131: 2.8 | H131: 122 | I131: 161 | J131: 168 | K131: 156 | L131: 157 | M131: 167 | N131: 131 | O131: 212 | P131: 67 | Q131: 47 | R131: 25 | S131: 177 | T131: 46 | U131: 53 | V131: 46 | W131: 223 | X131: 202 | Y131: 182 | Z131: 231
A132: 30 | B132: MEURTHE ET MOSELLE MEUSE | C132: 31 | D132: VERDUN | E132: 554700 | F132: VILLERUPT | G132: 2.8 | H132: 123 | I132: 122 | J132: 108 | K132: 159 | L132: 113 | M132: 98 | N132: 172 | O132: 215 | P132: 94 | Q132: 80 | R132: 91 | S132: 73 | T132: 200 | U132: 191 | V132: 193 | W132: 106 | X132: 197 | Y132: 14 | Z132: 223
A133: 30 | B133: BAS-RHIN | C133: 5060 | D133: HAGUENAU | E133: 4030 | F133: BRUMATH | G133: 5.4 | H133: 124 | I133: 94 | J133: 48 | K133: 186 | L133: 186 | M133: 89 | N133: 190 | O133: 124 | P133: 243 | Q133: 45 | R133: 92 | S133: 21 | T133: 231 | U133: 211 | V133: 241 | W133: 100 | X133: 155 | Y133: 60 | Z133: 94
A134: 30 | B134: MARNE-ARDENNES | C134: 11 | D134: REIMS | E134: 451308 | F134: REIMS SAINT THOMAS | G134: 7.8 | H134: 125 | I134: 143 | J134: 77 | K134: 226 | L134: 206 | M134: 185 | N134: 82 | O134: 68 | P134: 225 | Q134: 145 | R134: 115 | S134: 208 | T134: 108 | U134: 115 | V134: 85 | W134: 30 | X134: 19 | Y134: 119 | Z134: 49
A135: 30 | B135: AUBE HAUTE MARNE | C135: 21 | D135: CHAUMONT | E135: 410560 | F135: BOURBONNE LES BAINS | G135: 2.0 | H135: 126 | I135: 10 | J135: 33 | K135: 9 | L135: 179 | M135: 158 | N135: 248 | O135: 205 | P135: 54 | Q135: 175 | R135: 162 | S135: 193 | T135: 159 | U135: 181 | V135: 114 | W135: 244 | X135: 260 | Y135: 120 | Z135: 248
A136: 30 | B136: MEURTHE ET MOSELLE MEUSE | C136: 31 | D136: VERDUN | E136: 455566 | F136: REVIGNY SUR ORNAIN | G136: 3.4 | H136: 127 | I136: 24 | J136: 35 | K136: 33 | L136: 76 | M136: 132 | N136: 158 | O136: 176 | P136: 4 | Q136: 252 | R136: 249 | S136: 223 | T136: 160 | U136: 165 | V136: 142 | W136: 170 | X136: 203 | Y136: 112 | Z136: 142
A137: 30 | B137: MEURTHE ET MOSELLE MEUSE | C137: 31 | D137: VERDUN | E137: 455231 | F137: COMMERCY | G137: 4.6 | H137: 128 | I137: 159 | J137: 144 | K137: 180 | L137: 96 | M137: 92 | N137: 70 | O137: 86 | P137: 174 | Q137: 189 | R137: 173 | S137: 199 | T137: 106 | U137: 82 | V137: 168 | W137: 49 | X137: 123 | Y137: 22 | Z137: 66
A138: 30 | B138: MEURTHE ET MOSELLE MEUSE | C138: 26 | D138: NANCY | E138: 554611 | F138: SAINT NICOLAS DE PORT | G138: 2.8 | H138: 129 | I138: 35 | J138: 11 | K138: 135 | L138: 119 | M138: 194 | N138: 50 | O138: 56 | P138: 51 | Q138: 71 | R138: 61 | S138: 114 | T138: 257 | U138: 261 | V138: 178 | W138: 182 | X138: 130 | Y138: 166 | Z138: 205
A139: 30 | B139: AUBE HAUTE MARNE | C139: 14 | D139: TROYES | E139: 510570 | F139: NOGENT SUR SEINE | G139: 4.3 | H139: 130 | I139: 14 | J139: 19 | K139: 36 | L139: 202 | M139: 182 | N139: 180 | O139: 89 | P139: 162 | Q139: 220 | R139: 178 | S139: 243 | T139: 238 | U139: 201 | V139: 257 | W139: 83 | X139: 76 | Y139: 105 | Z139: 82
A140: 30 | B140: MARNE-ARDENNES | C140: 2 | D140: CHARLEVILLE MEZIERES | E140: 508817 | F140: CHARLEVILLE MOHON | G140: 3.3 | H140: 131 | I140: 53 | J140: 57 | K140: 70 | L140: 171 | M140: 252 | N140: 87 | O140: 57 | P140: 3 | Q140: 242 | R140: 224 | S140: 246 | T140: 130 | U140: 137 | V140: 103 | W140: 86 | X140: 62 | Y140: 153 | Z140: 72
A141: 30 | B141: VOSGES | C141: 55 | D141: SAINT DIE | E141: 588587 | F141: SAINT DIE CATHEDRALE | G141: 4.0 | H141: 132 | I141: 48 | J141: 86 | K141: 28 | L141: 205 | M141: 198 | N141: 222 | O141: 231 | P141: 85 | Q141: 86 | R141: 53 | S141: 198 | T141: 182 | U141: 202 | V141: 154 | W141: 206 | X141: 194 | Y141: 172 | Z141: 196
A142: 30 | B142: MARNE-ARDENNES | C142: 6 | D142: CHALONS EN CHAMPAGNE | E142: 551128 | F142: SAINTE MENEHOULD | G142: 3.2 | H142: 133 | I142: 114 | J142: 102 | K142: 149 | L142: 158 | M142: 181 | N142: 120 | O142: 76 | P142: 93 | Q142: 176 | R142: 229 | S142: 46 | T142: 50 | U142: 60 | V142: 51 | W142: 210 | X142: 234 | Y142: 128 | Z142: 181
A143: 30 | B143: BAS-RHIN | C143: 5060 | D143: HAGUENAU | E143: 4071 | F143: WISSEMBOURG | G143: 8.5 | H143: 134 | I143: 125 | J143: 200 | K143: 14 | L143: 107 | M143: 112 | N143: 134 | O143: 214 | P143: 71 | Q143: 41 | R143: 36 | S143: 95 | T143: 175 | U143: 185 | V143: 150 | W143: 234 | X143: 236 | Y143: 190 | Z143: 210
A144: 110 | B144: VOSGES | C144: 57 | D144: EPINAL | E144: 488281 | F144: ELOYES | G144: 4.7 | H144: 135 | I144: 44 | J144: 14 | K144: 148 | L144: 185 | M144: 174 | N144: 210 | O144: 182 | P144: 79 | Q144: 129 | R144: 88 | S144: 228 | T144: 209 | U144: 215 | V144: 179 | W144: 176 | X144: 167 | Y144: 116 | Z144: 208
A145: 110 | B145: MOSELLE | C145: 44 | D145: MOSELLE NORD | E145: 457350 | F145: HAYANGE | G145: 7.7 | H145: 136 | I145: 88 | J145: 22 | K145: 213 | L145: 36 | M145: 46 | N145: 132 | O145: 147 | P145: 18 | Q145: 240 | R145: 258 | S145: 39 | T145: 167 | U145: 151 | V145: 187 | W145: 185 | X145: 136 | Y145: 185 | Z145: 186
A146: 110 | B146: MARNE-ARDENNES | C146: 6 | D146: CHALONS EN CHAMPAGNE | E146: 451381 | F146: SEZANNE | G146: 6.5 | H146: 137 | I146: 66 | J146: 68 | K146: 82 | L146: 127 | M146: 151 | N146: 107 | O146: 41 | P146: 127 | Q146: 224 | R146: 223 | S146: 166 | T146: 151 | U146: 128 | V146: 184 | W146: 136 | X146: 102 | Y146: 207 | Z146: 86
A147: 110 | B147: HAUT-RHIN | C147: 5130 | D147: COLMAR | E147: 4153 | F147: ROUFFACH | G147: 3.7 | H147: 138 | I147: 162 | J147: 204 | K147: 77 | L147: 216 | M147: 189 | N147: 101 | O147: 199 | P147: 209 | Q147: 208 | R147: 221 | S147: 108 | T147: 20 | U147: 15 | V147: 34 | W147: 139 | X147: 190 | Y147: 66 | Z147: 160
A148: 110 | B148: MOSELLE | C148: 42 | D148: MOSELLE EST | E148: 557668 | F148: VALMONT | G148: 4.6 | H148: 139 | I148: 18 | J148: 29 | K148: 30 | L148: 217 | M148: 179 | N148: 245 | O148: 242 | P148: 152 | Q148: 140 | R148: 146 | S148: 105 | T148: 177 | U148: 149 | V148: 208 | W148: 238 | X148: 213 | Y148: 217 | Z148: 225
A149: 110 | B149: MEURTHE ET MOSELLE MEUSE | C149: 27 | D149: PONT A MOUSSON | E149: 454696 | F149: VILLERS GENERAL LECLERC | G149: 6.0 | H149: 140 | I149: 55 | J149: 42 | K149: 109 | L149: 228 | M149: 225 | N149: 237 | O149: 135 | P149: 123 | Q149: 67 | R149: 57 | S149: 116 | T149: 178 | U149: 169 | V149: 191 | W149: 216 | X149: 176 | Y149: 208 | Z149: 197
A150: 110 | B150: AUBE HAUTE MARNE | C150: 21 | D150: CHAUMONT | E150: 410566 | F150: CHAUMONT HOTEL DE VILLE | G150: 7.5 | H150: 141 | I150: 112 | J150: 128 | K150: 89 | L150: 163 | M150: 156 | N150: 72 | O150: 104 | P150: 177 | Q150: 199 | R150: 214 | S150: 110 | T150: 145 | U150: 170 | V150: 100 | W150: 67 | X150: 103 | Y150: 34 | Z150: 138
A151: 110 | B151: MARNE-ARDENNES | C151: 2 | D151: CHARLEVILLE MEZIERES | E151: 508819 | F151: MOUZON | G151: 2.0 | H151: 142 | I151: 157 | J151: 155 | K151: 173 | L151: 245 | M151: 236 | N151: 98 | O151: 156 | P151: 234 | Q151: 93 | R151: 42 | S151: 244 | T151: 150 | U151: 210 | V151: 63 | W151: 19 | X151: 29 | Y151: 29 | Z151: 38
A152: 110 | B152: MARNE-ARDENNES | C152: 11 | D152: REIMS | E152: 551369 | F152: DAMERY | G152: 2.7 | H152: 143 | I152: 132 | J152: 77 | K152: 205 | L152: 227 | M152: 211 | N152: 57 | O152: 43 | P152: 252 | Q152: 182 | R152: 158 | S152: 212 | T152: 48 | U152: 78 | V152: 25 | W152: 99 | X152: 66 | Y152: 196 | Z152: 52
A153: 110 | B153: VOSGES | C153: 55 | D153: SAINT DIE | E153: 588666 | F153: VAGNEY | G153: 3.9 | H153: 144 | I153: 19 | J153: 14 | K153: 60 | L153: 135 | M153: 133 | N153: 200 | O153: 178 | P153: 73 | Q153: 233 | R153: 210 | S153: 226 | T153: 223 | U153: 187 | V153: 246 | W153: 195 | X153: 187 | Y153: 216 | Z153: 101
A154: 110 | B154: MOSELLE | C154: 44 | D154: MOSELLE NORD | E154: 457158 | F154: YUTZ | G154: 4.6 | H154: 145 | I154: 130 | J154: 102 | K154: 191 | L154: 124 | M154: 102 | N154: 253 | O154: 230 | P154: 45 | Q154: 165 | R154: 137 | S154: 215 | T154: 115 | U154: 100 | V154: 153 | W154: 140 | X154: 95 | Y154: 132 | Z154: 192
A155: 110 | B155: MEURTHE ET MOSELLE MEUSE | C155: 26 | D155: NANCY | E155: 554486 | F155: NANCY POINT CENTRAL | G155: 4.8 | H155: 146 | I155: 139 | J155: 137 | K155: 146 | L155: 123 | M155: 178 | N155: 113 | O155: 61 | P155: 41 | Q155: 99 | R155: 97 | S155: 109 | T155: 194 | U155: 222 | V155: 116 | W155: 107 | X155: 94 | Y155: 184 | Z155: 50
A156: 110 | B156: MARNE-ARDENNES | C156: 2 | D156: CHARLEVILLE MEZIERES | E156: 408806 | F156: SEDAN | G156: 8.6 | H156: 147 | I156: 39 | J156: 94 | K156: 11 | L156: 208 | M156: 215 | N156: 188 | O156: 78 | P156: 145 | Q156: 179 | R156: 151 | S156: 224 | T156: 207 | U156: 155 | V156: 242 | W156: 125 | X156: 81 | Y156: 191 | Z156: 93
A157: 110 | B157: MARNE-ARDENNES | C157: 2 | D157: CHARLEVILLE MEZIERES | E157: 408840 | F157: RETHEL | G157: 4.9 | H157: 148 | I157: 29 | J157: 42 | K157: 41 | L157: 160 | M157: 177 | N157: 185 | O157: 137 | P157: 56 | Q157: 183 | R157: 180 | S157: 172 | T157: 215 | U157: 189 | V157: 236 | W157: 214 | X157: 99 | Y157: 254 | Z157: 188
A158: 110 | B158: MOSELLE | C158: 45 | D158: METZ | E158: 557612 | F158: SAINTE MARIE AUX CHENES | G158: 3.8 | H158: 149 | I158: 40 | J158: 48 | K158: 57 | L158: 220 | M158: 231 | N158: 218 | O158: 225 | P158: 58 | Q158: 166 | R158: 197 | S158: 81 | T158: 116 | U158: 108 | V158: 115 | W158: 232 | X158: 208 | Y158: 232 | Z158: 178
A159: 110 | B159: VOSGES | C159: 57 | D159: EPINAL | E159: 488561 | F159: REMIREMONT | G159: 6.5 | H159: 150 | I159: 79 | J159: 118 | K159: 45 | L159: 210 | M159: 216 | N159: 204 | O159: 175 | P159: 96 | Q159: 128 | R159: 109 | S159: 171 | T159: 156 | U159: 127 | V159: 206 | W159: 180 | X159: 113 | Y159: 239 | Z159: 112
A160: 110 | B160: MEURTHE ET MOSELLE MEUSE | C160: 27 | D160: PONT A MOUSSON | E160: 454355 | F160: JARNY | G160: 4.4 | H160: 151 | I160: 175 | J160: 194 | K160: 139 | L160: 60 | M160: 39 | N160: 160 | O160: 110 | P160: 205 | Q160: 171 | R160: 185 | S160: 118 | T160: 111 | U160: 145 | V160: 53 | W160: 137 | X160: 51 | Y160: 221 | Z160: 164
A161: 110 | B161: AUBE HAUTE MARNE | C161: 14 | D161: TROYES | E161: 510520 | F161: SAINT ANDRE LES VERGERS | G161: 4.6 | H161: 152 | I161: 87 | J161: 68 | K161: 142 | L161: 136 | M161: 169 | N161: 137 | O161: 116 | P161: 42 | Q161: 162 | R161: 179 | S161: 97 | T161: 242 | U161: 247 | V161: 194 | W161: 87 | X161: 140 | Y161: 42 | Z161: 127
A162: 110 | B162: MOSELLE | C162: 44 | D162: MOSELLE NORD | E162: 557352 | F162: HETTANGE GRANDE | G162: 4.2 | H162: 153 | I162: 249 | J162: 255 | K162: 212 | L162: 25 | M162: 14 | N162: 78 | O162: 191 | P162: 134 | Q162: 126 | R162: 126 | S162: 132 | T162: 59 | U162: 55 | V162: 90 | W162: 70 | X162: 73 | Y162: 68 | Z162: 114
A163: 110 | B163: MEURTHE ET MOSELLE MEUSE | C163: 31 | D163: VERDUN | E163: 455678 | F163: VERDUN CENTRALE | G163: 10.9 | H163: 154 | I163: 90 | J163: 124 | K163: 56 | L163: 78 | M163: 90 | N163: 85 | O163: 32 | P163: 170 | Q163: 239 | R163: 240 | S163: 149 | T163: 229 | U163: 237 | V163: 167 | W163: 71 | X163: 41 | Y163: 169 | Z163: 67
A164: 110 | B164: HAUT-RHIN | C164: 5130 | D164: COLMAR | E164: 4143 | F164: MUNSTER | G164: 5.2 | H164: 155 | I164: 115 | J164: 94 | K164: 166 | L164: 104 | M164: 103 | N164: 143 | O164: 210 | P164: 83 | Q164: 228 | R164: 202 | S164: 221 | T164: 120 | U164: 87 | V164: 200 | W164: 166 | X164: 253 | Y164: 39 | Z164: 169
A165: 110 | B165: MOSELLE | C165: 45 | D165: METZ | E165: 557432 | F165: MAIZIERES LES METZ | G165: 3.9 | H165: 156 | I165: 65 | J165: 6 | K165: 221 | L165: 154 | M165: 117 | N165: 153 | O165: 127 | P165: 188 | Q165: 148 | R165: 152 | S165: 125 | T165: 192 | U165: 193 | V165: 180 | W165: 228 | X165: 198 | Y165: 233 | Z165: 172
A166: 110 | B166: MOSELLE | C166: 44 | D166: MOSELLE NORD | E166: 457632 | F166: THIONVILLE CENTRALE | G166: 12.0 | H166: 157 | I166: 145 | J166: 94 | K166: 218 | L166: 80 | M166: 105 | N166: 139 | O166: 203 | P166: 30 | Q166: 144 | R166: 163 | S166: 83 | T166: 132 | U166: 122 | V166: 141 | W166: 202 | X166: 192 | Y166: 111 | Z166: 242
A167: 110 | B167: MEURTHE ET MOSELLE MEUSE | C167: 31 | D167: VERDUN | E167: 455676 | F167: VAUCOULEURS | G167: 1.9 | H167: 158 | I167: 253 | J167: 253 | K167: 242 | L167: 9 | M167: 13 | N167: 108 | O167: 42 | P167: 17 | Q167: 237 | R167: 203 | S167: 252 | T167: 41 | U167: 41 | V167: 62 | W167: 41 | X167: 59 | Y167: 40 | Z167: 65
A168: 110 | B168: HAUT-RHIN | C168: 5169 | D168: MULHOUSE | E168: 4195 | F168: CERNAY | G168: 2.3 | H168: 159 | I168: 202 | J168: 214 | K168: 158 | L168: 191 | M168: 238 | N168: 77 | O168: 158 | P168: 15 | Q168: 36 | R168: 29 | S168: 100 | T168: 161 | U168: 231 | V168: 40 | W168: 91 | X168: 119 | Y168: 62 | Z168: 117
A169: 110 | B169: AUBE HAUTE MARNE | C169: 21 | D169: CHAUMONT | E169: 410541 | F169: LANGRES | G169: 6.6 | H169: 160 | I169: 124 | J169: 137 | K169: 84 | L169: 187 | M169: 154 | N169: 186 | O169: 109 | P169: 160 | Q169: 222 | R169: 222 | S169: 159 | T169: 105 | U169: 96 | V169: 123 | W169: 127 | X169: 206 | Y169: 80 | Z169: 83
A170: 110 | B170: MEURTHE ET MOSELLE MEUSE | C170: 26 | D170: NANCY | E170: 454671 | F170: VANDOEUVRE LES NANCY | G170: 4.7 | H170: 161 | I170: 186 | J170: 174 | K170: 192 | L170: 72 | M170: 82 | N170: 29 | O170: 28 | P170: 212 | Q170: 232 | R170: 195 | S170: 247 | T170: 141 | U170: 167 | V170: 99 | W170: 46 | X170: 24 | Y170: 211 | Z170: 36
A171: 110 | B171: BAS-RHIN | C171: 5006 | D171: STRASBOURG | E171: 4045 | F171: STRASBOURG FRANCS BOURGEOIS | G171: 4.6 | H171: 162 | I171: 200 | J171: 159 | K171: 232 | L171: 84 | M171: 66 | N171: 130 | O171: 162 | P171: 164 | Q171: 22 | R171: 12 | S171: 174 | T171: 232 | U171: 180 | V171: 258 | W171: 161 | X171: 124 | Y171: 145 | Z171: 194
A172: 110 | B172: AUBE HAUTE MARNE | C172: 14 | D172: TROYES | E172: 410510 | F172: TROYES GAMBETTA | G172: 9.3 | H172: 163 | I172: 42 | J172: 57 | K172: 54 | L172: 133 | M172: 161 | N172: 165 | O172: 92 | P172: 57 | Q172: 244 | R172: 251 | S172: 122 | T172: 208 | U172: 220 | V172: 163 | W172: 172 | X172: 148 | Y172: 205 | Z172: 108
A173: 110 | B173: MOSELLE | C173: 44 | D173: MOSELLE NORD | E173: 557307 | F173: FONTOY | G173: 2.1 | H173: 164 | I173: 154 | J173: 155 | K173: 164 | L173: 233 | M173: 246 | N173: 230 | O173: 262 | P173: 60 | Q173: 31 | R173: 20 | S173: 87 | T173: 179 | U173: 235 | V173: 73 | W173: 128 | X173: 185 | Y173: 45 | Z173: 183
A174: 110 | B174: MARNE-ARDENNES | C174: 11 | D174: REIMS | E174: 451301 | F174: REIMS HOTEL DE VILLE | G174: 7.6 | H174: 165 | I174: 135 | J174: 137 | K174: 133 | L174: 92 | M174: 74 | N174: 66 | O174: 47 | P174: 227 | Q174: 257 | R174: 255 | S174: 239 | T174: 79 | U174: 68 | V174: 106 | W174: 115 | X174: 80 | Y174: 130 | Z174: 140
A175: 110 | B175: BAS-RHIN | C175: 5006 | D175: STRASBOURG | E175: 4026 | F175: STRASBOURG DANUBE | G175: 4.6 | H175: 166 | I175: 208 | J175: 77 | K175: 259 | L175: 165 | M175: 73 | N175: 231 | O175: 253 | P175: 215 | Q175: 150 | R175: 139 | S175: 154 | T175: 32 | U175: 24 | V175: 64 | W175: 193 | X175: 212 | Y175: 81 | Z175: 239
A176: 110 | B176: MARNE-ARDENNES | C176: 6 | D176: CHALONS EN CHAMPAGNE | E176: 451166 | F176: VITRY LE FRANCOIS | G176: 7.2 | H176: 167 | I176: 99 | J176: 165 | K176: 22 | L176: 197 | M176: 195 | N176: 155 | O176: 33 | P176: 157 | Q176: 200 | R176: 196 | S176: 153 | T176: 171 | U176: 138 | V176: 212 | W176: 111 | X176: 71 | Y176: 226 | Z176: 51
A177: 110 | B177: AUBE HAUTE MARNE | C177: 14 | D177: TROYES | E177: 410524 | F177: SAINT JULIEN LES VILLAS | G177: 4.0 | H177: 168 | I177: 170 | J177: 57 | K177: 247 | L177: 94 | M177: 40 | N177: 117 | O177: 67 | P177: 257 | Q177: 98 | R177: 69 | S177: 176 | T177: 246 | U177: 249 | V177: 227 | W177: 63 | X177: 48 | Y177: 99 | Z177: 88
A178: 110 | B178: BAS-RHIN | C178: 5006 | D178: STRASBOURG | E178: 4020 | F178: STRASBOURG ROBERTSAU | G178: 6.0 | H178: 169 | I178: 216 | J178: 226 | K178: 143 | L178: 85 | M178: 50 | N178: 133 | O178: 73 | P178: 226 | Q178: 88 | R178: 104 | S178: 62 | T178: 174 | U178: 125 | V178: 237 | W178: 84 | X178: 58 | Y178: 123 | Z178: 96
A179: 110 | B179: MEURTHE ET MOSELLE MEUSE | C179: 27 | D179: PONT A MOUSSON | E179: 554196 | F179: CHAMPIGNEULLES | G179: 3.5 | H179: 170 | I179: 174 | J179: 187 | K179: 140 | L179: 41 | M179: 27 | N179: 206 | O179: 113 | P179: 165 | Q179: 172 | R179: 205 | S179: 82 | T179: 123 | U179: 131 | V179: 93 | W179: 235 | X179: 159 | Y179: 253 | Z179: 203
A180: 110 | B180: BAS-RHIN | C180: 5006 | D180: STRASBOURG | E180: 4024 | F180: STRASBOURG AUSTERLITZ | G180: 2.5 | H180: 171 | I180: 256 | J180: 256 | K180: 243 | L180: 18 | M180: 22 | N180: 51 | O180: 81 | P180: 81 | Q180: 66 | R180: 75 | S180: 68 | T180: 72 | U180: 114 | V180: 23 | W180: 105 | X180: 70 | Y180: 220 | Z180: 40
A181: 110 | B181: MOSELLE | C181: 44 | D181: MOSELLE NORD | E181: 457192 | F181: CATTENOM | G181: 2.9 | H181: 172 | I181: 221 | J181: 196 | K181: 225 | L181: 98 | M181: 119 | N181: 251 | O181: 251 | P181: 2 | Q181: 34 | R181: 35 | S181: 72 | T181: 181 | U181: 142 | V181: 228 | W181: 129 | X181: 54 | Y181: 198 | Z181: 168
A182: 110 | B182: BAS-RHIN | C182: 5006 | D182: STRASBOURG | E182: 4027 | F182: SCHILTIGHEIM CENTRE | G182: 4.2 | H182: 173 | I182: 191 | J182: 183 | K182: 189 | L182: 115 | M182: 124 | N182: 49 | O182: 27 | P182: 210 | Q182: 51 | R182: 52 | S182: 74 | T182: 214 | U182: 203 | V182: 219 | W182: 133 | X182: 44 | Y182: 248 | Z182: 116
A183: 110 | B183: MOSELLE | C183: 42 | D183: MOSELLE EST | E183: 557210 | F183: CHATEAU SALINS | G183: 2.4 | H183: 174 | I183: 188 | J183: 217 | K183: 93 | L183: 23 | M183: 23 | N183: 97 | O183: 183 | P183: 63 | Q183: 238 | R183: 236 | S183: 175 | T183: 230 | U183: 206 | V183: 243 | W183: 64 | X183: 160 | Y183: 31 | Z183: 70
A184: 110 | B184: AUBE HAUTE MARNE | C184: 14 | D184: TROYES | E184: 510522 | F184: TROYES CHARTREUX | G184: 2.9 | H184: 175 | I184: 85 | J184: 132 | K184: 35 | L184: 198 | M184: 210 | N184: 47 | O184: 120 | P184: 159 | Q184: 167 | R184: 171 | S184: 146 | T184: 149 | U184: 158 | V184: 125 | W184: 225 | X184: 232 | Y184: 201 | Z184: 162
A185: 110 | B185: VOSGES | C185: 55 | D185: SAINT DIE | E185: 588551 | F185: RAMBERVILLERS | G185: 3.4 | H185: 176 | I185: 37 | J185: 86 | K185: 12 | L185: 251 | M185: 224 | N185: 212 | O185: 64 | P185: 260 | Q185: 169 | R185: 118 | S185: 255 | T185: 188 | U185: 176 | V185: 197 | W185: 148 | X185: 143 | Y185: 100 | Z185: 184
A186: 110 | B186: MOSELLE | C186: 42 | D186: MOSELLE EST | E186: 457435 | F186: MERLEBACH | G186: 3.7 | H186: 177 | I186: 165 | J186: 124 | K186: 209 | L186: 82 | M186: 81 | N186: 54 | O186: 103 | P186: 179 | Q186: 198 | R186: 233 | S186: 59 | T186: 125 | U186: 132 | V186: 101 | W186: 177 | X186: 166 | Y186: 142 | Z186: 174
A187: 110 | B187: AUBE HAUTE MARNE | C187: 21 | D187: CHAUMONT | E187: 451154 | F187: JOINVILLE | G187: 2.0 | H187: 178 | I187: 12 | J187: 73 | K187: 1 | L187: 249 | M187: 237 | N187: 174 | O187: 232 | P187: 203 | Q187: 262 | R187: 259 | S187: 262 | T187: 117 | U187: 152 | V187: 58 | W187: 116 | X187: 222 | Y187: 58 | Z187: 78
A188: 110 | B188: MEURTHE ET MOSELLE MEUSE | C188: 26 | D188: NANCY | E188: 454171 | F188: BLAMONT | G188: 1.6 | H188: 179 | I188: 228 | J188: 246 | K188: 125 | L188: 20 | M188: 35 | N188: 33 | O188: 119 | P188: 33 | Q188: 260 | R188: 256 | S188: 258 | T188: 47 | U188: 59 | V188: 39 | W188: 114 | X188: 115 | Y188: 147 | Z188: 79
A189: 110 | B189: AUBE HAUTE MARNE | C189: 14 | D189: TROYES | E189: 410521 | F189: SAINTE SAVINE | G189: 5.0 | H189: 180 | I189: 33 | J189: 14 | K189: 114 | L189: 231 | M189: 230 | N189: 214 | O189: 75 | P189: 186 | Q189: 132 | R189: 122 | S189: 147 | T189: 240 | U189: 240 | V189: 224 | W189: 208 | X189: 146 | Y189: 195 | Z189: 227
A190: 110 | B190: MEURTHE ET MOSELLE MEUSE | C190: 27 | D190: PONT A MOUSSON | E190: 454466 | F190: NANCY PLATEAU DE HAYE | G190: 2.0 | H190: 181 | I190: 224 | J190: 238 | K190: 100 | L190: 209 | M190: 245 | N190: 129 | O190: 187 | P190: 29 | Q190: 219 | R190: 194 | S190: 202 | T190: 60 | U190: 146 | V190: 9 | W190: 28 | X190: 144 | Y190: 7 | Z190: 23
A191: 110 | B191: MOSELLE | C191: 42 | D191: MOSELLE EST | E191: 557523 | F191: PHALSBOURG | G191: 2.4 | H191: 182 | I191: 129 | J191: 144 | K191: 102 | L191: 243 | M191: 226 | N191: 146 | O191: 141 | P191: 236 | Q191: 43 | R191: 44 | S191: 84 | T191: 233 | U191: 223 | V191: 231 | W191: 118 | X191: 188 | Y191: 64 | Z191: 118
A192: 160 | B192: MOSELLE | C192: 45 | D192: METZ | E192: 557445 | F192: METZ SAINT LIVIER | G192: 3.0 | H192: 183 | I192: 146 | J192: 183 | K192: 88 | L192: 88 | M192: 84 | N192: 243 | O192: 172 | P192: 49 | Q192: 113 | R192: 95 | S192: 165 | T192: 235 | U192: 225 | V192: 235 | W192: 189 | X192: 83 | Y192: 261 | Z192: 107
A193: 160 | B193: HAUT-RHIN | C193: 5130 | D193: COLMAR | E193: 4141 | F193: HORBOURG WIHR | G193: 5.7 | H193: 184 | I193: 131 | J193: 73 | K193: 210 | L193: 244 | M193: 193 | N193: 148 | O193: 190 | P193: 254 | Q193: 53 | R193: 27 | S193: 195 | T193: 202 | U193: 192 | V193: 195 | W193: 147 | X193: 133 | Y193: 164 | Z193: 125
A194: 160 | B194: HAUT-RHIN | C194: 5130 | D194: COLMAR | E194: 4132 | F194: COLMAR MARAICHERS | G194: 4.2 | H194: 185 | I194: 77 | J194: 42 | K194: 163 | L194: 71 | M194: 60 | N194: 142 | O194: 207 | P194: 119 | Q194: 248 | R194: 246 | S194: 182 | T194: 148 | U194: 98 | V194: 244 | W194: 255 | X194: 168 | Y194: 258 | Z194: 257
A195: 160 | B195: MOSELLE | C195: 45 | D195: METZ | E195: 457446 | F195: METZ SAINT LOUIS | G195: 6.8 | H195: 186 | I195: 156 | J195: 102 | K195: 224 | L195: 196 | M195: 150 | N195: 194 | O195: 93 | P195: 192 | Q195: 62 | R195: 70 | S195: 69 | T195: 205 | U195: 218 | V195: 147 | W195: 199 | X195: 150 | Y195: 215 | Z195: 161
A196: 160 | B196: MOSELLE | C196: 44 | D196: MOSELLE NORD | E196: 557622 | F196: SIERCK LES BAINS | G196: 1.4 | H196: 187 | I196: 173 | J196: 200 | K196: 112 | L196: 138 | M196: 213 | N196: 42 | O196: 74 | P196: 50 | Q196: 193 | R196: 177 | S196: 201 | T196: 191 | U196: 234 | V196: 88 | W196: 61 | X196: 39 | Y196: 237 | Z196: 19
A197: 160 | B197: HAUT-RHIN | C197: 5169 | D197: MULHOUSE | E197: 4181 | F197: WITTELSHEIM | G197: 3.2 | H197: 188 | I197: 177 | J197: 187 | K197: 153 | L197: 232 | M197: 233 | N197: 80 | O197: 112 | P197: 220 | Q197: 181 | R197: 182 | S197: 152 | T197: 152 | U197: 221 | V197: 54 | W197: 24 | X197: 106 | Y197: 18 | Z197: 14
A198: 160 | B198: MARNE-ARDENNES | C198: 11 | D198: REIMS | E198: 551341 | F198: REIMS JEAN JAURES | G198: 4.6 | H198: 189 | I198: 172 | J198: 159 | K198: 184 | L198: 114 | M198: 171 | N198: 192 | O198: 66 | P198: 13 | Q198: 201 | R198: 238 | S198: 45 | T198: 129 | U198: 166 | V198: 70 | W198: 156 | X198: 96 | Y198: 225 | Z198: 115
A199: 160 | B199: VOSGES | C199: 55 | D199: SAINT DIE | E199: 588461 | F199: MOYENMOUTIER | G199: 2.6 | H199: 190 | I199: 241 | J199: 222 | K199: 229 | L199: 38 | M199: 32 | N199: 111 | O199: 239 | P199: 117 | Q199: 104 | R199: 47 | S199: 251 | T199: 198 | U199: 175 | V199: 209 | W199: 101 | X199: 189 | Y199: 13 | Z199: 221
A200: 160 | B200: AUBE HAUTE MARNE | C200: 14 | D200: TROYES | E200: 510556 | F200: BAR SUR SEINE | G200: 3.3 | H200: 191 | I200: 137 | J200: 112 | K200: 194 | L200: 184 | M200: 115 | N200: 89 | O200: 202 | P200: 231 | Q200: 227 | R200: 209 | S200: 210 | T200: 219 | U200: 236 | V200: 146 | W200: 40 | X200: 78 | Y200: 28 | Z200: 64
A201: 160 | B201: MOSELLE | C201: 44 | D201: MOSELLE NORD | E201: 557660 | F201: UCKANGE | G201: 1.7 | H201: 192 | I201: 250 | J201: 217 | K201: 258 | L201: 223 | M201: 134 | N201: 224 | O201: 255 | P201: 238 | Q201: 131 | R201: 85 | S201: 234 | T201: 28 | U201: 46 | V201: 15 | W201: 33 | X201: 117 | Y201: 9 | Z201: 43
A202: 160 | B202: BAS-RHIN | C202: 5101 | D202: SELESTAT | E202: 4111 | F202: BENFELD | G202: 4.4 | H202: 193 | I202: 113 | J202: 55 | K202: 201 | L202: 120 | M202: 45 | N202: 178 | O202: 166 | P202: 245 | Q202: 170 | R202: 174 | S202: 151 | T202: 180 | U202: 198 | V202: 159 | W202: 253 | X202: 263 | Y202: 228 | Z202: 191
A203: 160 | B203: MEURTHE ET MOSELLE MEUSE | C203: 27 | D203: PONT A MOUSSON | E203: 554257 | F203: DIEULOUARD | G203: 3.4 | H203: 194 | I203: 91 | J203: 144 | K203: 26 | L203: 152 | M203: 197 | N203: 191 | O203: 91 | P203: 26 | Q203: 241 | R203: 234 | S203: 203 | T203: 210 | U203: 200 | V203: 217 | W203: 157 | X203: 139 | Y203: 126 | Z203: 176
A204: 160 | B204: AUBE HAUTE MARNE | C204: 14 | D204: TROYES | E204: 510530 | F204: ARCIS SUR AUBE | G204: 4.0 | H204: 195 | I204: 47 | J204: 3 | K204: 219 | L204: 214 | M204: 220 | N204: 255 | O204: 195 | P204: 37 | Q204: 236 | R204: 245 | S204: 104 | T204: 190 | U204: 190 | V204: 188 | W204: 220 | X204: 239 | Y204: 183 | Z204: 153
... 70 more rows

Sheet AG_FICHE
A1: Accueil
A2: BAROMETRE GRAND PUBLIC
A4: UNITE: | B4: Agence | E4: ETP perf : | F4: =VLOOKUP(A5,'RECAP AG'!$G$6:$DG$271,3,FALSE) -> 8.26
A5: =VLOOKUP(B5,LISTES!$C$6:$D$271,2,FALSE) -> 4189 | B5: ALTKIRCH
C6: Coefficient du critère | E6: Résultats | I6: Ecart au 1ier | K6: =IF(OR(A5=4017,A5=4022),"Rang estimé","Rang") -> Rang
E7: du 1ier | G7: de l'Agence | I7: Du mois
A9: RANG GRAND PUBLIC | K9: =VLOOKUP($A$5,'RECAP AG'!$G$6:$DG$271,104,FALSE) -> 255
A11: SATISFACTION CLIENTS | C11: 20% | K11: =VLOOKUP($A$5,'RECAP AG'!$G$6:$DG$271,13,FALSE) -> 205
B12: NPS à froid (SAE) | C12: 10% | E12: =+'RECAP AG'!K4 -> 51 | G12: =VLOOKUP($A$5,'RECAP AG'!$G$6:$DG$271,5,FALSE) -> 5.0 | I12: =VLOOKUP($A$5,'RECAP AG'!$G$6:$DG$271,6,FALSE) -> 67% | K12: =VLOOKUP($A$5,'RECAP AG'!$G$6:$DG$271,7,FALSE) -> 136
B13: NPS à chaud (QHD) | C13: 10% | E13: =+'RECAP AG'!M4 -> 10% | G13: =VLOOKUP($A$5,'RECAP AG'!$G$6:$DG$271,8,FALSE) -> 28% | I13: =VLOOKUP($A$5,'RECAP AG'!$G$6:$DG$271,9,FALSE) -> 68% | K13: =VLOOKUP($A$5,'RECAP AG'!$G$6:$DG$271,10,FALSE) -> 240
A15: BANCARISATION | C15: 20% | K15: =VLOOKUP($A$5,'RECAP AG'!$G$6:$DG$271,36,FALSE) -> 261
B16: Ventes Nettes produits pondérés | C16: 10% | E16: ='RECAP AG'!X4 -> 92.7 | G16: =VLOOKUP($A$5,'RECAP AG'!$G$6:$DG$271,19,FALSE) -> 9.6 | I16: =VLOOKUP($A$5,'RECAP AG'!$G$6:$DG$271,20,FALSE) -> 90% | K16: =VLOOKUP($A$5,'RECAP AG'!$G$6:$DG$271,21,FALSE) -> 250
B17: Ventes sur client non détenteur de l’univers | C17: 4% | E17: ='RECAP AG'!AB4 -> 45.1 | G17: =VLOOKUP($A$5,'RECAP AG'!$G$6:$DG$271,23,FALSE) -> 11.9 | I17: =VLOOKUP($A$5,'RECAP AG'!$G$6:$DG$271,24,FALSE) -> 74% | K17: =VLOOKUP($A$5,'RECAP AG'!$G$6:$DG$271,25,FALSE) -> 252
B18: Mobilité Macron | C18: 3% | E18: ='RECAP AG'!AF4 -> 24.2 | G18: =VLOOKUP($A$5,'RECAP AG'!$G$6:$DG$271,27,FALSE) -> 1.6 | I18: =VLOOKUP($A$5,'RECAP AG'!$G$6:$DG$271,28,FALSE) -> 94% | K18: =VLOOKUP($A$5,'RECAP AG'!$G$6:$DG$271,29,FALSE) -> 227
B19: Remises commerciales | C19: 3% | E19: ='RECAP AG'!AJ4 -> -0.3 | G19: =VLOOKUP($A$5,'RECAP AG'!$G$6:$DG$271,31,FALSE) -> -1.9 | I19: =VLOOKUP($A$5,'RECAP AG'!$G$6:$DG$271,32,FALSE) -> 110% | K19: =VLOOKUP($A$5,'RECAP AG'!$G$6:$DG$271,33,FALSE) -> 255
A21: EPARGNE | C21: 20% | K21: =VLOOKUP($A$5,'RECAP AG'!$G$6:$DG$271,51,FALSE) -> 251
B22: Excédent Epargne y/c DAV pondéré | C22: 14% | E22: ='RECAP AG'!AU4 -> 1883.7 | G22: =VLOOKUP($A$5,'RECAP AG'!$G$6:$DG$271,42,FALSE) -> -15.1 | I22: =VLOOKUP($A$5,'RECAP AG'!$G$6:$DG$271,43,FALSE) -> 101% | K22: =VLOOKUP($A$5,'RECAP AG'!$G$6:$DG$271,44,FALSE) -> 237
B23: Ventes sur client non détenteur de l’univers | C23: 6% | E23: ='RECAP AG'!AY4 -> 34.2 | G23: =VLOOKUP($A$5,'RECAP AG'!$G$6:$DG$271,46,FALSE) -> 4.8 | I23: =VLOOKUP($A$5,'RECAP AG'!$G$6:$DG$271,47,FALSE) -> 86% | K23: =VLOOKUP($A$5,'RECAP AG'!$G$6:$DG$271,48,FALSE) -> 256
A25: IARD PREVOYANCE | C25: 20% | K25: =VLOOKUP($A$5,'RECAP AG'!$G$6:$DG$271,85,FALSE) -> 255
B26: Ventes Nettes produits pondérés | C26: 14% | E26: ='RECAP AG'!CC4 -> 417.7 | G26: =VLOOKUP($A$5,'RECAP AG'!$G$6:$DG$271,76,FALSE) -> 5.5 | I26: =VLOOKUP($A$5,'RECAP AG'!$G$6:$DG$271,77,FALSE) -> 99% | K26: =VLOOKUP($A$5,'RECAP AG'!$G$6:$DG$271,78,FALSE) -> 257
B27: Ventes sur client non détenteur de l’univers | C27: 6% | E27: ='RECAP AG'!CG4 -> 36.6 | G27: =VLOOKUP($A$5,'RECAP AG'!$G$6:$DG$271,80,FALSE) -> 13.3 | I27: =VLOOKUP($A$5,'RECAP AG'!$G$6:$DG$271,81,FALSE) -> 64% | K27: =VLOOKUP($A$5,'RECAP AG'!$G$6:$DG$271,82,FALSE) -> 225
A29: CREDITS | C29: 20% | K29: =VLOOKUP($A$5,'RECAP AG'!$G$6:$DG$271,70,FALSE) -> 196
B30: Engagements et ventes accessoires pondérés Immo | C30: 8% | E30: ='RECAP AG'!BJ4 -> 337.6 | G30: =VLOOKUP($A$5,'RECAP AG'!$G$6:$DG$271,57,FALSE) -> 29.9 | I30: =VLOOKUP($A$5,'RECAP AG'!$G$6:$DG$271,58,FALSE) -> 91% | K30: =VLOOKUP($A$5,'RECAP AG'!$G$6:$DG$271,59,FALSE) -> 229
B31: Engagements et ventes accessoires pondérés Conso | C31: 6% | E31: ='RECAP AG'!BN4 -> 62.8 | G31: =VLOOKUP($A$5,'RECAP AG'!$G$6:$DG$271,61,FALSE) -> 33.5 | I31: =VLOOKUP($A$5,'RECAP AG'!$G$6:$DG$271,62,FALSE) -> 47% | K31: =VLOOKUP($A$5,'RECAP AG'!$G$6:$DG$271,63,FALSE) -> 75
B32: Ventes sur client non détenteur de l’univers | C32: 6% | E32: ='RECAP AG'!BR4 -> 25.0 | G32: =VLOOKUP($A$5,'RECAP AG'!$G$6:$DG$271,65,FALSE) -> 5.2 | I32: =VLOOKUP($A$5,'RECAP AG'!$G$6:$DG$271,66,FALSE) -> 79% | K32: =VLOOKUP($A$5,'RECAP AG'!$G$6:$DG$271,67,FALSE) -> 228

Sheet AG_TOTAL
B1: Accueil | H1: BAROMETRE BDD - AGENCES
H2: TOTAL GENERAL
H3: =ACCUEIL!F7 -> 2021-05-16
H7: TOTAL GENERAL | K7: Total Satisfaction Clients | N7: Total Bancarisation | Q7: Total Epargne | T7: Total IARD Prévoyance | W7: Total Crédits
I8: coef | J8: 100% | L8: coef | M8: =AG_SATISFACTION!P8 -> 20% | O8: coef | P8: =AG_BANCA!Z8 -> 20% | R8: coef | S8: =AG_EPARGNE!R8 -> 20% | U8: coef | V8: =AG_IARD!R8 -> 20% | X8: coef | Y8: =AG_CREDIT!V8 -> 20%
B9: Direction | C9: eds | D9: Territoire | E9: eds | F9: Agence | G9: ="ETP perf "&DATEMAJ!$C$28 -> ETP perf 31-mars | H9: Moyenne ecart au 1er | I9: % Ecart au 1er | J9: Rang CEGEE | K9: Moyenne ecart au 1er | L9: % Ecart au 1er | M9: Rang CEGEE | N9: Moyenne ecart au 1er | O9: % Ecart au 1er | P9: Rang CEGEE | Q9: Moyenne ecart au 1er | R9: % Ecart au 1er | S9: Rang CEGEE | T9: Moyenne ecart au 1er | U9: % Ecart au 1er | V9: Rang CEGEE | W9: Moyenne ecart au 1er | X9: % Ecart au 1er | Y9: Rang CEGEE
A10: 50 | B10: MEURTHE ET MOSELLE MEUSE | C10: 26 | D10: NANCY | E10: 454481 | F10: NANCY PLACE DOMBASLE | G10: 12.2 | H10: 23% | I10: 0% | J10: 1 | K10: 39% | L10: 32% | M10: 70 | N10: 20% | O10: 5% | P10: 2 | Q10: 54% | R10: 32% | S10: 9 | T10: 25% | U10: 22% | V10: 3 | W10: 30% | X10: 23% | Y10: 2
A11: 50 | B11: MEURTHE ET MOSELLE MEUSE | C11: 27 | D11: PONT A MOUSSON | E11: 554531 | F11: POMPEY | G11: 2.9 | H11: 28% | I11: 5% | J11: 2 | K11: 45% | L11: 38% | M11: 97 | N11: 15% | O11: 0% | P11: 1 | Q11: 53% | R11: 31% | S11: 6 | T11: 43% | U11: 40% | V11: 15 | W11: 38% | X11: 32% | Y11: 7
A12: 50 | B12: MEURTHE ET MOSELLE MEUSE | C12: 26 | D12: NANCY | E12: 554356 | F12: JARVILLE LA MALGRANGE | G12: 3.9 | H12: 33% | I12: 10% | J12: 3 | K12: 37% | L12: 30% | M12: 58 | N12: 34% | O12: 19% | P12: 5 | Q12: 71% | R12: 49% | S12: 65 | T12: 38% | U12: 35% | V12: 8 | W12: 37% | X12: 31% | Y12: 5
A13: 50 | B13: MARNE-ARDENNES | C13: 2 | D13: CHARLEVILLE MEZIERES | E13: 508820 | F13: VOUZIERS | G13: 2.9 | H13: 34% | I13: 11% | J13: 4 | K13: 37% | L13: 30% | M13: 59 | N13: 67% | O13: 53% | P13: 167 | Q13: 69% | R13: 47% | S13: 52 | T13: 2% | U13: 0% | V13: 1 | W13: 47% | X13: 41% | Y13: 11
A14: 50 | B14: MEURTHE ET MOSELLE MEUSE | C14: 27 | D14: PONT A MOUSSON | E14: 454651 | F14: TOUL | G14: 9.7 | H14: 35% | I14: 12% | J14: 5 | K14: 71% | L14: 63% | M14: 219 | N14: 35% | O14: 21% | P14: 8 | Q14: 72% | R14: 50% | S14: 70 | T14: 45% | U14: 42% | V14: 21 | W14: 6% | X14: 0% | Y14: 1
A15: 50 | B15: MARNE-ARDENNES | C15: 6 | D15: CHALONS EN CHAMPAGNE | E15: 451115 | F15: MOURMELON LE GRAND | G15: 2.8 | H15: 37% | I15: 15% | J15: 6 | K15: 31% | L15: 24% | M15: 31 | N15: 56% | O15: 42% | P15: 53 | Q15: 58% | R15: 36% | S15: 15 | T15: 43% | U15: 41% | V15: 16 | W15: 51% | X15: 45% | Y15: 17
A16: 50 | B16: MARNE-ARDENNES | C16: 11 | D16: REIMS | E16: 451336 | F16: TINQUEUX | G16: 5.6 | H16: 38% | I16: 15% | J16: 7 | K16: 45% | L16: 38% | M16: 98 | N16: 63% | O16: 49% | P16: 116 | Q16: 22% | R16: 0% | S16: 1 | T16: 50% | U16: 47% | V16: 29 | W16: 60% | X16: 54% | Y16: 52
A17: 50 | B17: BAS-RHIN | C17: 5060 | D17: HAGUENAU | E17: 4092 | F17: HOCHFELDEN | G17: 2.0 | H17: 38% | I17: 15% | J17: 8 | K17: 46% | L17: 39% | M17: 105 | N17: 29% | O17: 14% | P17: 3 | Q17: 79% | R17: 57% | S17: 136 | T17: 49% | U17: 47% | V17: 26 | W17: 38% | X17: 32% | Y17: 6
A18: 50 | B18: MARNE-ARDENNES | C18: 2 | D18: CHARLEVILLE MEZIERES | E18: 408822 | F18: CHARLEVILLE MEZIERES | G18: 4.1 | H18: 38% | I18: 16% | J18: 9 | K18: 48% | L18: 41% | M18: 119 | N18: 58% | O18: 44% | P18: 70 | Q18: 48% | R18: 26% | S18: 3 | T18: 35% | U18: 33% | V18: 6 | W18: 54% | X18: 48% | Y18: 26
A19: 50 | B19: BAS-RHIN | C19: 5101 | D19: SELESTAT | E19: 4113 | F19: BARR | G19: 3.0 | H19: 39% | I19: 17% | J19: 10 | K19: 40% | L19: 33% | M19: 74 | N19: 43% | O19: 28% | P19: 15 | Q19: 45% | R19: 23% | S19: 2 | T19: 47% | U19: 45% | V19: 24 | W19: 75% | X19: 69% | Y19: 203
A20: 50 | B20: VOSGES | C20: 57 | D20: EPINAL | E20: 488288 | F20: EPINAL LEOPOLD BOURG | G20: 1.9 | H20: 40% | I20: 17% | J20: 11 | K20: 46% | L20: 38% | M20: 101 | N20: 42% | O20: 27% | P20: 13 | Q20: 61% | R20: 39% | S20: 21 | T20: 64% | U20: 61% | V20: 100 | W20: 40% | X20: 34% | Y20: 8
A21: 50 | B21: MEURTHE ET MOSELLE MEUSE | C21: 31 | D21: VERDUN | E21: 554413 | F21: LONGWY BAS | G21: 3.2 | H21: 41% | I21: 18% | J21: 12 | K21: 24% | L21: 17% | M21: 8 | N21: 47% | O21: 33% | P21: 26 | Q21: 60% | R21: 38% | S21: 19 | T21: 72% | U21: 70% | V21: 165 | W21: 52% | X21: 46% | Y21: 20
A22: 50 | B22: MARNE-ARDENNES | C22: 11 | D22: REIMS | E22: 551349 | F22: REIMS SAINT REMI | G22: 3.0 | H22: 41% | I22: 18% | J22: 13 | K22: 46% | L22: 39% | M22: 106 | N22: 49% | O22: 34% | P22: 30 | Q22: 58% | R22: 36% | S22: 14 | T22: 49% | U22: 47% | V22: 27 | W22: 55% | X22: 48% | Y22: 27
A23: 50 | B23: MARNE-ARDENNES | C23: 2 | D23: CHARLEVILLE MEZIERES | E23: 408862 | F23: REVIN | G23: 4.1 | H23: 42% | I23: 19% | J23: 14 | K23: 12% | L23: 4% | M23: 2 | N23: 56% | O23: 42% | P23: 52 | Q23: 64% | R23: 42% | S23: 28 | T23: 62% | U23: 60% | V23: 85 | W23: 68% | X23: 62% | Y23: 117
A24: 50 | B24: MOSELLE | C24: 42 | D24: MOSELLE EST | E24: 457163 | F24: BEHREN LES FORBACH | G24: 2.7 | H24: 43% | I24: 20% | J24: 15 | K24: 38% | L24: 30% | M24: 62 | N24: 49% | O24: 34% | P24: 29 | Q24: 73% | R24: 51% | S24: 79 | T24: 60% | U24: 57% | V24: 71 | W24: 48% | X24: 42% | Y24: 12
A25: 50 | B25: MOSELLE | C25: 45 | D25: METZ | E25: 557444 | F25: SAINT JULIEN LES METZ | G25: 4.9 | H25: 43% | I25: 20% | J25: 16 | K25: 47% | L25: 39% | M25: 109 | N25: 63% | O25: 49% | P25: 121 | Q25: 59% | R25: 37% | S25: 17 | T25: 39% | U25: 37% | V25: 11 | W25: 59% | X25: 53% | Y25: 39
A26: 50 | B26: MOSELLE | C26: 44 | D26: MOSELLE NORD | E26: 557508 | F26: NILVANGE | G26: 2.5 | H26: 43% | I26: 20% | J26: 17 | K26: 57% | L26: 50% | M26: 158 | N26: 50% | O26: 35% | P26: 34 | Q26: 74% | R26: 52% | S26: 83 | T26: 30% | U26: 27% | V26: 5 | W26: 59% | X26: 52% | Y26: 38
A27: 50 | B27: MARNE-ARDENNES | C27: 11 | D27: REIMS | E27: 551340 | F27: BETHENY | G27: 2.9 | H27: 44% | I27: 21% | J27: 18 | K27: 30% | L27: 23% | M27: 28 | N27: 67% | O27: 52% | P27: 162 | Q27: 61% | R27: 39% | S27: 20 | T27: 66% | U27: 63% | V27: 113 | W27: 46% | X27: 40% | Y27: 10
A28: 50 | B28: VOSGES | C28: 55 | D28: SAINT DIE | E28: 488246 | F28: CORNIMONT LA BRESSE | G28: 2.6 | H28: 44% | I28: 21% | J28: 19 | K28: 14% | L28: 7% | M28: 3 | N28: 62% | O28: 47% | P28: 101 | Q28: 82% | R28: 60% | S28: 158 | T28: 58% | U28: 56% | V28: 58 | W28: 56% | X28: 50% | Y28: 29
A29: 50 | B29: MOSELLE | C29: 42 | D29: MOSELLE EST | E29: 457308 | F29: FORBACH CENTRALE | G29: 11.2 | H29: 45% | I29: 22% | J29: 20 | K29: 29% | L29: 22% | M29: 25 | N29: 49% | O29: 34% | P29: 31 | Q29: 70% | R29: 48% | S29: 56 | T29: 63% | U29: 61% | V29: 96 | W29: 67% | X29: 61% | Y29: 108
A30: 50 | B30: MARNE-ARDENNES | C30: 11 | D30: REIMS | E30: 551305 | F30: REIMS HIPPODROME | G30: 3.9 | H30: 46% | I30: 23% | J30: 21 | K30: 26% | L30: 19% | M30: 16 | N30: 68% | O30: 53% | P30: 170 | Q30: 86% | R30: 64% | S30: 197 | T30: 44% | U30: 41% | V30: 18 | W30: 58% | X30: 52% | Y30: 35
A31: 262 | B31: MOSELLE | C31: 42 | D31: MOSELLE EST | E31: 557250 | F31: CREUTZWALD | G31: 2.6 | H31: 46% | I31: 23% | J31: 22 | K31: 48% | L31: 41% | M31: 116 | N31: 66% | O31: 51% | P31: 142 | Q31: 53% | R31: 31% | S31: 8 | T31: 54% | U31: 51% | V31: 42 | W31: 61% | X31: 55% | Y31: 56
A32: 262 | B32: MEURTHE ET MOSELLE MEUSE | C32: 31 | D32: VERDUN | E32: 554412 | F32: LONGUYON | G32: 2.7 | H32: 46% | I32: 23% | J32: 23 | K32: 40% | L32: 32% | M32: 73 | N32: 65% | O32: 50% | P32: 139 | Q32: 78% | R32: 56% | S32: 118 | T32: 52% | U32: 49% | V32: 34 | W32: 49% | X32: 43% | Y32: 14
A33: 262 | B33: MARNE-ARDENNES | C33: 2 | D33: CHARLEVILLE MEZIERES | E33: 508833 | F33: VILLERS SEMEUSE CORA | G33: 3.4 | H33: 47% | I33: 24% | J33: 24 | K33: 46% | L33: 39% | M33: 104 | N33: 59% | O33: 44% | P33: 73 | Q33: 69% | R33: 47% | S33: 50 | T33: 58% | U33: 55% | V33: 56 | W33: 54% | X33: 48% | Y33: 23
A34: 262 | B34: BAS-RHIN | C34: 5101 | D34: SELESTAT | E34: 4126 | F34: MUTZIG | G34: 2.0 | H34: 47% | I34: 24% | J34: 25 | K34: 68% | L34: 61% | M34: 209 | N34: 47% | O34: 32% | P34: 22 | Q34: 77% | R34: 55% | S34: 112 | T34: 63% | U34: 61% | V34: 94 | W34: 31% | X34: 24% | Y34: 3
A35: 262 | B35: MARNE-ARDENNES | C35: 2 | D35: CHARLEVILLE MEZIERES | E35: 408801 | F35: CHARLEVILLE JEAN JAURES | G35: 9.4 | H35: 47% | I35: 24% | J35: 26 | K35: 32% | L35: 25% | M35: 36 | N35: 63% | O35: 48% | P35: 109 | Q35: 70% | R35: 48% | S35: 59 | T35: 71% | U35: 69% | V35: 157 | W35: 50% | X35: 44% | Y35: 15
A36: 262 | B36: BAS-RHIN | C36: 5006 | D36: STRASBOURG | E36: 4037 | F36: MUNDOLSHEIM | G36: 4.1 | H36: 47% | I36: 24% | J36: 27 | K36: 54% | L36: 47% | M36: 141 | N36: 41% | O36: 26% | P36: 10 | Q36: 63% | R36: 41% | S36: 24 | T36: 57% | U36: 55% | V36: 55 | W36: 72% | X36: 66% | Y36: 165
A37: 262 | B37: MARNE-ARDENNES | C37: 2 | D37: CHARLEVILLE MEZIERES | E37: 508839 | F37: GIVET | G37: 3.6 | H37: 47% | I37: 24% | J37: 28 | K37: 50% | L37: 43% | M37: 127 | N37: 66% | O37: 52% | P37: 147 | Q37: 83% | R37: 61% | S37: 164 | T37: 17% | U37: 15% | V37: 2 | W37: 72% | X37: 66% | Y37: 168
A38: 262 | B38: MEURTHE ET MOSELLE MEUSE | C38: 26 | D38: NANCY | E38: 554476 | F38: NANCY ARTEM | G38: 2.7 | H38: 47% | I38: 24% | J38: 29 | K38: 39% | L38: 32% | M38: 67 | N38: 61% | O38: 46% | P38: 89 | Q38: 68% | R38: 46% | S38: 40 | T38: 56% | U38: 54% | V38: 49 | W38: 65% | X38: 59% | Y38: 90
A39: 262 | B39: BAS-RHIN | C39: 5006 | D39: STRASBOURG | E39: 4047 | F39: STRASBOURG CRONENBOURG | G39: 5.5 | H39: 47% | I39: 25% | J39: 30 | K39: 35% | L39: 28% | M39: 50 | N39: 61% | O39: 46% | P39: 90 | Q39: 72% | R39: 50% | S39: 69 | T39: 59% | U39: 57% | V39: 64 | W39: 62% | X39: 56% | Y39: 60
A40: 262 | B40: BAS-RHIN | C40: 5006 | D40: STRASBOURG | E40: 4019 | F40: STRASBOURG ANVERS | G40: 4.1 | H40: 47% | I40: 25% | J40: 31 | K40: 42% | L40: 35% | M40: 83 | N40: 58% | O40: 43% | P40: 65 | Q40: 57% | R40: 35% | S40: 13 | T40: 68% | U40: 66% | V40: 134 | W40: 64% | X40: 58% | Y40: 81
A41: 262 | B41: MARNE-ARDENNES | C41: 6 | D41: CHALONS EN CHAMPAGNE | E41: 551330 | F41: MONTMIRAIL | G41: 3.0 | H41: 48% | I41: 25% | J41: 32 | K41: 28% | L41: 21% | M41: 20 | N41: 74% | O41: 59% | P41: 213 | Q41: 67% | R41: 45% | S41: 37 | T41: 57% | U41: 54% | V41: 53 | W41: 65% | X41: 59% | Y41: 85
A42: 262 | B42: MOSELLE | C42: 45 | D42: METZ | E42: 557447 | F42: METZ SAINT MAXIMIN | G42: 3.1 | H42: 48% | I42: 25% | J42: 33 | K42: 54% | L42: 47% | M42: 140 | N42: 48% | O42: 33% | P42: 28 | Q42: 73% | R42: 51% | S42: 81 | T42: 63% | U42: 61% | V42: 93 | W42: 52% | X42: 46% | Y42: 21
A43: 262 | B43: MEURTHE ET MOSELLE MEUSE | C43: 26 | D43: NANCY | E43: 554636 | F43: TOMBLAINE | G43: 2.1 | H43: 48% | I43: 25% | J43: 34 | K43: 27% | L43: 20% | M43: 17 | N43: 81% | O43: 66% | P43: 248 | Q43: 70% | R43: 48% | S43: 54 | T43: 46% | U43: 43% | V43: 22 | W43: 67% | X43: 61% | Y43: 109
A44: 262 | B44: MARNE-ARDENNES | C44: 2 | D44: CHARLEVILLE MEZIERES | E44: 508815 | F44: CARIGNAN | G44: 2.9 | H44: 48% | I44: 25% | J44: 35 | K44: 41% | L44: 34% | M44: 78 | N44: 64% | O44: 49% | P44: 122 | Q44: 63% | R44: 41% | S44: 26 | T44: 60% | U44: 58% | V44: 78 | W44: 63% | X44: 57% | Y44: 66
A45: 262 | B45: MOSELLE | C45: 44 | D45: MOSELLE NORD | E45: 557113 | F45: AUDUN LE TICHE | G45: 2.0 | H45: 48% | I45: 25% | J45: 36 | K45: 89% | L45: 82% | M45: 248 | N45: 43% | O45: 28% | P45: 16 | Q45: 66% | R45: 44% | S45: 33 | T45: 59% | U45: 57% | V45: 70 | W45: 33% | X45: 27% | Y45: 4
A46: 262 | B46: MEURTHE ET MOSELLE MEUSE | C46: 31 | D46: VERDUN | E46: 455298 | F46: ETAIN | G46: 1.7 | H46: 48% | I46: 25% | J46: 37 | K46: 65% | L46: 57% | M46: 195 | N46: 61% | O46: 46% | P46: 91 | Q46: 77% | R46: 55% | S46: 116 | T46: 30% | U46: 27% | V46: 4 | W46: 60% | X46: 54% | Y46: 47
A47: 262 | B47: BAS-RHIN | C47: 5060 | D47: HAGUENAU | E47: 4079 | F47: SOULTZ SOUS FORETS | G47: 2.1 | H47: 48% | I47: 25% | J47: 38 | K47: 48% | L47: 41% | M47: 118 | N47: 44% | O47: 30% | P47: 17 | Q47: 82% | R47: 60% | S47: 159 | T47: 55% | U47: 53% | V47: 45 | W47: 63% | X47: 57% | Y47: 69
A48: 262 | B48: MEURTHE ET MOSELLE MEUSE | C48: 31 | D48: VERDUN | E48: 555624 | F48: STENAY | G48: 2.9 | H48: 48% | I48: 25% | J48: 39 | K48: 63% | L48: 56% | M48: 190 | N48: 32% | O48: 18% | P48: 4 | Q48: 74% | R48: 52% | S48: 92 | T48: 61% | U48: 58% | V48: 81 | W48: 62% | X48: 56% | Y48: 62
A49: 262 | B49: MEURTHE ET MOSELLE MEUSE | C49: 31 | D49: VERDUN | E49: 555679 | F49: VERDUN MAZEL | G49: 4.0 | H49: 48% | I49: 25% | J49: 40 | K49: 33% | L49: 26% | M49: 38 | N49: 52% | O49: 37% | P49: 40 | Q49: 73% | R49: 51% | S49: 76 | T49: 71% | U49: 68% | V49: 155 | W49: 64% | X49: 58% | Y49: 82
A50: 262 | B50: MEURTHE ET MOSELLE MEUSE | C50: 26 | D50: NANCY | E50: 454426 | F50: LUNEVILLE CARNOT | G50: 10.0 | H50: 48% | I50: 25% | J50: 41 | K50: 49% | L50: 42% | M50: 123 | N50: 56% | O50: 41% | P50: 49 | Q50: 78% | R50: 56% | S50: 119 | T50: 52% | U50: 50% | V50: 37 | W50: 59% | X50: 53% | Y50: 43
A51: 262 | B51: MARNE-ARDENNES | C51: 6 | D51: CHALONS EN CHAMPAGNE | E51: 451101 | F51: CHALONS VIVIERS | G51: 8.8 | H51: 48% | I51: 25% | J51: 42 | K51: 24% | L51: 17% | M51: 11 | N51: 61% | O51: 47% | P51: 99 | Q51: 80% | R51: 58% | S51: 143 | T51: 64% | U51: 62% | V51: 101 | W51: 64% | X51: 57% | Y51: 72
A52: 262 | B52: AUBE HAUTE MARNE | C52: 21 | D52: CHAUMONT | E52: 510590 | F52: CHAUMONT REPUBLIQUE | G52: 4.3 | H52: 48% | I52: 26% | J52: 43 | K52: 43% | L52: 36% | M52: 89 | N52: 69% | O52: 54% | P52: 181 | Q52: 71% | R52: 49% | S52: 64 | T52: 53% | U52: 50% | V52: 38 | W52: 59% | X52: 53% | Y52: 42
A53: 262 | B53: MEURTHE ET MOSELLE MEUSE | C53: 27 | D53: PONT A MOUSSON | E53: 454535 | F53: PONT A MOUSSON CENTRALE | G53: 8.0 | H53: 49% | I53: 26% | J53: 44 | K53: 56% | L53: 48% | M53: 150 | N53: 41% | O53: 27% | P53: 12 | Q53: 76% | R53: 54% | S53: 106 | T53: 59% | U53: 56% | V53: 61 | W53: 64% | X53: 57% | Y53: 73
A54: 262 | B54: MARNE-ARDENNES | C54: 6 | D54: CHALONS EN CHAMPAGNE | E54: 451120 | F54: SARRY | G54: 2.5 | H54: 49% | I54: 26% | J54: 45 | K54: 24% | L54: 17% | M54: 9 | N54: 67% | O54: 52% | P54: 148 | Q54: 63% | R54: 41% | S54: 25 | T54: 70% | U54: 67% | V54: 142 | W54: 73% | X54: 67% | Y54: 184
A55: 262 | B55: MEURTHE ET MOSELLE MEUSE | C55: 27 | D55: PONT A MOUSSON | E55: 554506 | F55: CHALIGNY NEUVES MAISONS | G55: 3.9 | H55: 49% | I55: 26% | J55: 46 | K55: 55% | L55: 48% | M55: 149 | N55: 35% | O55: 21% | P55: 7 | Q55: 87% | R55: 65% | S55: 213 | T55: 69% | U55: 66% | V55: 136 | W55: 51% | X55: 45% | Y55: 16
A56: 262 | B56: BAS-RHIN | C56: 5101 | D56: SELESTAT | E56: 4121 | F56: SCHIRMECK | G56: 3.3 | H56: 49% | I56: 26% | J56: 47 | K56: 49% | L56: 42% | M56: 126 | N56: 58% | O56: 43% | P56: 61 | Q56: 68% | R56: 46% | S56: 42 | T56: 62% | U56: 60% | V56: 88 | W56: 59% | X56: 53% | Y56: 44
A57: 262 | B57: MARNE-ARDENNES | C57: 6 | D57: CHALONS EN CHAMPAGNE | E57: 551110 | F57: CHALONS ROOSEVELT | G57: 4.9 | H57: 49% | I57: 26% | J57: 48 | K57: 30% | L57: 22% | M57: 27 | N57: 68% | O57: 53% | P57: 174 | Q57: 70% | R57: 48% | S57: 55 | T57: 60% | U57: 58% | V57: 77 | W57: 70% | X57: 64% | Y57: 142
A58: 262 | B58: VOSGES | C58: 57 | D58: EPINAL | E58: 488706 | F58: VITTEL | G58: 3.7 | H58: 49% | I58: 26% | J58: 49 | K58: 24% | L58: 16% | M58: 7 | N58: 75% | O58: 61% | P58: 224 | Q58: 81% | R58: 59% | S58: 149 | T58: 53% | U58: 51% | V58: 39 | W58: 65% | X58: 59% | Y58: 89
A59: 262 | B59: VOSGES | C59: 55 | D59: SAINT DIE | E59: 488586 | F59: SAINT DIE | G59: 10.9 | H59: 49% | I59: 26% | J59: 50 | K59: 18% | L59: 11% | M59: 4 | N59: 70% | O59: 55% | P59: 194 | Q59: 69% | R59: 47% | S59: 48 | T59: 71% | U59: 68% | V59: 153 | W59: 72% | X59: 65% | Y59: 158
A60: 262 | B60: VOSGES | C60: 57 | D60: EPINAL | E60: 588716 | F60: XERTIGNY | G60: 2.9 | H60: 49% | I60: 26% | J60: 51 | K60: 43% | L60: 35% | M60: 86 | N60: 63% | O60: 48% | P60: 110 | Q60: 73% | R60: 51% | S60: 78 | T60: 39% | U60: 36% | V60: 9 | W60: 82% | X60: 75% | Y60: 249
A61: 262 | B61: BAS-RHIN | C61: 5101 | D61: SELESTAT | E61: 4119 | F61: OBERNAI | G61: 3.3 | H61: 49% | I61: 26% | J61: 52 | K61: 74% | L61: 67% | M61: 229 | N61: 34% | O61: 20% | P61: 6 | Q61: 70% | R61: 48% | S61: 57 | T61: 52% | U61: 50% | V61: 36 | W61: 68% | X61: 62% | Y61: 121
A62: 262 | B62: MOSELLE | C62: 44 | D62: MOSELLE NORD | E62: 457306 | F62: FLORANGE | G62: 3.9 | H62: 49% | I62: 26% | J62: 53 | K62: 38% | L62: 31% | M62: 63 | N62: 57% | O62: 42% | P62: 54 | Q62: 64% | R62: 42% | S62: 29 | T62: 69% | U62: 66% | V62: 138 | W62: 71% | X62: 65% | Y62: 153
A63: 262 | B63: MEURTHE ET MOSELLE MEUSE | C63: 27 | D63: PONT A MOUSSON | E63: 554357 | F63: JOEUF | G63: 3.8 | H63: 49% | I63: 27% | J63: 54 | K63: 58% | L63: 51% | M63: 166 | N63: 57% | O63: 43% | P63: 58 | Q63: 90% | R63: 68% | S63: 234 | T63: 46% | U63: 44% | V63: 23 | W63: 48% | X63: 42% | Y63: 13
A64: 262 | B64: MEURTHE ET MOSELLE MEUSE | C64: 31 | D64: VERDUN | E64: 455456 | F64: MONTMEDY | G64: 1.8 | H64: 50% | I64: 27% | J64: 55 | K64: 55% | L64: 48% | M64: 147 | N64: 49% | O64: 34% | P64: 32 | Q64: 77% | R64: 55% | S64: 107 | T64: 62% | U64: 60% | V64: 86 | W64: 58% | X64: 52% | Y64: 36
A65: 262 | B65: VOSGES | C65: 55 | D65: SAINT DIE | E65: 488326 | F65: GERARDMER | G65: 5.3 | H65: 50% | I65: 27% | J65: 56 | K65: 31% | L65: 24% | M65: 34 | N65: 71% | O65: 56% | P65: 200 | Q65: 53% | R65: 31% | S65: 7 | T65: 75% | U65: 73% | V65: 206 | W65: 72% | X65: 66% | Y65: 164
A66: 262 | B66: MARNE-ARDENNES | C66: 11 | D66: REIMS | E66: 551310 | F66: REIMS CHATILLONS | G66: 3.9 | H66: 50% | I66: 27% | J66: 57 | K66: 52% | L66: 45% | M66: 136 | N66: 62% | O66: 48% | P66: 106 | Q66: 72% | R66: 50% | S66: 74 | T66: 59% | U66: 57% | V66: 65 | W66: 56% | X66: 50% | Y66: 31
A67: 262 | B67: VOSGES | C67: 57 | D67: EPINAL | E67: 588396 | F67: LE VAL D AJOL | G67: 3.0 | H67: 50% | I67: 27% | J67: 58 | K67: 7% | L67: 0% | M67: 1 | N67: 73% | O67: 58% | P67: 211 | Q67: 78% | R67: 56% | S67: 121 | T67: 63% | U67: 61% | V67: 98 | W67: 81% | X67: 75% | Y67: 248
A68: 262 | B68: MEURTHE ET MOSELLE MEUSE | C68: 31 | D68: VERDUN | E68: 454414 | F68: LONGWY HAUT | G68: 3.9 | H68: 50% | I68: 27% | J68: 59 | K68: 65% | L68: 58% | M68: 198 | N68: 63% | O68: 48% | P68: 108 | Q68: 54% | R68: 32% | S68: 10 | T68: 54% | U68: 52% | V68: 43 | W68: 68% | X68: 62% | Y68: 113
A69: 262 | B69: MOSELLE | C69: 44 | D69: MOSELLE NORD | E69: 457348 | F69: HAGONDANGE | G69: 9.3 | H69: 50% | I69: 27% | J69: 60 | K69: 54% | L69: 47% | M69: 142 | N69: 50% | O69: 35% | P69: 33 | Q69: 75% | R69: 53% | S69: 100 | T69: 62% | U69: 59% | V69: 84 | W69: 63% | X69: 56% | Y69: 65
A70: 262 | B70: VOSGES | C70: 57 | D70: EPINAL | E70: 588631 | F70: THAON LES VOSGES | G70: 5.5 | H70: 50% | I70: 27% | J70: 61 | K70: 37% | L70: 30% | M70: 61 | N70: 60% | O70: 45% | P70: 81 | Q70: 86% | R70: 64% | S70: 202 | T70: 51% | U70: 49% | V70: 31 | W70: 69% | X70: 63% | Y70: 132
A71: 262 | B71: MEURTHE ET MOSELLE MEUSE | C71: 27 | D71: PONT A MOUSSON | E71: 554533 | F71: PONT A MOUSSON BREUIL | G71: 2.8 | H71: 50% | I71: 27% | J71: 62 | K71: 70% | L71: 63% | M71: 215 | N71: 53% | O71: 38% | P71: 42 | Q71: 57% | R71: 35% | S71: 12 | T71: 65% | U71: 63% | V71: 112 | W71: 59% | X71: 52% | Y71: 37
A72: 262 | B72: BAS-RHIN | C72: 5006 | D72: STRASBOURG | E72: 4038 | F72: OBERHAUSBERGEN | G72: 4.9 | H72: 50% | I72: 28% | J72: 63 | K72: 46% | L72: 39% | M72: 107 | N72: 64% | O72: 49% | P72: 128 | Q72: 67% | R72: 45% | S72: 38 | T72: 63% | U72: 60% | V72: 90 | W72: 64% | X72: 58% | Y72: 77
A73: 262 | B73: MOSELLE | C73: 42 | D73: MOSELLE EST | E73: 557305 | F73: FAULQUEMONT | G73: 2.1 | H73: 51% | I73: 28% | J73: 64 | K73: 65% | L73: 58% | M73: 197 | N73: 47% | O73: 32% | P73: 24 | Q73: 74% | R73: 52% | S73: 84 | T73: 59% | U73: 57% | V73: 69 | W73: 60% | X73: 54% | Y73: 51
A74: 262 | B74: VOSGES | C74: 57 | D74: EPINAL | E74: 488451 | F74: MIRECOURT | G74: 4.9 | H74: 51% | I74: 28% | J74: 65 | K74: 37% | L74: 30% | M74: 56 | N74: 67% | O74: 52% | P74: 151 | Q74: 76% | R74: 54% | S74: 103 | T74: 56% | U74: 54% | V74: 51 | W74: 70% | X74: 64% | Y74: 135
A75: 262 | B75: MEURTHE ET MOSELLE MEUSE | C75: 26 | D75: NANCY | E75: 554601 | F75: SAINT MAX | G75: 4.9 | H75: 51% | I75: 28% | J75: 66 | K75: 29% | L75: 22% | M75: 23 | N75: 66% | O75: 52% | P75: 145 | Q75: 77% | R75: 55% | S75: 109 | T75: 60% | U75: 58% | V75: 76 | W75: 74% | X75: 68% | Y75: 191
A76: 262 | B76: MOSELLE | C76: 42 | D76: MOSELLE EST | E76: 457165 | F76: BITCHE | G76: 1.9 | H76: 51% | I76: 28% | J76: 67 | K76: 64% | L76: 57% | M76: 194 | N76: 48% | O76: 33% | P76: 27 | Q76: 86% | R76: 63% | S76: 187 | T76: 43% | U76: 40% | V76: 14 | W76: 66% | X76: 60% | Y76: 102
A77: 262 | B77: AUBE HAUTE MARNE | C77: 14 | D77: TROYES | E77: 510523 | F77: LA CHAPELLE ST LUC | G77: 5.4 | H77: 51% | I77: 28% | J77: 68 | K77: 63% | L77: 56% | M77: 189 | N77: 51% | O77: 36% | P77: 37 | Q77: 81% | R77: 59% | S77: 153 | T77: 42% | U77: 39% | V77: 13 | W77: 71% | X77: 65% | Y77: 151
A78: 262 | B78: BAS-RHIN | C78: 5006 | D78: STRASBOURG | E78: 4043 | F78: STRASBOURG HALLES | G78: 8.5 | H78: 51% | I78: 28% | J78: 69 | K78: 46% | L78: 39% | M78: 102 | N78: 54% | O78: 39% | P78: 43 | Q78: 74% | R78: 52% | S78: 85 | T78: 68% | U78: 66% | V78: 135 | W78: 66% | X78: 60% | Y78: 98
A79: 264 | B79: VOSGES | C79: 57 | D79: EPINAL | E79: 588206 | F79: CHARMES | G79: 2.8 | H79: 51% | I79: 28% | J79: 70 | K79: 39% | L79: 32% | M79: 68 | N79: 70% | O79: 55% | P79: 193 | Q79: 87% | R79: 65% | S79: 207 | T79: 43% | U79: 41% | V79: 17 | W79: 69% | X79: 63% | Y79: 131
A80: 264 | B80: MOSELLE | C80: 45 | D80: METZ | E80: 457453 | F80: MONTIGNY LES METZ | G80: 8.2 | H80: 51% | I80: 28% | J80: 71 | K80: 31% | L80: 24% | M80: 32 | N80: 55% | O80: 40% | P80: 46 | Q80: 77% | R80: 55% | S80: 108 | T80: 80% | U80: 78% | V80: 234 | W80: 66% | X80: 59% | Y80: 94
A81: 264 | B81: MOSELLE | C81: 44 | D81: MOSELLE NORD | E81: 557347 | F81: GUENANGE | G81: 5.0 | H81: 51% | I81: 28% | J81: 72 | K81: 55% | L81: 47% | M81: 144 | N81: 58% | O81: 43% | P81: 66 | Q81: 68% | R81: 46% | S81: 39 | T81: 68% | U81: 66% | V81: 131 | W81: 60% | X81: 54% | Y81: 53
A82: 264 | B82: HAUT-RHIN | C82: 5130 | D82: COLMAR | E82: 4144 | F82: RIBEAUVILLE | G82: 2.9 | H82: 51% | I82: 28% | J82: 73 | K82: 71% | L82: 64% | M82: 223 | N82: 46% | O82: 31% | P82: 21 | Q82: 68% | R82: 46% | S82: 44 | T82: 48% | U82: 46% | V82: 25 | W82: 75% | X82: 69% | Y82: 207
A83: 264 | B83: MARNE-ARDENNES | C83: 2 | D83: CHARLEVILLE MEZIERES | E83: 508802 | F83: CHARLEVILLE NEVERS | G83: 3.0 | H83: 51% | I83: 29% | J83: 74 | K83: 29% | L83: 22% | M83: 22 | N83: 72% | O83: 58% | P83: 207 | Q83: 85% | R83: 63% | S83: 186 | T83: 55% | U83: 52% | V83: 44 | W83: 68% | X83: 62% | Y83: 124
A84: 264 | B84: BAS-RHIN | C84: 5060 | D84: HAGUENAU | E84: 4066 | F84: NIEDERBRONN LES BAINS | G84: 6.3 | H84: 52% | I84: 29% | J84: 75 | K84: 21% | L84: 14% | M84: 6 | N84: 66% | O84: 52% | P84: 146 | Q84: 80% | R84: 58% | S84: 137 | T84: 69% | U84: 67% | V84: 140 | W84: 73% | X84: 67% | Y84: 187
A85: 264 | B85: BAS-RHIN | C85: 5006 | D85: STRASBOURG | E85: 4006 | F85: STRASBOURG NEUDORF | G85: 8.4 | H85: 52% | I85: 29% | J85: 76 | K85: 36% | L85: 29% | M85: 52 | N85: 54% | O85: 39% | P85: 44 | Q85: 79% | R85: 57% | S85: 133 | T85: 63% | U85: 61% | V85: 95 | W85: 78% | X85: 72% | Y85: 231
A86: 264 | B86: MARNE-ARDENNES | C86: 11 | D86: REIMS | E86: 451350 | F86: REIMS CENTRE VILLE | G86: 7.6 | H86: 52% | I86: 29% | J86: 77 | K86: 56% | L86: 48% | M86: 151 | N86: 69% | O86: 55% | P86: 189 | Q86: 74% | R86: 52% | S86: 87 | T86: 60% | U86: 58% | V86: 74 | W86: 51% | X86: 45% | Y86: 18
A87: 264 | B87: AUBE HAUTE MARNE | C87: 14 | D87: TROYES | E87: 510511 | F87: TROYES BROSSOLETTE | G87: 2.6 | H87: 52% | I87: 29% | J87: 78 | K87: 34% | L87: 27% | M87: 41 | N87: 61% | O87: 46% | P87: 95 | Q87: 69% | R87: 47% | S87: 49 | T87: 78% | U87: 76% | V87: 224 | W87: 70% | X87: 63% | Y87: 134
A88: 264 | B88: BAS-RHIN | C88: 5006 | D88: STRASBOURG | E88: 4010 | F88: STRASBOURG MEINAU | G88: 3.4 | H88: 52% | I88: 29% | J88: 79 | K88: 78% | L88: 71% | M88: 239 | N88: 45% | O88: 30% | P88: 19 | Q88: 79% | R88: 57% | S88: 134 | T88: 41% | U88: 39% | V88: 12 | W88: 68% | X88: 62% | Y88: 119
A89: 264 | B89: BAS-RHIN | C89: 5060 | D89: HAGUENAU | E89: 4087 | F89: SAVERNE | G89: 8.4 | H89: 52% | I89: 29% | J89: 80 | K89: 46% | L89: 39% | M89: 103 | N89: 56% | O89: 41% | P89: 51 | Q89: 75% | R89: 53% | S89: 94 | T89: 70% | U89: 67% | V89: 146 | W89: 66% | X89: 60% | Y89: 97
A90: 264 | B90: MEURTHE ET MOSELLE MEUSE | C90: 27 | D90: PONT A MOUSSON | E90: 554321 | F90: FROUARD | G90: 3.0 | H90: 52% | I90: 29% | J90: 81 | K90: 75% | L90: 68% | M90: 231 | N90: 57% | O90: 43% | P90: 57 | Q90: 57% | R90: 35% | S90: 11 | T90: 63% | U90: 61% | V90: 92 | W90: 60% | X90: 54% | Y90: 50
A91: 264 | B91: MARNE-ARDENNES | C91: 11 | D91: REIMS | E91: 551367 | F91: AY CHAMPAGNE | G91: 2.8 | H91: 52% | I91: 29% | J91: 82 | K91: 62% | L91: 55% | M91: 185 | N91: 58% | O91: 43% | P91: 68 | Q91: 89% | R91: 67% | S91: 229 | T91: 59% | U91: 57% | V91: 68 | W91: 44% | X91: 38% | Y91: 9
A92: 264 | B92: BAS-RHIN | C92: 5101 | D92: SELESTAT | E92: 4120 | F92: WASSELONNE | G92: 4.6 | H92: 52% | I92: 29% | J92: 83 | K92: 67% | L92: 59% | M92: 201 | N92: 68% | O92: 53% | P92: 169 | Q92: 63% | R92: 41% | S92: 23 | T92: 52% | U92: 50% | V92: 35 | W92: 64% | X92: 58% | Y92: 76
A93: 264 | B93: MOSELLE | C93: 45 | D93: METZ | E93: 557105 | F93: ARS SUR MOSELLE | G93: 4.0 | H93: 52% | I93: 29% | J93: 84 | K93: 37% | L93: 30% | M93: 57 | N93: 69% | O93: 55% | P93: 188 | Q93: 78% | R93: 56% | S93: 122 | T93: 72% | U93: 70% | V93: 170 | W93: 57% | X93: 50% | Y93: 32
A94: 264 | B94: VOSGES | C94: 57 | D94: EPINAL | E94: 588336 | F94: GOLBEY | G94: 3.1 | H94: 52% | I94: 29% | J94: 85 | K94: 40% | L94: 33% | M94: 75 | N94: 75% | O94: 60% | P94: 222 | Q94: 74% | R94: 52% | S94: 82 | T94: 66% | U94: 63% | V94: 114 | W94: 60% | X94: 54% | Y94: 45
A95: 264 | B95: BAS-RHIN | C95: 5101 | D95: SELESTAT | E95: 4107 | F95: VILLE | G95: 3.0 | H95: 52% | I95: 29% | J95: 86 | K95: 78% | L95: 70% | M95: 238 | N95: 42% | O95: 28% | P95: 14 | Q95: 70% | R95: 48% | S95: 60 | T95: 50% | U95: 48% | V95: 30 | W95: 73% | X95: 67% | Y95: 188
A96: 264 | B96: MARNE-ARDENNES | C96: 6 | D96: CHALONS EN CHAMPAGNE | E96: 551354 | F96: VERTUS | G96: 2.5 | H96: 52% | I96: 30% | J96: 87 | K96: 25% | L96: 18% | M96: 15 | N96: 81% | O96: 66% | P96: 247 | Q96: 85% | R96: 63% | S96: 180 | T96: 56% | U96: 54% | V96: 52 | W96: 68% | X96: 62% | Y96: 112
A97: 264 | B97: MOSELLE | C97: 45 | D97: METZ | E97: 457443 | F97: METZ REPUBLIQUE | G97: 4.2 | H97: 52% | I97: 30% | J97: 88 | K97: 21% | L97: 14% | M97: 5 | N97: 66% | O97: 52% | P97: 144 | Q97: 82% | R97: 60% | S97: 154 | T97: 78% | U97: 76% | V97: 225 | W97: 68% | X97: 62% | Y97: 110
A98: 264 | B98: BAS-RHIN | C98: 5060 | D98: HAGUENAU | E98: 4082 | F98: BOUXWILLER | G98: 2.3 | H98: 53% | I98: 30% | J98: 89 | K98: 52% | L98: 44% | M98: 133 | N98: 67% | O98: 52% | P98: 150 | Q98: 60% | R98: 38% | S98: 18 | T98: 71% | U98: 69% | V98: 158 | W98: 66% | X98: 59% | Y98: 93
A99: 264 | B99: BAS-RHIN | C99: 5101 | D99: SELESTAT | E99: 4007 | F99: ILLKIRCH CENTRE | G99: 7.5 | H99: 53% | I99: 30% | J99: 90 | K99: 48% | L99: 41% | M99: 121 | N99: 50% | O99: 36% | P99: 35 | Q99: 79% | R99: 57% | S99: 124 | T99: 63% | U99: 60% | V99: 89 | W99: 76% | X99: 70% | Y99: 212
A100: 264 | B100: MOSELLE | C100: 45 | D100: METZ | E100: 457574 | F100: ROMBAS | G100: 3.3 | H100: 53% | I100: 30% | J100: 91 | K100: 59% | L100: 52% | M100: 171 | N100: 41% | O100: 27% | P100: 11 | Q100: 71% | R100: 49% | S100: 61 | T100: 67% | U100: 65% | V100: 124 | W100: 78% | X100: 72% | Y100: 229
A101: 264 | B101: MARNE-ARDENNES | C101: 11 | D101: REIMS | E101: 551314 | F101: FISMES | G101: 3.0 | H101: 53% | I101: 30% | J101: 92 | K101: 41% | L101: 34% | M101: 76 | N101: 66% | O101: 51% | P101: 143 | Q101: 79% | R101: 57% | S101: 135 | T101: 67% | U101: 65% | V101: 127 | W101: 64% | X101: 58% | Y101: 78
A102: 264 | B102: AUBE HAUTE MARNE | C102: 21 | D102: CHAUMONT | E102: 451156 | F102: SAINT DIZIER CENTRE | G102: 9.7 | H102: 53% | I102: 30% | J102: 93 | K102: 38% | L102: 31% | M102: 64 | N102: 70% | O102: 55% | P102: 195 | Q102: 75% | R102: 53% | S102: 97 | T102: 64% | U102: 62% | V102: 102 | W102: 71% | X102: 65% | Y102: 149
A103: 30 | B103: MARNE-ARDENNES | C103: 11 | D103: REIMS | E103: 451361 | F103: PIERRY LECLERC | G103: 2.0 | H103: 53% | I103: 30% | J103: 94 | K103: 29% | L103: 22% | M103: 26 | N103: 63% | O103: 49% | P103: 118 | Q103: 93% | R103: 71% | S103: 243 | T103: 63% | U103: 61% | V103: 97 | W103: 69% | X103: 63% | Y103: 130
A104: 30 | B104: VOSGES | C104: 57 | D104: EPINAL | E104: 488286 | F104: EPINAL ARISTIDE BRIAND | G104: 9.1 | H104: 53% | I104: 30% | J104: 95 | K104: 25% | L104: 18% | M104: 13 | N104: 67% | O104: 53% | P104: 168 | Q104: 87% | R104: 65% | S104: 210 | T104: 62% | U104: 60% | V104: 87 | W104: 77% | X104: 70% | Y104: 219
A105: 30 | B105: MARNE-ARDENNES | C105: 11 | D105: REIMS | E105: 451370 | F105: EPERNAY | G105: 11.6 | H105: 53% | I105: 30% | J105: 96 | K105: 35% | L105: 28% | M105: 49 | N105: 62% | O105: 48% | P105: 105 | Q105: 85% | R105: 63% | S105: 178 | T105: 65% | U105: 62% | V105: 107 | W105: 71% | X105: 65% | Y105: 155
A106: 30 | B106: VOSGES | C106: 55 | D106: SAINT DIE | E106: 588386 | F106: LE THILLOT | G106: 2.4 | H106: 53% | I106: 30% | J106: 97 | K106: 47% | L106: 40% | M106: 110 | N106: 69% | O106: 54% | P106: 183 | Q106: 72% | R106: 50% | S106: 72 | T106: 58% | U106: 56% | V106: 57 | W106: 73% | X106: 66% | Y106: 174
A107: 30 | B107: MEURTHE ET MOSELLE MEUSE | C107: 27 | D107: PONT A MOUSSON | E107: 554184 | F107: BRIEY | G107: 4.8 | H107: 53% | I107: 30% | J107: 98 | K107: 48% | L107: 41% | M107: 120 | N107: 67% | O107: 53% | P107: 166 | Q107: 65% | R107: 43% | S107: 32 | T107: 75% | U107: 72% | V107: 199 | W107: 63% | X107: 57% | Y107: 68
A108: 30 | B108: MEURTHE ET MOSELLE MEUSE | C108: 27 | D108: PONT A MOUSSON | E108: 554376 | F108: LAXOU BOUFFLERS | G108: 2.9 | H108: 53% | I108: 30% | J108: 99 | K108: 59% | L108: 51% | M108: 168 | N108: 59% | O108: 45% | P108: 77 | Q108: 70% | R108: 48% | S108: 58 | T108: 65% | U108: 63% | V108: 110 | W108: 65% | X108: 59% | Y108: 88
A109: 30 | B109: MARNE-ARDENNES | C109: 11 | D109: REIMS | E109: 551309 | F109: REIMS EUROPE | G109: 2.8 | H109: 53% | I109: 30% | J109: 100 | K109: 42% | L109: 35% | M109: 84 | N109: 65% | O109: 51% | P109: 141 | Q109: 77% | R109: 55% | S109: 114 | T109: 63% | U109: 61% | V109: 99 | W109: 71% | X109: 65% | Y109: 150
A110: 30 | B110: MEURTHE ET MOSELLE MEUSE | C110: 26 | D110: NANCY | E110: 554266 | F110: DOMBASLE SUR MEURTHE | G110: 3.7 | H110: 53% | I110: 30% | J110: 101 | K110: 64% | L110: 56% | M110: 192 | N110: 73% | O110: 59% | P110: 212 | Q110: 64% | R110: 42% | S110: 27 | T110: 61% | U110: 59% | V110: 83 | W110: 57% | X110: 51% | Y110: 34
A111: 30 | B111: MOSELLE | C111: 42 | D111: MOSELLE EST | E111: 557503 | F111: NEUNKIRCH | G111: 3.6 | H111: 53% | I111: 31% | J111: 102 | K111: 36% | L111: 29% | M111: 51 | N111: 68% | O111: 54% | P111: 176 | Q111: 65% | R111: 43% | S111: 30 | T111: 78% | U111: 76% | V111: 226 | W111: 72% | X111: 66% | Y111: 171
A112: 30 | B112: MARNE-ARDENNES | C112: 11 | D112: REIMS | E112: 551365 | F112: DORMANS | G112: 2.7 | H112: 54% | I112: 31% | J112: 103 | K112: 31% | L112: 23% | M112: 30 | N112: 78% | O112: 63% | P112: 234 | Q112: 78% | R112: 56% | S112: 120 | T112: 69% | U112: 66% | V112: 137 | W112: 66% | X112: 59% | Y112: 92
A113: 30 | B113: MEURTHE ET MOSELLE MEUSE | C113: 31 | D113: VERDUN | E113: 455151 | F113: BAR LE DUC | G113: 9.1 | H113: 54% | I113: 31% | J113: 104 | K113: 44% | L113: 37% | M113: 93 | N113: 61% | O113: 47% | P113: 97 | Q113: 83% | R113: 61% | S113: 163 | T113: 67% | U113: 65% | V113: 121 | W113: 66% | X113: 60% | Y113: 96
A114: 30 | B114: VOSGES | C114: 57 | D114: EPINAL | E114: 588501 | F114: NEUFCHATEAU | G114: 5.0 | H114: 54% | I114: 31% | J114: 105 | K114: 34% | L114: 27% | M114: 45 | N114: 71% | O114: 56% | P114: 201 | Q114: 81% | R114: 59% | S114: 146 | T114: 75% | U114: 72% | V114: 193 | W114: 61% | X114: 55% | Y114: 54
A115: 30 | B115: MARNE-ARDENNES | C115: 6 | D115: CHALONS EN CHAMPAGNE | E115: 551103 | F115: FAGNIERES LECLERC | G115: 3.0 | H115: 54% | I115: 31% | J115: 106 | K115: 37% | L115: 30% | M115: 60 | N115: 55% | O115: 40% | P115: 47 | Q115: 94% | R115: 72% | S115: 247 | T115: 69% | U115: 67% | V115: 139 | W115: 66% | X115: 60% | Y115: 95
A116: 30 | B116: BAS-RHIN | C116: 5060 | D116: HAGUENAU | E116: 4057 | F116: BISCHWILLER | G116: 6.9 | H116: 54% | I116: 31% | J116: 107 | K116: 34% | L116: 27% | M116: 43 | N116: 58% | O116: 44% | P116: 69 | Q116: 87% | R116: 65% | S116: 214 | T116: 66% | U116: 64% | V116: 119 | W116: 76% | X116: 70% | Y116: 211
A117: 30 | B117: MOSELLE | C117: 42 | D117: MOSELLE EST | E117: 457617 | F117: SARREGUEMINES | G117: 8.3 | H117: 54% | I117: 31% | J117: 108 | K117: 39% | L117: 32% | M117: 72 | N117: 63% | O117: 48% | P117: 112 | Q117: 75% | R117: 53% | S117: 95 | T117: 70% | U117: 68% | V117: 147 | W117: 75% | X117: 69% | Y117: 205
A118: 30 | B118: BAS-RHIN | C118: 5101 | D118: SELESTAT | E118: 4116 | F118: MOLSHEIM | G118: 5.1 | H118: 54% | I118: 31% | J118: 109 | K118: 60% | L118: 53% | M118: 176 | N118: 65% | O118: 51% | P118: 140 | Q118: 50% | R118: 28% | S118: 5 | T118: 74% | U118: 72% | V118: 183 | W118: 72% | X118: 66% | Y118: 169
A119: 30 | B119: MOSELLE | C119: 45 | D119: METZ | E119: 557712 | F119: WOIPPY | G119: 5.6 | H119: 54% | I119: 31% | J119: 110 | K119: 41% | L119: 34% | M119: 80 | N119: 60% | O119: 46% | P119: 87 | Q119: 86% | R119: 64% | S119: 192 | T119: 60% | U119: 58% | V119: 75 | W119: 75% | X119: 68% | Y119: 197
A120: 30 | B120: MEURTHE ET MOSELLE MEUSE | C120: 27 | D120: PONT A MOUSSON | E120: 554381 | F120: LAXOU ARISTIDE BRIAND | G120: 4.3 | H120: 54% | I120: 31% | J120: 111 | K120: 44% | L120: 37% | M120: 92 | N120: 62% | O120: 47% | P120: 100 | Q120: 81% | R120: 59% | S120: 152 | T120: 63% | U120: 60% | V120: 91 | W120: 74% | X120: 68% | Y120: 190
A121: 30 | B121: MOSELLE | C121: 42 | D121: MOSELLE EST | E121: 457583 | F121: SAINT AVOLD | G121: 7.6 | H121: 54% | I121: 31% | J121: 112 | K121: 46% | L121: 39% | M121: 108 | N121: 67% | O121: 53% | P121: 164 | Q121: 74% | R121: 52% | S121: 91 | T121: 67% | U121: 65% | V121: 128 | W121: 68% | X121: 62% | Y121: 122
A122: 30 | B122: MOSELLE | C122: 45 | D122: METZ | E122: 557439 | F122: METZ POMPIDOU | G122: 3.9 | H122: 54% | I122: 31% | J122: 113 | K122: 51% | L122: 43% | M122: 128 | N122: 67% | O122: 52% | P122: 159 | Q122: 73% | R122: 51% | S122: 77 | T122: 65% | U122: 63% | V122: 109 | W122: 68% | X122: 62% | Y122: 120
A123: 30 | B123: MEURTHE ET MOSELLE MEUSE | C123: 27 | D123: PONT A MOUSSON | E123: 554416 | F123: LUDRES | G123: 3.8 | H123: 54% | I123: 31% | J123: 114 | K123: 28% | L123: 21% | M123: 21 | N123: 69% | O123: 55% | P123: 192 | Q123: 80% | R123: 58% | S123: 138 | T123: 82% | U123: 80% | V123: 244 | W123: 64% | X123: 58% | Y123: 75
A124: 30 | B124: MOSELLE | C124: 45 | D124: METZ | E124: 557434 | F124: MARLY | G124: 3.8 | H124: 54% | I124: 31% | J124: 115 | K124: 44% | L124: 37% | M124: 95 | N124: 57% | O124: 42% | P124: 55 | Q124: 69% | R124: 47% | S124: 46 | T124: 82% | U124: 80% | V124: 243 | W124: 72% | X124: 66% | Y124: 162
A125: 30 | B125: AUBE HAUTE MARNE | C125: 14 | D125: TROYES | E125: 410571 | F125: ROMILLY SUR SEINE | G125: 6.2 | H125: 54% | I125: 32% | J125: 116 | K125: 36% | L125: 29% | M125: 54 | N125: 64% | O125: 49% | P125: 126 | Q125: 84% | R125: 62% | S125: 173 | T125: 73% | U125: 71% | V125: 176 | W125: 66% | X125: 60% | Y125: 103
A126: 30 | B126: MOSELLE | C126: 42 | D126: MOSELLE EST | E126: 457614 | F126: SARREBOURG | G126: 8.9 | H126: 55% | I126: 32% | J126: 117 | K126: 39% | L126: 32% | M126: 69 | N126: 58% | O126: 43% | P126: 63 | Q126: 79% | R126: 57% | S126: 125 | T126: 78% | U126: 75% | V126: 222 | W126: 72% | X126: 65% | Y126: 160
A127: 30 | B127: AUBE HAUTE MARNE | C127: 21 | D127: CHAUMONT | E127: 451151 | F127: WASSY | G127: 2.0 | H127: 55% | I127: 32% | J127: 118 | K127: 67% | L127: 60% | M127: 203 | N127: 58% | O127: 43% | P127: 62 | Q127: 87% | R127: 65% | S127: 215 | T127: 59% | U127: 57% | V127: 67 | W127: 54% | X127: 48% | Y127: 25
A128: 30 | B128: AUBE HAUTE MARNE | C128: 14 | D128: TROYES | E128: 410550 | F128: BAR SUR AUBE | G128: 5.9 | H128: 55% | I128: 32% | J128: 119 | K128: 34% | L128: 27% | M128: 46 | N128: 69% | O128: 54% | P128: 180 | Q128: 91% | R128: 69% | S128: 235 | T128: 59% | U128: 57% | V128: 62 | W128: 73% | X128: 67% | Y128: 178
A129: 30 | B129: MEURTHE ET MOSELLE MEUSE | C129: 26 | D129: NANCY | E129: 554116 | F129: BACCARAT | G129: 2.2 | H129: 55% | I129: 32% | J129: 120 | K129: 45% | L129: 38% | M129: 96 | N129: 68% | O129: 53% | P129: 172 | Q129: 77% | R129: 55% | S129: 111 | T129: 72% | U129: 70% | V129: 172 | W129: 64% | X129: 58% | Y129: 74
A130: 30 | B130: VOSGES | C130: 55 | D130: SAINT DIE | E130: 588186 | F130: BRUYERES | G130: 3.8 | H130: 55% | I130: 32% | J130: 121 | K130: 47% | L130: 40% | M130: 111 | N130: 59% | O130: 45% | P130: 75 | Q130: 94% | R130: 72% | S130: 245 | T130: 64% | U130: 62% | V130: 104 | W130: 61% | X130: 55% | Y130: 57
A131: 30 | B131: MEURTHE ET MOSELLE MEUSE | C131: 27 | D131: PONT A MOUSSON | E131: 554516 | F131: PAGNY SUR MOSELLE | G131: 2.8 | H131: 55% | I131: 32% | J131: 122 | K131: 58% | L131: 51% | M131: 161 | N131: 67% | O131: 52% | P131: 157 | Q131: 69% | R131: 47% | S131: 47 | T131: 55% | U131: 53% | V131: 46 | W131: 77% | X131: 71% | Y131: 223
A132: 30 | B132: MEURTHE ET MOSELLE MEUSE | C132: 31 | D132: VERDUN | E132: 554700 | F132: VILLERUPT | G132: 2.8 | H132: 55% | I132: 32% | J132: 123 | K132: 49% | L132: 41% | M132: 122 | N132: 63% | O132: 48% | P132: 113 | Q132: 73% | R132: 51% | S132: 80 | T132: 75% | U132: 72% | V132: 200 | W132: 67% | X132: 61% | Y132: 106
A133: 30 | B133: BAS-RHIN | C133: 5060 | D133: HAGUENAU | E133: 4030 | F133: BRUMATH | G133: 5.4 | H133: 55% | I133: 32% | J133: 124 | K133: 44% | L133: 37% | M133: 94 | N133: 69% | O133: 54% | P133: 186 | Q133: 69% | R133: 47% | S133: 45 | T133: 79% | U133: 77% | V133: 231 | W133: 66% | X133: 60% | Y133: 100
A134: 30 | B134: MARNE-ARDENNES | C134: 11 | D134: REIMS | E134: 451308 | F134: REIMS SAINT THOMAS | G134: 7.8 | H134: 55% | I134: 32% | J134: 125 | K134: 54% | L134: 47% | M134: 143 | N134: 72% | O134: 58% | P134: 206 | Q134: 81% | R134: 59% | S134: 145 | T134: 65% | U134: 63% | V134: 108 | W134: 56% | X134: 50% | Y134: 30
A135: 30 | B135: AUBE HAUTE MARNE | C135: 21 | D135: CHAUMONT | E135: 410560 | F135: BOURBONNE LES BAINS | G135: 2.0 | H135: 55% | I135: 32% | J135: 126 | K135: 24% | L135: 17% | M135: 10 | N135: 69% | O135: 54% | P135: 179 | Q135: 85% | R135: 63% | S135: 175 | T135: 71% | U135: 69% | V135: 159 | W135: 80% | X135: 74% | Y135: 244
A136: 30 | B136: MEURTHE ET MOSELLE MEUSE | C136: 31 | D136: VERDUN | E136: 455566 | F136: REVIGNY SUR ORNAIN | G136: 3.4 | H136: 55% | I136: 32% | J136: 127 | K136: 29% | L136: 22% | M136: 24 | N136: 59% | O136: 45% | P136: 76 | Q136: 97% | R136: 75% | S136: 252 | T136: 71% | U136: 69% | V136: 160 | W136: 72% | X136: 66% | Y136: 170
A137: 30 | B137: MEURTHE ET MOSELLE MEUSE | C137: 31 | D137: VERDUN | E137: 455231 | F137: COMMERCY | G137: 4.6 | H137: 55% | I137: 32% | J137: 128 | K137: 57% | L137: 50% | M137: 159 | N137: 61% | O137: 46% | P137: 96 | Q137: 86% | R137: 64% | S137: 189 | T137: 65% | U137: 62% | V137: 106 | W137: 60% | X137: 54% | Y137: 49
A138: 30 | B138: MEURTHE ET MOSELLE MEUSE | C138: 26 | D138: NANCY | E138: 554611 | F138: SAINT NICOLAS DE PORT | G138: 2.8 | H138: 55% | I138: 33% | J138: 129 | K138: 31% | L138: 24% | M138: 35 | N138: 63% | O138: 49% | P138: 119 | Q138: 72% | R138: 50% | S138: 71 | T138: 89% | U138: 87% | V138: 257 | W138: 73% | X138: 67% | Y138: 182
A139: 30 | B139: AUBE HAUTE MARNE | C139: 14 | D139: TROYES | E139: 510570 | F139: NOGENT SUR SEINE | G139: 4.3 | H139: 55% | I139: 33% | J139: 130 | K139: 25% | L139: 18% | M139: 14 | N139: 71% | O139: 56% | P139: 202 | Q139: 88% | R139: 66% | S139: 220 | T139: 81% | U139: 78% | V139: 238 | W139: 64% | X139: 58% | Y139: 83
A140: 30 | B140: MARNE-ARDENNES | C140: 2 | D140: CHARLEVILLE MEZIERES | E140: 508817 | F140: CHARLEVILLE MOHON | G140: 3.3 | H140: 55% | I140: 33% | J140: 131 | K140: 36% | L140: 29% | M140: 53 | N140: 68% | O140: 53% | P140: 171 | Q140: 93% | R140: 71% | S140: 242 | T140: 68% | U140: 65% | V140: 130 | W140: 65% | X140: 59% | Y140: 86
A141: 30 | B141: VOSGES | C141: 55 | D141: SAINT DIE | E141: 588587 | F141: SAINT DIE CATHEDRALE | G141: 4.0 | H141: 56% | I141: 33% | J141: 132 | K141: 35% | L141: 28% | M141: 48 | N141: 72% | O141: 57% | P141: 205 | Q141: 74% | R141: 52% | S141: 86 | T141: 74% | U141: 72% | V141: 182 | W141: 75% | X141: 69% | Y141: 206
A142: 30 | B142: MARNE-ARDENNES | C142: 6 | D142: CHALONS EN CHAMPAGNE | E142: 551128 | F142: SAINTE MENEHOULD | G142: 3.2 | H142: 56% | I142: 33% | J142: 133 | K142: 47% | L142: 40% | M142: 114 | N142: 67% | O142: 52% | P142: 158 | Q142: 85% | R142: 63% | S142: 176 | T142: 56% | U142: 54% | V142: 50 | W142: 76% | X142: 70% | Y142: 210
A143: 30 | B143: BAS-RHIN | C143: 5060 | D143: HAGUENAU | E143: 4071 | F143: WISSEMBOURG | G143: 8.5 | H143: 56% | I143: 33% | J143: 134 | K143: 49% | L143: 42% | M143: 125 | N143: 62% | O143: 48% | P143: 107 | Q143: 68% | R143: 46% | S143: 41 | T143: 73% | U143: 70% | V143: 175 | W143: 79% | X143: 72% | Y143: 234
A144: 110 | B144: VOSGES | C144: 57 | D144: EPINAL | E144: 488281 | F144: ELOYES | G144: 4.7 | H144: 56% | I144: 33% | J144: 135 | K144: 34% | L144: 27% | M144: 44 | N144: 69% | O144: 54% | P144: 185 | Q144: 79% | R144: 57% | S144: 129 | T144: 76% | U144: 74% | V144: 209 | W144: 73% | X144: 67% | Y144: 176
A145: 110 | B145: MOSELLE | C145: 44 | D145: MOSELLE NORD | E145: 457350 | F145: HAYANGE | G145: 7.7 | H145: 56% | I145: 33% | J145: 136 | K145: 43% | L145: 36% | M145: 88 | N145: 51% | O145: 36% | P145: 36 | Q145: 92% | R145: 70% | S145: 240 | T145: 72% | U145: 70% | V145: 167 | W145: 73% | X145: 67% | Y145: 185
A146: 110 | B146: MARNE-ARDENNES | C146: 6 | D146: CHALONS EN CHAMPAGNE | E146: 451381 | F146: SEZANNE | G146: 6.5 | H146: 56% | I146: 33% | J146: 137 | K146: 39% | L146: 31% | M146: 66 | N146: 64% | O146: 49% | P146: 127 | Q146: 89% | R146: 67% | S146: 224 | T146: 70% | U146: 68% | V146: 151 | W146: 70% | X146: 64% | Y146: 136
A147: 110 | B147: HAUT-RHIN | C147: 5130 | D147: COLMAR | E147: 4153 | F147: ROUFFACH | G147: 3.7 | H147: 56% | I147: 33% | J147: 138 | K147: 58% | L147: 51% | M147: 162 | N147: 74% | O147: 59% | P147: 216 | Q147: 87% | R147: 65% | S147: 208 | T147: 44% | U147: 42% | V147: 20 | W147: 70% | X147: 64% | Y147: 139
A148: 110 | B148: MOSELLE | C148: 42 | D148: MOSELLE EST | E148: 557668 | F148: VALMONT | G148: 4.6 | H148: 56% | I148: 33% | J148: 139 | K148: 27% | L148: 20% | M148: 18 | N148: 74% | O148: 59% | P148: 217 | Q148: 80% | R148: 58% | S148: 140 | T148: 73% | U148: 71% | V148: 177 | W148: 79% | X148: 73% | Y148: 238
A149: 110 | B149: MEURTHE ET MOSELLE MEUSE | C149: 27 | D149: PONT A MOUSSON | E149: 454696 | F149: VILLERS GENERAL LECLERC | G149: 6.0 | H149: 56% | I149: 33% | J149: 140 | K149: 36% | L149: 29% | M149: 55 | N149: 76% | O149: 61% | P149: 228 | Q149: 71% | R149: 49% | S149: 67 | T149: 73% | U149: 71% | V149: 178 | W149: 76% | X149: 70% | Y149: 216
A150: 110 | B150: AUBE HAUTE MARNE | C150: 21 | D150: CHAUMONT | E150: 410566 | F150: CHAUMONT HOTEL DE VILLE | G150: 7.5 | H150: 56% | I150: 33% | J150: 141 | K150: 47% | L150: 40% | M150: 112 | N150: 67% | O150: 53% | P150: 163 | Q150: 86% | R150: 64% | S150: 199 | T150: 70% | U150: 67% | V150: 145 | W150: 63% | X150: 57% | Y150: 67
A151: 110 | B151: MARNE-ARDENNES | C151: 2 | D151: CHARLEVILLE MEZIERES | E151: 508819 | F151: MOUZON | G151: 2.0 | H151: 56% | I151: 33% | J151: 142 | K151: 57% | L151: 50% | M151: 157 | N151: 80% | O151: 66% | P151: 245 | Q151: 74% | R151: 52% | S151: 93 | T151: 70% | U151: 68% | V151: 150 | W151: 51% | X151: 45% | Y151: 19
A152: 110 | B152: MARNE-ARDENNES | C152: 11 | D152: REIMS | E152: 551369 | F152: DAMERY | G152: 2.7 | H152: 56% | I152: 33% | J152: 143 | K152: 52% | L152: 44% | M152: 132 | N152: 75% | O152: 61% | P152: 227 | Q152: 85% | R152: 63% | S152: 182 | T152: 56% | U152: 53% | V152: 48 | W152: 66% | X152: 60% | Y152: 99
A153: 110 | B153: VOSGES | C153: 55 | D153: SAINT DIE | E153: 588666 | F153: VAGNEY | G153: 3.9 | H153: 56% | I153: 34% | J153: 144 | K153: 27% | L153: 20% | M153: 19 | N153: 65% | O153: 50% | P153: 135 | Q153: 90% | R153: 68% | S153: 233 | T153: 78% | U153: 75% | V153: 223 | W153: 74% | X153: 68% | Y153: 195
A154: 110 | B154: MOSELLE | C154: 44 | D154: MOSELLE NORD | E154: 457158 | F154: YUTZ | G154: 4.6 | H154: 56% | I154: 34% | J154: 145 | K154: 51% | L154: 44% | M154: 130 | N154: 64% | O154: 49% | P154: 124 | Q154: 83% | R154: 61% | S154: 165 | T154: 66% | U154: 64% | V154: 115 | W154: 70% | X154: 64% | Y154: 140
A155: 110 | B155: MEURTHE ET MOSELLE MEUSE | C155: 26 | D155: NANCY | E155: 554486 | F155: NANCY POINT CENTRAL | G155: 4.8 | H155: 56% | I155: 34% | J155: 146 | K155: 54% | L155: 47% | M155: 139 | N155: 64% | O155: 49% | P155: 123 | Q155: 75% | R155: 53% | S155: 99 | T155: 75% | U155: 72% | V155: 194 | W155: 67% | X155: 61% | Y155: 107
A156: 110 | B156: MARNE-ARDENNES | C156: 2 | D156: CHARLEVILLE MEZIERES | E156: 408806 | F156: SEDAN | G156: 8.6 | H156: 56% | I156: 34% | J156: 147 | K156: 33% | L156: 26% | M156: 39 | N156: 73% | O156: 58% | P156: 208 | Q156: 85% | R156: 63% | S156: 179 | T156: 75% | U156: 73% | V156: 207 | W156: 69% | X156: 62% | Y156: 125
A157: 110 | B157: MARNE-ARDENNES | C157: 2 | D157: CHARLEVILLE MEZIERES | E157: 408840 | F157: RETHEL | G157: 4.9 | H157: 57% | I157: 34% | J157: 148 | K157: 30% | L157: 23% | M157: 29 | N157: 67% | O157: 52% | P157: 160 | Q157: 85% | R157: 63% | S157: 183 | T157: 77% | U157: 75% | V157: 215 | W157: 76% | X157: 70% | Y157: 214
A158: 110 | B158: MOSELLE | C158: 45 | D158: METZ | E158: 557612 | F158: SAINTE MARIE AUX CHENES | G158: 3.8 | H158: 57% | I158: 34% | J158: 149 | K158: 34% | L158: 26% | M158: 40 | N158: 74% | O158: 60% | P158: 220 | Q158: 83% | R158: 61% | S158: 166 | T158: 66% | U158: 64% | V158: 116 | W158: 78% | X158: 72% | Y158: 232
A159: 110 | B159: VOSGES | C159: 57 | D159: EPINAL | E159: 488561 | F159: REMIREMONT | G159: 6.5 | H159: 57% | I159: 34% | J159: 150 | K159: 41% | L159: 34% | M159: 79 | N159: 73% | O159: 58% | P159: 210 | Q159: 79% | R159: 57% | S159: 128 | T159: 71% | U159: 69% | V159: 156 | W159: 73% | X159: 67% | Y159: 180
A160: 110 | B160: MEURTHE ET MOSELLE MEUSE | C160: 27 | D160: PONT A MOUSSON | E160: 454355 | F160: JARNY | G160: 4.4 | H160: 57% | I160: 34% | J160: 151 | K160: 60% | L160: 53% | M160: 175 | N160: 57% | O160: 43% | P160: 60 | Q160: 84% | R160: 62% | S160: 171 | T160: 65% | U160: 63% | V160: 111 | W160: 70% | X160: 64% | Y160: 137
A161: 110 | B161: AUBE HAUTE MARNE | C161: 14 | D161: TROYES | E161: 510520 | F161: SAINT ANDRE LES VERGERS | G161: 4.6 | H161: 57% | I161: 34% | J161: 152 | K161: 43% | L161: 36% | M161: 87 | N161: 65% | O161: 50% | P161: 136 | Q161: 82% | R161: 60% | S161: 162 | T161: 82% | U161: 79% | V161: 242 | W161: 65% | X161: 59% | Y161: 87
A162: 110 | B162: MOSELLE | C162: 44 | D162: MOSELLE NORD | E162: 557352 | F162: HETTANGE GRANDE | G162: 4.2 | H162: 57% | I162: 34% | J162: 153 | K162: 89% | L162: 82% | M162: 249 | N162: 47% | O162: 33% | P162: 25 | Q162: 79% | R162: 57% | S162: 126 | T162: 58% | U162: 56% | V162: 59 | W162: 63% | X162: 57% | Y162: 70
A163: 110 | B163: MEURTHE ET MOSELLE MEUSE | C163: 31 | D163: VERDUN | E163: 455678 | F163: VERDUN CENTRALE | G163: 10.9 | H163: 57% | I163: 34% | J163: 154 | K163: 43% | L163: 36% | M163: 90 | N163: 60% | O163: 45% | P163: 78 | Q163: 92% | R163: 70% | S163: 239 | T163: 79% | U163: 76% | V163: 229 | W163: 64% | X163: 57% | Y163: 71
A164: 110 | B164: HAUT-RHIN | C164: 5130 | D164: COLMAR | E164: 4143 | F164: MUNSTER | G164: 5.2 | H164: 57% | I164: 34% | J164: 155 | K164: 48% | L164: 41% | M164: 115 | N164: 62% | O164: 47% | P164: 104 | Q164: 89% | R164: 67% | S164: 228 | T164: 66% | U164: 64% | V164: 120 | W164: 72% | X164: 66% | Y164: 166
A165: 110 | B165: MOSELLE | C165: 45 | D165: METZ | E165: 557432 | F165: MAIZIERES LES METZ | G165: 3.9 | H165: 57% | I165: 34% | J165: 156 | K165: 39% | L165: 31% | M165: 65 | N165: 67% | O165: 52% | P165: 154 | Q165: 81% | R165: 59% | S165: 148 | T165: 74% | U165: 72% | V165: 192 | W165: 78% | X165: 72% | Y165: 228
A166: 110 | B166: MOSELLE | C166: 44 | D166: MOSELLE NORD | E166: 457632 | F166: THIONVILLE CENTRALE | G166: 12.0 | H166: 57% | I166: 34% | J166: 157 | K166: 55% | L166: 48% | M166: 145 | N166: 60% | O166: 45% | P166: 80 | Q166: 81% | R166: 58% | S166: 144 | T166: 68% | U166: 66% | V166: 132 | W166: 75% | X166: 69% | Y166: 202
A167: 110 | B167: MEURTHE ET MOSELLE MEUSE | C167: 31 | D167: VERDUN | E167: 455676 | F167: VAUCOULEURS | G167: 1.9 | H167: 57% | I167: 35% | J167: 158 | K167: 96% | L167: 88% | M167: 253 | N167: 39% | O167: 25% | P167: 9 | Q167: 92% | R167: 70% | S167: 237 | T167: 54% | U167: 51% | V167: 41 | W167: 59% | X167: 53% | Y167: 41
A168: 110 | B168: HAUT-RHIN | C168: 5169 | D168: MULHOUSE | E168: 4195 | F168: CERNAY | G168: 2.3 | H168: 58% | I168: 35% | J168: 159 | K168: 67% | L168: 60% | M168: 202 | N168: 69% | O168: 55% | P168: 191 | Q168: 67% | R168: 45% | S168: 36 | T168: 71% | U168: 69% | V168: 161 | W168: 66% | X168: 59% | Y168: 91
A169: 110 | B169: AUBE HAUTE MARNE | C169: 21 | D169: CHAUMONT | E169: 410541 | F169: LANGRES | G169: 6.6 | H169: 58% | I169: 35% | J169: 160 | K169: 49% | L169: 42% | M169: 124 | N169: 69% | O169: 55% | P169: 187 | Q169: 89% | R169: 67% | S169: 222 | T169: 64% | U169: 62% | V169: 105 | W169: 69% | X169: 63% | Y169: 127
A170: 110 | B170: MEURTHE ET MOSELLE MEUSE | C170: 26 | D170: NANCY | E170: 454671 | F170: VANDOEUVRE LES NANCY | G170: 4.7 | H170: 58% | I170: 35% | J170: 161 | K170: 62% | L170: 55% | M170: 186 | N170: 59% | O170: 44% | P170: 72 | Q170: 90% | R170: 68% | S170: 232 | T170: 70% | U170: 67% | V170: 141 | W170: 60% | X170: 54% | Y170: 46
A171: 110 | B171: BAS-RHIN | C171: 5006 | D171: STRASBOURG | E171: 4045 | F171: STRASBOURG FRANCS BOURGEOIS | G171: 4.6 | H171: 58% | I171: 35% | J171: 162 | K171: 67% | L171: 59% | M171: 200 | N171: 60% | O171: 45% | P171: 84 | Q171: 62% | R171: 40% | S171: 22 | T171: 80% | U171: 77% | V171: 232 | W171: 72% | X171: 66% | Y171: 161
A172: 110 | B172: AUBE HAUTE MARNE | C172: 14 | D172: TROYES | E172: 410510 | F172: TROYES GAMBETTA | G172: 9.3 | H172: 58% | I172: 35% | J172: 163 | K172: 34% | L172: 27% | M172: 42 | N172: 65% | O172: 50% | P172: 133 | Q172: 93% | R172: 71% | S172: 244 | T172: 76% | U172: 74% | V172: 208 | W172: 72% | X172: 66% | Y172: 172
A173: 110 | B173: MOSELLE | C173: 44 | D173: MOSELLE NORD | E173: 557307 | F173: FONTOY | G173: 2.1 | H173: 58% | I173: 35% | J173: 164 | K173: 56% | L173: 49% | M173: 154 | N173: 78% | O173: 63% | P173: 233 | Q173: 65% | R173: 43% | S173: 31 | T173: 74% | U173: 71% | V173: 179 | W173: 69% | X173: 63% | Y173: 128
A174: 110 | B174: MARNE-ARDENNES | C174: 11 | D174: REIMS | E174: 451301 | F174: REIMS HOTEL DE VILLE | G174: 7.6 | H174: 58% | I174: 35% | J174: 165 | K174: 52% | L174: 45% | M174: 135 | N174: 61% | O174: 46% | P174: 92 | Q174: 100% | R174: 78% | S174: 257 | T174: 60% | U174: 58% | V174: 79 | W174: 68% | X174: 62% | Y174: 115
A175: 110 | B175: BAS-RHIN | C175: 5006 | D175: STRASBOURG | E175: 4026 | F175: STRASBOURG DANUBE | G175: 4.6 | H175: 58% | I175: 35% | J175: 166 | K175: 68% | L175: 61% | M175: 208 | N175: 67% | O175: 53% | P175: 165 | Q175: 81% | R175: 59% | S175: 150 | T175: 51% | U175: 49% | V175: 32 | W175: 74% | X175: 68% | Y175: 193
A176: 110 | B176: MARNE-ARDENNES | C176: 6 | D176: CHALONS EN CHAMPAGNE | E176: 451166 | F176: VITRY LE FRANCOIS | G176: 7.2 | H176: 58% | I176: 35% | J176: 167 | K176: 45% | L176: 38% | M176: 99 | N176: 70% | O176: 55% | P176: 197 | Q176: 86% | R176: 64% | S176: 200 | T176: 72% | U176: 70% | V176: 171 | W176: 68% | X176: 62% | Y176: 111
A177: 110 | B177: AUBE HAUTE MARNE | C177: 14 | D177: TROYES | E177: 410524 | F177: SAINT JULIEN LES VILLAS | G177: 4.0 | H177: 58% | I177: 35% | J177: 168 | K177: 59% | L177: 52% | M177: 170 | N177: 61% | O177: 46% | P177: 94 | Q177: 75% | R177: 53% | S177: 98 | T177: 84% | U177: 82% | V177: 246 | W177: 62% | X177: 56% | Y177: 63
A178: 110 | B178: BAS-RHIN | C178: 5006 | D178: STRASBOURG | E178: 4020 | F178: STRASBOURG ROBERTSAU | G178: 6.0 | H178: 58% | I178: 35% | J178: 169 | K178: 70% | L178: 63% | M178: 216 | N178: 60% | O178: 46% | P178: 85 | Q178: 74% | R178: 52% | S178: 88 | T178: 73% | U178: 70% | V178: 174 | W178: 65% | X178: 58% | Y178: 84
A179: 110 | B179: MEURTHE ET MOSELLE MEUSE | C179: 27 | D179: PONT A MOUSSON | E179: 554196 | F179: CHAMPIGNEULLES | G179: 3.5 | H179: 58% | I179: 35% | J179: 170 | K179: 60% | L179: 53% | M179: 174 | N179: 52% | O179: 37% | P179: 41 | Q179: 84% | R179: 62% | S179: 172 | T179: 67% | U179: 65% | V179: 123 | W179: 79% | X179: 72% | Y179: 235
A180: 110 | B180: BAS-RHIN | C180: 5006 | D180: STRASBOURG | E180: 4024 | F180: STRASBOURG AUSTERLITZ | G180: 2.5 | H180: 58% | I180: 35% | J180: 171 | K180: 99% | L180: 92% | M180: 256 | N180: 44% | O180: 30% | P180: 18 | Q180: 71% | R180: 49% | S180: 66 | T180: 60% | U180: 58% | V180: 72 | W180: 67% | X180: 61% | Y180: 105
A181: 110 | B181: MOSELLE | C181: 44 | D181: MOSELLE NORD | E181: 457192 | F181: CATTENOM | G181: 2.9 | H181: 58% | I181: 35% | J181: 172 | K181: 71% | L181: 64% | M181: 221 | N181: 61% | O181: 47% | P181: 98 | Q181: 67% | R181: 45% | S181: 34 | T181: 74% | U181: 71% | V181: 181 | W181: 69% | X181: 63% | Y181: 129
A182: 110 | B182: BAS-RHIN | C182: 5006 | D182: STRASBOURG | E182: 4027 | F182: SCHILTIGHEIM CENTRE | G182: 4.2 | H182: 58% | I182: 35% | J182: 173 | K182: 63% | L182: 56% | M182: 191 | N182: 63% | O182: 48% | P182: 115 | Q182: 69% | R182: 47% | S182: 51 | T182: 77% | U182: 75% | V182: 214 | W182: 69% | X182: 63% | Y182: 133
A183: 110 | B183: MOSELLE | C183: 42 | D183: MOSELLE EST | E183: 557210 | F183: CHATEAU SALINS | G183: 2.4 | H183: 58% | I183: 35% | J183: 174 | K183: 63% | L183: 55% | M183: 188 | N183: 47% | O183: 32% | P183: 23 | Q183: 92% | R183: 70% | S183: 238 | T183: 79% | U183: 76% | V183: 230 | W183: 62% | X183: 56% | Y183: 64
A184: 110 | B184: AUBE HAUTE MARNE | C184: 14 | D184: TROYES | E184: 510522 | F184: TROYES CHARTREUX | G184: 2.9 | H184: 58% | I184: 35% | J184: 175 | K184: 42% | L184: 35% | M184: 85 | N184: 70% | O184: 55% | P184: 198 | Q184: 83% | R184: 61% | S184: 167 | T184: 70% | U184: 68% | V184: 149 | W184: 78% | X184: 71% | Y184: 225
A185: 110 | B185: VOSGES | C185: 55 | D185: SAINT DIE | E185: 588551 | F185: RAMBERVILLERS | G185: 3.4 | H185: 58% | I185: 35% | J185: 176 | K185: 32% | L185: 25% | M185: 37 | N185: 83% | O185: 68% | P185: 251 | Q185: 84% | R185: 62% | S185: 169 | T185: 74% | U185: 72% | V185: 188 | W185: 71% | X185: 64% | Y185: 148
A186: 110 | B186: MOSELLE | C186: 42 | D186: MOSELLE EST | E186: 457435 | F186: MERLEBACH | G186: 3.7 | H186: 58% | I186: 36% | J186: 177 | K186: 58% | L186: 51% | M186: 165 | N186: 60% | O186: 45% | P186: 82 | Q186: 86% | R186: 64% | S186: 198 | T186: 67% | U186: 65% | V186: 125 | W186: 73% | X186: 67% | Y186: 177
A187: 110 | B187: AUBE HAUTE MARNE | C187: 21 | D187: CHAUMONT | E187: 451154 | F187: JOINVILLE | G187: 2.0 | H187: 58% | I187: 36% | J187: 178 | K187: 25% | L187: 18% | M187: 12 | N187: 81% | O187: 66% | P187: 249 | Q187: 104% | R187: 82% | S187: 262 | T187: 66% | U187: 64% | V187: 117 | W187: 68% | X187: 62% | Y187: 116
A188: 110 | B188: MEURTHE ET MOSELLE MEUSE | C188: 26 | D188: NANCY | E188: 454171 | F188: BLAMONT | G188: 1.6 | H188: 58% | I188: 36% | J188: 179 | K188: 74% | L188: 67% | M188: 228 | N188: 45% | O188: 30% | P188: 20 | Q188: 102% | R188: 80% | S188: 260 | T188: 56% | U188: 53% | V188: 47 | W188: 68% | X188: 62% | Y188: 114
A189: 110 | B189: AUBE HAUTE MARNE | C189: 14 | D189: TROYES | E189: 410521 | F189: SAINTE SAVINE | G189: 5.0 | H189: 58% | I189: 36% | J189: 180 | K189: 31% | L189: 24% | M189: 33 | N189: 77% | O189: 62% | P189: 231 | Q189: 79% | R189: 57% | S189: 132 | T189: 82% | U189: 79% | V189: 240 | W189: 75% | X189: 69% | Y189: 208
A190: 110 | B190: MEURTHE ET MOSELLE MEUSE | C190: 27 | D190: PONT A MOUSSON | E190: 454466 | F190: NANCY PLATEAU DE HAYE | G190: 2.0 | H190: 59% | I190: 36% | J190: 181 | K190: 71% | L190: 64% | M190: 224 | N190: 73% | O190: 58% | P190: 209 | Q190: 88% | R190: 66% | S190: 219 | T190: 59% | U190: 56% | V190: 60 | W190: 55% | X190: 49% | Y190: 28
A191: 110 | B191: MOSELLE | C191: 42 | D191: MOSELLE EST | E191: 557523 | F191: PHALSBOURG | G191: 2.4 | H191: 59% | I191: 36% | J191: 182 | K191: 51% | L191: 44% | M191: 129 | N191: 80% | O191: 65% | P191: 243 | Q191: 68% | R191: 46% | S191: 43 | T191: 80% | U191: 77% | V191: 233 | W191: 68% | X191: 62% | Y191: 118
A192: 160 | B192: MOSELLE | C192: 45 | D192: METZ | E192: 557445 | F192: METZ SAINT LIVIER | G192: 3.0 | H192: 59% | I192: 36% | J192: 183 | K192: 55% | L192: 48% | M192: 146 | N192: 61% | O192: 46% | P192: 88 | Q192: 77% | R192: 55% | S192: 113 | T192: 80% | U192: 78% | V192: 235 | W192: 74% | X192: 68% | Y192: 189
A193: 160 | B193: HAUT-RHIN | C193: 5130 | D193: COLMAR | E193: 4141 | F193: HORBOURG WIHR | G193: 5.7 | H193: 59% | I193: 36% | J193: 184 | K193: 52% | L193: 44% | M193: 131 | N193: 80% | O193: 65% | P193: 244 | Q193: 70% | R193: 48% | S193: 53 | T193: 75% | U193: 73% | V193: 202 | W193: 71% | X193: 64% | Y193: 147
A194: 160 | B194: HAUT-RHIN | C194: 5130 | D194: COLMAR | E194: 4132 | F194: COLMAR MARAICHERS | G194: 4.2 | H194: 59% | I194: 36% | J194: 185 | K194: 41% | L194: 34% | M194: 77 | N194: 58% | O194: 44% | P194: 71 | Q194: 94% | R194: 72% | S194: 248 | T194: 70% | U194: 68% | V194: 148 | W194: 83% | X194: 77% | Y194: 255
A195: 160 | B195: MOSELLE | C195: 45 | D195: METZ | E195: 457446 | F195: METZ SAINT LOUIS | G195: 6.8 | H195: 59% | I195: 36% | J195: 186 | K195: 56% | L195: 49% | M195: 156 | N195: 70% | O195: 55% | P195: 196 | Q195: 71% | R195: 49% | S195: 62 | T195: 75% | U195: 73% | V195: 205 | W195: 75% | X195: 69% | Y195: 199
A196: 160 | B196: MOSELLE | C196: 44 | D196: MOSELLE NORD | E196: 557622 | F196: SIERCK LES BAINS | G196: 1.4 | H196: 59% | I196: 36% | J196: 187 | K196: 59% | L196: 52% | M196: 173 | N196: 65% | O196: 50% | P196: 138 | Q196: 86% | R196: 64% | S196: 193 | T196: 74% | U196: 72% | V196: 191 | W196: 62% | X196: 56% | Y196: 61
A197: 160 | B197: HAUT-RHIN | C197: 5169 | D197: MULHOUSE | E197: 4181 | F197: WITTELSHEIM | G197: 3.2 | H197: 59% | I197: 36% | J197: 188 | K197: 61% | L197: 54% | M197: 177 | N197: 77% | O197: 63% | P197: 232 | Q197: 85% | R197: 63% | S197: 181 | T197: 71% | U197: 68% | V197: 152 | W197: 54% | X197: 48% | Y197: 24
A198: 160 | B198: MARNE-ARDENNES | C198: 11 | D198: REIMS | E198: 551341 | F198: REIMS JEAN JAURES | G198: 4.6 | H198: 59% | I198: 36% | J198: 189 | K198: 59% | L198: 52% | M198: 172 | N198: 63% | O198: 48% | P198: 114 | Q198: 86% | R198: 64% | S198: 201 | T198: 68% | U198: 65% | V198: 129 | W198: 71% | X198: 65% | Y198: 156
A199: 160 | B199: VOSGES | C199: 55 | D199: SAINT DIE | E199: 588461 | F199: MOYENMOUTIER | G199: 2.6 | H199: 59% | I199: 36% | J199: 190 | K199: 79% | L199: 72% | M199: 241 | N199: 51% | O199: 37% | P199: 38 | Q199: 76% | R199: 54% | S199: 104 | T199: 75% | U199: 72% | V199: 198 | W199: 66% | X199: 60% | Y199: 101
A200: 160 | B200: AUBE HAUTE MARNE | C200: 14 | D200: TROYES | E200: 510556 | F200: BAR SUR SEINE | G200: 3.3 | H200: 59% | I200: 36% | J200: 191 | K200: 53% | L200: 46% | M200: 137 | N200: 69% | O200: 54% | P200: 184 | Q200: 89% | R200: 67% | S200: 227 | T200: 78% | U200: 75% | V200: 219 | W200: 59% | X200: 53% | Y200: 40
A201: 160 | B201: MOSELLE | C201: 44 | D201: MOSELLE NORD | E201: 557660 | F201: UCKANGE | G201: 1.7 | H201: 59% | I201: 37% | J201: 192 | K201: 89% | L201: 82% | M201: 250 | N201: 75% | O201: 60% | P201: 223 | Q201: 79% | R201: 57% | S201: 131 | T201: 50% | U201: 47% | V201: 28 | W201: 57% | X201: 50% | Y201: 33
A202: 160 | B202: BAS-RHIN | C202: 5101 | D202: SELESTAT | E202: 4111 | F202: BENFELD | G202: 4.4 | H202: 60% | I202: 37% | J202: 193 | K202: 47% | L202: 40% | M202: 113 | N202: 63% | O202: 49% | P202: 120 | Q202: 84% | R202: 62% | S202: 170 | T202: 74% | U202: 71% | V202: 180 | W202: 82% | X202: 76% | Y202: 253
A203: 160 | B203: MEURTHE ET MOSELLE MEUSE | C203: 27 | D203: PONT A MOUSSON | E203: 554257 | F203: DIEULOUARD | G203: 3.4 | H203: 60% | I203: 37% | J203: 194 | K203: 44% | L203: 36% | M203: 91 | N203: 67% | O203: 52% | P203: 152 | Q203: 92% | R203: 70% | S203: 241 | T203: 77% | U203: 74% | V203: 210 | W203: 71% | X203: 65% | Y203: 157
... 71 more rows

Sheet AG_BANCA
B1: Accueil | H1: BAROMETRE BDD - AGENCES
H2: BANCARISATION
H3: =ACCUEIL!F7 -> 2021-05-16
H7: Ventes Nettes produits pondérés | L7: Ventes sur client non détenteur de l’univers | P7: Mobilité Macron | T7: Remises commerciales | X7: Total Bancarisation
H8: =DATEMAJ!C8 -> au 16/05 | J8: coef | K8: ='RECAP DIRCOM'!AA4 -> 10% | L8: =DATEMAJ!C9 -> au 16/05 | N8: coef | O8: ='RECAP DIRCOM'!AE4 -> 4% | P8: =DATEMAJ!C10 -> au 16/05 | R8: coef | S8: ='RECAP DIRCOM'!AI4 -> 3% | T8: =DATEMAJ!C11 -> au 31/03 | V8: coef | W8: ='RECAP DIRCOM'!AM4 -> 3% | Y8: coef | Z8: ='RECAP DIRCOM'!$AP$4 -> 20%
B9: Direction | C9: eds | D9: Territoire | E9: eds | F9: Agence | G9: ="ETP perf "&DATEMAJ!$C$28 -> ETP perf 31-mars | H9: VN | I9: VN / ETP | J9: % Ecart au 1er | K9: Rang | L9: VB | M9: VB / ETP | N9: % Ecart au 1er | O9: Rang | P9: Nb | Q9: Nb / ETP | R9: % Ecart au 1er | S9: Rang | T9: Montant | U9: Montant / ETP | V9: % Ecart au 1er | W9: Rang | X9: Moyenne ecart au 1er | Y9: % Ecart au 1er | Z9: Rang CEGEE
A10: 50 | B10: AUBE HAUTE MARNE | C10: 21 | D10: CHAUMONT | E10: 410560 | F10: BOURBONNE LES BAINS | G10: =VLOOKUP($E10,'RECAP AG'!$G$6:$DC$270,3,FALSE) -> 2.0 | H10: =VLOOKUP($E10,'RECAP AG'!$G$6:$DC$270,18,FALSE) -> 54.2 | I10: =VLOOKUP($E10,'RECAP AG'!$G$6:$DC$270,19,FALSE) -> 27.10 | J10: =VLOOKUP($E10,'RECAP AG'!$G$6:$DC$270,20,FALSE) -> 71% | K10: =VLOOKUP($E10,'RECAP AG'!$G$6:$DC$270,21,FALSE) -> 158 | L10: =VLOOKUP($E10,'RECAP AG'!$G$6:$DC$270,22,FALSE) -> 25 | M10: =VLOOKUP($E10,'RECAP AG'!$G$6:$DC$270,23,FALSE) -> 12.50 | N10: =VLOOKUP($E10,'RECAP AG'!$G$6:$DC$270,24,FALSE) -> 72% | O10: =VLOOKUP($E10,'RECAP AG'!$G$6:$DC$270,25,FALSE) -> 248 | P10: =VLOOKUP($E10,'RECAP AG'!$G$6:$DC$270,26,FALSE) -> 4 | Q10: =VLOOKUP($E10,'RECAP AG'!$G$6:$DC$270,27,FALSE) -> 2.00 | R10: =VLOOKUP($E10,'RECAP AG'!$G$6:$DC$270,28,FALSE) -> 92% | S10: =VLOOKUP($E10,'RECAP AG'!$G$6:$DC$270,29,FALSE) -> 205 | T10: =VLOOKUP($E10,'RECAP AG'!$G$6:$DC$270,30,FALSE) -> -1.53 | U10: =VLOOKUP($E10,'RECAP AG'!$G$6:$DC$270,31,FALSE) -> -0.76 | V10: =VLOOKUP($E10,'RECAP AG'!$G$6:$DC$270,32,FALSE) -> 33% | W10: =VLOOKUP($E10,'RECAP AG'!$G$6:$DC$270,33,FALSE) -> 54 | X10: =VLOOKUP($E10,'RECAP AG'!$G$6:$DC$270,34,FALSE) -> 69% | Y10: =VLOOKUP($E10,'RECAP AG'!$G$6:$DC$270,35,FALSE) -> 54% | Z10: =VLOOKUP($E10,'RECAP AG'!$G$6:$DC$270,36,FALSE) -> 179
A11: 50 | B11: AUBE HAUTE MARNE | C11: 21 | D11: CHAUMONT | E11: 410566 | F11: CHAUMONT HOTEL DE VILLE | G11: =VLOOKUP($E11,'RECAP AG'!$G$6:$DC$270,3,FALSE) -> 7.5 | H11: =VLOOKUP($E11,'RECAP AG'!$G$6:$DC$270,18,FALSE) -> 204.6 | I11: =VLOOKUP($E11,'RECAP AG'!$G$6:$DC$270,19,FALSE) -> 27.32 | J11: =VLOOKUP($E11,'RECAP AG'!$G$6:$DC$270,20,FALSE) -> 71% | K11: =VLOOKUP($E11,'RECAP AG'!$G$6:$DC$270,21,FALSE) -> 156 | L11: =VLOOKUP($E11,'RECAP AG'!$G$6:$DC$270,22,FALSE) -> 172 | M11: =VLOOKUP($E11,'RECAP AG'!$G$6:$DC$270,23,FALSE) -> 22.97 | N11: =VLOOKUP($E11,'RECAP AG'!$G$6:$DC$270,24,FALSE) -> 49% | O11: =VLOOKUP($E11,'RECAP AG'!$G$6:$DC$270,25,FALSE) -> 72 | P11: =VLOOKUP($E11,'RECAP AG'!$G$6:$DC$270,26,FALSE) -> 32 | Q11: =VLOOKUP($E11,'RECAP AG'!$G$6:$DC$270,27,FALSE) -> 4.27 | R11: =VLOOKUP($E11,'RECAP AG'!$G$6:$DC$270,28,FALSE) -> 82% | S11: =VLOOKUP($E11,'RECAP AG'!$G$6:$DC$270,29,FALSE) -> 104 | T11: =VLOOKUP($E11,'RECAP AG'!$G$6:$DC$270,30,FALSE) -> -9.42 | U11: =VLOOKUP($E11,'RECAP AG'!$G$6:$DC$270,31,FALSE) -> -1.26 | V11: =VLOOKUP($E11,'RECAP AG'!$G$6:$DC$270,32,FALSE) -> 66% | W11: =VLOOKUP($E11,'RECAP AG'!$G$6:$DC$270,33,FALSE) -> 177 | X11: =VLOOKUP($E11,'RECAP AG'!$G$6:$DC$270,34,FALSE) -> 67% | Y11: =VLOOKUP($E11,'RECAP AG'!$G$6:$DC$270,35,FALSE) -> 53% | Z11: =VLOOKUP($E11,'RECAP AG'!$G$6:$DC$270,36,FALSE) -> 163
A12: 50 | B12: AUBE HAUTE MARNE | C12: 21 | D12: CHAUMONT | E12: 510590 | F12: CHAUMONT REPUBLIQUE | G12: =VLOOKUP($E12,'RECAP AG'!$G$6:$DC$270,3,FALSE) -> 4.3 | H12: =VLOOKUP($E12,'RECAP AG'!$G$6:$DC$270,18,FALSE) -> 74.1 | I12: =VLOOKUP($E12,'RECAP AG'!$G$6:$DC$270,19,FALSE) -> 17.39 | J12: =VLOOKUP($E12,'RECAP AG'!$G$6:$DC$270,20,FALSE) -> 81% | K12: =VLOOKUP($E12,'RECAP AG'!$G$6:$DC$270,21,FALSE) -> 222 | L12: =VLOOKUP($E12,'RECAP AG'!$G$6:$DC$270,22,FALSE) -> 109 | M12: =VLOOKUP($E12,'RECAP AG'!$G$6:$DC$270,23,FALSE) -> 25.58 | N12: =VLOOKUP($E12,'RECAP AG'!$G$6:$DC$270,24,FALSE) -> 43% | O12: =VLOOKUP($E12,'RECAP AG'!$G$6:$DC$270,25,FALSE) -> 46 | P12: =VLOOKUP($E12,'RECAP AG'!$G$6:$DC$270,26,FALSE) -> 19 | Q12: =VLOOKUP($E12,'RECAP AG'!$G$6:$DC$270,27,FALSE) -> 4.46 | R12: =VLOOKUP($E12,'RECAP AG'!$G$6:$DC$270,28,FALSE) -> 82% | S12: =VLOOKUP($E12,'RECAP AG'!$G$6:$DC$270,29,FALSE) -> 99 | T12: =VLOOKUP($E12,'RECAP AG'!$G$6:$DC$270,30,FALSE) -> -4.18 | U12: =VLOOKUP($E12,'RECAP AG'!$G$6:$DC$270,31,FALSE) -> -0.98 | V12: =VLOOKUP($E12,'RECAP AG'!$G$6:$DC$270,32,FALSE) -> 47% | W12: =VLOOKUP($E12,'RECAP AG'!$G$6:$DC$270,33,FALSE) -> 104 | X12: =VLOOKUP($E12,'RECAP AG'!$G$6:$DC$270,34,FALSE) -> 69% | Y12: =VLOOKUP($E12,'RECAP AG'!$G$6:$DC$270,35,FALSE) -> 54% | Z12: =VLOOKUP($E12,'RECAP AG'!$G$6:$DC$270,36,FALSE) -> 181
A13: 50 | B13: AUBE HAUTE MARNE | C13: 21 | D13: CHAUMONT | E13: 451154 | F13: JOINVILLE | G13: =VLOOKUP($E13,'RECAP AG'!$G$6:$DC$270,3,FALSE) -> 2.0 | H13: =VLOOKUP($E13,'RECAP AG'!$G$6:$DC$270,18,FALSE) -> 24.9 | I13: =VLOOKUP($E13,'RECAP AG'!$G$6:$DC$270,19,FALSE) -> 12.45 | J13: =VLOOKUP($E13,'RECAP AG'!$G$6:$DC$270,20,FALSE) -> 87% | K13: =VLOOKUP($E13,'RECAP AG'!$G$6:$DC$270,21,FALSE) -> 237 | L13: =VLOOKUP($E13,'RECAP AG'!$G$6:$DC$270,22,FALSE) -> 35 | M13: =VLOOKUP($E13,'RECAP AG'!$G$6:$DC$270,23,FALSE) -> 17.50 | N13: =VLOOKUP($E13,'RECAP AG'!$G$6:$DC$270,24,FALSE) -> 61% | O13: =VLOOKUP($E13,'RECAP AG'!$G$6:$DC$270,25,FALSE) -> 174 | P13: =VLOOKUP($E13,'RECAP AG'!$G$6:$DC$270,26,FALSE) -> 3 | Q13: =VLOOKUP($E13,'RECAP AG'!$G$6:$DC$270,27,FALSE) -> 1.50 | R13: =VLOOKUP($E13,'RECAP AG'!$G$6:$DC$270,28,FALSE) -> 94% | S13: =VLOOKUP($E13,'RECAP AG'!$G$6:$DC$270,29,FALSE) -> 232 | T13: =VLOOKUP($E13,'RECAP AG'!$G$6:$DC$270,30,FALSE) -> -2.83 | U13: =VLOOKUP($E13,'RECAP AG'!$G$6:$DC$270,31,FALSE) -> -1.42 | V13: =VLOOKUP($E13,'RECAP AG'!$G$6:$DC$270,32,FALSE) -> 76% | W13: =VLOOKUP($E13,'RECAP AG'!$G$6:$DC$270,33,FALSE) -> 203 | X13: =VLOOKUP($E13,'RECAP AG'!$G$6:$DC$270,34,FALSE) -> 81% | Y13: =VLOOKUP($E13,'RECAP AG'!$G$6:$DC$270,35,FALSE) -> 66% | Z13: =VLOOKUP($E13,'RECAP AG'!$G$6:$DC$270,36,FALSE) -> 249
A14: 50 | B14: AUBE HAUTE MARNE | C14: 21 | D14: CHAUMONT | E14: 410541 | F14: LANGRES | G14: =VLOOKUP($E14,'RECAP AG'!$G$6:$DC$270,3,FALSE) -> 6.6 | H14: =VLOOKUP($E14,'RECAP AG'!$G$6:$DC$270,18,FALSE) -> 179.3 | I14: =VLOOKUP($E14,'RECAP AG'!$G$6:$DC$270,19,FALSE) -> 27.34 | J14: =VLOOKUP($E14,'RECAP AG'!$G$6:$DC$270,20,FALSE) -> 71% | K14: =VLOOKUP($E14,'RECAP AG'!$G$6:$DC$270,21,FALSE) -> 154 | L14: =VLOOKUP($E14,'RECAP AG'!$G$6:$DC$270,22,FALSE) -> 112 | M14: =VLOOKUP($E14,'RECAP AG'!$G$6:$DC$270,23,FALSE) -> 17.08 | N14: =VLOOKUP($E14,'RECAP AG'!$G$6:$DC$270,24,FALSE) -> 62% | O14: =VLOOKUP($E14,'RECAP AG'!$G$6:$DC$270,25,FALSE) -> 186 | P14: =VLOOKUP($E14,'RECAP AG'!$G$6:$DC$270,26,FALSE) -> 27 | Q14: =VLOOKUP($E14,'RECAP AG'!$G$6:$DC$270,27,FALSE) -> 4.12 | R14: =VLOOKUP($E14,'RECAP AG'!$G$6:$DC$270,28,FALSE) -> 83% | S14: =VLOOKUP($E14,'RECAP AG'!$G$6:$DC$270,29,FALSE) -> 109 | T14: =VLOOKUP($E14,'RECAP AG'!$G$6:$DC$270,30,FALSE) -> -7.74 | U14: =VLOOKUP($E14,'RECAP AG'!$G$6:$DC$270,31,FALSE) -> -1.18 | V14: =VLOOKUP($E14,'RECAP AG'!$G$6:$DC$270,32,FALSE) -> 60% | W14: =VLOOKUP($E14,'RECAP AG'!$G$6:$DC$270,33,FALSE) -> 160 | X14: =VLOOKUP($E14,'RECAP AG'!$G$6:$DC$270,34,FALSE) -> 69% | Y14: =VLOOKUP($E14,'RECAP AG'!$G$6:$DC$270,35,FALSE) -> 55% | Z14: =VLOOKUP($E14,'RECAP AG'!$G$6:$DC$270,36,FALSE) -> 187
A15: 50 | B15: AUBE HAUTE MARNE | C15: 21 | D15: CHAUMONT | E15: 451156 | F15: SAINT DIZIER CENTRE | G15: =VLOOKUP($E15,'RECAP AG'!$G$6:$DC$270,3,FALSE) -> 9.7 | H15: =VLOOKUP($E15,'RECAP AG'!$G$6:$DC$270,18,FALSE) -> 216.5 | I15: =VLOOKUP($E15,'RECAP AG'!$G$6:$DC$270,19,FALSE) -> 22.38 | J15: =VLOOKUP($E15,'RECAP AG'!$G$6:$DC$270,20,FALSE) -> 76% | K15: =VLOOKUP($E15,'RECAP AG'!$G$6:$DC$270,21,FALSE) -> 188 | L15: =VLOOKUP($E15,'RECAP AG'!$G$6:$DC$270,22,FALSE) -> 204 | M15: =VLOOKUP($E15,'RECAP AG'!$G$6:$DC$270,23,FALSE) -> 21.08 | N15: =VLOOKUP($E15,'RECAP AG'!$G$6:$DC$270,24,FALSE) -> 53% | O15: =VLOOKUP($E15,'RECAP AG'!$G$6:$DC$270,25,FALSE) -> 99 | P15: =VLOOKUP($E15,'RECAP AG'!$G$6:$DC$270,26,FALSE) -> 35 | Q15: =VLOOKUP($E15,'RECAP AG'!$G$6:$DC$270,27,FALSE) -> 3.62 | R15: =VLOOKUP($E15,'RECAP AG'!$G$6:$DC$270,28,FALSE) -> 85% | S15: =VLOOKUP($E15,'RECAP AG'!$G$6:$DC$270,29,FALSE) -> 128 | T15: =VLOOKUP($E15,'RECAP AG'!$G$6:$DC$270,30,FALSE) -> -10.76 | U15: =VLOOKUP($E15,'RECAP AG'!$G$6:$DC$270,31,FALSE) -> -1.11 | V15: =VLOOKUP($E15,'RECAP AG'!$G$6:$DC$270,32,FALSE) -> 56% | W15: =VLOOKUP($E15,'RECAP AG'!$G$6:$DC$270,33,FALSE) -> 140 | X15: =VLOOKUP($E15,'RECAP AG'!$G$6:$DC$270,34,FALSE) -> 70% | Y15: =VLOOKUP($E15,'RECAP AG'!$G$6:$DC$270,35,FALSE) -> 55% | Z15: =VLOOKUP($E15,'RECAP AG'!$G$6:$DC$270,36,FALSE) -> 195
A16: 50 | B16: AUBE HAUTE MARNE | C16: 21 | D16: CHAUMONT | E16: 451151 | F16: WASSY | G16: =VLOOKUP($E16,'RECAP AG'!$G$6:$DC$270,3,FALSE) -> 2.0 | H16: =VLOOKUP($E16,'RECAP AG'!$G$6:$DC$270,18,FALSE) -> 78.2 | I16: =VLOOKUP($E16,'RECAP AG'!$G$6:$DC$270,19,FALSE) -> 40.10 | J16: =VLOOKUP($E16,'RECAP AG'!$G$6:$DC$270,20,FALSE) -> 57% | K16: =VLOOKUP($E16,'RECAP AG'!$G$6:$DC$270,21,FALSE) -> 77 | L16: =VLOOKUP($E16,'RECAP AG'!$G$6:$DC$270,22,FALSE) -> 35 | M16: =VLOOKUP($E16,'RECAP AG'!$G$6:$DC$270,23,FALSE) -> 17.95 | N16: =VLOOKUP($E16,'RECAP AG'!$G$6:$DC$270,24,FALSE) -> 60% | O16: =VLOOKUP($E16,'RECAP AG'!$G$6:$DC$270,25,FALSE) -> 164 | P16: =VLOOKUP($E16,'RECAP AG'!$G$6:$DC$270,26,FALSE) -> 7 | Q16: =VLOOKUP($E16,'RECAP AG'!$G$6:$DC$270,27,FALSE) -> 3.59 | R16: =VLOOKUP($E16,'RECAP AG'!$G$6:$DC$270,28,FALSE) -> 85% | S16: =VLOOKUP($E16,'RECAP AG'!$G$6:$DC$270,29,FALSE) -> 129 | T16: =VLOOKUP($E16,'RECAP AG'!$G$6:$DC$270,30,FALSE) -> -1.38 | U16: =VLOOKUP($E16,'RECAP AG'!$G$6:$DC$270,31,FALSE) -> -0.71 | V16: =VLOOKUP($E16,'RECAP AG'!$G$6:$DC$270,32,FALSE) -> 29% | W16: =VLOOKUP($E16,'RECAP AG'!$G$6:$DC$270,33,FALSE) -> 39 | X16: =VLOOKUP($E16,'RECAP AG'!$G$6:$DC$270,34,FALSE) -> 58% | Y16: =VLOOKUP($E16,'RECAP AG'!$G$6:$DC$270,35,FALSE) -> 43% | Z16: =VLOOKUP($E16,'RECAP AG'!$G$6:$DC$270,36,FALSE) -> 62
A17: 50 | B17: AUBE HAUTE MARNE | C17: 14 | D17: TROYES | E17: 510530 | F17: ARCIS SUR AUBE | G17: =VLOOKUP($E17,'RECAP AG'!$G$6:$DC$270,3,FALSE) -> 4.0 | H17: =VLOOKUP($E17,'RECAP AG'!$G$6:$DC$270,18,FALSE) -> 69.7 | I17: =VLOOKUP($E17,'RECAP AG'!$G$6:$DC$270,19,FALSE) -> 17.43 | J17: =VLOOKUP($E17,'RECAP AG'!$G$6:$DC$270,20,FALSE) -> 81% | K17: =VLOOKUP($E17,'RECAP AG'!$G$6:$DC$270,21,FALSE) -> 220 | L17: =VLOOKUP($E17,'RECAP AG'!$G$6:$DC$270,22,FALSE) -> 44 | M17: =VLOOKUP($E17,'RECAP AG'!$G$6:$DC$270,23,FALSE) -> 11.00 | N17: =VLOOKUP($E17,'RECAP AG'!$G$6:$DC$270,24,FALSE) -> 76% | O17: =VLOOKUP($E17,'RECAP AG'!$G$6:$DC$270,25,FALSE) -> 255 | P17: =VLOOKUP($E17,'RECAP AG'!$G$6:$DC$270,26,FALSE) -> 9 | Q17: =VLOOKUP($E17,'RECAP AG'!$G$6:$DC$270,27,FALSE) -> 2.25 | R17: =VLOOKUP($E17,'RECAP AG'!$G$6:$DC$270,28,FALSE) -> 91% | S17: =VLOOKUP($E17,'RECAP AG'!$G$6:$DC$270,29,FALSE) -> 195 | T17: =VLOOKUP($E17,'RECAP AG'!$G$6:$DC$270,30,FALSE) -> -2.83 | U17: =VLOOKUP($E17,'RECAP AG'!$G$6:$DC$270,31,FALSE) -> -0.71 | V17: =VLOOKUP($E17,'RECAP AG'!$G$6:$DC$270,32,FALSE) -> 29% | W17: =VLOOKUP($E17,'RECAP AG'!$G$6:$DC$270,33,FALSE) -> 37 | X17: =VLOOKUP($E17,'RECAP AG'!$G$6:$DC$270,34,FALSE) -> 74% | Y17: =VLOOKUP($E17,'RECAP AG'!$G$6:$DC$270,35,FALSE) -> 59% | Z17: =VLOOKUP($E17,'RECAP AG'!$G$6:$DC$270,36,FALSE) -> 214
A18: 50 | B18: AUBE HAUTE MARNE | C18: 14 | D18: TROYES | E18: 410550 | F18: BAR SUR AUBE | G18: =VLOOKUP($E18,'RECAP AG'!$G$6:$DC$270,3,FALSE) -> 5.9 | H18: =VLOOKUP($E18,'RECAP AG'!$G$6:$DC$270,18,FALSE) -> 118.0 | I18: =VLOOKUP($E18,'RECAP AG'!$G$6:$DC$270,19,FALSE) -> 19.87 | J18: =VLOOKUP($E18,'RECAP AG'!$G$6:$DC$270,20,FALSE) -> 79% | K18: =VLOOKUP($E18,'RECAP AG'!$G$6:$DC$270,21,FALSE) -> 205 | L18: =VLOOKUP($E18,'RECAP AG'!$G$6:$DC$270,22,FALSE) -> 110 | M18: =VLOOKUP($E18,'RECAP AG'!$G$6:$DC$270,23,FALSE) -> 18.52 | N18: =VLOOKUP($E18,'RECAP AG'!$G$6:$DC$270,24,FALSE) -> 59% | O18: =VLOOKUP($E18,'RECAP AG'!$G$6:$DC$270,25,FALSE) -> 147 | P18: =VLOOKUP($E18,'RECAP AG'!$G$6:$DC$270,26,FALSE) -> 10 | Q18: =VLOOKUP($E18,'RECAP AG'!$G$6:$DC$270,27,FALSE) -> 1.68 | R18: =VLOOKUP($E18,'RECAP AG'!$G$6:$DC$270,28,FALSE) -> 93% | S18: =VLOOKUP($E18,'RECAP AG'!$G$6:$DC$270,29,FALSE) -> 221 | T18: =VLOOKUP($E18,'RECAP AG'!$G$6:$DC$270,30,FALSE) -> -3.70 | U18: =VLOOKUP($E18,'RECAP AG'!$G$6:$DC$270,31,FALSE) -> -0.62 | V18: =VLOOKUP($E18,'RECAP AG'!$G$6:$DC$270,32,FALSE) -> 24% | W18: =VLOOKUP($E18,'RECAP AG'!$G$6:$DC$270,33,FALSE) -> 25 | X18: =VLOOKUP($E18,'RECAP AG'!$G$6:$DC$270,34,FALSE) -> 69% | Y18: =VLOOKUP($E18,'RECAP AG'!$G$6:$DC$270,35,FALSE) -> 54% | Z18: =VLOOKUP($E18,'RECAP AG'!$G$6:$DC$270,36,FALSE) -> 180
A19: 50 | B19: AUBE HAUTE MARNE | C19: 14 | D19: TROYES | E19: 510556 | F19: BAR SUR SEINE | G19: =VLOOKUP($E19,'RECAP AG'!$G$6:$DC$270,3,FALSE) -> 3.3 | H19: =VLOOKUP($E19,'RECAP AG'!$G$6:$DC$270,18,FALSE) -> 112.8 | I19: =VLOOKUP($E19,'RECAP AG'!$G$6:$DC$270,19,FALSE) -> 34.13 | J19: =VLOOKUP($E19,'RECAP AG'!$G$6:$DC$270,20,FALSE) -> 63% | K19: =VLOOKUP($E19,'RECAP AG'!$G$6:$DC$270,21,FALSE) -> 115 | L19: =VLOOKUP($E19,'RECAP AG'!$G$6:$DC$270,22,FALSE) -> 72 | M19: =VLOOKUP($E19,'RECAP AG'!$G$6:$DC$270,23,FALSE) -> 21.79 | N19: =VLOOKUP($E19,'RECAP AG'!$G$6:$DC$270,24,FALSE) -> 52% | O19: =VLOOKUP($E19,'RECAP AG'!$G$6:$DC$270,25,FALSE) -> 89 | P19: =VLOOKUP($E19,'RECAP AG'!$G$6:$DC$270,26,FALSE) -> 7 | Q19: =VLOOKUP($E19,'RECAP AG'!$G$6:$DC$270,27,FALSE) -> 2.12 | R19: =VLOOKUP($E19,'RECAP AG'!$G$6:$DC$270,28,FALSE) -> 91% | S19: =VLOOKUP($E19,'RECAP AG'!$G$6:$DC$270,29,FALSE) -> 202 | T19: =VLOOKUP($E19,'RECAP AG'!$G$6:$DC$270,30,FALSE) -> -5.31 | U19: =VLOOKUP($E19,'RECAP AG'!$G$6:$DC$270,31,FALSE) -> -1.61 | V19: =VLOOKUP($E19,'RECAP AG'!$G$6:$DC$270,32,FALSE) -> 89% | W19: =VLOOKUP($E19,'RECAP AG'!$G$6:$DC$270,33,FALSE) -> 231 | X19: =VLOOKUP($E19,'RECAP AG'!$G$6:$DC$270,34,FALSE) -> 69% | Y19: =VLOOKUP($E19,'RECAP AG'!$G$6:$DC$270,35,FALSE) -> 54% | Z19: =VLOOKUP($E19,'RECAP AG'!$G$6:$DC$270,36,FALSE) -> 184
